Workbook

Sheet सामान्य जानकारी
C3: सत्र 2024-25 हेतु कक्षा 03 से 04 तक निजी विद्यालयों के लिए रिजल्ट शीट | L3: सम्पूर्ण जानकारी के लिए विडियो लिंक
C4: निदेशालय बीकानेर द्वारा जारी आदेश का सारांश
C5: 1. स्थानीय परीक्षा में प्रत्येक विषय की सैद्धांतिक परीक्षा हेतु अर्द्ध वार्षिक परीक्षा व वार्षिक परीक्षा हेतु निम्नोक्त अंक निर्धारित रहेंगे - | L5: https://youtu.be/FLTc9ZWc9_Q
C6: इसके अंतर्गत नियमित विद्यार्थियों के लिए विद्यालय द्वारा लिए गए अर्द्धवार्षिक परीक्षा (100 अंक) और वार्षिक परीक्षा (100 अंक) आदि के कुल 200 अंक होंगे। | K6: Updated On | M6: https://youtu.be/KH69Y_uPILw
C7: समाजोपयोगी उत्पादन कार्य एवं समाज सेवा , शारीरिक एवं स्वास्थ्य शिक्षा तथा कला शिक्षा विषयों मे विद्यालय द्वारा करवाए गए शिक्षण कार्य / प्रोजेक्ट वर्क / गृहकार्य पुस्तिका के आधार पर मूल्यांकन ग्रेडिंग में देनी है I | K7: 2025-04-13
C8: विषय कोड | D8: विषय | E8: सामायिक परख के पूर्णांक | F8: अर्द्धवार्षिक कुल पूर्णांक | G8: वार्षिक कुल पूर्णांक | K8: यह एक्सेल फाइल कॉपीराइट एक्ट के अंतर्गत है , आप इसके साथ किसी भी प्रकार की छेड़छाड़ नहीं कर सकते है I अगर कोई इस एक्सेल फाइल के साथ छेड़छाड़ या नक़ल या कॉपी करता है , तो उसके खिलाफ़ क़ानूनी कार्यवाही की जायेगी I
C9: 1 | D9: हिन्दी | E9: 10 + 10 + 10 | F9: 50 + 20 = 70 | G9: 60 + 40 = 100
C10: 2 | D10: अंग्रेजी | E10: 5 + 5 + 5 | F10: 25 + 10 = 35 | G10: 30 + 20 = 50
C11: 3 | D11: गणित | E11: 10 + 10 + 10 | F11: 50 + 20 = 70 | G11: 60 + 40 = 100
C12: 4 | D12: पर्यावरण अध्ययन | E12: 10 + 10 + 10 | F12: 50 + 20 = 70 | G12: 60 + 40 = 100
C13: हिंदी , अंग्रेजी , गणित और पर्यावरण विषयों मे ग्रेडिंग देने का आधार निम्न प्रकार से रहेगा -
D15: अंको का प्रतिशत | F15: ग्रेड | H15: नोट :- यह एक्सेल फाइल कम सॉफ्टवेयर निःशुल्क है I शिक्षक साथियों के सम्मान में यह फ्री में उपलब्ध करवाया जा रहा है I
D16: 86 से 100 प्रतिशत तक | F16: A ग्रेड | K16: यह रिजल्ट शीट एक्सेल सॉफ्टवेयर आपको https://excelguruedu.blogspot.com/ www.rajguruji.com , www.rajsevak.com , www.rajgyan.co.in , www.rajteachers.com , www.shalasugum.com , www.ashwinikumar.com पर मिल जाएगी I इसके अलावा आप गूगल पर heeralal jat लिखकर सर्च करेंगे , तो भी यह एक्सेल शीट मिल जाएगी I
D17: 71 से 85 प्रतिशत तक | F17: B ग्रेड
D18: 51 से 70 प्रतिशत तक | F18: C ग्रेड
D19: 31 से50 प्रतिशत तक | F19: D ग्रेड
D20: 0 से 30 प्रतिशत तक | F20: E ग्रेड
D22: निम्नोक्त तीनों विषयों के कुल पूर्णांक
C23: 81 | D23: समाजोपयोगी उत्पादन कार्य एवं समाज सेवा | F23: 100 | G23: ए/बी/सी/डी/ई ग्रेडिंग देनी है (A/B/C/D/E Grade)
C24: 82 | D24: शारीरिक एवं स्वास्थ्य शिक्षा | F24: 100
C25: 83 | D25: कला शिक्षा | F25: 100
D26: समाजोपयोगी उत्पादन कार्य एवं समाज सेवा , शारीरिक एवं स्वास्थ्य शिक्षा , तथा कला शिक्षा विषयों मे ग्रेडिंग देने का आधार
D27: अंको का प्रतिशत | F27: ग्रेड
D28: 91 से 100 प्रतिशत तक | F28: A+ ग्रेड
D29: 76 से 90 प्रतिशत तक | F29: A ग्रेड
D30: 61 से 75 प्रतिशत तक | F30: B ग्रेड
D31: 41 से 60 प्रतिशत तक | F31: C ग्रेड
D32: 0 से 40 प्रतिशत तक | F32: D ग्रेड
C34: वैसे यह शीट उपरोक्त अनुसार ही बड़ी सावधानी से बनाई गई हैI फिर भी त्रुटि के लिए निर्माणकर्ता ज़िमेदार नहीं होगा I अतः अंतिम रूप से तैयार होने पर अपने स्तर पर जरुर चेक कर लेवे I
C37: Password of This Result Sheet :- Resultsheet2025
F38: (सामान्य जानकारी , master sheet & Marksheet पर try नहीं करें )
C39: प्रोग्राम निर्माणकर्ता
C40: हीरालाल जाट
C41: वरिष्ठ अध्यापक , महात्मा गाँधी राजकीय विद्यालय बर , ब्यावर
C42: स्थाई पता :- चंडावल नगर , तह. - सोजत , जिला - पाली
C43: https://youtube.com/c/Heeralaljat
C46: सम्पूर्ण जानकारी के लिए विडियो लिंक
C47: https://youtu.be/FLTc9ZWc9_Q
E50: https://youtu.be/KH69Y_uPILw

Sheet Master sheet
R4: =IF(#REF!="","",#REF!) -> 
R5: =IF(#REF!="","",#REF!) -> 
C6: School Recognition (विद्यालय मान्यता क्रमांक) :- | D6: शिक्षा/पाली/1995/2001 | F6: 1 | G6: =IF(D14="Hindi","हिंदी","Hindi") -> हिंदी | H6: Manoj kumar Pachori | J6: 1 | K6: =IF($D$14="Hindi","हिंदी","Hindi") -> हिंदी | L6: Abhimanyu Singh | R6: =IF(#REF!="","",#REF!) -> 
C7: Name of School (In English) :- | D7: Mahatma Gandhi Government School (English Medium) Bar, Beawar | F7: 2 | G7: =IF(D14="Hindi","अंग्रेजी","English") -> अंग्रेजी | H7: Sampat Raj | J7: 2 | K7: =IF(D14="Hindi","अंग्रेजी","English") -> अंग्रेजी | L7: Sampat Raj | R7: =IF(#REF!="","",#REF!) -> 
C8: Name of School (In Hindi) :- | D8: महात्मा गाँधी राजकीय विद्यालय (अंग्रेजी माध्यम) बर, ब्यावर | F8: 3 | G8: =IF(D14="Hindi","गणित","Maths") -> गणित | H8: Pradip singh | J8: 3 | K8: =IF(D14="Hindi","गणित","Maths") -> गणित | L8: Manoj Kumar | R8: =IF(#REF!="","",#REF!) -> 
C9: Exam Nodel & Collection Centre Name :- | D9: G.S.S.S. BAR | F9: 4 | G9: =IF(D14="Hindi","पर्यावरण अध्ययन","EVS") -> पर्यावरण अध्ययन | H9: Pushpendra Jawra | J9: 4 | K9: =IF(D14="Hindi","पर्यावरण अध्ययन","EVS") -> पर्यावरण अध्ययन | L9: Pushpendra Jawra | R9: =IF(#REF!="","",#REF!) -> 
C10: School DISE Code:- | D10: 08200300101 | F10: 5 | G10: =IF(D14="Hindi","कंप्यूटर","Computer") -> कंप्यूटर | H10: Heeralal Jat | J10: 5 | K10: =IF(D14="Hindi","कंप्यूटर","Computer") -> कंप्यूटर | L10: Heeralal Jat
C11: School E-MAIL :- | D11: mggsbar@gmail.com | F11: 6 | G11: =IF(D14="Hindi","सामान्य ज्ञान","G.K.") -> सामान्य ज्ञान | H11: Mukesh Kumar | J11: 6 | K11: =IF(D14="Hindi","सामान्य ज्ञान","G.K.") -> सामान्य ज्ञान | L11: Prakash Chand
C12: Session :- | D12: 2024-2025 | F12: 7 | G12: =IF(D14="Hindi","कला शिक्षा","Art Education") -> कला शिक्षा | H12: Sharad Sharma | J12: 7 | K12: =IF(D14="Hindi","कला शिक्षा","Art Education") -> कला शिक्षा | L12: Seema Chhaba
C13: Date of result declaration :- | D13: 2025-05-16 | F13: 8 | G13: =IF('Master sheet'!$D$14="Hindi","कार्यानुभव","WORK EXP.") -> कार्यानुभव | H13: Seema Chhaba | J13: 8 | K13: =IF('Master sheet'!$D$14="Hindi","कार्यानुभव","WORK EXP.") -> कार्यानुभव | L13: Pradip Singh | R13: =IF(#REF!="","",#REF!) -> 
C14: Medium :- | D14: Hindi | F14: 9 | G14: =IF('Master sheet'!$D$14="Hindi","स्वा. एवं शा. शिक्षा","HE.&PH. EDU.") -> स्वा. एवं शा. शिक्षा | H14: Lalit Kumar | J14: 9 | K14: =IF('Master sheet'!$D$14="Hindi","स्वा. एवं शा. शिक्षा","HE.&PH. EDU.") -> स्वा. एवं शा. शिक्षा | L14: Lalit Kumar | R14: =IF(#REF!="","",#REF!) -> 
C15: Principal Name :- | D15: USHA PALIYA | F15: 10 | G15: =IF(D14="Hindi","कक्षा 3 के कक्षाध्यापक","3rd Class Teacher") -> कक्षा 3 के कक्षाध्यापक | H15: Pradip singh Rajawat | J15: 10 | K15: =IF(D14="Hindi","कक्षा 4 के कक्षाध्यापक","4th Class Teacher") -> कक्षा 4 के कक्षाध्यापक | L15: Sampat Raj | R15: =IF(#REF!="","",#REF!) -> 
C16: Principal Mobile No. :- | D16: 9828765219 | R16: =IF(#REF!="","",#REF!) -> 
C17: Exam Incharge :- | D17: Suresh Kumar | R17: =IF(#REF!="","",#REF!) -> 
C18: Result Checker :- | D18: Rakesh Kumar | R18: =IF(#REF!="","",#REF!) -> 
C19: Result Maker :- | D19: Yogendra | G19: Youtube Video Link for Class 3rd & 4th | R19: =IF(#REF!="","",#REF!) -> 
R20: =IF(#REF!="","",#REF!) -> 
G21: https://youtu.be/FLTc9ZWc9_Q
R24: =IF(#REF!="","",#REF!) -> 
R25: =IF(#REF!="","",#REF!) -> 
E26: 1 | R26: =IF(#REF!="","",#REF!) -> 
D27: Presented By :- | R27: =IF(#REF!="","",#REF!) -> 
C28: नोट :- यह एक्सेल फाइल कम सॉफ्टवेयर निःशुल्क है I शिक्षक साथियों के सम्मान में यह सॉफ्टवेयर फ्री में उपलब्ध करवाया जा रहा है I | R28: =IF(#REF!="","",#REF!) -> 
D29: HEERA LAL JAT | G29: 1 | R29: =IF(#REF!="","",#REF!) -> 
D30: Sr. Teacher at MGGS BAR (Beawar) | R30: =IF(#REF!="","",#REF!) -> 
R31: =IF(#REF!="","",#REF!) -> 
D32: V./P. - CHANDAWAL NAGAR , SOJAT (PALI) | R32: =IF(#REF!="","",#REF!) -> 
R33: =IF(#REF!="","",#REF!) -> 
D34: Whats App No. 09001884272 | R34: =IF(#REF!="","",#REF!) -> 
K35: परम पूज्य गुरुदेव वासुदेव जी महाराज | R35: =IF(#REF!="","",#REF!) -> 
C36: EXCEL GURU | D36: heeralaljatchandawal@gmail.com | R36: =IF(#REF!="","",#REF!) -> 
R37: =IF(#REF!="","",#REF!) -> 
R38: =IF(#REF!="","",#REF!) -> 
R39: =IF(#REF!="","",#REF!) -> 
R40: =IF(#REF!="","",#REF!) -> 
R41: =IF(#REF!="","",#REF!) -> 
R42: =IF(#REF!="","",#REF!) -> 
R43: =IF(#REF!="","",#REF!) -> 
R44: =IF(#REF!="","",#REF!) -> 
R45: =IF(#REF!="","",#REF!) -> 
R46: =IF(#REF!="","",#REF!) -> 
R47: =IF(#REF!="","",#REF!) -> 
R48: =IF(#REF!="","",#REF!) -> 
R49: =IF(#REF!="","",#REF!) -> 
R50: =IF(#REF!="","",#REF!) -> 
R51: =IF(#REF!="","",#REF!) -> 
R52: =IF(#REF!="","",#REF!) -> 
R53: =IF(#REF!="","",#REF!) -> 
R54: =IF(#REF!="","",#REF!) -> 
R55: =IF(#REF!="","",#REF!) -> 
R56: =IF(#REF!="","",#REF!) -> 
R57: =IF(#REF!="","",#REF!) -> 
R58: =IF(#REF!="","",#REF!) -> 
R59: =IF(#REF!="","",#REF!) -> 
R60: =IF(#REF!="","",#REF!) -> 
R61: =IF(#REF!="","",#REF!) -> 
R62: =IF(#REF!="","",#REF!) -> 
R63: =IF(#REF!="","",#REF!) -> 
R64: =IF(#REF!="","",#REF!) -> 
R65: =IF(#REF!="","",#REF!) -> 
R66: =IF(#REF!="","",#REF!) -> 
R67: =IF(#REF!="","",#REF!) -> 

Sheet Class 3rd
A1: =IF('Master sheet'!D14="Hindi",'Master sheet'!D8,'Master sheet'!D7) -> महात्मा गाँधी राजकीय विद्यालय (अंग्रेजी माध्यम) बर, ब्यावर | P1: This Sheet Password :- Resultsheet2025 (सामान्य जानकारी , master sheet & Marksheet पर try नहीं करें ) | AN1: =IF('Master sheet'!$D$14="Hindi","अतिरिक्त विषय ","Extra Subject") -> अतिरिक्त विषय | BB1: ए/बी/सी/डी/ई ग्रेडिंग देनी है (A/B/C/D/E Grade) | CZ1: =L3 -> हिंदी | DC1: =#REF! -> 
A2: =IF('Master sheet'!D14="Hindi","रिजल्ट वर्कशीट","RESULT WORKSHEET") -> रिजल्ट वर्कशीट | I2: =IF('Master sheet'!D12="","",'Master sheet'!D12) -> 2024-2025 | CZ2: =S3 -> अंग्रेजी | DC2: =#REF! -> 
A3: =IF('Master sheet'!D14="Hindi","विद्यार्थी की सामान्य जानकारी","General Information of Students") -> विद्यार्थी की सामान्य जानकारी | I3: =IF('Master sheet'!D14="Hindi","कक्षा :-","CLASS :- ") -> कक्षा :- | J3: 3rd | L3: =IF('Master sheet'!$D$14="Hindi","हिंदी","Hindi") -> हिंदी | O3: =UPPER('Master sheet'!H6) -> MANOJ KUMAR PACHORI | S3: =IF('Master sheet'!$D$14="Hindi","अंग्रेजी","English") -> अंग्रेजी | V3: =UPPER('Master sheet'!H7) -> SAMPAT RAJ | Z3: =IF('Master sheet'!$D$14="Hindi","गणित","Maths") -> गणित | AC3: =UPPER('Master sheet'!H8) -> PRADIP SINGH | AG3: =IF('Master sheet'!$D$14="Hindi","पर्यावरण अध्ययन","EVS") -> पर्यावरण अध्ययन | AJ3: =UPPER('Master sheet'!H9) -> PUSHPENDRA JAWRA | AN3: =IF('Master sheet'!$D$14="Hindi","कंप्यूटर","Computer") -> कंप्यूटर | AQ3: =UPPER('Master sheet'!H10) -> HEERALAL JAT | AU3: =IF('Master sheet'!$D$14="Hindi","सामान्य ज्ञान","G.K.") -> सामान्य ज्ञान | AX3: =UPPER('Master sheet'!H11) -> MUKESH KUMAR | BB3: =IF('Master sheet'!$D$14="Hindi","कार्यानुभव","WORK EXP.") -> कार्यानुभव | BG3: =IF('Master sheet'!$D$14="Hindi","कला शिक्षा","ART EDU.") -> कला शिक्षा | BL3: =IF('Master sheet'!$D$14="Hindi","स्वा. एवं शा. शिक्षा","HE.&PH. EDU.") -> स्वा. एवं शा. शिक्षा | BQ3: =IF('Master sheet'!$D$14="Hindi","उपस्थिति","Attendance") -> उपस्थिति | CZ3: =#REF! ->  | DC3: =#REF! -> 
A4: =IF('Master sheet'!D14="Hindi","क्र. स.","Sr. No. ") -> क्र. स. | B4: =IF('Master sheet'!D14="Hindi","कक्षा","CLASS ") -> कक्षा | C4: =IF('Master sheet'!D14="Hindi","सेक्शन","Section ") -> सेक्शन | D4: =IF('Master sheet'!D14="Hindi","प्रवेशांक","SR. NO.") -> प्रवेशांक | E4: =IF('Master sheet'!D14="Hindi","जन्म दिनांक","Date of Birth") -> जन्म दिनांक | F4: =IF('Master sheet'!D14="Hindi","विद्यार्थी का नाम","Student's Name") -> विद्यार्थी का नाम | G4: =IF('Master sheet'!D14="Hindi","पिता का नाम","Father's Name") -> पिता का नाम | H4: =IF('Master sheet'!D14="Hindi","माता का नाम ","Mother's Name") -> माता का नाम | I4: =IF('Master sheet'!D14="Hindi","कक्षा रोल न. ","Class Roll No.") -> कक्षा रोल न. | J4: =IF('Master sheet'!D14="Hindi","लिंग ","Gender") -> लिंग | K4: =IF('Master sheet'!D14="Hindi","वर्ग ","Category") -> वर्ग | L4: =IF('Master sheet'!D14="Hindi","प्रथम परख ","First Test") -> प्रथम परख | M4: =IF('Master sheet'!D14="Hindi","द्वितीय परख","Second Test") -> द्वितीय परख | N4: =IF('Master sheet'!D14="Hindi","तृतीय परख","Third Test") -> तृतीय परख | O4: =IF('Master sheet'!$D$14="Hindi","अर्द्धवार्षिक","Half Yearly") -> अर्द्धवार्षिक | Q4: =IF('Master sheet'!$D$14="Hindi","वार्षिक","Yearly") -> वार्षिक | S4: =IF('Master sheet'!D14="Hindi","प्रथम परख ","First Test") -> प्रथम परख | T4: =IF('Master sheet'!D14="Hindi","द्वितीय परख","Second Test") -> द्वितीय परख | U4: =IF('Master sheet'!D14="Hindi","तृतीय परख","Third Test") -> तृतीय परख | V4: =IF('Master sheet'!$D$14="Hindi","अर्द्धवार्षिक","Half Yearly") -> अर्द्धवार्षिक | X4: =IF('Master sheet'!$D$14="Hindi","वार्षिक","Yearly") -> वार्षिक | Z4: =IF('Master sheet'!D14="Hindi","प्रथम परख ","First Test") -> प्रथम परख | AA4: =IF('Master sheet'!D14="Hindi","द्वितीय परख","Second Test") -> द्वितीय परख | AB4: =IF('Master sheet'!D14="Hindi","तृतीय परख","Third Test") -> तृतीय परख | AC4: =IF('Master sheet'!$D$14="Hindi","अर्द्धवार्षिक","Half Yearly") -> अर्द्धवार्षिक | AE4: =IF('Master sheet'!$D$14="Hindi","वार्षिक","Yearly") -> वार्षिक | AG4: =IF('Master sheet'!D14="Hindi","प्रथम परख ","First Test") -> प्रथम परख | AH4: =IF('Master sheet'!D14="Hindi","द्वितीय परख","Second Test") -> द्वितीय परख | AI4: =IF('Master sheet'!D14="Hindi","तृतीय परख","Third Test") -> तृतीय परख | AJ4: =IF('Master sheet'!$D$14="Hindi","अर्द्धवार्षिक","Half Yearly") -> अर्द्धवार्षिक | AL4: =IF('Master sheet'!$D$14="Hindi","वार्षिक","Yearly") -> वार्षिक | AN4: =IF('Master sheet'!$D$14="Hindi","प्रथम परख ","First Test") -> प्रथम परख | AO4: =IF('Master sheet'!$D$14="Hindi","द्वितीय परख","Second Test") -> द्वितीय परख | AP4: =IF('Master sheet'!$D$14="Hindi","तृतीय परख","Third Test") -> तृतीय परख | AQ4: =IF('Master sheet'!$D$14="Hindi","अर्द्धवार्षिक","Half Yearly") -> अर्द्धवार्षिक | AS4: =IF('Master sheet'!$D$14="Hindi","वार्षिक","Yearly") -> वार्षिक | AU4: =IF('Master sheet'!$D$14="Hindi","प्रथम परख ","First Test") -> प्रथम परख | AV4: =IF('Master sheet'!$D$14="Hindi","द्वितीय परख","Second Test") -> द्वितीय परख | AW4: =IF('Master sheet'!$D$14="Hindi","तृतीय परख","Third Test") -> तृतीय परख | AX4: =IF('Master sheet'!$D$14="Hindi","अर्द्धवार्षिक","Half Yearly") -> अर्द्धवार्षिक | AZ4: =IF('Master sheet'!$D$14="Hindi","वार्षिक","Yearly") -> वार्षिक | BB4: =UPPER('Master sheet'!H13) -> SEEMA CHHABA | BG4: =UPPER('Master sheet'!H12) -> SHARAD SHARMA | BL4: =UPPER('Master sheet'!H14) -> LALIT KUMAR | BQ4: =IF('Master sheet'!$D$14="Hindi","कुल कार्य दिवस","Total Meeting") -> कुल कार्य दिवस | BR4: =IF('Master sheet'!$D$14="Hindi","कुल उपस्थिति","Total Attendance") -> कुल उपस्थिति | CZ4: =Z3 -> गणित
O5: =IF('Master sheet'!$D$14="Hindi","लिखित","Written") -> लिखित | P5: =IF('Master sheet'!$D$14="Hindi","मौखिक","Oral") -> मौखिक | Q5: =IF('Master sheet'!$D$14="Hindi","लिखित","Written") -> लिखित | R5: =IF('Master sheet'!$D$14="Hindi","मौखिक","Oral") -> मौखिक | V5: =IF('Master sheet'!$D$14="Hindi","लिखित","Written") -> लिखित | W5: =IF('Master sheet'!$D$14="Hindi","मौखिक","Oral") -> मौखिक | X5: =IF('Master sheet'!$D$14="Hindi","लिखित","Written") -> लिखित | Y5: =IF('Master sheet'!$D$14="Hindi","मौखिक","Oral") -> मौखिक | AC5: =IF('Master sheet'!$D$14="Hindi","लिखित","Written") -> लिखित | AD5: =IF('Master sheet'!$D$14="Hindi","मौखिक","Oral") -> मौखिक | AE5: =IF('Master sheet'!$D$14="Hindi","लिखित","Written") -> लिखित | AF5: =IF('Master sheet'!$D$14="Hindi","मौखिक","Oral") -> मौखिक | AJ5: =IF('Master sheet'!$D$14="Hindi","लिखित","Written") -> लिखित | AK5: =IF('Master sheet'!$D$14="Hindi","मौखिक","Oral") -> मौखिक | AL5: =IF('Master sheet'!$D$14="Hindi","लिखित","Written") -> लिखित | AM5: =IF('Master sheet'!$D$14="Hindi","मौखिक","Oral") -> मौखिक | AQ5: =IF('Master sheet'!$D$14="Hindi","प्रायोगिक","Practical") -> प्रायोगिक | AR5: =IF('Master sheet'!$D$14="Hindi","लिखित","Written") -> लिखित | AS5: =IF('Master sheet'!$D$14="Hindi","प्रायोगिक","Practical") -> प्रायोगिक | AT5: =IF('Master sheet'!$D$14="Hindi","लिखित","Written") -> लिखित | AX5: =IF('Master sheet'!$D$14="Hindi","लिखित","Written") -> लिखित | AY5: =IF('Master sheet'!$D$14="Hindi","मौखिक","Oral") -> मौखिक | AZ5: =IF('Master sheet'!$D$14="Hindi","लिखित","Written") -> लिखित | BA5: =IF('Master sheet'!$D$14="Hindi","मौखिक","Oral") -> मौखिक | BB5: =IF('Master sheet'!$D$14="Hindi","प्रथम मूल्यांकन","1st Assessment") -> प्रथम मूल्यांकन | BC5: =IF('Master sheet'!$D$14="Hindi","द्वितीय मूल्यांकन","2nd Assessment") -> द्वितीय मूल्यांकन | BD5: =IF('Master sheet'!$D$14="Hindi","तृतीय मूल्यांकन","3rd Assessment") -> तृतीय मूल्यांकन | BE5: =IF('Master sheet'!$D$14="Hindi","चतुर्थ मूल्यांकन","4th Assessment") -> चतुर्थ मूल्यांकन | BF5: =IF('Master sheet'!$D$14="Hindi","पंचम मूल्यांकन","5th Assessment") -> पंचम मूल्यांकन | BG5: =IF('Master sheet'!$D$14="Hindi","प्रथम मूल्यांकन","1st Assessment") -> प्रथम मूल्यांकन | BH5: =IF('Master sheet'!$D$14="Hindi","द्वितीय मूल्यांकन","2nd Assessment") -> द्वितीय मूल्यांकन | BI5: =IF('Master sheet'!$D$14="Hindi","तृतीय मूल्यांकन","3rd Assessment") -> तृतीय मूल्यांकन | BJ5: =IF('Master sheet'!$D$14="Hindi","चतुर्थ मूल्यांकन","4th Assessment") -> चतुर्थ मूल्यांकन | BK5: =IF('Master sheet'!$D$14="Hindi","पंचम मूल्यांकन","5th Assessment") -> पंचम मूल्यांकन | BL5: =IF('Master sheet'!$D$14="Hindi","प्रथम मूल्यांकन","1st Assessment") -> प्रथम मूल्यांकन | BM5: =IF('Master sheet'!$D$14="Hindi","द्वितीय मूल्यांकन","2nd Assessment") -> द्वितीय मूल्यांकन | BN5: =IF('Master sheet'!$D$14="Hindi","तृतीय मूल्यांकन","3rd Assessment") -> तृतीय मूल्यांकन | BO5: =IF('Master sheet'!$D$14="Hindi","चतुर्थ मूल्यांकन","4th Assessment") -> चतुर्थ मूल्यांकन | BP5: =IF('Master sheet'!$D$14="Hindi","पंचम मूल्यांकन","5th Assessment") -> पंचम मूल्यांकन | CK5: =IF(AND(L6="",M6="",N6="",P6=""),"",SUM(L6,M6,N6,O6,P6)) -> 100 | CL5: 20 | CM5: =IF(AND(S6="",T6="",U6="",W6=""),"",SUM(S6,T6,U6,V6,W6)) -> 50 | CN5: 20 | CO5: =IF(AND(#REF!="",#REF!="",#REF!="",#REF!=""),"",SUM(#REF!,#REF!,#REF!,#REF!,#REF!)) ->  | CP5: 20 | CQ5: =IF(AND(Z6="",AA6="",AB6="",AD6=""),"",SUM(Z6,AA6,AB6,AC6,AD6)) -> 100 | CR5: 20 | CS5: =IF(AND(AG6="",AH6="",AI6="",AK6=""),"",SUM(AG6,AH6,AI6,AJ6,AK6)) -> 100 | CT5: 20 | CU5: =IF(AND(#REF!="",#REF!="",#REF!="",#REF!=""),"",SUM(#REF!,#REF!,#REF!,#REF!,#REF!)) ->  | CV5: 20 | CZ5: =AG3 -> पर्यावरण अध्ययन
L6: 10 | M6: 10 | N6: 10 | O6: 50 | P6: 20 | Q6: 60 | R6: 40 | S6: 5 | T6: 5 | U6: 5 | V6: 25 | W6: 10 | X6: 30 | Y6: 20 | Z6: 10 | AA6: 10 | AB6: 10 | AC6: 50 | AD6: 20 | AE6: 60 | AF6: 40 | AG6: 10 | AH6: 10 | AI6: 10 | AJ6: 50 | AK6: 20 | AL6: 60 | AM6: 40 | AN6: 10 | AO6: 10 | AP6: 10 | AQ6: 20 | AR6: 50 | AS6: 40 | AT6: 60 | AU6: 10 | AV6: 10 | AW6: 10 | AX6: 50 | AY6: 20 | AZ6: 60 | BA6: 40 | BB6: 20 | BC6: 20 | BD6: 20 | BE6: 20 | BF6: 20 | BG6: 20 | BH6: 20 | BI6: 20 | BJ6: 20 | BK6: 20 | BL6: 20 | BM6: 20 | BN6: 20 | BO6: 20 | BP6: 20 | BQ6: 350 | BT6: परम पूज्य गुरूदेव वासुदेव जी महाराज | CK6: 1 | CL6: 1 | CM6: 2 | CN6: 2 | CO6: 3 | CP6: 3 | CQ6: 4 | CR6: 4 | CS6: 5 | CT6: 5 | CU6: 6 | CV6: 6 | CZ6: =#REF! -> 
A7: 1 | B7: 3 | C7: A | D7: 936 | E7: 28-10-2014 | F7: AAKIFA BANO | G7: SHABBIR MOHAMMAD | H7: HEENA KOUSER | I7: 301 | J7: F | K7: OBC | L7: 10 | M7: 8 | N7: 10 | O7: 45 | P7: 19 | Q7: 55 | R7: 37 | S7: 5 | T7: 4 | U7: 5 | V7: 14 | W7: 9 | X7: 24 | Y7: 18 | Z7: 10 | AA7: 9 | AB7: 8 | AC7: 29 | AD7: 15 | AE7: 45 | AF7: 37 | AG7: 10 | AH7: 10 | AI7: 9 | AJ7: 36 | AK7: 18 | AL7: 47 | AM7: 37 | AN7: 9 | AO7: 8 | AP7: 10 | AQ7: 20 | AR7: 45 | AS7: 36 | AT7: 48 | AU7: 8 | AV7: 7 | AW7: 9 | AX7: 48 | AY7: 18 | AZ7: 55 | BA7: 36 | BB7: 18 | BC7: 16 | BD7: 14 | BE7: 18 | BF7: 13 | BG7: 11 | BH7: 20 | BI7: 15 | BJ7: 14 | BK7: 20 | BL7: 20 | BM7: 19 | BN7: 14 | BO7: 12 | BP7: 15 | BQ7: 320 | BR7: 310 | CJ7: =IF(I7="","",I7) -> 301 | CK7: =IF(AND(L7="",M7="",N7="",P7=""),"",SUM(L7,M7,N7,O7,P7)) -> 92 | CL7: =IFERROR(IF(CK7="","",ROUNDUP(CK7*20%,0)),"") -> 19 | CM7: =IF(AND(S7="",T7="",U7="",W7=""),"",SUM(S7,T7,U7,V7,W7)) -> 37 | CN7: =IFERROR(IF(CM7="","",ROUNDUP(CM7*20%,0)),"") -> 8 | CO7: =IF(AND(#REF!="",#REF!="",#REF!="",#REF!=""),"",SUM(#REF!,#REF!,#REF!,#REF!,#REF!)) ->  | CP7: =IFERROR(IF(CO7="","",ROUNDUP(CO7*20%,0)),"") ->  | CQ7: =IF(AND(Z7="",AA7="",AB7="",AD7=""),"",SUM(Z7,AA7,AB7,AC7,AD7)) -> 71 | CR7: =IFERROR(IF(CQ7="","",ROUNDUP(CQ7*20%,0)),"") -> 15 | CS7: =IF(AND(AG7="",AH7="",AI7="",AK7=""),"",SUM(AG7,AH7,AI7,AJ7,AK7)) -> 83 | CT7: =IFERROR(IF(CS7="","",ROUNDUP(CS7*20%,0)),"") -> 17 | CU7: =IF(AND(#REF!="",#REF!="",#REF!="",#REF!=""),"",SUM(#REF!,#REF!,#REF!,#REF!,#REF!)) ->  | CV7: =IFERROR(IF(CU7="","",ROUNDUP(CU7*20%,0)),"") -> 
A8: 2 | B8: 3 | C8: A | D8: 944 | E8: 2015-01-01 | F8: ANUJ GIRI | G8: BHAGWAT GIRI | H8: KANTA DEVI | I8: 302 | J8: M | K8: OBC | L8: 9 | M8: 9 | N8: 10 | O8: 46 | P8: 19 | Q8: 56 | R8: 37 | S8: 5 | T8: 4 | U8: 4 | V8: 16 | W8: 9 | X8: 24 | Y8: 17 | Z8: 10 | AA8: 9 | AB8: 8 | AC8: 39 | AD8: 17 | AE8: 48 | AF8: 37 | AG8: 10 | AH8: 10 | AI8: 9 | AJ8: 47 | AK8: 18 | AL8: 58 | AM8: 37 | AN8: 9 | AO8: 8 | AP8: 10 | AQ8: 20 | AR8: 45 | AS8: 37 | AT8: 48 | AU8: 8 | AV8: 7 | AW8: 9 | AX8: 47 | AY8: 17 | AZ8: 56 | BA8: 38 | BB8: 18 | BC8: 15 | BD8: 14 | BE8: 14 | BF8: 15 | BG8: 11 | BH8: 20 | BI8: 15 | BJ8: 14 | BK8: 19 | BL8: 20 | BM8: 19 | BN8: 14 | BO8: 12 | BP8: 15 | BQ8: 330 | BR8: 300 | BT8: https://youtu.be/ThY9TGuohzE | CJ8: =IF(I8="","",I8) -> 302 | CK8: =IF(AND(L8="",M8="",N8="",P8=""),"",SUM(L8,M8,N8,O8,P8)) -> 93 | CL8: =IFERROR(IF(CK8="","",ROUNDUP(CK8*20%,0)),"") -> 19 | CM8: =IF(AND(S8="",T8="",U8="",W8=""),"",SUM(S8,T8,U8,V8,W8)) -> 38 | CN8: =IFERROR(IF(CM8="","",ROUNDUP(CM8*20%,0)),"") -> 8 | CO8: =IF(AND(#REF!="",#REF!="",#REF!="",#REF!=""),"",SUM(#REF!,#REF!,#REF!,#REF!,#REF!)) ->  | CP8: =IFERROR(IF(CO8="","",ROUNDUP(CO8*20%,0)),"") ->  | CQ8: =IF(AND(Z8="",AA8="",AB8="",AD8=""),"",SUM(Z8,AA8,AB8,AC8,AD8)) -> 83 | CR8: =IFERROR(IF(CQ8="","",ROUNDUP(CQ8*20%,0)),"") -> 17 | CS8: =IF(AND(AG8="",AH8="",AI8="",AK8=""),"",SUM(AG8,AH8,AI8,AJ8,AK8)) -> 94 | CT8: =IFERROR(IF(CS8="","",ROUNDUP(CS8*20%,0)),"") -> 19 | CU8: =IF(AND(#REF!="",#REF!="",#REF!="",#REF!=""),"",SUM(#REF!,#REF!,#REF!,#REF!,#REF!)) ->  | CV8: =IFERROR(IF(CU8="","",ROUNDUP(CU8*20%,0)),"") -> 
A9: 3 | B9: 3 | C9: A | D9: 934 | E9: 2015-12-10 | F9: ARMAN HUSSAIN | G9: AARIF HUSSAIN | H9: SALMA BANO | I9: 303 | J9: M | K9: OBC | L9: 9 | M9: 8 | N9: 10 | O9: 47 | P9: 19 | Q9: 57 | R9: 37 | S9: 5 | T9: 4 | U9: 5 | V9: 18 | W9: 9 | X9: 24 | Y9: 16 | Z9: 10 | AA9: 9 | AB9: 8 | AC9: 35 | AD9: 18 | AE9: 47 | AF9: 37 | AG9: 10 | AH9: 10 | AI9: 9 | AJ9: 48 | AK9: 18 | AL9: 59 | AM9: 37 | AN9: 9 | AO9: 8 | AP9: 10 | AQ9: 20 | AR9: 45 | AS9: 38 | AT9: 48 | AU9: 8 | AV9: 7 | AW9: 9 | AX9: 48 | AY9: 15 | AZ9: 58 | BA9: 39 | BB9: 17 | BC9: 18 | BD9: 14 | BE9: 18 | BF9: 14 | BG9: 11 | BH9: 20 | BI9: 15 | BJ9: 14 | BK9: 18 | BL9: 20 | BM9: 19 | BN9: 14 | BO9: 10 | BP9: 14 | BQ9: 340 | BR9: 290 | CJ9: 303 | CK9: 93 | CL9: 19 | CM9: 41 | CN9: 9 | CO9: =IF(AND(#REF!="",#REF!="",#REF!="",#REF!=""),"",SUM(#REF!,#REF!,#REF!,#REF!,#REF!)) ->  | CQ9: 80 | CR9: 16 | CS9: 95 | CT9: 19 | CU9: =IF(AND(#REF!="",#REF!="",#REF!="",#REF!=""),"",SUM(#REF!,#REF!,#REF!,#REF!,#REF!)) -> 
A10: 4 | B10: 3 | C10: A | D10: 926 | E10: 2016-05-01 | F10: ARMAN SHAH | G10: JAKIR SHAH | H10: HEENA BANU | I10: 304 | J10: M | K10: OBC | L10: 9 | M10: 8 | N10: 10 | O10: 48 | P10: 19 | Q10: 58 | R10: 37 | S10: 5 | T10: 4 | U10: 5 | V10: 19 | W10: 9 | X10: 24 | Y10: 14 | Z10: 10 | AA10: 9 | AB10: 8 | AC10: 38 | AD10: 19 | AE10: 48 | AF10: 37 | AG10: 10 | AH10: 10 | AI10: 9 | AJ10: 49 | AK10: 18 | AL10: 57 | AM10: 37 | AN10: 9 | AO10: 8 | AP10: 10 | AQ10: 20 | AR10: 45 | AS10: 38 | AT10: 48 | AU10: 8 | AV10: 7 | AW10: 9 | AX10: 49 | AY10: 18 | AZ10: 54 | BA10: 37 | BB10: 18 | BC10: 17 | BD10: 15 | BE10: 19 | BF10: 16 | BG10: 11 | BH10: 20 | BI10: 15 | BJ10: 14 | BK10: 17 | BL10: 20 | BM10: 19 | BN10: 14 | BO10: 10 | BP10: 15 | BQ10: 350 | BR10: 280 | BT10: Presented By :- | CJ10: 304 | CK10: 94 | CL10: 19 | CM10: 42 | CN10: 9 | CO10: =IF(AND(#REF!="",#REF!="",#REF!="",#REF!=""),"",SUM(#REF!,#REF!,#REF!,#REF!,#REF!)) ->  | CQ10: 84 | CR10: 17 | CS10: 96 | CT10: 20 | CU10: =IF(AND(#REF!="",#REF!="",#REF!="",#REF!=""),"",SUM(#REF!,#REF!,#REF!,#REF!,#REF!)) -> 
A11: 5 | B11: 3 | C11: A | D11: 951 | E11: 25-08-2015 | F11: BHAVYANSH SINGH CHOUHAN | G11: AJIT SINGH | H11: MEENA | I11: 305 | J11: M | K11: OBC | L11: 9 | M11: 8 | N11: 10 | O11: 49 | P11: 19 | Q11: 59 | R11: 37 | S11: 5 | T11: 4 | U11: 5 | V11: 25 | W11: 9 | X11: 24 | Y11: 15 | Z11: 10 | AA11: 9 | AB11: 8 | AC11: 39 | AD11: 14 | AE11: 49 | AF11: 37 | AG11: 10 | AH11: 10 | AI11: 9 | AJ11: 45 | AK11: 18 | AL11: 54 | AM11: 37 | AN11: 9 | AO11: 8 | AP11: 10 | AQ11: 20 | AR11: 45 | AS11: 38 | AT11: 48 | AU11: 8 | AV11: 7 | AW11: 9 | AX11: 45 | AY11: 19 | AZ11: 58 | BA11: 34 | BB11: 19 | BC11: 14 | BD11: 16 | BE11: 14 | BF11: 17 | BG11: 11 | BH11: 20 | BI11: 15 | BJ11: 14 | BK11: 16 | BL11: 20 | BM11: 19 | BN11: 15 | BO11: 10 | BP11: 15 | BQ11: 340 | BR11: 270 | CJ11: 305 | CK11: 95 | CL11: 19 | CM11: 48 | CN11: 10 | CO11: =IF(AND(#REF!="",#REF!="",#REF!="",#REF!=""),"",SUM(#REF!,#REF!,#REF!,#REF!,#REF!)) ->  | CQ11: 80 | CR11: 16 | CS11: 92 | CT11: 19 | CU11: =IF(AND(#REF!="",#REF!="",#REF!="",#REF!=""),"",SUM(#REF!,#REF!,#REF!,#REF!,#REF!)) -> 
A12: 6 | B12: 3 | C12: A | D12: 939 | E12: 16-06-2014 | F12: BHUMIKA BAGRI | G12: MUKESH BAGRI | H12: SEEMA BAGRI | I12: 306 | J12: F | K12: OBC | L12: 9 | M12: 8 | N12: 10 | O12: 50 | P12: 19 | Q12: 60 | R12: 37 | S12: 5 | T12: 4 | U12: 5 | V12: 24 | W12: 9 | X12: 24 | Y12: 16 | Z12: 10 | AA12: 9 | AB12: 8 | AC12: 45 | AD12: 15 | AE12: 58 | AF12: 37 | AG12: 10 | AH12: 10 | AI12: 9 | AJ12: 41 | AK12: 18 | AL12: 51 | AM12: 37 | AN12: 9 | AO12: 8 | AP12: 10 | AQ12: 20 | AR12: 45 | AS12: 38 | AT12: 48 | AU12: 8 | AV12: 7 | AW12: 9 | AX12: 46 | AY12: 18 | AZ12: 59 | BA12: 31 | BB12: 17 | BC12: 15 | BD12: 14 | BE12: 14 | BF12: 18 | BG12: 12 | BH12: 20 | BI12: 15 | BJ12: 14 | BK12: 14 | BL12: 20 | BM12: 19 | BN12: 16 | BO12: 10 | BP12: 15 | BQ12: 340 | BR12: 330 | BT12: HEERA LAL JAT | CJ12: 306 | CK12: 96 | CL12: 20 | CM12: 47 | CN12: 10 | CO12: =IF(AND(#REF!="",#REF!="",#REF!="",#REF!=""),"",SUM(#REF!,#REF!,#REF!,#REF!,#REF!)) ->  | CQ12: 87 | CR12: 18 | CS12: 88 | CT12: 18 | CU12: =IF(AND(#REF!="",#REF!="",#REF!="",#REF!=""),"",SUM(#REF!,#REF!,#REF!,#REF!,#REF!)) -> 
A13: 7 | B13: 3 | C13: A | D13: 942 | E13: 28-09-2015 | F13: DAKSH PRAJAPAT | G13: PRAKASH PRAJAPAT | H13: REKHA PRAJAPATI | I13: 307 | J13: M | K13: OBC | L13: 9 | M13: 8 | N13: 10 | O13: 47 | P13: 19 | Q13: 58 | R13: 37 | S13: 5 | T13: 4 | U13: 5 | V13: 23 | W13: 9 | X13: 24 | Y13: 14 | Z13: 10 | AA13: 9 | AB13: 8 | AC13: 47 | AD13: 14 | AE13: 59 | AF13: 37 | AG13: 10 | AH13: 10 | AI13: 9 | AJ13: 40 | AK13: 18 | AL13: 45 | AM13: 37 | AN13: 9 | AO13: 8 | AP13: 10 | AQ13: 20 | AR13: 45 | AS13: 38 | AT13: 48 | AU13: 8 | AV13: 7 | AW13: 9 | AX13: 47 | AY13: 18 | AZ13: 52 | BA13: 32 | BB13: 18 | BC13: 16 | BD13: 16 | BE13: 14 | BF13: 19 | BG13: 13 | BH13: 20 | BI13: 15 | BJ13: 14 | BK13: 13 | BL13: 20 | BM13: 19 | BN13: 17 | BO13: 10 | BP13: 15 | BQ13: 350 | BR13: 320 | CJ13: 307 | CK13: 93 | CL13: 19 | CM13: 46 | CN13: 10 | CO13: =IF(AND(#REF!="",#REF!="",#REF!="",#REF!=""),"",SUM(#REF!,#REF!,#REF!,#REF!,#REF!)) ->  | CQ13: 88 | CR13: 18 | CS13: 87 | CT13: 18 | CU13: =IF(AND(#REF!="",#REF!="",#REF!="",#REF!=""),"",SUM(#REF!,#REF!,#REF!,#REF!,#REF!)) -> 
A14: 8 | B14: 3 | C14: A | D14: 925 | E14: 26-10-2015 | F14: DIVYA BAGRI | G14: MUKESH | H14: SEEMA | I14: 308 | J14: F | K14: OBC | L14: 9 | M14: 8 | N14: 10 | O14: 48 | P14: 19 | Q14: 57 | R14: 37 | S14: 5 | T14: 4 | U14: 5 | V14: 21 | W14: 9 | X14: 24 | Y14: 18 | Z14: 10 | AA14: 9 | AB14: 8 | AC14: 48 | AD14: 14 | AE14: 57 | AF14: 37 | AG14: 10 | AH14: 10 | AI14: 9 | AJ14: 42 | AK14: 18 | AL14: 46 | AM14: 37 | AN14: 9 | AO14: 8 | AP14: 10 | AQ14: 20 | AR14: 45 | AS14: 38 | AT14: 48 | AU14: 8 | AV14: 7 | AW14: 9 | AX14: 36 | AY14: 18 | AZ14: 51 | BA14: 36 | BB14: 19 | BC14: 14 | BD14: 16 | BE14: 14 | BF14: 17 | BG14: 13 | BH14: 20 | BI14: 15 | BJ14: 14 | BK14: 12 | BL14: 20 | BM14: 19 | BN14: 18 | BO14: 10 | BP14: 15 | BQ14: 320 | BR14: 310 | BT14: Sr. Teacher at MGGS BAR (BEAWAR) | CJ14: 308 | CK14: 94 | CL14: 19 | CM14: 44 | CN14: 9 | CO14: =IF(AND(#REF!="",#REF!="",#REF!="",#REF!=""),"",SUM(#REF!,#REF!,#REF!,#REF!,#REF!)) ->  | CQ14: 89 | CR14: 18 | CS14: 89 | CT14: 18 | CU14: =IF(AND(#REF!="",#REF!="",#REF!="",#REF!=""),"",SUM(#REF!,#REF!,#REF!,#REF!,#REF!)) -> 
A15: 9 | B15: 3 | C15: A | D15: 952 | E15: 2015-02-12 | F15: DUSHYANT DAYAMA | G15: BASANT KUMAR DAYAMA | H15: PUSHPA DAYAMA | I15: 309 | J15: M | K15: SC | L15: 9 | M15: 8 | N15: 10 | O15: 49 | P15: 19 | Q15: 54 | R15: 37 | S15: 5 | T15: 4 | U15: 5 | V15: 24 | W15: 9 | X15: 24 | Y15: 19 | Z15: 10 | AA15: 9 | AB15: 8 | AC15: 49 | AD15: 14 | AE15: 54 | AF15: 37 | AG15: 10 | AH15: 10 | AI15: 9 | AJ15: 45 | AK15: 18 | AL15: 47 | AM15: 37 | AN15: 9 | AO15: 8 | AP15: 10 | AQ15: 20 | AR15: 45 | AS15: 38 | AT15: 48 | AU15: 8 | AV15: 7 | AW15: 9 | AX15: 35 | AY15: 18 | AZ15: 54 | BA15: 35 | BB15: 17 | BC15: 15 | BD15: 16 | BE15: 14 | BF15: 17 | BG15: 14 | BH15: 20 | BI15: 15 | BJ15: 14 | BK15: 11 | BL15: 20 | BM15: 19 | BN15: 19 | BO15: 10 | BP15: 15 | BQ15: 330 | BR15: 300 | CJ15: 309 | CK15: 95 | CL15: 19 | CM15: 47 | CN15: 10 | CO15: =IF(AND(#REF!="",#REF!="",#REF!="",#REF!=""),"",SUM(#REF!,#REF!,#REF!,#REF!,#REF!)) ->  | CQ15: 90 | CR15: 18 | CS15: 92 | CT15: 19 | CU15: =IF(AND(#REF!="",#REF!="",#REF!="",#REF!=""),"",SUM(#REF!,#REF!,#REF!,#REF!,#REF!)) -> 
A16: 10 | B16: 3 | C16: A | D16: 931 | E16: 23-10-2015 | F16: GUNEET CHOUHAN | G16: KAILASH CHOUHAN | H16: PUSHPA DEVI | I16: 310 | J16: M | K16: OBC | L16: 9 | M16: 8 | N16: 10 | O16: 47 | P16: 19 | Q16: 56 | R16: 37 | S16: 5 | T16: 4 | U16: 5 | V16: 20 | W16: 9 | X16: 24 | Y16: 14 | Z16: 10 | AA16: 9 | AB16: 8 | AC16: 45 | AD16: 14 | AE16: 56 | AF16: 37 | AG16: 10 | AH16: 10 | AI16: 9 | AJ16: 46 | AK16: 18 | AL16: 35 | AM16: 37 | AN16: 9 | AO16: 8 | AP16: 10 | AQ16: 20 | AR16: 45 | AS16: 38 | AT16: 48 | AU16: 8 | AV16: 7 | AW16: 9 | AX16: 34 | AY16: 18 | AZ16: 58 | BA16: 39 | BB16: 18 | BC16: 16 | BD16: 16 | BE16: 14 | BF16: 17 | BG16: 15 | BH16: 20 | BI16: 15 | BJ16: 14 | BK16: 10 | BL16: 20 | BM16: 19 | BN16: 19 | BO16: 10 | BP16: 15 | BQ16: 340 | BR16: 302 | BT16: V./P. - CHANDAWAL NAGAR , SOJAT (PALI) | CJ16: 310 | CK16: 93 | CL16: 19 | CM16: 43 | CN16: 9 | CO16: =IF(AND(#REF!="",#REF!="",#REF!="",#REF!=""),"",SUM(#REF!,#REF!,#REF!,#REF!,#REF!)) ->  | CQ16: 86 | CR16: 18 | CS16: 93 | CT16: 19 | CU16: =IF(AND(#REF!="",#REF!="",#REF!="",#REF!=""),"",SUM(#REF!,#REF!,#REF!,#REF!,#REF!)) -> 
A17: 11 | B17: 3 | C17: A | D17: 923 | E17: 23-10-2015 | F17: GUNJAN TAK | G17: DINESH KUMAR TAK | H17: SHARDA TAK | I17: 311 | J17: F | K17: OBC | L17: 9 | M17: 8 | N17: 10 | O17: 48 | P17: 19 | Q17: 51 | R17: 37 | S17: 5 | T17: 4 | U17: 5 | V17: 18 | W17: 9 | X17: 24 | Y17: 15 | Z17: 10 | AA17: 9 | AB17: 8 | AC17: 46 | AD17: 14 | AE17: 54 | AF17: 37 | AG17: 10 | AH17: 10 | AI17: 9 | AJ17: 47 | AK17: 18 | AL17: 36 | AM17: 37 | AN17: 9 | AO17: 8 | AP17: 10 | AQ17: 20 | AR17: 45 | AS17: 38 | AT17: 48 | AU17: 8 | AV17: 7 | AW17: 9 | AX17: 35 | AY17: 18 | AZ17: 59 | BA17: 38 | BB17: 18 | BC17: 14 | BD17: 16 | BE17: 14 | BF17: 17 | BG17: 15 | BH17: 20 | BI17: 15 | BJ17: 14 | BK17: 11 | BL17: 20 | BM17: 19 | BN17: 18 | BO17: 10 | BP17: 15 | BQ17: 340 | BR17: 320 | CJ17: 311 | CK17: 94 | CL17: 19 | CM17: 41 | CN17: 9 | CO17: =IF(AND(#REF!="",#REF!="",#REF!="",#REF!=""),"",SUM(#REF!,#REF!,#REF!,#REF!,#REF!)) ->  | CQ17: 87 | CR17: 18 | CS17: 94 | CT17: 19 | CU17: =IF(AND(#REF!="",#REF!="",#REF!="",#REF!=""),"",SUM(#REF!,#REF!,#REF!,#REF!,#REF!)) -> 
A18: 12 | B18: 3 | C18: A | D18: 949 | E18: 30-10-2014 | F18: JAGRAT SOLANKI | G18: KRISHAN KAMAL SOLANKI | H18: GEETA DEVI | I18: 312 | J18: M | K18: OBC | L18: 9 | M18: 8 | N18: 10 | O18: 49 | P18: 19 | Q18: 52 | R18: 37 | S18: 5 | T18: 4 | U18: 5 | V18: 19 | W18: 9 | X18: 24 | Y18: 12 | Z18: 10 | AA18: 9 | AB18: 8 | AC18: 47 | AD18: 14 | AE18: 51 | AF18: 37 | AG18: 10 | AH18: 10 | AI18: 9 | AJ18: 48 | AK18: 18 | AL18: 32 | AM18: 37 | AN18: 9 | AO18: 8 | AP18: 10 | AQ18: 20 | AR18: 45 | AS18: 38 | AT18: 48 | AU18: 8 | AV18: 7 | AW18: 9 | AX18: 36 | AY18: 18 | AZ18: 57 | BA18: 34 | BB18: 17 | BC18: 15 | BD18: 16 | BE18: 14 | BF18: 17 | BG18: 15 | BH18: 20 | BI18: 15 | BJ18: 14 | BK18: 12 | BL18: 20 | BM18: 19 | BN18: 17 | BO18: 10 | BP18: 15 | BQ18: 340 | BR18: 310 | CJ18: 312 | CK18: 95 | CL18: 19 | CM18: 42 | CN18: 9 | CO18: =IF(AND(#REF!="",#REF!="",#REF!="",#REF!=""),"",SUM(#REF!,#REF!,#REF!,#REF!,#REF!)) ->  | CQ18: 88 | CR18: 18 | CS18: 95 | CT18: 19 | CU18: =IF(AND(#REF!="",#REF!="",#REF!="",#REF!=""),"",SUM(#REF!,#REF!,#REF!,#REF!,#REF!)) -> 
A19: 13 | B19: 3 | C19: A | D19: 933 | E19: 26-05-2014 | F19: JOYA KHAN | G19: BARGAT KHAN | H19: MADINA BANO | I19: 313 | J19: F | K19: OBC | L19: 9 | M19: 8 | N19: 10 | O19: 47 | P19: 19 | Q19: 53 | R19: 37 | S19: 5 | T19: 4 | U19: 5 | V19: 17 | W19: 9 | X19: 24 | Y19: 13 | Z19: 10 | AA19: 9 | AB19: 8 | AC19: 41 | AD19: 14 | AE19: 52 | AF19: 37 | AG19: 10 | AH19: 10 | AI19: 9 | AJ19: 41 | AK19: 18 | AL19: 32 | AM19: 37 | AN19: 9 | AO19: 8 | AP19: 10 | AQ19: 20 | AR19: 45 | AS19: 38 | AT19: 48 | AU19: 8 | AV19: 7 | AW19: 9 | AX19: 38 | AY19: 18 | AZ19: 54 | BA19: 35 | BB19: 18 | BC19: 16 | BD19: 16 | BE19: 14 | BF19: 17 | BG19: 15 | BH19: 20 | BI19: 15 | BJ19: 14 | BK19: 13 | BL19: 20 | BM19: 19 | BN19: 18 | BO19: 10 | BP19: 15 | BQ19: 340 | BR19: 310 | CJ19: 313 | CK19: 93 | CL19: 19 | CM19: 40 | CN19: 8 | CO19: =IF(AND(#REF!="",#REF!="",#REF!="",#REF!=""),"",SUM(#REF!,#REF!,#REF!,#REF!,#REF!)) ->  | CQ19: 82 | CR19: 17 | CS19: 88 | CT19: 18 | CU19: =IF(AND(#REF!="",#REF!="",#REF!="",#REF!=""),"",SUM(#REF!,#REF!,#REF!,#REF!,#REF!)) -> 
A20: 14 | B20: 3 | C20: A | D20: 946 | E20: 18-02-2015 | F20: JOYA KHAN | G20: SAHIMAN LOHAR | H20: SABINA BANO | I20: 314 | J20: F | K20: OBC | L20: 9 | M20: 8 | N20: 10 | O20: 48 | P20: 19 | Q20: 45 | R20: 37 | S20: 5 | T20: 4 | U20: 5 | V20: 18 | W20: 9 | X20: 24 | Y20: 14 | Z20: 10 | AA20: 9 | AB20: 8 | AC20: 42 | AD20: 14 | AE20: 53 | AF20: 37 | AG20: 10 | AH20: 10 | AI20: 9 | AJ20: 40 | AK20: 18 | AL20: 35 | AM20: 37 | AN20: 9 | AO20: 8 | AP20: 10 | AQ20: 20 | AR20: 45 | AS20: 38 | AT20: 48 | AU20: 8 | AV20: 7 | AW20: 9 | AX20: 39 | AY20: 18 | AZ20: 54 | BA20: 36 | BB20: 18 | BC20: 14 | BD20: 16 | BE20: 14 | BF20: 17 | BG20: 15 | BH20: 20 | BI20: 15 | BJ20: 14 | BK20: 14 | BL20: 20 | BM20: 19 | BN20: 19 | BO20: 10 | BP20: 15 | BQ20: 340 | BR20: 310 | CJ20: 314 | CK20: 94 | CL20: 19 | CM20: 41 | CN20: 9 | CO20: =IF(AND(#REF!="",#REF!="",#REF!="",#REF!=""),"",SUM(#REF!,#REF!,#REF!,#REF!,#REF!)) ->  | CQ20: 83 | CR20: 17 | CS20: 87 | CT20: 18 | CU20: =IF(AND(#REF!="",#REF!="",#REF!="",#REF!=""),"",SUM(#REF!,#REF!,#REF!,#REF!,#REF!)) -> 
A21: 15 | B21: 3 | C21: A | D21: 935 | E21: 24-09-2015 | F21: KHUSHVEER SINGH | G21: PUSA RAM | H21: POOJA | I21: 315 | J21: M | K21: SC | L21: 9 | M21: 8 | N21: 10 | O21: 49 | P21: 19 | Q21: 46 | R21: 37 | S21: 5 | T21: 4 | U21: 5 | V21: 19 | W21: 9 | X21: 24 | Y21: 15 | Z21: 10 | AA21: 9 | AB21: 8 | AC21: 32 | AD21: 14 | AE21: 56 | AF21: 37 | AG21: 10 | AH21: 10 | AI21: 9 | AJ21: 45 | AK21: 18 | AL21: 36 | AM21: 37 | AN21: 9 | AO21: 8 | AP21: 10 | AQ21: 20 | AR21: 45 | AS21: 38 | AT21: 48 | AU21: 8 | AV21: 7 | AW21: 9 | AX21: 34 | AY21: 18 | AZ21: 45 | BA21: 39 | BB21: 19 | BC21: 15 | BD21: 16 | BE21: 14 | BF21: 17 | BG21: 15 | BH21: 20 | BI21: 15 | BJ21: 14 | BK21: 15 | BL21: 20 | BM21: 19 | BN21: 14 | BO21: 10 | BP21: 15 | BQ21: 340 | BR21: 310 | CJ21: 315 | CK21: 95 | CL21: 19 | CM21: 42 | CN21: 9 | CO21: =IF(AND(#REF!="",#REF!="",#REF!="",#REF!=""),"",SUM(#REF!,#REF!,#REF!,#REF!,#REF!)) ->  | CQ21: 73 | CR21: 15 | CS21: 92 | CT21: 19 | CU21: =IF(AND(#REF!="",#REF!="",#REF!="",#REF!=""),"",SUM(#REF!,#REF!,#REF!,#REF!,#REF!)) -> 
A22: 16 | B22: 3 | C22: A | D22: 940 | E22: 21-01-2016 | F22: KINJAL SAINI | G22: DURGESH CHAND BAGRI | H22: PUSHPA DEVI | I22: 316 | J22: F | K22: OBC | L22: 9 | M22: 8 | N22: 10 | O22: 47 | P22: 19 | Q22: 47 | R22: 37 | S22: 5 | T22: 4 | U22: 5 | V22: 20 | W22: 9 | X22: 24 | Y22: 16 | Z22: 10 | AA22: 9 | AB22: 8 | AC22: 29 | AD22: 14 | AE22: 58 | AF22: 37 | AG22: 10 | AH22: 10 | AI22: 9 | AJ22: 46 | AK22: 18 | AL22: 58 | AM22: 37 | AN22: 9 | AO22: 8 | AP22: 10 | AQ22: 20 | AR22: 45 | AS22: 38 | AT22: 48 | AU22: 8 | AV22: 7 | AW22: 9 | AX22: 47 | AY22: 18 | AZ22: 46 | BA22: 38 | BB22: 17 | BC22: 16 | BD22: 16 | BE22: 14 | BF22: 17 | BG22: 15 | BH22: 20 | BI22: 15 | BJ22: 14 | BK22: 16 | BL22: 20 | BM22: 19 | BN22: 15 | BO22: 10 | BP22: 15 | BQ22: 340 | BR22: 310 | CJ22: 316 | CK22: 93 | CL22: 19 | CM22: 43 | CN22: 9 | CO22: =IF(AND(#REF!="",#REF!="",#REF!="",#REF!=""),"",SUM(#REF!,#REF!,#REF!,#REF!,#REF!)) ->  | CQ22: 70 | CR22: 14 | CS22: 93 | CT22: 19 | CU22: =IF(AND(#REF!="",#REF!="",#REF!="",#REF!=""),"",SUM(#REF!,#REF!,#REF!,#REF!,#REF!)) -> 
A23: 17 | B23: 3 | C23: A | D23: 924 | E23: 14-02-2016 | F23: LUCKY PRAJAPATI | G23: NAR SINGH | H23: BHAWNA | I23: 317 | J23: M | K23: OBC | L23: 9 | M23: 8 | N23: 10 | O23: 48 | P23: 19 | Q23: 48 | R23: 37 | S23: 5 | T23: 4 | U23: 5 | V23: 21 | W23: 9 | X23: 24 | Y23: 14 | Z23: 10 | AA23: 9 | AB23: 8 | AC23: 29 | AD23: 14 | AE23: 59 | AF23: 37 | AG23: 10 | AH23: 10 | AI23: 9 | AJ23: 47 | AK23: 18 | AL23: 59 | AM23: 37 | AN23: 9 | AO23: 8 | AP23: 10 | AQ23: 20 | AR23: 45 | AS23: 38 | AT23: 48 | AU23: 8 | AV23: 7 | AW23: 9 | AX23: 48 | AY23: 18 | AZ23: 47 | BA23: 37 | BB23: 18 | BC23: 14 | BD23: 16 | BE23: 14 | BF23: 17 | BG23: 15 | BH23: 20 | BI23: 15 | BJ23: 14 | BK23: 14 | BL23: 20 | BM23: 19 | BN23: 16 | BO23: 10 | BP23: 15 | BQ23: 340 | BR23: 310 | CJ23: 317 | CK23: 94 | CL23: 19 | CM23: 44 | CN23: 9 | CO23: =IF(AND(#REF!="",#REF!="",#REF!="",#REF!=""),"",SUM(#REF!,#REF!,#REF!,#REF!,#REF!)) ->  | CQ23: 70 | CR23: 14 | CS23: 94 | CT23: 19 | CU23: =IF(AND(#REF!="",#REF!="",#REF!="",#REF!=""),"",SUM(#REF!,#REF!,#REF!,#REF!,#REF!)) -> 
A24: 18 | B24: 3 | C24: A | D24: 921 | E24: 2015-01-04 | F24: MAHENDRA PARTAP SINGH CHUNDAWAT | G24: CHANDRA SINGH CHUNDAWAT | H24: RITU KANWAR | I24: 318 | J24: M | K24: GEN | L24: 9 | M24: 8 | N24: 10 | O24: 49 | P24: 19 | Q24: 49 | R24: 37 | S24: 5 | T24: 4 | U24: 5 | V24: 23 | W24: 9 | X24: 24 | Y24: 17 | Z24: 10 | AA24: 9 | AB24: 8 | AC24: 29 | AD24: 14 | AE24: 57 | AF24: 37 | AG24: 10 | AH24: 10 | AI24: 9 | AJ24: 48 | AK24: 18 | AL24: 54 | AM24: 37 | AN24: 9 | AO24: 8 | AP24: 10 | AQ24: 20 | AR24: 45 | AS24: 38 | AT24: 48 | AU24: 8 | AV24: 7 | AW24: 9 | AX24: 49 | AY24: 18 | AZ24: 48 | BA24: 34 | BB24: 19 | BC24: 15 | BD24: 16 | BE24: 14 | BF24: 17 | BG24: 15 | BH24: 20 | BI24: 15 | BJ24: 14 | BK24: 15 | BL24: 20 | BM24: 19 | BN24: 17 | BO24: 10 | BP24: 15 | BQ24: 340 | BR24: 310 | CJ24: 318 | CK24: 95 | CL24: 19 | CM24: 46 | CN24: 10 | CO24: =IF(AND(#REF!="",#REF!="",#REF!="",#REF!=""),"",SUM(#REF!,#REF!,#REF!,#REF!,#REF!)) ->  | CQ24: 70 | CR24: 14 | CS24: 95 | CT24: 19 | CU24: =IF(AND(#REF!="",#REF!="",#REF!="",#REF!=""),"",SUM(#REF!,#REF!,#REF!,#REF!,#REF!)) -> 
A25: 19 | B25: 3 | C25: A | D25: 948 | E25: 2015-09-10 | F25: MANVEER GURJAR | G25: VIKRAM SINGH | H25: BARKHA | I25: 319 | J25: M | K25: SBC | L25: 9 | M25: 8 | N25: 10 | O25: 45 | P25: 19 | Q25: 41 | R25: 37 | S25: 5 | T25: 4 | U25: 5 | V25: 25 | W25: 9 | X25: 24 | Y25: 18 | Z25: 10 | AA25: 9 | AB25: 8 | AC25: 29 | AD25: 14 | AE25: 54 | AF25: 37 | AG25: 10 | AH25: 10 | AI25: 9 | AJ25: 35 | AK25: 18 | AL25: 51 | AM25: 37 | AN25: 9 | AO25: 8 | AP25: 10 | AQ25: 20 | AR25: 45 | AS25: 38 | AT25: 48 | AU25: 8 | AV25: 7 | AW25: 9 | AX25: 42 | AY25: 18 | AZ25: 49 | BA25: 35 | BB25: 17 | BC25: 16 | BD25: 16 | BE25: 14 | BF25: 17 | BG25: 15 | BH25: 20 | BI25: 15 | BJ25: 14 | BK25: 16 | BL25: 20 | BM25: 19 | BN25: 18 | BO25: 15 | BP25: 15 | BQ25: 340 | BR25: 310 | CJ25: 319 | CK25: 91 | CL25: 19 | CM25: 48 | CN25: 10 | CO25: =IF(AND(#REF!="",#REF!="",#REF!="",#REF!=""),"",SUM(#REF!,#REF!,#REF!,#REF!,#REF!)) ->  | CQ25: 70 | CR25: 14 | CS25: 82 | CT25: 17 | CU25: =IF(AND(#REF!="",#REF!="",#REF!="",#REF!=""),"",SUM(#REF!,#REF!,#REF!,#REF!,#REF!)) -> 
A26: 20 | B26: 3 | C26: A | D26: 943 | E26: 13-01-2015 | F26: PALAK DAMER | G26: GOVIND LAL | H26: LEELA | I26: 320 | J26: F | K26: SC | L26: 9 | M26: 8 | N26: 10 | O26: 41 | P26: 19 | Q26: 42 | R26: 37 | S26: 5 | T26: 4 | U26: 5 | V26: 24 | W26: 9 | X26: 24 | Y26: 19 | Z26: 10 | AA26: 9 | AB26: 8 | AC26: 29 | AD26: 14 | AE26: 58 | AF26: 37 | AG26: 10 | AH26: 10 | AI26: 9 | AJ26: 36 | AK26: 18 | AL26: 52 | AM26: 37 | AN26: 9 | AO26: 8 | AP26: 10 | AQ26: 20 | AR26: 45 | AS26: 38 | AT26: 48 | AU26: 8 | AV26: 7 | AW26: 9 | AX26: 41 | AY26: 18 | AZ26: 47 | BA26: 36 | BQ26: 340 | BR26: 310 | CJ26: 320 | CK26: 87 | CL26: 18 | CM26: 47 | CN26: 10 | CO26: =IF(AND(#REF!="",#REF!="",#REF!="",#REF!=""),"",SUM(#REF!,#REF!,#REF!,#REF!,#REF!)) ->  | CQ26: 70 | CR26: 14 | CS26: 83 | CT26: 17 | CU26: =IF(AND(#REF!="",#REF!="",#REF!="",#REF!=""),"",SUM(#REF!,#REF!,#REF!,#REF!,#REF!)) -> 
A27: 21 | B27: 3 | C27: A | D27: 929 | E27: 21-10-2014 | F27: PAWAN CHOUHAN | G27: NARENDRA SINGH | H27: SHOBHA | I27: 321 | J27: M | K27: OBC | L27: 9 | M27: 8 | N27: 10 | O27: 42 | P27: 19 | Q27: 45 | R27: 37 | S27: 5 | T27: 4 | U27: 5 | V27: 21 | W27: 9 | X27: 24 | Y27: 19 | Z27: 10 | AA27: 9 | AB27: 8 | AC27: 29 | AD27: 14 | AE27: 45 | AF27: 37 | AG27: 10 | AH27: 10 | AI27: 9 | AJ27: 32 | AK27: 18 | AL27: 40 | AM27: 37 | AN27: 9 | AO27: 8 | AP27: 10 | AQ27: 20 | AR27: 45 | AS27: 38 | AT27: 48 | AU27: 8 | AV27: 7 | AW27: 9 | AX27: 40 | AY27: 18 | AZ27: 41 | BA27: 39 | BQ27: 340 | BR27: 310 | CJ27: 321 | CK27: 88 | CL27: 18 | CM27: 44 | CN27: 9 | CO27: =IF(AND(#REF!="",#REF!="",#REF!="",#REF!=""),"",SUM(#REF!,#REF!,#REF!,#REF!,#REF!)) ->  | CQ27: 70 | CR27: 14 | CS27: 79 | CT27: 16 | CU27: =IF(AND(#REF!="",#REF!="",#REF!="",#REF!=""),"",SUM(#REF!,#REF!,#REF!,#REF!,#REF!)) -> 
A28: 22 | B28: 3 | C28: A | D28: 932 | E28: 15-11-2014 | F28: PRAGYA | G28: SUGANDAS | H28: ANITA | I28: 322 | J28: F | K28: OBC | L28: 9 | M28: 8 | N28: 10 | O28: 43 | P28: 19 | Q28: 47 | R28: 37 | S28: 5 | T28: 4 | U28: 5 | V28: 23 | W28: 9 | X28: 24 | Y28: 19 | Z28: 10 | AA28: 9 | AB28: 8 | AC28: 29 | AD28: 14 | AE28: 46 | AF28: 37 | AG28: 10 | AH28: 10 | AI28: 9 | AJ28: 31 | AK28: 18 | AL28: 45 | AM28: 37 | AN28: 9 | AO28: 8 | AP28: 10 | AQ28: 20 | AR28: 45 | AS28: 38 | AT28: 48 | AU28: 8 | AV28: 7 | AW28: 9 | AX28: 40 | AY28: 18 | AZ28: 30 | BA28: 38 | BQ28: 340 | BR28: 310 | CJ28: 322 | CK28: 89 | CL28: 18 | CM28: 46 | CN28: 10 | CO28: =IF(AND(#REF!="",#REF!="",#REF!="",#REF!=""),"",SUM(#REF!,#REF!,#REF!,#REF!,#REF!)) ->  | CQ28: 70 | CR28: 14 | CS28: 78 | CT28: 16 | CU28: =IF(AND(#REF!="",#REF!="",#REF!="",#REF!=""),"",SUM(#REF!,#REF!,#REF!,#REF!,#REF!)) -> 
A29: 23 | B29: 3 | C29: A | D29: 927 | E29: 31-01-2016 | F29: PRAMOD BHATI | G29: PANKAJ | H29: PINKI | I29: 323 | J29: M | K29: OBC | L29: 9 | M29: 8 | N29: 10 | O29: 45 | P29: 19 | Q29: 48 | R29: 37 | S29: 5 | T29: 4 | U29: 5 | V29: 20 | W29: 9 | X29: 24 | Y29: 19 | Z29: 10 | AA29: 9 | AB29: 8 | AC29: 29 | AD29: 14 | AE29: 47 | AF29: 37 | AG29: 10 | AH29: 10 | AI29: 9 | AJ29: 26 | AK29: 18 | AL29: 48 | AM29: 37 | AN29: 9 | AO29: 8 | AP29: 10 | AQ29: 20 | AR29: 45 | AS29: 38 | AT29: 48 | AU29: 8 | AV29: 7 | AW29: 9 | AX29: 40 | AY29: 18 | AZ29: 32 | BA29: 34 | BQ29: 340 | BR29: 310 | CJ29: 323 | CK29: 91 | CL29: 19 | CM29: 43 | CN29: 9 | CO29: =IF(AND(#REF!="",#REF!="",#REF!="",#REF!=""),"",SUM(#REF!,#REF!,#REF!,#REF!,#REF!)) ->  | CQ29: 70 | CR29: 14 | CS29: 73 | CT29: 15 | CU29: =IF(AND(#REF!="",#REF!="",#REF!="",#REF!=""),"",SUM(#REF!,#REF!,#REF!,#REF!,#REF!)) -> 
A30: 24 | B30: 3 | C30: A | D30: 938 | E30: 24-06-2015 | F30: PRAVEEN GURJAR | G30: SUKHDEV | H30: MANJU DEVI | I30: 324 | J30: M | K30: SBC | L30: 9 | M30: 8 | N30: 10 | O30: 41 | P30: 19 | Q30: 49 | R30: 37 | S30: 5 | T30: 4 | U30: 5 | V30: 20 | W30: 9 | X30: 24 | Y30: 19 | Z30: 10 | AA30: 9 | AB30: 8 | AC30: 29 | AD30: 14 | AE30: 48 | AF30: 37 | AG30: 10 | AH30: 10 | AI30: 9 | AJ30: 26 | AK30: 18 | AL30: 47 | AM30: 37 | AN30: 9 | AO30: 8 | AP30: 10 | AQ30: 20 | AR30: 45 | AS30: 38 | AT30: 48 | AU30: 8 | AV30: 7 | AW30: 9 | AX30: 40 | AY30: 18 | AZ30: 36 | BA30: 31 | BQ30: 340 | BR30: 310 | CJ30: 324 | CK30: 87 | CL30: 18 | CM30: 43 | CN30: 9 | CO30: =IF(AND(#REF!="",#REF!="",#REF!="",#REF!=""),"",SUM(#REF!,#REF!,#REF!,#REF!,#REF!)) ->  | CQ30: 70 | CR30: 14 | CS30: 73 | CT30: 15 | CU30: =IF(AND(#REF!="",#REF!="",#REF!="",#REF!=""),"",SUM(#REF!,#REF!,#REF!,#REF!,#REF!)) -> 
A31: 25 | B31: 3 | C31: A | D31: 950 | E31: 27-02-2016 | F31: PRIYANSHU | G31: KULDEEP | H31: KHUSBOO MALI | I31: 325 | J31: M | K31: OBC | L31: 9 | M31: 8 | N31: 10 | O31: 40 | P31: 19 | Q31: 45 | R31: 37 | S31: 5 | T31: 4 | U31: 5 | V31: 21 | W31: 9 | X31: 24 | Y31: 19 | Z31: 10 | AA31: 9 | AB31: 8 | AC31: 29 | AD31: 14 | AE31: 49 | AF31: 37 | AG31: 10 | AH31: 10 | AI31: 9 | AJ31: 26 | AK31: 18 | AL31: 49 | AM31: 37 | AN31: 9 | AO31: 8 | AP31: 10 | AQ31: 20 | AR31: 45 | AS31: 38 | AT31: 48 | AU31: 8 | AV31: 7 | AW31: 9 | AX31: 40 | AY31: 18 | AZ31: 35 | BA31: 30 | BQ31: 340 | BR31: 310 | CJ31: 325 | CK31: 86 | CL31: 18 | CM31: 44 | CN31: 9 | CO31: =IF(AND(#REF!="",#REF!="",#REF!="",#REF!=""),"",SUM(#REF!,#REF!,#REF!,#REF!,#REF!)) ->  | CQ31: 70 | CR31: 14 | CS31: 73 | CT31: 15 | CU31: =IF(AND(#REF!="",#REF!="",#REF!="",#REF!=""),"",SUM(#REF!,#REF!,#REF!,#REF!,#REF!)) -> 
A32: 26 | B32: 3 | C32: A | D32: 945 | E32: 22-07-2015 | F32: PRIYANSHU RAWAT | G32: MANOHAR SINGH | H32: SAPNA | I32: 326 | J32: M | K32: OBC | L32: 9 | M32: 8 | N32: 10 | O32: 35 | P32: 19 | Q32: 41 | R32: 37 | S32: 5 | T32: 4 | U32: 5 | V32: 23 | W32: 9 | X32: 24 | Y32: 19 | Z32: 10 | AA32: 9 | AB32: 8 | AC32: 29 | AD32: 14 | AE32: 50 | AF32: 37 | AG32: 10 | AH32: 10 | AI32: 9 | AJ32: 26 | AK32: 18 | AL32: 58 | AM32: 37 | AN32: 9 | AO32: 8 | AP32: 10 | AQ32: 20 | AR32: 45 | AS32: 38 | AT32: 48 | AU32: 8 | AV32: 7 | AW32: 9 | AX32: 40 | AY32: 18 | AZ32: 58 | BA32: 32 | BQ32: 340 | BR32: 310 | CJ32: 326 | CK32: 81 | CL32: 17 | CM32: 46 | CN32: 10 | CO32: =IF(AND(#REF!="",#REF!="",#REF!="",#REF!=""),"",SUM(#REF!,#REF!,#REF!,#REF!,#REF!)) ->  | CQ32: 70 | CR32: 14 | CS32: 73 | CT32: 15 | CU32: =IF(AND(#REF!="",#REF!="",#REF!="",#REF!=""),"",SUM(#REF!,#REF!,#REF!,#REF!,#REF!)) -> 
A33: 27 | B33: 3 | C33: A | D33: 928 | E33: 2016-11-02 | F33: RANVEER | G33: TOTA RAM | H33: JAYA | I33: 327 | J33: M | K33: OBC | L33: 9 | M33: 8 | N33: 10 | O33: 36 | P33: 19 | Q33: 47 | R33: 37 | S33: 5 | T33: 4 | U33: 5 | V33: 21 | W33: 9 | X33: 24 | Y33: 19 | Z33: 10 | AA33: 9 | AB33: 8 | AC33: 29 | AD33: 14 | AE33: 51 | AF33: 37 | AG33: 10 | AH33: 10 | AI33: 9 | AJ33: 36 | AK33: 18 | AL33: 58 | AM33: 37 | AN33: 9 | AO33: 8 | AP33: 10 | AQ33: 20 | AR33: 45 | AS33: 38 | AT33: 48 | AU33: 8 | AV33: 7 | AW33: 9 | AX33: 40 | AY33: 18 | AZ33: 54 | BA33: 35 | BQ33: 340 | BR33: 310 | CJ33: 327 | CK33: 82 | CL33: 17 | CM33: 44 | CN33: 9 | CO33: =IF(AND(#REF!="",#REF!="",#REF!="",#REF!=""),"",SUM(#REF!,#REF!,#REF!,#REF!,#REF!)) ->  | CQ33: 70 | CR33: 14 | CS33: 83 | CT33: 17 | CU33: =IF(AND(#REF!="",#REF!="",#REF!="",#REF!=""),"",SUM(#REF!,#REF!,#REF!,#REF!,#REF!)) -> 
A34: 28 | B34: 3 | C34: A | D34: 947 | E34: 18-07-2015 | F34: SURAJ BHATI | G34: RAJURAM BHATI | H34: REKHA DEVI | I34: 328 | J34: M | K34: OBC | L34: 9 | M34: 8 | N34: 10 | O34: 35 | P34: 19 | Q34: 48 | R34: 37 | S34: 5 | T34: 4 | U34: 5 | V34: 22 | W34: 9 | X34: 24 | Y34: 19 | Z34: 10 | AA34: 9 | AB34: 8 | AC34: 29 | AD34: 14 | AE34: 52 | AF34: 37 | AG34: 10 | AH34: 10 | AI34: 9 | AJ34: 32 | AK34: 18 | AL34: 59 | AM34: 37 | AN34: 9 | AO34: 8 | AP34: 10 | AQ34: 20 | AR34: 45 | AS34: 38 | AT34: 48 | AU34: 8 | AV34: 7 | AW34: 9 | AX34: 40 | AY34: 18 | AZ34: 51 | BA34: 36 | BQ34: 340 | BR34: 310 | CJ34: 328 | CK34: 81 | CL34: 17 | CM34: 45 | CN34: 9 | CO34: =IF(AND(#REF!="",#REF!="",#REF!="",#REF!=""),"",SUM(#REF!,#REF!,#REF!,#REF!,#REF!)) ->  | CQ34: 70 | CR34: 14 | CS34: 79 | CT34: 16 | CU34: =IF(AND(#REF!="",#REF!="",#REF!="",#REF!=""),"",SUM(#REF!,#REF!,#REF!,#REF!,#REF!)) -> 
A35: 29 | B35: 3 | C35: A | D35: 930 | E35: 13-03-2015 | F35: YUVRAJ SHARMA | G35: ARVIND SHARMA | H35: ANKITA SHARMA | I35: 329 | J35: M | K35: OBC | L35: 9 | M35: 8 | N35: 10 | O35: 38 | P35: 19 | Q35: 49 | R35: 37 | S35: 5 | T35: 4 | U35: 5 | V35: 22 | W35: 9 | X35: 24 | Y35: 19 | Z35: 10 | AA35: 9 | AB35: 8 | AC35: 29 | AD35: 14 | AE35: 53 | AF35: 37 | AG35: 10 | AH35: 10 | AI35: 9 | AJ35: 35 | AK35: 18 | AL35: 57 | AM35: 37 | AN35: 9 | AO35: 8 | AP35: 10 | AQ35: 20 | AR35: 45 | AS35: 38 | AT35: 48 | AU35: 8 | AV35: 7 | AW35: 9 | AX35: 40 | AY35: 18 | AZ35: 50 | BA35: 39 | BQ35: 340 | BR35: 310 | CJ35: 329 | CK35: 84 | CL35: 17 | CM35: 45 | CN35: 9 | CO35: =IF(AND(#REF!="",#REF!="",#REF!="",#REF!=""),"",SUM(#REF!,#REF!,#REF!,#REF!,#REF!)) ->  | CQ35: 70 | CR35: 14 | CS35: 82 | CT35: 17 | CU35: =IF(AND(#REF!="",#REF!="",#REF!="",#REF!=""),"",SUM(#REF!,#REF!,#REF!,#REF!,#REF!)) -> 
A36: 30 | B36: 3 | C36: A | D36: 941 | E36: 2015-08-03 | F36: ZEENAT SHEIKH | G36: SAMEER SHEIKH | H36: SHABNAM KHNAM | I36: 330 | J36: F | K36: GEN | L36: 9 | M36: 8 | N36: 10 | O36: 39 | P36: 19 | Q36: 58 | R36: 37 | S36: 5 | T36: 4 | U36: 5 | V36: 23 | W36: 9 | X36: 24 | Y36: 19 | Z36: 10 | AA36: 9 | AB36: 8 | AC36: 29 | AD36: 14 | AE36: 54 | AF36: 37 | AG36: 10 | AH36: 10 | AI36: 9 | AJ36: 36 | AK36: 18 | AL36: 27 | AM36: 37 | AN36: 9 | AO36: 8 | AP36: 10 | AQ36: 20 | AR36: 45 | AS36: 38 | AT36: 48 | AU36: 8 | AV36: 7 | AW36: 9 | AX36: 40 | AY36: 18 | AZ36: 45 | BA36: 38 | BQ36: 340 | BR36: 310 | CJ36: 330 | CK36: 85 | CL36: 17 | CM36: 46 | CN36: 10 | CO36: =IF(AND(#REF!="",#REF!="",#REF!="",#REF!=""),"",SUM(#REF!,#REF!,#REF!,#REF!,#REF!)) ->  | CQ36: 70 | CR36: 14 | CS36: 83 | CT36: 17 | CU36: =IF(AND(#REF!="",#REF!="",#REF!="",#REF!=""),"",SUM(#REF!,#REF!,#REF!,#REF!,#REF!)) -> 
A37: 31 | CO37: =IF(AND(#REF!="",#REF!="",#REF!="",#REF!=""),"",SUM(#REF!,#REF!,#REF!,#REF!,#REF!)) ->  | CU37: =IF(AND(#REF!="",#REF!="",#REF!="",#REF!=""),"",SUM(#REF!,#REF!,#REF!,#REF!,#REF!)) -> 
A38: 32 | CO38: =IF(AND(#REF!="",#REF!="",#REF!="",#REF!=""),"",SUM(#REF!,#REF!,#REF!,#REF!,#REF!)) ->  | CU38: =IF(AND(#REF!="",#REF!="",#REF!="",#REF!=""),"",SUM(#REF!,#REF!,#REF!,#REF!,#REF!)) -> 
A39: 33 | CO39: =IF(AND(#REF!="",#REF!="",#REF!="",#REF!=""),"",SUM(#REF!,#REF!,#REF!,#REF!,#REF!)) ->  | CU39: =IF(AND(#REF!="",#REF!="",#REF!="",#REF!=""),"",SUM(#REF!,#REF!,#REF!,#REF!,#REF!)) -> 
A40: 34 | CO40: =IF(AND(#REF!="",#REF!="",#REF!="",#REF!=""),"",SUM(#REF!,#REF!,#REF!,#REF!,#REF!)) ->  | CU40: =IF(AND(#REF!="",#REF!="",#REF!="",#REF!=""),"",SUM(#REF!,#REF!,#REF!,#REF!,#REF!)) -> 
A41: 35 | CO41: =IF(AND(#REF!="",#REF!="",#REF!="",#REF!=""),"",SUM(#REF!,#REF!,#REF!,#REF!,#REF!)) ->  | CU41: =IF(AND(#REF!="",#REF!="",#REF!="",#REF!=""),"",SUM(#REF!,#REF!,#REF!,#REF!,#REF!)) -> 
A42: 36 | CO42: =IF(AND(#REF!="",#REF!="",#REF!="",#REF!=""),"",SUM(#REF!,#REF!,#REF!,#REF!,#REF!)) ->  | CU42: =IF(AND(#REF!="",#REF!="",#REF!="",#REF!=""),"",SUM(#REF!,#REF!,#REF!,#REF!,#REF!)) -> 
A43: 37 | CO43: =IF(AND(#REF!="",#REF!="",#REF!="",#REF!=""),"",SUM(#REF!,#REF!,#REF!,#REF!,#REF!)) ->  | CU43: =IF(AND(#REF!="",#REF!="",#REF!="",#REF!=""),"",SUM(#REF!,#REF!,#REF!,#REF!,#REF!)) -> 
A44: 38 | CO44: =IF(AND(#REF!="",#REF!="",#REF!="",#REF!=""),"",SUM(#REF!,#REF!,#REF!,#REF!,#REF!)) ->  | CU44: =IF(AND(#REF!="",#REF!="",#REF!="",#REF!=""),"",SUM(#REF!,#REF!,#REF!,#REF!,#REF!)) -> 
A45: 39 | CO45: =IF(AND(#REF!="",#REF!="",#REF!="",#REF!=""),"",SUM(#REF!,#REF!,#REF!,#REF!,#REF!)) ->  | CU45: =IF(AND(#REF!="",#REF!="",#REF!="",#REF!=""),"",SUM(#REF!,#REF!,#REF!,#REF!,#REF!)) -> 
A46: 40 | CO46: =IF(AND(#REF!="",#REF!="",#REF!="",#REF!=""),"",SUM(#REF!,#REF!,#REF!,#REF!,#REF!)) ->  | CU46: =IF(AND(#REF!="",#REF!="",#REF!="",#REF!=""),"",SUM(#REF!,#REF!,#REF!,#REF!,#REF!)) -> 
A47: 41 | CO47: =IF(AND(#REF!="",#REF!="",#REF!="",#REF!=""),"",SUM(#REF!,#REF!,#REF!,#REF!,#REF!)) ->  | CU47: =IF(AND(#REF!="",#REF!="",#REF!="",#REF!=""),"",SUM(#REF!,#REF!,#REF!,#REF!,#REF!)) -> 
A48: 42 | CO48: =IF(AND(#REF!="",#REF!="",#REF!="",#REF!=""),"",SUM(#REF!,#REF!,#REF!,#REF!,#REF!)) ->  | CU48: =IF(AND(#REF!="",#REF!="",#REF!="",#REF!=""),"",SUM(#REF!,#REF!,#REF!,#REF!,#REF!)) -> 
A49: 43 | CO49: =IF(AND(#REF!="",#REF!="",#REF!="",#REF!=""),"",SUM(#REF!,#REF!,#REF!,#REF!,#REF!)) ->  | CU49: =IF(AND(#REF!="",#REF!="",#REF!="",#REF!=""),"",SUM(#REF!,#REF!,#REF!,#REF!,#REF!)) -> 
A50: 44 | CO50: =IF(AND(#REF!="",#REF!="",#REF!="",#REF!=""),"",SUM(#REF!,#REF!,#REF!,#REF!,#REF!)) ->  | CU50: =IF(AND(#REF!="",#REF!="",#REF!="",#REF!=""),"",SUM(#REF!,#REF!,#REF!,#REF!,#REF!)) -> 
A51: 45 | CO51: =IF(AND(#REF!="",#REF!="",#REF!="",#REF!=""),"",SUM(#REF!,#REF!,#REF!,#REF!,#REF!)) ->  | CU51: =IF(AND(#REF!="",#REF!="",#REF!="",#REF!=""),"",SUM(#REF!,#REF!,#REF!,#REF!,#REF!)) -> 
A52: 46 | CO52: =IF(AND(#REF!="",#REF!="",#REF!="",#REF!=""),"",SUM(#REF!,#REF!,#REF!,#REF!,#REF!)) ->  | CU52: =IF(AND(#REF!="",#REF!="",#REF!="",#REF!=""),"",SUM(#REF!,#REF!,#REF!,#REF!,#REF!)) -> 
A53: 47 | CO53: =IF(AND(#REF!="",#REF!="",#REF!="",#REF!=""),"",SUM(#REF!,#REF!,#REF!,#REF!,#REF!)) ->  | CU53: =IF(AND(#REF!="",#REF!="",#REF!="",#REF!=""),"",SUM(#REF!,#REF!,#REF!,#REF!,#REF!)) -> 
A54: 48 | CO54: =IF(AND(#REF!="",#REF!="",#REF!="",#REF!=""),"",SUM(#REF!,#REF!,#REF!,#REF!,#REF!)) ->  | CU54: =IF(AND(#REF!="",#REF!="",#REF!="",#REF!=""),"",SUM(#REF!,#REF!,#REF!,#REF!,#REF!)) -> 
A55: 49 | CO55: =IF(AND(#REF!="",#REF!="",#REF!="",#REF!=""),"",SUM(#REF!,#REF!,#REF!,#REF!,#REF!)) ->  | CU55: =IF(AND(#REF!="",#REF!="",#REF!="",#REF!=""),"",SUM(#REF!,#REF!,#REF!,#REF!,#REF!)) -> 
A56: 50 | CO56: =IF(AND(#REF!="",#REF!="",#REF!="",#REF!=""),"",SUM(#REF!,#REF!,#REF!,#REF!,#REF!)) ->  | CU56: =IF(AND(#REF!="",#REF!="",#REF!="",#REF!=""),"",SUM(#REF!,#REF!,#REF!,#REF!,#REF!)) -> 
A57: 51 | CO57: =IF(AND(#REF!="",#REF!="",#REF!="",#REF!=""),"",SUM(#REF!,#REF!,#REF!,#REF!,#REF!)) ->  | CU57: =IF(AND(#REF!="",#REF!="",#REF!="",#REF!=""),"",SUM(#REF!,#REF!,#REF!,#REF!,#REF!)) -> 
A58: 52 | CO58: =IF(AND(#REF!="",#REF!="",#REF!="",#REF!=""),"",SUM(#REF!,#REF!,#REF!,#REF!,#REF!)) ->  | CU58: =IF(AND(#REF!="",#REF!="",#REF!="",#REF!=""),"",SUM(#REF!,#REF!,#REF!,#REF!,#REF!)) -> 
A59: 53 | CO59: =IF(AND(#REF!="",#REF!="",#REF!="",#REF!=""),"",SUM(#REF!,#REF!,#REF!,#REF!,#REF!)) ->  | CU59: =IF(AND(#REF!="",#REF!="",#REF!="",#REF!=""),"",SUM(#REF!,#REF!,#REF!,#REF!,#REF!)) -> 
A60: 54 | CO60: =IF(AND(#REF!="",#REF!="",#REF!="",#REF!=""),"",SUM(#REF!,#REF!,#REF!,#REF!,#REF!)) ->  | CU60: =IF(AND(#REF!="",#REF!="",#REF!="",#REF!=""),"",SUM(#REF!,#REF!,#REF!,#REF!,#REF!)) -> 
A61: 55 | CO61: =IF(AND(#REF!="",#REF!="",#REF!="",#REF!=""),"",SUM(#REF!,#REF!,#REF!,#REF!,#REF!)) ->  | CU61: =IF(AND(#REF!="",#REF!="",#REF!="",#REF!=""),"",SUM(#REF!,#REF!,#REF!,#REF!,#REF!)) -> 
A62: 56 | CO62: =IF(AND(#REF!="",#REF!="",#REF!="",#REF!=""),"",SUM(#REF!,#REF!,#REF!,#REF!,#REF!)) ->  | CU62: =IF(AND(#REF!="",#REF!="",#REF!="",#REF!=""),"",SUM(#REF!,#REF!,#REF!,#REF!,#REF!)) -> 
A63: 57 | CO63: =IF(AND(#REF!="",#REF!="",#REF!="",#REF!=""),"",SUM(#REF!,#REF!,#REF!,#REF!,#REF!)) ->  | CU63: =IF(AND(#REF!="",#REF!="",#REF!="",#REF!=""),"",SUM(#REF!,#REF!,#REF!,#REF!,#REF!)) -> 
A64: 58 | CO64: =IF(AND(#REF!="",#REF!="",#REF!="",#REF!=""),"",SUM(#REF!,#REF!,#REF!,#REF!,#REF!)) ->  | CU64: =IF(AND(#REF!="",#REF!="",#REF!="",#REF!=""),"",SUM(#REF!,#REF!,#REF!,#REF!,#REF!)) -> 
A65: 59 | CO65: =IF(AND(#REF!="",#REF!="",#REF!="",#REF!=""),"",SUM(#REF!,#REF!,#REF!,#REF!,#REF!)) ->  | CU65: =IF(AND(#REF!="",#REF!="",#REF!="",#REF!=""),"",SUM(#REF!,#REF!,#REF!,#REF!,#REF!)) -> 
A66: 60 | CO66: =IF(AND(#REF!="",#REF!="",#REF!="",#REF!=""),"",SUM(#REF!,#REF!,#REF!,#REF!,#REF!)) ->  | CU66: =IF(AND(#REF!="",#REF!="",#REF!="",#REF!=""),"",SUM(#REF!,#REF!,#REF!,#REF!,#REF!)) -> 
A67: 61 | CO67: =IF(AND(#REF!="",#REF!="",#REF!="",#REF!=""),"",SUM(#REF!,#REF!,#REF!,#REF!,#REF!)) ->  | CU67: =IF(AND(#REF!="",#REF!="",#REF!="",#REF!=""),"",SUM(#REF!,#REF!,#REF!,#REF!,#REF!)) -> 
A68: 62 | CO68: =IF(AND(#REF!="",#REF!="",#REF!="",#REF!=""),"",SUM(#REF!,#REF!,#REF!,#REF!,#REF!)) ->  | CU68: =IF(AND(#REF!="",#REF!="",#REF!="",#REF!=""),"",SUM(#REF!,#REF!,#REF!,#REF!,#REF!)) -> 
A69: 63 | CO69: =IF(AND(#REF!="",#REF!="",#REF!="",#REF!=""),"",SUM(#REF!,#REF!,#REF!,#REF!,#REF!)) ->  | CU69: =IF(AND(#REF!="",#REF!="",#REF!="",#REF!=""),"",SUM(#REF!,#REF!,#REF!,#REF!,#REF!)) -> 
A70: 64 | CO70: =IF(AND(#REF!="",#REF!="",#REF!="",#REF!=""),"",SUM(#REF!,#REF!,#REF!,#REF!,#REF!)) ->  | CU70: =IF(AND(#REF!="",#REF!="",#REF!="",#REF!=""),"",SUM(#REF!,#REF!,#REF!,#REF!,#REF!)) -> 
A71: 65 | CO71: =IF(AND(#REF!="",#REF!="",#REF!="",#REF!=""),"",SUM(#REF!,#REF!,#REF!,#REF!,#REF!)) ->  | CU71: =IF(AND(#REF!="",#REF!="",#REF!="",#REF!=""),"",SUM(#REF!,#REF!,#REF!,#REF!,#REF!)) -> 
A72: 66 | CJ72: =IF(I72="","",I72) ->  | CK72: =IF(AND(L72="",M72="",N72="",P72=""),"",SUM(L72,M72,N72,O72,P72)) ->  | CL72: =IFERROR(IF(CK72="","",ROUNDUP(CK72*20%,0)),"") ->  | CM72: =IF(AND(S72="",T72="",U72="",W72=""),"",SUM(S72,T72,U72,V72,W72)) ->  | CN72: =IFERROR(IF(CM72="","",ROUNDUP(CM72*20%,0)),"") ->  | CO72: =IF(AND(#REF!="",#REF!="",#REF!="",#REF!=""),"",SUM(#REF!,#REF!,#REF!,#REF!,#REF!)) ->  | CP72: =IFERROR(IF(CO72="","",ROUNDUP(CO72*20%,0)),"") ->  | CQ72: =IF(AND(Z72="",AA72="",AB72="",AD72=""),"",SUM(Z72,AA72,AB72,AC72,AD72)) ->  | CR72: =IFERROR(IF(CQ72="","",ROUNDUP(CQ72*20%,0)),"") ->  | CS72: =IF(AND(AG72="",AH72="",AI72="",AK72=""),"",SUM(AG72,AH72,AI72,AJ72,AK72)) ->  | CT72: =IFERROR(IF(CS72="","",ROUNDUP(CS72*20%,0)),"") ->  | CU72: =IF(AND(#REF!="",#REF!="",#REF!="",#REF!=""),"",SUM(#REF!,#REF!,#REF!,#REF!,#REF!)) ->  | CV72: =IFERROR(IF(CU72="","",ROUNDUP(CU72*20%,0)),"") -> 
A73: 67 | CO73: =IF(AND(#REF!="",#REF!="",#REF!="",#REF!=""),"",SUM(#REF!,#REF!,#REF!,#REF!,#REF!)) ->  | CU73: =IF(AND(#REF!="",#REF!="",#REF!="",#REF!=""),"",SUM(#REF!,#REF!,#REF!,#REF!,#REF!)) -> 
A74: 68 | CO74: =IF(AND(#REF!="",#REF!="",#REF!="",#REF!=""),"",SUM(#REF!,#REF!,#REF!,#REF!,#REF!)) ->  | CU74: =IF(AND(#REF!="",#REF!="",#REF!="",#REF!=""),"",SUM(#REF!,#REF!,#REF!,#REF!,#REF!)) -> 
A75: 69 | CO75: =IF(AND(#REF!="",#REF!="",#REF!="",#REF!=""),"",SUM(#REF!,#REF!,#REF!,#REF!,#REF!)) ->  | CU75: =IF(AND(#REF!="",#REF!="",#REF!="",#REF!=""),"",SUM(#REF!,#REF!,#REF!,#REF!,#REF!)) -> 
A76: 70 | CO76: =IF(AND(#REF!="",#REF!="",#REF!="",#REF!=""),"",SUM(#REF!,#REF!,#REF!,#REF!,#REF!)) ->  | CU76: =IF(AND(#REF!="",#REF!="",#REF!="",#REF!=""),"",SUM(#REF!,#REF!,#REF!,#REF!,#REF!)) -> 
A77: 71 | CO77: =IF(AND(#REF!="",#REF!="",#REF!="",#REF!=""),"",SUM(#REF!,#REF!,#REF!,#REF!,#REF!)) ->  | CU77: =IF(AND(#REF!="",#REF!="",#REF!="",#REF!=""),"",SUM(#REF!,#REF!,#REF!,#REF!,#REF!)) -> 
A78: 72 | CO78: =IF(AND(#REF!="",#REF!="",#REF!="",#REF!=""),"",SUM(#REF!,#REF!,#REF!,#REF!,#REF!)) ->  | CU78: =IF(AND(#REF!="",#REF!="",#REF!="",#REF!=""),"",SUM(#REF!,#REF!,#REF!,#REF!,#REF!)) -> 
A79: 73 | CO79: =IF(AND(#REF!="",#REF!="",#REF!="",#REF!=""),"",SUM(#REF!,#REF!,#REF!,#REF!,#REF!)) ->  | CU79: =IF(AND(#REF!="",#REF!="",#REF!="",#REF!=""),"",SUM(#REF!,#REF!,#REF!,#REF!,#REF!)) -> 
A80: 74 | CO80: =IF(AND(#REF!="",#REF!="",#REF!="",#REF!=""),"",SUM(#REF!,#REF!,#REF!,#REF!,#REF!)) ->  | CU80: =IF(AND(#REF!="",#REF!="",#REF!="",#REF!=""),"",SUM(#REF!,#REF!,#REF!,#REF!,#REF!)) -> 
A81: 75 | CO81: =IF(AND(#REF!="",#REF!="",#REF!="",#REF!=""),"",SUM(#REF!,#REF!,#REF!,#REF!,#REF!)) ->  | CU81: =IF(AND(#REF!="",#REF!="",#REF!="",#REF!=""),"",SUM(#REF!,#REF!,#REF!,#REF!,#REF!)) -> 
A82: 76 | CO82: =IF(AND(#REF!="",#REF!="",#REF!="",#REF!=""),"",SUM(#REF!,#REF!,#REF!,#REF!,#REF!)) ->  | CU82: =IF(AND(#REF!="",#REF!="",#REF!="",#REF!=""),"",SUM(#REF!,#REF!,#REF!,#REF!,#REF!)) -> 
A83: 77 | CO83: =IF(AND(#REF!="",#REF!="",#REF!="",#REF!=""),"",SUM(#REF!,#REF!,#REF!,#REF!,#REF!)) ->  | CU83: =IF(AND(#REF!="",#REF!="",#REF!="",#REF!=""),"",SUM(#REF!,#REF!,#REF!,#REF!,#REF!)) -> 
A84: 78 | CO84: =IF(AND(#REF!="",#REF!="",#REF!="",#REF!=""),"",SUM(#REF!,#REF!,#REF!,#REF!,#REF!)) ->  | CU84: =IF(AND(#REF!="",#REF!="",#REF!="",#REF!=""),"",SUM(#REF!,#REF!,#REF!,#REF!,#REF!)) -> 
A85: 79 | CO85: =IF(AND(#REF!="",#REF!="",#REF!="",#REF!=""),"",SUM(#REF!,#REF!,#REF!,#REF!,#REF!)) ->  | CU85: =IF(AND(#REF!="",#REF!="",#REF!="",#REF!=""),"",SUM(#REF!,#REF!,#REF!,#REF!,#REF!)) -> 
A86: 80 | CO86: =IF(AND(#REF!="",#REF!="",#REF!="",#REF!=""),"",SUM(#REF!,#REF!,#REF!,#REF!,#REF!)) ->  | CU86: =IF(AND(#REF!="",#REF!="",#REF!="",#REF!=""),"",SUM(#REF!,#REF!,#REF!,#REF!,#REF!)) -> 
A87: 81 | CO87: =IF(AND(#REF!="",#REF!="",#REF!="",#REF!=""),"",SUM(#REF!,#REF!,#REF!,#REF!,#REF!)) ->  | CU87: =IF(AND(#REF!="",#REF!="",#REF!="",#REF!=""),"",SUM(#REF!,#REF!,#REF!,#REF!,#REF!)) -> 
A88: 82 | CO88: =IF(AND(#REF!="",#REF!="",#REF!="",#REF!=""),"",SUM(#REF!,#REF!,#REF!,#REF!,#REF!)) ->  | CU88: =IF(AND(#REF!="",#REF!="",#REF!="",#REF!=""),"",SUM(#REF!,#REF!,#REF!,#REF!,#REF!)) -> 
A89: 83 | CO89: =IF(AND(#REF!="",#REF!="",#REF!="",#REF!=""),"",SUM(#REF!,#REF!,#REF!,#REF!,#REF!)) ->  | CU89: =IF(AND(#REF!="",#REF!="",#REF!="",#REF!=""),"",SUM(#REF!,#REF!,#REF!,#REF!,#REF!)) -> 
A90: 84 | CO90: =IF(AND(#REF!="",#REF!="",#REF!="",#REF!=""),"",SUM(#REF!,#REF!,#REF!,#REF!,#REF!)) ->  | CU90: =IF(AND(#REF!="",#REF!="",#REF!="",#REF!=""),"",SUM(#REF!,#REF!,#REF!,#REF!,#REF!)) -> 
A91: 85 | CO91: =IF(AND(#REF!="",#REF!="",#REF!="",#REF!=""),"",SUM(#REF!,#REF!,#REF!,#REF!,#REF!)) ->  | CU91: =IF(AND(#REF!="",#REF!="",#REF!="",#REF!=""),"",SUM(#REF!,#REF!,#REF!,#REF!,#REF!)) -> 
A92: 86 | CO92: =IF(AND(#REF!="",#REF!="",#REF!="",#REF!=""),"",SUM(#REF!,#REF!,#REF!,#REF!,#REF!)) ->  | CU92: =IF(AND(#REF!="",#REF!="",#REF!="",#REF!=""),"",SUM(#REF!,#REF!,#REF!,#REF!,#REF!)) -> 
A93: 87 | CO93: =IF(AND(#REF!="",#REF!="",#REF!="",#REF!=""),"",SUM(#REF!,#REF!,#REF!,#REF!,#REF!)) ->  | CU93: =IF(AND(#REF!="",#REF!="",#REF!="",#REF!=""),"",SUM(#REF!,#REF!,#REF!,#REF!,#REF!)) -> 
A94: 88 | CO94: =IF(AND(#REF!="",#REF!="",#REF!="",#REF!=""),"",SUM(#REF!,#REF!,#REF!,#REF!,#REF!)) ->  | CU94: =IF(AND(#REF!="",#REF!="",#REF!="",#REF!=""),"",SUM(#REF!,#REF!,#REF!,#REF!,#REF!)) -> 
A95: 89 | CO95: =IF(AND(#REF!="",#REF!="",#REF!="",#REF!=""),"",SUM(#REF!,#REF!,#REF!,#REF!,#REF!)) ->  | CU95: =IF(AND(#REF!="",#REF!="",#REF!="",#REF!=""),"",SUM(#REF!,#REF!,#REF!,#REF!,#REF!)) -> 
A96: 90 | CO96: =IF(AND(#REF!="",#REF!="",#REF!="",#REF!=""),"",SUM(#REF!,#REF!,#REF!,#REF!,#REF!)) ->  | CU96: =IF(AND(#REF!="",#REF!="",#REF!="",#REF!=""),"",SUM(#REF!,#REF!,#REF!,#REF!,#REF!)) -> 
A97: 91 | CO97: =IF(AND(#REF!="",#REF!="",#REF!="",#REF!=""),"",SUM(#REF!,#REF!,#REF!,#REF!,#REF!)) ->  | CU97: =IF(AND(#REF!="",#REF!="",#REF!="",#REF!=""),"",SUM(#REF!,#REF!,#REF!,#REF!,#REF!)) -> 
A98: 92 | CO98: =IF(AND(#REF!="",#REF!="",#REF!="",#REF!=""),"",SUM(#REF!,#REF!,#REF!,#REF!,#REF!)) ->  | CU98: =IF(AND(#REF!="",#REF!="",#REF!="",#REF!=""),"",SUM(#REF!,#REF!,#REF!,#REF!,#REF!)) -> 
A99: 93 | CO99: =IF(AND(#REF!="",#REF!="",#REF!="",#REF!=""),"",SUM(#REF!,#REF!,#REF!,#REF!,#REF!)) ->  | CU99: =IF(AND(#REF!="",#REF!="",#REF!="",#REF!=""),"",SUM(#REF!,#REF!,#REF!,#REF!,#REF!)) -> 
A100: 94 | CO100: =IF(AND(#REF!="",#REF!="",#REF!="",#REF!=""),"",SUM(#REF!,#REF!,#REF!,#REF!,#REF!)) ->  | CU100: =IF(AND(#REF!="",#REF!="",#REF!="",#REF!=""),"",SUM(#REF!,#REF!,#REF!,#REF!,#REF!)) -> 
A101: 95 | CO101: =IF(AND(#REF!="",#REF!="",#REF!="",#REF!=""),"",SUM(#REF!,#REF!,#REF!,#REF!,#REF!)) ->  | CU101: =IF(AND(#REF!="",#REF!="",#REF!="",#REF!=""),"",SUM(#REF!,#REF!,#REF!,#REF!,#REF!)) -> 
A102: 96 | CO102: =IF(AND(#REF!="",#REF!="",#REF!="",#REF!=""),"",SUM(#REF!,#REF!,#REF!,#REF!,#REF!)) ->  | CU102: =IF(AND(#REF!="",#REF!="",#REF!="",#REF!=""),"",SUM(#REF!,#REF!,#REF!,#REF!,#REF!)) -> 
A103: 97 | CO103: =IF(AND(#REF!="",#REF!="",#REF!="",#REF!=""),"",SUM(#REF!,#REF!,#REF!,#REF!,#REF!)) ->  | CU103: =IF(AND(#REF!="",#REF!="",#REF!="",#REF!=""),"",SUM(#REF!,#REF!,#REF!,#REF!,#REF!)) -> 
A104: 98 | CO104: =IF(AND(#REF!="",#REF!="",#REF!="",#REF!=""),"",SUM(#REF!,#REF!,#REF!,#REF!,#REF!)) ->  | CU104: =IF(AND(#REF!="",#REF!="",#REF!="",#REF!=""),"",SUM(#REF!,#REF!,#REF!,#REF!,#REF!)) -> 
A105: 99 | CO105: =IF(AND(#REF!="",#REF!="",#REF!="",#REF!=""),"",SUM(#REF!,#REF!,#REF!,#REF!,#REF!)) ->  | CU105: =IF(AND(#REF!="",#REF!="",#REF!="",#REF!=""),"",SUM(#REF!,#REF!,#REF!,#REF!,#REF!)) -> 
A106: 100 | CO106: =IF(AND(#REF!="",#REF!="",#REF!="",#REF!=""),"",SUM(#REF!,#REF!,#REF!,#REF!,#REF!)) ->  | CU106: =IF(AND(#REF!="",#REF!="",#REF!="",#REF!=""),"",SUM(#REF!,#REF!,#REF!,#REF!,#REF!)) -> 
A107: 101 | CO107: =IF(AND(#REF!="",#REF!="",#REF!="",#REF!=""),"",SUM(#REF!,#REF!,#REF!,#REF!,#REF!)) ->  | CU107: =IF(AND(#REF!="",#REF!="",#REF!="",#REF!=""),"",SUM(#REF!,#REF!,#REF!,#REF!,#REF!)) -> 
A108: 102 | CO108: =IF(AND(#REF!="",#REF!="",#REF!="",#REF!=""),"",SUM(#REF!,#REF!,#REF!,#REF!,#REF!)) ->  | CU108: =IF(AND(#REF!="",#REF!="",#REF!="",#REF!=""),"",SUM(#REF!,#REF!,#REF!,#REF!,#REF!)) -> 
A109: 103 | CO109: =IF(AND(#REF!="",#REF!="",#REF!="",#REF!=""),"",SUM(#REF!,#REF!,#REF!,#REF!,#REF!)) ->  | CU109: =IF(AND(#REF!="",#REF!="",#REF!="",#REF!=""),"",SUM(#REF!,#REF!,#REF!,#REF!,#REF!)) -> 
A110: 104 | CO110: =IF(AND(#REF!="",#REF!="",#REF!="",#REF!=""),"",SUM(#REF!,#REF!,#REF!,#REF!,#REF!)) ->  | CU110: =IF(AND(#REF!="",#REF!="",#REF!="",#REF!=""),"",SUM(#REF!,#REF!,#REF!,#REF!,#REF!)) -> 
A111: 105 | CO111: =IF(AND(#REF!="",#REF!="",#REF!="",#REF!=""),"",SUM(#REF!,#REF!,#REF!,#REF!,#REF!)) ->  | CU111: =IF(AND(#REF!="",#REF!="",#REF!="",#REF!=""),"",SUM(#REF!,#REF!,#REF!,#REF!,#REF!)) -> 
A112: 106 | CO112: =IF(AND(#REF!="",#REF!="",#REF!="",#REF!=""),"",SUM(#REF!,#REF!,#REF!,#REF!,#REF!)) ->  | CU112: =IF(AND(#REF!="",#REF!="",#REF!="",#REF!=""),"",SUM(#REF!,#REF!,#REF!,#REF!,#REF!)) -> 
A113: 107 | CO113: =IF(AND(#REF!="",#REF!="",#REF!="",#REF!=""),"",SUM(#REF!,#REF!,#REF!,#REF!,#REF!)) ->  | CU113: =IF(AND(#REF!="",#REF!="",#REF!="",#REF!=""),"",SUM(#REF!,#REF!,#REF!,#REF!,#REF!)) -> 
A114: 108 | CO114: =IF(AND(#REF!="",#REF!="",#REF!="",#REF!=""),"",SUM(#REF!,#REF!,#REF!,#REF!,#REF!)) ->  | CU114: =IF(AND(#REF!="",#REF!="",#REF!="",#REF!=""),"",SUM(#REF!,#REF!,#REF!,#REF!,#REF!)) -> 
A115: 109 | CO115: =IF(AND(#REF!="",#REF!="",#REF!="",#REF!=""),"",SUM(#REF!,#REF!,#REF!,#REF!,#REF!)) ->  | CU115: =IF(AND(#REF!="",#REF!="",#REF!="",#REF!=""),"",SUM(#REF!,#REF!,#REF!,#REF!,#REF!)) -> 
A116: 110 | CO116: =IF(AND(#REF!="",#REF!="",#REF!="",#REF!=""),"",SUM(#REF!,#REF!,#REF!,#REF!,#REF!)) ->  | CU116: =IF(AND(#REF!="",#REF!="",#REF!="",#REF!=""),"",SUM(#REF!,#REF!,#REF!,#REF!,#REF!)) -> 
A117: 111 | CO117: =IF(AND(#REF!="",#REF!="",#REF!="",#REF!=""),"",SUM(#REF!,#REF!,#REF!,#REF!,#REF!)) ->  | CU117: =IF(AND(#REF!="",#REF!="",#REF!="",#REF!=""),"",SUM(#REF!,#REF!,#REF!,#REF!,#REF!)) -> 
A118: 112 | CO118: =IF(AND(#REF!="",#REF!="",#REF!="",#REF!=""),"",SUM(#REF!,#REF!,#REF!,#REF!,#REF!)) ->  | CU118: =IF(AND(#REF!="",#REF!="",#REF!="",#REF!=""),"",SUM(#REF!,#REF!,#REF!,#REF!,#REF!)) -> 
A119: 113 | CO119: =IF(AND(#REF!="",#REF!="",#REF!="",#REF!=""),"",SUM(#REF!,#REF!,#REF!,#REF!,#REF!)) ->  | CU119: =IF(AND(#REF!="",#REF!="",#REF!="",#REF!=""),"",SUM(#REF!,#REF!,#REF!,#REF!,#REF!)) -> 
A120: 114 | CO120: =IF(AND(#REF!="",#REF!="",#REF!="",#REF!=""),"",SUM(#REF!,#REF!,#REF!,#REF!,#REF!)) ->  | CU120: =IF(AND(#REF!="",#REF!="",#REF!="",#REF!=""),"",SUM(#REF!,#REF!,#REF!,#REF!,#REF!)) -> 
A121: 115 | CO121: =IF(AND(#REF!="",#REF!="",#REF!="",#REF!=""),"",SUM(#REF!,#REF!,#REF!,#REF!,#REF!)) ->  | CU121: =IF(AND(#REF!="",#REF!="",#REF!="",#REF!=""),"",SUM(#REF!,#REF!,#REF!,#REF!,#REF!)) -> 
A122: 116 | CO122: =IF(AND(#REF!="",#REF!="",#REF!="",#REF!=""),"",SUM(#REF!,#REF!,#REF!,#REF!,#REF!)) ->  | CU122: =IF(AND(#REF!="",#REF!="",#REF!="",#REF!=""),"",SUM(#REF!,#REF!,#REF!,#REF!,#REF!)) -> 
A123: 117 | CO123: =IF(AND(#REF!="",#REF!="",#REF!="",#REF!=""),"",SUM(#REF!,#REF!,#REF!,#REF!,#REF!)) ->  | CU123: =IF(AND(#REF!="",#REF!="",#REF!="",#REF!=""),"",SUM(#REF!,#REF!,#REF!,#REF!,#REF!)) -> 
A124: 118 | CO124: =IF(AND(#REF!="",#REF!="",#REF!="",#REF!=""),"",SUM(#REF!,#REF!,#REF!,#REF!,#REF!)) ->  | CU124: =IF(AND(#REF!="",#REF!="",#REF!="",#REF!=""),"",SUM(#REF!,#REF!,#REF!,#REF!,#REF!)) -> 
A125: 119 | CO125: =IF(AND(#REF!="",#REF!="",#REF!="",#REF!=""),"",SUM(#REF!,#REF!,#REF!,#REF!,#REF!)) ->  | CU125: =IF(AND(#REF!="",#REF!="",#REF!="",#REF!=""),"",SUM(#REF!,#REF!,#REF!,#REF!,#REF!)) -> 
A126: 120 | CO126: =IF(AND(#REF!="",#REF!="",#REF!="",#REF!=""),"",SUM(#REF!,#REF!,#REF!,#REF!,#REF!)) ->  | CU126: =IF(AND(#REF!="",#REF!="",#REF!="",#REF!=""),"",SUM(#REF!,#REF!,#REF!,#REF!,#REF!)) -> 
A127: 121 | CO127: =IF(AND(#REF!="",#REF!="",#REF!="",#REF!=""),"",SUM(#REF!,#REF!,#REF!,#REF!,#REF!)) ->  | CU127: =IF(AND(#REF!="",#REF!="",#REF!="",#REF!=""),"",SUM(#REF!,#REF!,#REF!,#REF!,#REF!)) ->  | CW127: =IF(AND(#REF!="",#REF!="",#REF!="",#REF!=""),"",SUM(#REF!,#REF!,#REF!,#REF!)) ->  | CX127: =IFERROR(IF(CW127="","",IF($CW$5=100,ROUNDUP(CW127*20%,0),IF($CW$5=86,ROUNDUP((CW127/$CW$5)*$CX$5,0),IF($CW$5=66,ROUNDUP((CW127/$CW$5)*$CX$5,0),"")))),"") -> 
A128: 122 | CO128: =IF(AND(#REF!="",#REF!="",#REF!="",#REF!=""),"",SUM(#REF!,#REF!,#REF!,#REF!,#REF!)) ->  | CU128: =IF(AND(#REF!="",#REF!="",#REF!="",#REF!=""),"",SUM(#REF!,#REF!,#REF!,#REF!,#REF!)) ->  | CW128: =IF(AND(#REF!="",#REF!="",#REF!="",#REF!=""),"",SUM(#REF!,#REF!,#REF!,#REF!)) -> 
A129: 123 | CO129: =IF(AND(#REF!="",#REF!="",#REF!="",#REF!=""),"",SUM(#REF!,#REF!,#REF!,#REF!,#REF!)) ->  | CU129: =IF(AND(#REF!="",#REF!="",#REF!="",#REF!=""),"",SUM(#REF!,#REF!,#REF!,#REF!,#REF!)) ->  | CW129: =IF(AND(#REF!="",#REF!="",#REF!="",#REF!=""),"",SUM(#REF!,#REF!,#REF!,#REF!)) -> 
A130: 124 | CO130: =IF(AND(#REF!="",#REF!="",#REF!="",#REF!=""),"",SUM(#REF!,#REF!,#REF!,#REF!,#REF!)) ->  | CU130: =IF(AND(#REF!="",#REF!="",#REF!="",#REF!=""),"",SUM(#REF!,#REF!,#REF!,#REF!,#REF!)) ->  | CW130: =IF(AND(#REF!="",#REF!="",#REF!="",#REF!=""),"",SUM(#REF!,#REF!,#REF!,#REF!)) -> 
A131: 125 | CO131: =IF(AND(#REF!="",#REF!="",#REF!="",#REF!=""),"",SUM(#REF!,#REF!,#REF!,#REF!,#REF!)) ->  | CU131: =IF(AND(#REF!="",#REF!="",#REF!="",#REF!=""),"",SUM(#REF!,#REF!,#REF!,#REF!,#REF!)) ->  | CW131: =IF(AND(#REF!="",#REF!="",#REF!="",#REF!=""),"",SUM(#REF!,#REF!,#REF!,#REF!)) -> 
A132: 126 | CO132: =IF(AND(#REF!="",#REF!="",#REF!="",#REF!=""),"",SUM(#REF!,#REF!,#REF!,#REF!,#REF!)) ->  | CU132: =IF(AND(#REF!="",#REF!="",#REF!="",#REF!=""),"",SUM(#REF!,#REF!,#REF!,#REF!,#REF!)) ->  | CW132: =IF(AND(#REF!="",#REF!="",#REF!="",#REF!=""),"",SUM(#REF!,#REF!,#REF!,#REF!)) -> 
A133: 127 | CO133: =IF(AND(#REF!="",#REF!="",#REF!="",#REF!=""),"",SUM(#REF!,#REF!,#REF!,#REF!,#REF!)) ->  | CU133: =IF(AND(#REF!="",#REF!="",#REF!="",#REF!=""),"",SUM(#REF!,#REF!,#REF!,#REF!,#REF!)) ->  | CW133: =IF(AND(#REF!="",#REF!="",#REF!="",#REF!=""),"",SUM(#REF!,#REF!,#REF!,#REF!)) -> 
A134: 128 | CO134: =IF(AND(#REF!="",#REF!="",#REF!="",#REF!=""),"",SUM(#REF!,#REF!,#REF!,#REF!,#REF!)) ->  | CU134: =IF(AND(#REF!="",#REF!="",#REF!="",#REF!=""),"",SUM(#REF!,#REF!,#REF!,#REF!,#REF!)) ->  | CW134: =IF(AND(#REF!="",#REF!="",#REF!="",#REF!=""),"",SUM(#REF!,#REF!,#REF!,#REF!)) -> 
A135: 129 | CO135: =IF(AND(#REF!="",#REF!="",#REF!="",#REF!=""),"",SUM(#REF!,#REF!,#REF!,#REF!,#REF!)) ->  | CU135: =IF(AND(#REF!="",#REF!="",#REF!="",#REF!=""),"",SUM(#REF!,#REF!,#REF!,#REF!,#REF!)) ->  | CW135: =IF(AND(#REF!="",#REF!="",#REF!="",#REF!=""),"",SUM(#REF!,#REF!,#REF!,#REF!)) -> 
A136: 130 | CJ136: =IF(I136="","",I136) ->  | CK136: =IF(AND(L136="",M136="",N136="",P136=""),"",SUM(L136,M136,N136,O136,P136)) ->  | CL136: =IFERROR(IF(CK136="","",ROUNDUP(CK136*20%,0)),"") ->  | CM136: =IF(AND(S136="",T136="",U136="",W136=""),"",SUM(S136,T136,U136,V136,W136)) ->  | CN136: =IFERROR(IF(CM136="","",ROUNDUP(CM136*20%,0)),"") ->  | CO136: =IF(AND(#REF!="",#REF!="",#REF!="",#REF!=""),"",SUM(#REF!,#REF!,#REF!,#REF!,#REF!)) ->  | CP136: =IFERROR(IF(CO136="","",ROUNDUP(CO136*20%,0)),"") ->  | CQ136: =IF(AND(Z136="",AA136="",AB136="",AD136=""),"",SUM(Z136,AA136,AB136,AC136,AD136)) ->  | CR136: =IFERROR(IF(CQ136="","",ROUNDUP(CQ136*20%,0)),"") ->  | CS136: =IF(AND(AG136="",AH136="",AI136="",AK136=""),"",SUM(AG136,AH136,AI136,AJ136,AK136)) ->  | CT136: =IFERROR(IF(CS136="","",ROUNDUP(CS136*20%,0)),"") ->  | CU136: =IF(AND(#REF!="",#REF!="",#REF!="",#REF!=""),"",SUM(#REF!,#REF!,#REF!,#REF!,#REF!)) ->  | CV136: =IFERROR(IF(CU136="","",ROUNDUP(CU136*20%,0)),"") ->  | CW136: =IF(AND(#REF!="",#REF!="",#REF!="",#REF!=""),"",SUM(#REF!,#REF!,#REF!,#REF!)) ->  | CX136: =IFERROR(IF(CW136="","",IF($CW$5=100,ROUNDUP(CW136*20%,0),IF($CW$5=86,ROUNDUP((CW136/$CW$5)*$CX$5,0),IF($CW$5=66,ROUNDUP((CW136/$CW$5)*$CX$5,0),"")))),"") -> 
A137: 131 | CO137: =IF(AND(#REF!="",#REF!="",#REF!="",#REF!=""),"",SUM(#REF!,#REF!,#REF!,#REF!,#REF!)) ->  | CU137: =IF(AND(#REF!="",#REF!="",#REF!="",#REF!=""),"",SUM(#REF!,#REF!,#REF!,#REF!,#REF!)) ->  | CW137: =IF(AND(#REF!="",#REF!="",#REF!="",#REF!=""),"",SUM(#REF!,#REF!,#REF!,#REF!)) -> 
A138: 132 | CO138: =IF(AND(#REF!="",#REF!="",#REF!="",#REF!=""),"",SUM(#REF!,#REF!,#REF!,#REF!,#REF!)) ->  | CU138: =IF(AND(#REF!="",#REF!="",#REF!="",#REF!=""),"",SUM(#REF!,#REF!,#REF!,#REF!,#REF!)) ->  | CW138: =IF(AND(#REF!="",#REF!="",#REF!="",#REF!=""),"",SUM(#REF!,#REF!,#REF!,#REF!)) -> 
A139: 133 | CO139: =IF(AND(#REF!="",#REF!="",#REF!="",#REF!=""),"",SUM(#REF!,#REF!,#REF!,#REF!,#REF!)) ->  | CU139: =IF(AND(#REF!="",#REF!="",#REF!="",#REF!=""),"",SUM(#REF!,#REF!,#REF!,#REF!,#REF!)) ->  | CW139: =IF(AND(#REF!="",#REF!="",#REF!="",#REF!=""),"",SUM(#REF!,#REF!,#REF!,#REF!)) -> 
A140: 134 | CO140: =IF(AND(#REF!="",#REF!="",#REF!="",#REF!=""),"",SUM(#REF!,#REF!,#REF!,#REF!,#REF!)) ->  | CU140: =IF(AND(#REF!="",#REF!="",#REF!="",#REF!=""),"",SUM(#REF!,#REF!,#REF!,#REF!,#REF!)) ->  | CW140: =IF(AND(#REF!="",#REF!="",#REF!="",#REF!=""),"",SUM(#REF!,#REF!,#REF!,#REF!)) -> 
A141: 135 | CO141: =IF(AND(#REF!="",#REF!="",#REF!="",#REF!=""),"",SUM(#REF!,#REF!,#REF!,#REF!,#REF!)) ->  | CU141: =IF(AND(#REF!="",#REF!="",#REF!="",#REF!=""),"",SUM(#REF!,#REF!,#REF!,#REF!,#REF!)) ->  | CW141: =IF(AND(#REF!="",#REF!="",#REF!="",#REF!=""),"",SUM(#REF!,#REF!,#REF!,#REF!)) -> 
A142: 136 | CO142: =IF(AND(#REF!="",#REF!="",#REF!="",#REF!=""),"",SUM(#REF!,#REF!,#REF!,#REF!,#REF!)) ->  | CU142: =IF(AND(#REF!="",#REF!="",#REF!="",#REF!=""),"",SUM(#REF!,#REF!,#REF!,#REF!,#REF!)) ->  | CW142: =IF(AND(#REF!="",#REF!="",#REF!="",#REF!=""),"",SUM(#REF!,#REF!,#REF!,#REF!)) -> 
A143: 137 | CO143: =IF(AND(#REF!="",#REF!="",#REF!="",#REF!=""),"",SUM(#REF!,#REF!,#REF!,#REF!,#REF!)) ->  | CU143: =IF(AND(#REF!="",#REF!="",#REF!="",#REF!=""),"",SUM(#REF!,#REF!,#REF!,#REF!,#REF!)) ->  | CW143: =IF(AND(#REF!="",#REF!="",#REF!="",#REF!=""),"",SUM(#REF!,#REF!,#REF!,#REF!)) -> 
A144: 138 | CO144: =IF(AND(#REF!="",#REF!="",#REF!="",#REF!=""),"",SUM(#REF!,#REF!,#REF!,#REF!,#REF!)) ->  | CU144: =IF(AND(#REF!="",#REF!="",#REF!="",#REF!=""),"",SUM(#REF!,#REF!,#REF!,#REF!,#REF!)) ->  | CW144: =IF(AND(#REF!="",#REF!="",#REF!="",#REF!=""),"",SUM(#REF!,#REF!,#REF!,#REF!)) -> 
A145: 139 | CO145: =IF(AND(#REF!="",#REF!="",#REF!="",#REF!=""),"",SUM(#REF!,#REF!,#REF!,#REF!,#REF!)) ->  | CU145: =IF(AND(#REF!="",#REF!="",#REF!="",#REF!=""),"",SUM(#REF!,#REF!,#REF!,#REF!,#REF!)) ->  | CW145: =IF(AND(#REF!="",#REF!="",#REF!="",#REF!=""),"",SUM(#REF!,#REF!,#REF!,#REF!)) -> 
A146: 140 | CO146: =IF(AND(#REF!="",#REF!="",#REF!="",#REF!=""),"",SUM(#REF!,#REF!,#REF!,#REF!,#REF!)) ->  | CU146: =IF(AND(#REF!="",#REF!="",#REF!="",#REF!=""),"",SUM(#REF!,#REF!,#REF!,#REF!,#REF!)) ->  | CW146: =IF(AND(#REF!="",#REF!="",#REF!="",#REF!=""),"",SUM(#REF!,#REF!,#REF!,#REF!)) -> 
A147: 141 | CO147: =IF(AND(#REF!="",#REF!="",#REF!="",#REF!=""),"",SUM(#REF!,#REF!,#REF!,#REF!,#REF!)) ->  | CU147: =IF(AND(#REF!="",#REF!="",#REF!="",#REF!=""),"",SUM(#REF!,#REF!,#REF!,#REF!,#REF!)) ->  | CW147: =IF(AND(#REF!="",#REF!="",#REF!="",#REF!=""),"",SUM(#REF!,#REF!,#REF!,#REF!)) -> 
A148: 142 | CO148: =IF(AND(#REF!="",#REF!="",#REF!="",#REF!=""),"",SUM(#REF!,#REF!,#REF!,#REF!,#REF!)) ->  | CU148: =IF(AND(#REF!="",#REF!="",#REF!="",#REF!=""),"",SUM(#REF!,#REF!,#REF!,#REF!,#REF!)) ->  | CW148: =IF(AND(#REF!="",#REF!="",#REF!="",#REF!=""),"",SUM(#REF!,#REF!,#REF!,#REF!)) -> 
A149: 143 | CO149: =IF(AND(#REF!="",#REF!="",#REF!="",#REF!=""),"",SUM(#REF!,#REF!,#REF!,#REF!,#REF!)) ->  | CU149: =IF(AND(#REF!="",#REF!="",#REF!="",#REF!=""),"",SUM(#REF!,#REF!,#REF!,#REF!,#REF!)) ->  | CW149: =IF(AND(#REF!="",#REF!="",#REF!="",#REF!=""),"",SUM(#REF!,#REF!,#REF!,#REF!)) -> 
A150: 144 | CO150: =IF(AND(#REF!="",#REF!="",#REF!="",#REF!=""),"",SUM(#REF!,#REF!,#REF!,#REF!,#REF!)) ->  | CU150: =IF(AND(#REF!="",#REF!="",#REF!="",#REF!=""),"",SUM(#REF!,#REF!,#REF!,#REF!,#REF!)) ->  | CW150: =IF(AND(#REF!="",#REF!="",#REF!="",#REF!=""),"",SUM(#REF!,#REF!,#REF!,#REF!)) -> 
A151: 145 | CO151: =IF(AND(#REF!="",#REF!="",#REF!="",#REF!=""),"",SUM(#REF!,#REF!,#REF!,#REF!,#REF!)) ->  | CU151: =IF(AND(#REF!="",#REF!="",#REF!="",#REF!=""),"",SUM(#REF!,#REF!,#REF!,#REF!,#REF!)) ->  | CW151: =IF(AND(#REF!="",#REF!="",#REF!="",#REF!=""),"",SUM(#REF!,#REF!,#REF!,#REF!)) -> 
A152: 146 | CO152: =IF(AND(#REF!="",#REF!="",#REF!="",#REF!=""),"",SUM(#REF!,#REF!,#REF!,#REF!,#REF!)) ->  | CU152: =IF(AND(#REF!="",#REF!="",#REF!="",#REF!=""),"",SUM(#REF!,#REF!,#REF!,#REF!,#REF!)) ->  | CW152: =IF(AND(#REF!="",#REF!="",#REF!="",#REF!=""),"",SUM(#REF!,#REF!,#REF!,#REF!)) -> 
A153: 147 | CO153: =IF(AND(#REF!="",#REF!="",#REF!="",#REF!=""),"",SUM(#REF!,#REF!,#REF!,#REF!,#REF!)) ->  | CU153: =IF(AND(#REF!="",#REF!="",#REF!="",#REF!=""),"",SUM(#REF!,#REF!,#REF!,#REF!,#REF!)) ->  | CW153: =IF(AND(#REF!="",#REF!="",#REF!="",#REF!=""),"",SUM(#REF!,#REF!,#REF!,#REF!)) -> 
A154: 148 | CO154: =IF(AND(#REF!="",#REF!="",#REF!="",#REF!=""),"",SUM(#REF!,#REF!,#REF!,#REF!,#REF!)) ->  | CU154: =IF(AND(#REF!="",#REF!="",#REF!="",#REF!=""),"",SUM(#REF!,#REF!,#REF!,#REF!,#REF!)) ->  | CW154: =IF(AND(#REF!="",#REF!="",#REF!="",#REF!=""),"",SUM(#REF!,#REF!,#REF!,#REF!)) -> 
A155: 149 | CO155: =IF(AND(#REF!="",#REF!="",#REF!="",#REF!=""),"",SUM(#REF!,#REF!,#REF!,#REF!,#REF!)) ->  | CU155: =IF(AND(#REF!="",#REF!="",#REF!="",#REF!=""),"",SUM(#REF!,#REF!,#REF!,#REF!,#REF!)) ->  | CW155: =IF(AND(#REF!="",#REF!="",#REF!="",#REF!=""),"",SUM(#REF!,#REF!,#REF!,#REF!)) -> 
A156: 150 | CO156: =IF(AND(#REF!="",#REF!="",#REF!="",#REF!=""),"",SUM(#REF!,#REF!,#REF!,#REF!,#REF!)) ->  | CU156: =IF(AND(#REF!="",#REF!="",#REF!="",#REF!=""),"",SUM(#REF!,#REF!,#REF!,#REF!,#REF!)) ->  | CW156: =IF(AND(#REF!="",#REF!="",#REF!="",#REF!=""),"",SUM(#REF!,#REF!,#REF!,#REF!)) -> 
A157: 151 | CO157: =IF(AND(#REF!="",#REF!="",#REF!="",#REF!=""),"",SUM(#REF!,#REF!,#REF!,#REF!,#REF!)) ->  | CU157: =IF(AND(#REF!="",#REF!="",#REF!="",#REF!=""),"",SUM(#REF!,#REF!,#REF!,#REF!,#REF!)) ->  | CW157: =IF(AND(#REF!="",#REF!="",#REF!="",#REF!=""),"",SUM(#REF!,#REF!,#REF!,#REF!)) -> 
A158: 152 | CO158: =IF(AND(#REF!="",#REF!="",#REF!="",#REF!=""),"",SUM(#REF!,#REF!,#REF!,#REF!,#REF!)) ->  | CU158: =IF(AND(#REF!="",#REF!="",#REF!="",#REF!=""),"",SUM(#REF!,#REF!,#REF!,#REF!,#REF!)) ->  | CW158: =IF(AND(#REF!="",#REF!="",#REF!="",#REF!=""),"",SUM(#REF!,#REF!,#REF!,#REF!)) -> 
A159: 153 | CO159: =IF(AND(#REF!="",#REF!="",#REF!="",#REF!=""),"",SUM(#REF!,#REF!,#REF!,#REF!,#REF!)) ->  | CU159: =IF(AND(#REF!="",#REF!="",#REF!="",#REF!=""),"",SUM(#REF!,#REF!,#REF!,#REF!,#REF!)) ->  | CW159: =IF(AND(#REF!="",#REF!="",#REF!="",#REF!=""),"",SUM(#REF!,#REF!,#REF!,#REF!)) -> 
A160: 154 | CO160: =IF(AND(#REF!="",#REF!="",#REF!="",#REF!=""),"",SUM(#REF!,#REF!,#REF!,#REF!,#REF!)) ->  | CU160: =IF(AND(#REF!="",#REF!="",#REF!="",#REF!=""),"",SUM(#REF!,#REF!,#REF!,#REF!,#REF!)) ->  | CW160: =IF(AND(#REF!="",#REF!="",#REF!="",#REF!=""),"",SUM(#REF!,#REF!,#REF!,#REF!)) -> 
A161: 155 | CO161: =IF(AND(#REF!="",#REF!="",#REF!="",#REF!=""),"",SUM(#REF!,#REF!,#REF!,#REF!,#REF!)) ->  | CU161: =IF(AND(#REF!="",#REF!="",#REF!="",#REF!=""),"",SUM(#REF!,#REF!,#REF!,#REF!,#REF!)) ->  | CW161: =IF(AND(#REF!="",#REF!="",#REF!="",#REF!=""),"",SUM(#REF!,#REF!,#REF!,#REF!)) -> 
A162: 156 | CO162: =IF(AND(#REF!="",#REF!="",#REF!="",#REF!=""),"",SUM(#REF!,#REF!,#REF!,#REF!,#REF!)) ->  | CU162: =IF(AND(#REF!="",#REF!="",#REF!="",#REF!=""),"",SUM(#REF!,#REF!,#REF!,#REF!,#REF!)) ->  | CW162: =IF(AND(#REF!="",#REF!="",#REF!="",#REF!=""),"",SUM(#REF!,#REF!,#REF!,#REF!)) -> 
A163: 157 | CO163: =IF(AND(#REF!="",#REF!="",#REF!="",#REF!=""),"",SUM(#REF!,#REF!,#REF!,#REF!,#REF!)) ->  | CU163: =IF(AND(#REF!="",#REF!="",#REF!="",#REF!=""),"",SUM(#REF!,#REF!,#REF!,#REF!,#REF!)) ->  | CW163: =IF(AND(#REF!="",#REF!="",#REF!="",#REF!=""),"",SUM(#REF!,#REF!,#REF!,#REF!)) -> 
A164: 158 | CO164: =IF(AND(#REF!="",#REF!="",#REF!="",#REF!=""),"",SUM(#REF!,#REF!,#REF!,#REF!,#REF!)) ->  | CU164: =IF(AND(#REF!="",#REF!="",#REF!="",#REF!=""),"",SUM(#REF!,#REF!,#REF!,#REF!,#REF!)) ->  | CW164: =IF(AND(#REF!="",#REF!="",#REF!="",#REF!=""),"",SUM(#REF!,#REF!,#REF!,#REF!)) -> 
A165: 159 | CO165: =IF(AND(#REF!="",#REF!="",#REF!="",#REF!=""),"",SUM(#REF!,#REF!,#REF!,#REF!,#REF!)) ->  | CU165: =IF(AND(#REF!="",#REF!="",#REF!="",#REF!=""),"",SUM(#REF!,#REF!,#REF!,#REF!,#REF!)) ->  | CW165: =IF(AND(#REF!="",#REF!="",#REF!="",#REF!=""),"",SUM(#REF!,#REF!,#REF!,#REF!)) -> 
A166: 160 | CO166: =IF(AND(#REF!="",#REF!="",#REF!="",#REF!=""),"",SUM(#REF!,#REF!,#REF!,#REF!,#REF!)) ->  | CU166: =IF(AND(#REF!="",#REF!="",#REF!="",#REF!=""),"",SUM(#REF!,#REF!,#REF!,#REF!,#REF!)) ->  | CW166: =IF(AND(#REF!="",#REF!="",#REF!="",#REF!=""),"",SUM(#REF!,#REF!,#REF!,#REF!)) -> 
A167: 161 | CO167: =IF(AND(#REF!="",#REF!="",#REF!="",#REF!=""),"",SUM(#REF!,#REF!,#REF!,#REF!,#REF!)) ->  | CU167: =IF(AND(#REF!="",#REF!="",#REF!="",#REF!=""),"",SUM(#REF!,#REF!,#REF!,#REF!,#REF!)) ->  | CW167: =IF(AND(#REF!="",#REF!="",#REF!="",#REF!=""),"",SUM(#REF!,#REF!,#REF!,#REF!)) -> 
A168: 162 | CO168: =IF(AND(#REF!="",#REF!="",#REF!="",#REF!=""),"",SUM(#REF!,#REF!,#REF!,#REF!,#REF!)) ->  | CU168: =IF(AND(#REF!="",#REF!="",#REF!="",#REF!=""),"",SUM(#REF!,#REF!,#REF!,#REF!,#REF!)) ->  | CW168: =IF(AND(#REF!="",#REF!="",#REF!="",#REF!=""),"",SUM(#REF!,#REF!,#REF!,#REF!)) -> 
A169: 163 | CO169: =IF(AND(#REF!="",#REF!="",#REF!="",#REF!=""),"",SUM(#REF!,#REF!,#REF!,#REF!,#REF!)) ->  | CU169: =IF(AND(#REF!="",#REF!="",#REF!="",#REF!=""),"",SUM(#REF!,#REF!,#REF!,#REF!,#REF!)) ->  | CW169: =IF(AND(#REF!="",#REF!="",#REF!="",#REF!=""),"",SUM(#REF!,#REF!,#REF!,#REF!)) -> 
A170: 164 | CO170: =IF(AND(#REF!="",#REF!="",#REF!="",#REF!=""),"",SUM(#REF!,#REF!,#REF!,#REF!,#REF!)) ->  | CU170: =IF(AND(#REF!="",#REF!="",#REF!="",#REF!=""),"",SUM(#REF!,#REF!,#REF!,#REF!,#REF!)) ->  | CW170: =IF(AND(#REF!="",#REF!="",#REF!="",#REF!=""),"",SUM(#REF!,#REF!,#REF!,#REF!)) -> 
A171: 165 | CO171: =IF(AND(#REF!="",#REF!="",#REF!="",#REF!=""),"",SUM(#REF!,#REF!,#REF!,#REF!,#REF!)) ->  | CU171: =IF(AND(#REF!="",#REF!="",#REF!="",#REF!=""),"",SUM(#REF!,#REF!,#REF!,#REF!,#REF!)) ->  | CW171: =IF(AND(#REF!="",#REF!="",#REF!="",#REF!=""),"",SUM(#REF!,#REF!,#REF!,#REF!)) -> 
A172: 166 | CO172: =IF(AND(#REF!="",#REF!="",#REF!="",#REF!=""),"",SUM(#REF!,#REF!,#REF!,#REF!,#REF!)) ->  | CU172: =IF(AND(#REF!="",#REF!="",#REF!="",#REF!=""),"",SUM(#REF!,#REF!,#REF!,#REF!,#REF!)) ->  | CW172: =IF(AND(#REF!="",#REF!="",#REF!="",#REF!=""),"",SUM(#REF!,#REF!,#REF!,#REF!)) -> 
A173: 167 | CO173: =IF(AND(#REF!="",#REF!="",#REF!="",#REF!=""),"",SUM(#REF!,#REF!,#REF!,#REF!,#REF!)) ->  | CU173: =IF(AND(#REF!="",#REF!="",#REF!="",#REF!=""),"",SUM(#REF!,#REF!,#REF!,#REF!,#REF!)) ->  | CW173: =IF(AND(#REF!="",#REF!="",#REF!="",#REF!=""),"",SUM(#REF!,#REF!,#REF!,#REF!)) -> 
A174: 168 | CO174: =IF(AND(#REF!="",#REF!="",#REF!="",#REF!=""),"",SUM(#REF!,#REF!,#REF!,#REF!,#REF!)) ->  | CU174: =IF(AND(#REF!="",#REF!="",#REF!="",#REF!=""),"",SUM(#REF!,#REF!,#REF!,#REF!,#REF!)) ->  | CW174: =IF(AND(#REF!="",#REF!="",#REF!="",#REF!=""),"",SUM(#REF!,#REF!,#REF!,#REF!)) -> 
A175: 169 | CO175: =IF(AND(#REF!="",#REF!="",#REF!="",#REF!=""),"",SUM(#REF!,#REF!,#REF!,#REF!,#REF!)) ->  | CU175: =IF(AND(#REF!="",#REF!="",#REF!="",#REF!=""),"",SUM(#REF!,#REF!,#REF!,#REF!,#REF!)) ->  | CW175: =IF(AND(#REF!="",#REF!="",#REF!="",#REF!=""),"",SUM(#REF!,#REF!,#REF!,#REF!)) -> 
A176: 170 | CO176: =IF(AND(#REF!="",#REF!="",#REF!="",#REF!=""),"",SUM(#REF!,#REF!,#REF!,#REF!,#REF!)) ->  | CU176: =IF(AND(#REF!="",#REF!="",#REF!="",#REF!=""),"",SUM(#REF!,#REF!,#REF!,#REF!,#REF!)) ->  | CW176: =IF(AND(#REF!="",#REF!="",#REF!="",#REF!=""),"",SUM(#REF!,#REF!,#REF!,#REF!)) -> 
A177: 171 | CO177: =IF(AND(#REF!="",#REF!="",#REF!="",#REF!=""),"",SUM(#REF!,#REF!,#REF!,#REF!,#REF!)) ->  | CU177: =IF(AND(#REF!="",#REF!="",#REF!="",#REF!=""),"",SUM(#REF!,#REF!,#REF!,#REF!,#REF!)) ->  | CW177: =IF(AND(#REF!="",#REF!="",#REF!="",#REF!=""),"",SUM(#REF!,#REF!,#REF!,#REF!)) -> 
A178: 172 | CO178: =IF(AND(#REF!="",#REF!="",#REF!="",#REF!=""),"",SUM(#REF!,#REF!,#REF!,#REF!,#REF!)) ->  | CU178: =IF(AND(#REF!="",#REF!="",#REF!="",#REF!=""),"",SUM(#REF!,#REF!,#REF!,#REF!,#REF!)) ->  | CW178: =IF(AND(#REF!="",#REF!="",#REF!="",#REF!=""),"",SUM(#REF!,#REF!,#REF!,#REF!)) -> 
A179: 173 | CO179: =IF(AND(#REF!="",#REF!="",#REF!="",#REF!=""),"",SUM(#REF!,#REF!,#REF!,#REF!,#REF!)) ->  | CU179: =IF(AND(#REF!="",#REF!="",#REF!="",#REF!=""),"",SUM(#REF!,#REF!,#REF!,#REF!,#REF!)) ->  | CW179: =IF(AND(#REF!="",#REF!="",#REF!="",#REF!=""),"",SUM(#REF!,#REF!,#REF!,#REF!)) -> 
A180: 174 | CO180: =IF(AND(#REF!="",#REF!="",#REF!="",#REF!=""),"",SUM(#REF!,#REF!,#REF!,#REF!,#REF!)) ->  | CU180: =IF(AND(#REF!="",#REF!="",#REF!="",#REF!=""),"",SUM(#REF!,#REF!,#REF!,#REF!,#REF!)) ->  | CW180: =IF(AND(#REF!="",#REF!="",#REF!="",#REF!=""),"",SUM(#REF!,#REF!,#REF!,#REF!)) -> 
A181: 175 | CO181: =IF(AND(#REF!="",#REF!="",#REF!="",#REF!=""),"",SUM(#REF!,#REF!,#REF!,#REF!,#REF!)) ->  | CU181: =IF(AND(#REF!="",#REF!="",#REF!="",#REF!=""),"",SUM(#REF!,#REF!,#REF!,#REF!,#REF!)) ->  | CW181: =IF(AND(#REF!="",#REF!="",#REF!="",#REF!=""),"",SUM(#REF!,#REF!,#REF!,#REF!)) -> 
A182: 176 | CO182: =IF(AND(#REF!="",#REF!="",#REF!="",#REF!=""),"",SUM(#REF!,#REF!,#REF!,#REF!,#REF!)) ->  | CU182: =IF(AND(#REF!="",#REF!="",#REF!="",#REF!=""),"",SUM(#REF!,#REF!,#REF!,#REF!,#REF!)) ->  | CW182: =IF(AND(#REF!="",#REF!="",#REF!="",#REF!=""),"",SUM(#REF!,#REF!,#REF!,#REF!)) -> 
A183: 177 | CO183: =IF(AND(#REF!="",#REF!="",#REF!="",#REF!=""),"",SUM(#REF!,#REF!,#REF!,#REF!,#REF!)) ->  | CU183: =IF(AND(#REF!="",#REF!="",#REF!="",#REF!=""),"",SUM(#REF!,#REF!,#REF!,#REF!,#REF!)) ->  | CW183: =IF(AND(#REF!="",#REF!="",#REF!="",#REF!=""),"",SUM(#REF!,#REF!,#REF!,#REF!)) -> 
A184: 178 | CO184: =IF(AND(#REF!="",#REF!="",#REF!="",#REF!=""),"",SUM(#REF!,#REF!,#REF!,#REF!,#REF!)) ->  | CU184: =IF(AND(#REF!="",#REF!="",#REF!="",#REF!=""),"",SUM(#REF!,#REF!,#REF!,#REF!,#REF!)) ->  | CW184: =IF(AND(#REF!="",#REF!="",#REF!="",#REF!=""),"",SUM(#REF!,#REF!,#REF!,#REF!)) -> 
A185: 179 | CO185: =IF(AND(#REF!="",#REF!="",#REF!="",#REF!=""),"",SUM(#REF!,#REF!,#REF!,#REF!,#REF!)) ->  | CU185: =IF(AND(#REF!="",#REF!="",#REF!="",#REF!=""),"",SUM(#REF!,#REF!,#REF!,#REF!,#REF!)) ->  | CW185: =IF(AND(#REF!="",#REF!="",#REF!="",#REF!=""),"",SUM(#REF!,#REF!,#REF!,#REF!)) -> 
A186: 180 | CO186: =IF(AND(#REF!="",#REF!="",#REF!="",#REF!=""),"",SUM(#REF!,#REF!,#REF!,#REF!,#REF!)) ->  | CU186: =IF(AND(#REF!="",#REF!="",#REF!="",#REF!=""),"",SUM(#REF!,#REF!,#REF!,#REF!,#REF!)) ->  | CW186: =IF(AND(#REF!="",#REF!="",#REF!="",#REF!=""),"",SUM(#REF!,#REF!,#REF!,#REF!)) -> 
A187: 181 | CO187: =IF(AND(#REF!="",#REF!="",#REF!="",#REF!=""),"",SUM(#REF!,#REF!,#REF!,#REF!,#REF!)) ->  | CU187: =IF(AND(#REF!="",#REF!="",#REF!="",#REF!=""),"",SUM(#REF!,#REF!,#REF!,#REF!,#REF!)) ->  | CW187: =IF(AND(#REF!="",#REF!="",#REF!="",#REF!=""),"",SUM(#REF!,#REF!,#REF!,#REF!)) -> 
A188: 182 | CO188: =IF(AND(#REF!="",#REF!="",#REF!="",#REF!=""),"",SUM(#REF!,#REF!,#REF!,#REF!,#REF!)) ->  | CU188: =IF(AND(#REF!="",#REF!="",#REF!="",#REF!=""),"",SUM(#REF!,#REF!,#REF!,#REF!,#REF!)) ->  | CW188: =IF(AND(#REF!="",#REF!="",#REF!="",#REF!=""),"",SUM(#REF!,#REF!,#REF!,#REF!)) -> 
A189: 183 | CO189: =IF(AND(#REF!="",#REF!="",#REF!="",#REF!=""),"",SUM(#REF!,#REF!,#REF!,#REF!,#REF!)) ->  | CU189: =IF(AND(#REF!="",#REF!="",#REF!="",#REF!=""),"",SUM(#REF!,#REF!,#REF!,#REF!,#REF!)) ->  | CW189: =IF(AND(#REF!="",#REF!="",#REF!="",#REF!=""),"",SUM(#REF!,#REF!,#REF!,#REF!)) -> 
A190: 184 | CO190: =IF(AND(#REF!="",#REF!="",#REF!="",#REF!=""),"",SUM(#REF!,#REF!,#REF!,#REF!,#REF!)) ->  | CU190: =IF(AND(#REF!="",#REF!="",#REF!="",#REF!=""),"",SUM(#REF!,#REF!,#REF!,#REF!,#REF!)) ->  | CW190: =IF(AND(#REF!="",#REF!="",#REF!="",#REF!=""),"",SUM(#REF!,#REF!,#REF!,#REF!)) -> 
A191: 185 | CO191: =IF(AND(#REF!="",#REF!="",#REF!="",#REF!=""),"",SUM(#REF!,#REF!,#REF!,#REF!,#REF!)) ->  | CU191: =IF(AND(#REF!="",#REF!="",#REF!="",#REF!=""),"",SUM(#REF!,#REF!,#REF!,#REF!,#REF!)) ->  | CW191: =IF(AND(#REF!="",#REF!="",#REF!="",#REF!=""),"",SUM(#REF!,#REF!,#REF!,#REF!)) -> 
A192: 186 | CO192: =IF(AND(#REF!="",#REF!="",#REF!="",#REF!=""),"",SUM(#REF!,#REF!,#REF!,#REF!,#REF!)) ->  | CU192: =IF(AND(#REF!="",#REF!="",#REF!="",#REF!=""),"",SUM(#REF!,#REF!,#REF!,#REF!,#REF!)) ->  | CW192: =IF(AND(#REF!="",#REF!="",#REF!="",#REF!=""),"",SUM(#REF!,#REF!,#REF!,#REF!)) -> 
A193: 187 | CO193: =IF(AND(#REF!="",#REF!="",#REF!="",#REF!=""),"",SUM(#REF!,#REF!,#REF!,#REF!,#REF!)) ->  | CU193: =IF(AND(#REF!="",#REF!="",#REF!="",#REF!=""),"",SUM(#REF!,#REF!,#REF!,#REF!,#REF!)) ->  | CW193: =IF(AND(#REF!="",#REF!="",#REF!="",#REF!=""),"",SUM(#REF!,#REF!,#REF!,#REF!)) -> 
A194: 188 | CO194: =IF(AND(#REF!="",#REF!="",#REF!="",#REF!=""),"",SUM(#REF!,#REF!,#REF!,#REF!,#REF!)) ->  | CU194: =IF(AND(#REF!="",#REF!="",#REF!="",#REF!=""),"",SUM(#REF!,#REF!,#REF!,#REF!,#REF!)) ->  | CW194: =IF(AND(#REF!="",#REF!="",#REF!="",#REF!=""),"",SUM(#REF!,#REF!,#REF!,#REF!)) -> 
A195: 189 | CO195: =IF(AND(#REF!="",#REF!="",#REF!="",#REF!=""),"",SUM(#REF!,#REF!,#REF!,#REF!,#REF!)) ->  | CU195: =IF(AND(#REF!="",#REF!="",#REF!="",#REF!=""),"",SUM(#REF!,#REF!,#REF!,#REF!,#REF!)) ->  | CW195: =IF(AND(#REF!="",#REF!="",#REF!="",#REF!=""),"",SUM(#REF!,#REF!,#REF!,#REF!)) -> 
A196: 190 | CO196: =IF(AND(#REF!="",#REF!="",#REF!="",#REF!=""),"",SUM(#REF!,#REF!,#REF!,#REF!,#REF!)) ->  | CU196: =IF(AND(#REF!="",#REF!="",#REF!="",#REF!=""),"",SUM(#REF!,#REF!,#REF!,#REF!,#REF!)) ->  | CW196: =IF(AND(#REF!="",#REF!="",#REF!="",#REF!=""),"",SUM(#REF!,#REF!,#REF!,#REF!)) -> 
A197: 191 | CO197: =IF(AND(#REF!="",#REF!="",#REF!="",#REF!=""),"",SUM(#REF!,#REF!,#REF!,#REF!,#REF!)) ->  | CU197: =IF(AND(#REF!="",#REF!="",#REF!="",#REF!=""),"",SUM(#REF!,#REF!,#REF!,#REF!,#REF!)) ->  | CW197: =IF(AND(#REF!="",#REF!="",#REF!="",#REF!=""),"",SUM(#REF!,#REF!,#REF!,#REF!)) -> 
A198: 192 | CO198: =IF(AND(#REF!="",#REF!="",#REF!="",#REF!=""),"",SUM(#REF!,#REF!,#REF!,#REF!,#REF!)) ->  | CU198: =IF(AND(#REF!="",#REF!="",#REF!="",#REF!=""),"",SUM(#REF!,#REF!,#REF!,#REF!,#REF!)) ->  | CW198: =IF(AND(#REF!="",#REF!="",#REF!="",#REF!=""),"",SUM(#REF!,#REF!,#REF!,#REF!)) -> 
A199: 193 | CO199: =IF(AND(#REF!="",#REF!="",#REF!="",#REF!=""),"",SUM(#REF!,#REF!,#REF!,#REF!,#REF!)) ->  | CU199: =IF(AND(#REF!="",#REF!="",#REF!="",#REF!=""),"",SUM(#REF!,#REF!,#REF!,#REF!,#REF!)) ->  | CW199: =IF(AND(#REF!="",#REF!="",#REF!="",#REF!=""),"",SUM(#REF!,#REF!,#REF!,#REF!)) -> 
A200: 194 | CJ200: =IF(I200="","",I200) ->  | CK200: =IF(AND(L200="",M200="",N200="",P200=""),"",SUM(L200,M200,N200,O200,P200)) ->  | CL200: =IFERROR(IF(CK200="","",ROUNDUP(CK200*20%,0)),"") ->  | CM200: =IF(AND(S200="",T200="",U200="",W200=""),"",SUM(S200,T200,U200,V200,W200)) ->  | CN200: =IFERROR(IF(CM200="","",ROUNDUP(CM200*20%,0)),"") ->  | CO200: =IF(AND(#REF!="",#REF!="",#REF!="",#REF!=""),"",SUM(#REF!,#REF!,#REF!,#REF!,#REF!)) ->  | CP200: =IFERROR(IF(CO200="","",ROUNDUP(CO200*20%,0)),"") ->  | CQ200: =IF(AND(Z200="",AA200="",AB200="",AD200=""),"",SUM(Z200,AA200,AB200,AC200,AD200)) ->  | CR200: =IFERROR(IF(CQ200="","",ROUNDUP(CQ200*20%,0)),"") ->  | CS200: =IF(AND(AG200="",AH200="",AI200="",AK200=""),"",SUM(AG200,AH200,AI200,AJ200,AK200)) ->  | CT200: =IFERROR(IF(CS200="","",ROUNDUP(CS200*20%,0)),"") ->  | CU200: =IF(AND(#REF!="",#REF!="",#REF!="",#REF!=""),"",SUM(#REF!,#REF!,#REF!,#REF!,#REF!)) ->  | CV200: =IFERROR(IF(CU200="","",ROUNDUP(CU200*20%,0)),"") ->  | CW200: =IF(AND(#REF!="",#REF!="",#REF!="",#REF!=""),"",SUM(#REF!,#REF!,#REF!,#REF!)) ->  | CX200: =IFERROR(IF(CW200="","",IF($CW$5=100,ROUNDUP(CW200*20%,0),IF($CW$5=86,ROUNDUP((CW200/$CW$5)*$CX$5,0),IF($CW$5=66,ROUNDUP((CW200/$CW$5)*$CX$5,0),"")))),"") -> 
... 6 more rows

Sheet Class 4th
A1: =IF('Master sheet'!D14="Hindi",'Master sheet'!D8,'Master sheet'!D7) -> महात्मा गाँधी राजकीय विद्यालय (अंग्रेजी माध्यम) बर, ब्यावर | P1: This Sheet Password :- Resultsheet2025 (सामान्य जानकारी , master sheet & Marksheet पर try नहीं करें ) | AN1: =IF('Master sheet'!$D$14="Hindi","अतिरिक्त विषय ","Extra Subject") -> अतिरिक्त विषय | BB1: ए/बी/सी/डी/ई ग्रेडिंग देनी है (A/B/C/D/E Grade) | CZ1: =L3 -> हिंदी | DC1: =#REF! -> 
A2: =IF('Master sheet'!D14="Hindi","रिजल्ट वर्कशीट","RESULT WORKSHEET") -> रिजल्ट वर्कशीट | I2: =IF('Master sheet'!D12="","",'Master sheet'!D12) -> 2024-2025 | CZ2: =S3 -> अंग्रेजी | DC2: =#REF! -> 
A3: =IF('Master sheet'!D14="Hindi","विद्यार्थी की सामान्य जानकारी","General Information of Students") -> विद्यार्थी की सामान्य जानकारी | I3: =IF('Master sheet'!D14="Hindi","कक्षा :-","CLASS :- ") -> कक्षा :- | J3: 4th | L3: =IF('Master sheet'!$D$14="Hindi","हिंदी","Hindi") -> हिंदी | O3: =UPPER('Master sheet'!H6) -> MANOJ KUMAR PACHORI | S3: =IF('Master sheet'!$D$14="Hindi","अंग्रेजी","English") -> अंग्रेजी | V3: =UPPER('Master sheet'!H7) -> SAMPAT RAJ | Z3: =IF('Master sheet'!$D$14="Hindi","गणित","Maths") -> गणित | AC3: =UPPER('Master sheet'!H8) -> PRADIP SINGH | AG3: =IF('Master sheet'!$D$14="Hindi","पर्यावरण अध्ययन","EVS") -> पर्यावरण अध्ययन | AJ3: =UPPER('Master sheet'!H9) -> PUSHPENDRA JAWRA | AN3: =IF('Master sheet'!$D$14="Hindi","कंप्यूटर","Computer") -> कंप्यूटर | AQ3: =UPPER('Master sheet'!H10) -> HEERALAL JAT | AU3: =IF('Master sheet'!$D$14="Hindi","सामान्य ज्ञान","G.K.") -> सामान्य ज्ञान | AX3: =UPPER('Master sheet'!H11) -> MUKESH KUMAR | BB3: =IF('Master sheet'!$D$14="Hindi","कार्यानुभव","WORK EXP.") -> कार्यानुभव | BG3: =IF('Master sheet'!$D$14="Hindi","कला शिक्षा","ART EDU.") -> कला शिक्षा | BL3: =IF('Master sheet'!$D$14="Hindi","स्वा. एवं शा. शिक्षा","HE.&PH. EDU.") -> स्वा. एवं शा. शिक्षा | BQ3: =IF('Master sheet'!$D$14="Hindi","उपस्थिति","Attendance") -> उपस्थिति | CZ3: =#REF! ->  | DC3: =#REF! -> 
A4: =IF('Master sheet'!D14="Hindi","क्र. स.","Sr. No. ") -> क्र. स. | B4: =IF('Master sheet'!D14="Hindi","कक्षा","CLASS ") -> कक्षा | C4: =IF('Master sheet'!D14="Hindi","सेक्शन","Section ") -> सेक्शन | D4: =IF('Master sheet'!D14="Hindi","प्रवेशांक","SR. NO.") -> प्रवेशांक | E4: =IF('Master sheet'!D14="Hindi","जन्म दिनांक","Date of Birth") -> जन्म दिनांक | F4: =IF('Master sheet'!D14="Hindi","विद्यार्थी का नाम","Student's Name") -> विद्यार्थी का नाम | G4: =IF('Master sheet'!D14="Hindi","पिता का नाम","Father's Name") -> पिता का नाम | H4: =IF('Master sheet'!D14="Hindi","माता का नाम ","Mother's Name") -> माता का नाम | I4: =IF('Master sheet'!D14="Hindi","कक्षा रोल न. ","Class Roll No.") -> कक्षा रोल न. | J4: =IF('Master sheet'!D14="Hindi","लिंग ","Gender") -> लिंग | K4: =IF('Master sheet'!D14="Hindi","वर्ग ","Category") -> वर्ग | L4: =IF('Master sheet'!D14="Hindi","प्रथम परख ","First Test") -> प्रथम परख | M4: =IF('Master sheet'!D14="Hindi","द्वितीय परख","Second Test") -> द्वितीय परख | N4: =IF('Master sheet'!D14="Hindi","तृतीय परख","Third Test") -> तृतीय परख | O4: =IF('Master sheet'!$D$14="Hindi","अर्द्धवार्षिक","Half Yearly") -> अर्द्धवार्षिक | Q4: =IF('Master sheet'!$D$14="Hindi","वार्षिक","Yearly") -> वार्षिक | S4: =IF('Master sheet'!D14="Hindi","प्रथम परख ","First Test") -> प्रथम परख | T4: =IF('Master sheet'!D14="Hindi","द्वितीय परख","Second Test") -> द्वितीय परख | U4: =IF('Master sheet'!D14="Hindi","तृतीय परख","Third Test") -> तृतीय परख | V4: =IF('Master sheet'!$D$14="Hindi","अर्द्धवार्षिक","Half Yearly") -> अर्द्धवार्षिक | X4: =IF('Master sheet'!$D$14="Hindi","वार्षिक","Yearly") -> वार्षिक | Z4: =IF('Master sheet'!D14="Hindi","प्रथम परख ","First Test") -> प्रथम परख | AA4: =IF('Master sheet'!D14="Hindi","द्वितीय परख","Second Test") -> द्वितीय परख | AB4: =IF('Master sheet'!D14="Hindi","तृतीय परख","Third Test") -> तृतीय परख | AC4: =IF('Master sheet'!$D$14="Hindi","अर्द्धवार्षिक","Half Yearly") -> अर्द्धवार्षिक | AE4: =IF('Master sheet'!$D$14="Hindi","वार्षिक","Yearly") -> वार्षिक | AG4: =IF('Master sheet'!D14="Hindi","प्रथम परख ","First Test") -> प्रथम परख | AH4: =IF('Master sheet'!D14="Hindi","द्वितीय परख","Second Test") -> द्वितीय परख | AI4: =IF('Master sheet'!D14="Hindi","तृतीय परख","Third Test") -> तृतीय परख | AJ4: =IF('Master sheet'!$D$14="Hindi","अर्द्धवार्षिक","Half Yearly") -> अर्द्धवार्षिक | AL4: =IF('Master sheet'!$D$14="Hindi","वार्षिक","Yearly") -> वार्षिक | AN4: =IF('Master sheet'!$D$14="Hindi","प्रथम परख ","First Test") -> प्रथम परख | AO4: =IF('Master sheet'!$D$14="Hindi","द्वितीय परख","Second Test") -> द्वितीय परख | AP4: =IF('Master sheet'!$D$14="Hindi","तृतीय परख","Third Test") -> तृतीय परख | AQ4: =IF('Master sheet'!$D$14="Hindi","अर्द्धवार्षिक","Half Yearly") -> अर्द्धवार्षिक | AS4: =IF('Master sheet'!$D$14="Hindi","वार्षिक","Yearly") -> वार्षिक | AU4: =IF('Master sheet'!$D$14="Hindi","प्रथम परख ","First Test") -> प्रथम परख | AV4: =IF('Master sheet'!$D$14="Hindi","द्वितीय परख","Second Test") -> द्वितीय परख | AW4: =IF('Master sheet'!$D$14="Hindi","तृतीय परख","Third Test") -> तृतीय परख | AX4: =IF('Master sheet'!$D$14="Hindi","अर्द्धवार्षिक","Half Yearly") -> अर्द्धवार्षिक | AZ4: =IF('Master sheet'!$D$14="Hindi","वार्षिक","Yearly") -> वार्षिक | BB4: =UPPER('Master sheet'!L13) -> PRADIP SINGH | BG4: =UPPER('Master sheet'!L12) -> SEEMA CHHABA | BL4: =UPPER('Master sheet'!L14) -> LALIT KUMAR | BQ4: =IF('Master sheet'!$D$14="Hindi","कुल कार्य दिवस","Total Meeting") -> कुल कार्य दिवस | BR4: =IF('Master sheet'!$D$14="Hindi","कुल उपस्थिति","Total Attendance") -> कुल उपस्थिति | CZ4: =Z3 -> गणित
O5: =IF('Master sheet'!$D$14="Hindi","लिखित","Written") -> लिखित | P5: =IF('Master sheet'!$D$14="Hindi","मौखिक","Oral") -> मौखिक | Q5: =IF('Master sheet'!$D$14="Hindi","लिखित","Written") -> लिखित | R5: =IF('Master sheet'!$D$14="Hindi","मौखिक","Oral") -> मौखिक | V5: =IF('Master sheet'!$D$14="Hindi","लिखित","Written") -> लिखित | W5: =IF('Master sheet'!$D$14="Hindi","मौखिक","Oral") -> मौखिक | X5: =IF('Master sheet'!$D$14="Hindi","लिखित","Written") -> लिखित | Y5: =IF('Master sheet'!$D$14="Hindi","मौखिक","Oral") -> मौखिक | AC5: =IF('Master sheet'!$D$14="Hindi","लिखित","Written") -> लिखित | AD5: =IF('Master sheet'!$D$14="Hindi","मौखिक","Oral") -> मौखिक | AE5: =IF('Master sheet'!$D$14="Hindi","लिखित","Written") -> लिखित | AF5: =IF('Master sheet'!$D$14="Hindi","मौखिक","Oral") -> मौखिक | AJ5: =IF('Master sheet'!$D$14="Hindi","लिखित","Written") -> लिखित | AK5: =IF('Master sheet'!$D$14="Hindi","मौखिक","Oral") -> मौखिक | AL5: =IF('Master sheet'!$D$14="Hindi","लिखित","Written") -> लिखित | AM5: =IF('Master sheet'!$D$14="Hindi","मौखिक","Oral") -> मौखिक | AQ5: =IF('Master sheet'!$D$14="Hindi","प्रायोगिक","Practical") -> प्रायोगिक | AR5: =IF('Master sheet'!$D$14="Hindi","लिखित","Written") -> लिखित | AS5: =IF('Master sheet'!$D$14="Hindi","प्रायोगिक","Practical") -> प्रायोगिक | AT5: =IF('Master sheet'!$D$14="Hindi","लिखित","Written") -> लिखित | AX5: =IF('Master sheet'!$D$14="Hindi","लिखित","Written") -> लिखित | AY5: =IF('Master sheet'!$D$14="Hindi","मौखिक","Oral") -> मौखिक | AZ5: =IF('Master sheet'!$D$14="Hindi","लिखित","Written") -> लिखित | BA5: =IF('Master sheet'!$D$14="Hindi","मौखिक","Oral") -> मौखिक | BB5: =IF('Master sheet'!$D$14="Hindi","प्रथम मूल्यांकन","1st Assessment") -> प्रथम मूल्यांकन | BC5: =IF('Master sheet'!$D$14="Hindi","द्वितीय मूल्यांकन","2nd Assessment") -> द्वितीय मूल्यांकन | BD5: =IF('Master sheet'!$D$14="Hindi","तृतीय मूल्यांकन","3rd Assessment") -> तृतीय मूल्यांकन | BE5: =IF('Master sheet'!$D$14="Hindi","चतुर्थ मूल्यांकन","4th Assessment") -> चतुर्थ मूल्यांकन | BF5: =IF('Master sheet'!$D$14="Hindi","पंचम मूल्यांकन","5th Assessment") -> पंचम मूल्यांकन | BG5: =IF('Master sheet'!$D$14="Hindi","प्रथम मूल्यांकन","1st Assessment") -> प्रथम मूल्यांकन | BH5: =IF('Master sheet'!$D$14="Hindi","द्वितीय मूल्यांकन","2nd Assessment") -> द्वितीय मूल्यांकन | BI5: =IF('Master sheet'!$D$14="Hindi","तृतीय मूल्यांकन","3rd Assessment") -> तृतीय मूल्यांकन | BJ5: =IF('Master sheet'!$D$14="Hindi","चतुर्थ मूल्यांकन","4th Assessment") -> चतुर्थ मूल्यांकन | BK5: =IF('Master sheet'!$D$14="Hindi","पंचम मूल्यांकन","5th Assessment") -> पंचम मूल्यांकन | BL5: =IF('Master sheet'!$D$14="Hindi","प्रथम मूल्यांकन","1st Assessment") -> प्रथम मूल्यांकन | BM5: =IF('Master sheet'!$D$14="Hindi","द्वितीय मूल्यांकन","2nd Assessment") -> द्वितीय मूल्यांकन | BN5: =IF('Master sheet'!$D$14="Hindi","तृतीय मूल्यांकन","3rd Assessment") -> तृतीय मूल्यांकन | BO5: =IF('Master sheet'!$D$14="Hindi","चतुर्थ मूल्यांकन","4th Assessment") -> चतुर्थ मूल्यांकन | BP5: =IF('Master sheet'!$D$14="Hindi","पंचम मूल्यांकन","5th Assessment") -> पंचम मूल्यांकन | CK5: =IF(AND(L6="",M6="",N6="",P6=""),"",SUM(L6,M6,N6,O6,P6)) -> 100 | CL5: 20 | CM5: =IF(AND(S6="",T6="",U6="",W6=""),"",SUM(S6,T6,U6,V6,W6)) -> 50 | CN5: 20 | CO5: =IF(AND(#REF!="",#REF!="",#REF!="",#REF!=""),"",SUM(#REF!,#REF!,#REF!,#REF!,#REF!)) ->  | CP5: 20 | CQ5: =IF(AND(Z6="",AA6="",AB6="",AD6=""),"",SUM(Z6,AA6,AB6,AC6,AD6)) -> 100 | CR5: 20 | CS5: =IF(AND(AG6="",AH6="",AI6="",AK6=""),"",SUM(AG6,AH6,AI6,AJ6,AK6)) -> 100 | CT5: 20 | CU5: =IF(AND(#REF!="",#REF!="",#REF!="",#REF!=""),"",SUM(#REF!,#REF!,#REF!,#REF!,#REF!)) ->  | CV5: 20 | CZ5: =AG3 -> पर्यावरण अध्ययन
L6: 10 | M6: 10 | N6: 10 | O6: 50 | P6: 20 | Q6: 60 | R6: 40 | S6: 5 | T6: 5 | U6: 5 | V6: 25 | W6: 10 | X6: 30 | Y6: 20 | Z6: 10 | AA6: 10 | AB6: 10 | AC6: 50 | AD6: 20 | AE6: 60 | AF6: 40 | AG6: 10 | AH6: 10 | AI6: 10 | AJ6: 50 | AK6: 20 | AL6: 60 | AM6: 40 | AN6: 10 | AO6: 10 | AP6: 10 | AQ6: 20 | AR6: 50 | AS6: 40 | AT6: 60 | AU6: 10 | AV6: 10 | AW6: 10 | AX6: 50 | AY6: 20 | AZ6: 60 | BA6: 40 | BB6: 20 | BC6: 20 | BD6: 20 | BE6: 20 | BF6: 20 | BG6: 20 | BH6: 20 | BI6: 20 | BJ6: 20 | BK6: 20 | BL6: 20 | BM6: 20 | BN6: 20 | BO6: 20 | BP6: 20 | BQ6: 350 | BT6: परम पूज्य गुरूदेव वासुदेव जी महाराज | CK6: 1 | CL6: 1 | CM6: 2 | CN6: 2 | CO6: 3 | CP6: 3 | CQ6: 4 | CR6: 4 | CS6: 5 | CT6: 5 | CU6: 6 | CV6: 6 | CZ6: =#REF! -> 
A7: 1 | B7: 4 | C7: A | D7: 936 | E7: 28-10-2014 | F7: AAKIFA BANO | G7: SHABBIR MOHAMMAD | H7: HEENA KOUSER | I7: 401 | J7: F | K7: OBC | L7: 15 | M7: 18 | N7: 14 | O7: 25 | P7: 35 | Q7: 27 | R7: 37 | S7: 16 | T7: 19 | U7: 17 | V7: 26 | W7: 36 | X7: 24 | Y7: 38 | Z7: 12 | AA7: 18 | AB7: 20 | AC7: 29 | AD7: 31 | AE7: 21 | AF7: 37 | AG7: 13 | AH7: 14 | AI7: 15 | AJ7: 26 | AK7: 36 | AL7: 27 | AM7: 37 | AN7: 17 | AO7: 18 | AP7: 19 | AQ7: 20 | AR7: 45 | AS7: 19 | AT7: 48 | AU7: 18 | AV7: 19 | AW7: 20 | AX7: 68 | AY7: - | AZ7: 65 | BA7: - | BB7: 18 | BC7: 16 | BD7: 14 | BE7: 18 | BF7: 13 | BG7: 11 | BH7: 20 | BI7: 15 | BJ7: 14 | BK7: 20 | BL7: 20 | BM7: 19 | BN7: 14 | BO7: 12 | BP7: 15 | BQ7: 320 | BR7: 310 | CJ7: =IF(I7="","",I7) -> 401 | CK7: =IF(AND(L7="",M7="",N7="",P7=""),"",SUM(L7,M7,N7,O7,P7)) -> 107 | CL7: =IFERROR(IF(CK7="","",ROUNDUP(CK7*20%,0)),"") -> 22 | CM7: =IF(AND(S7="",T7="",U7="",W7=""),"",SUM(S7,T7,U7,V7,W7)) -> 114 | CN7: =IFERROR(IF(CM7="","",ROUNDUP(CM7*20%,0)),"") -> 23 | CO7: =IF(AND(#REF!="",#REF!="",#REF!="",#REF!=""),"",SUM(#REF!,#REF!,#REF!,#REF!,#REF!)) ->  | CP7: =IFERROR(IF(CO7="","",ROUNDUP(CO7*20%,0)),"") ->  | CQ7: =IF(AND(Z7="",AA7="",AB7="",AD7=""),"",SUM(Z7,AA7,AB7,AC7,AD7)) -> 110 | CR7: =IFERROR(IF(CQ7="","",ROUNDUP(CQ7*20%,0)),"") -> 22 | CS7: =IF(AND(AG7="",AH7="",AI7="",AK7=""),"",SUM(AG7,AH7,AI7,AJ7,AK7)) -> 104 | CT7: =IFERROR(IF(CS7="","",ROUNDUP(CS7*20%,0)),"") -> 21 | CU7: =IF(AND(#REF!="",#REF!="",#REF!="",#REF!=""),"",SUM(#REF!,#REF!,#REF!,#REF!,#REF!)) ->  | CV7: =IFERROR(IF(CU7="","",ROUNDUP(CU7*20%,0)),"") -> 
A8: 2 | B8: 4 | C8: A | D8: 944 | E8: 2015-01-01 | F8: ANUJ GIRI | G8: BHAGWAT GIRI | H8: KANTA DEVI | I8: 402 | J8: M | K8: OBC | L8: 15 | M8: 18 | N8: 14 | O8: 25 | P8: 35 | Q8: 27 | R8: 37 | S8: 16 | T8: 19 | U8: 17 | V8: 26 | W8: 36 | X8: 24 | Y8: 38 | Z8: 12 | AA8: 18 | AB8: 20 | AC8: 29 | AD8: 31 | AE8: 21 | AF8: 37 | AG8: 13 | AH8: 14 | AI8: 15 | AJ8: 26 | AK8: 36 | AL8: 27 | AM8: 37 | AN8: 17 | AO8: 18 | AP8: 19 | AQ8: 20 | AR8: 45 | AS8: 19 | AT8: 48 | AU8: 18 | AV8: 19 | AW8: 20 | AX8: 68 | AY8: - | AZ8: 66 | BA8: - | BB8: 18 | BC8: 15 | BD8: 14 | BE8: 14 | BF8: 15 | BG8: 11 | BH8: 20 | BI8: 15 | BJ8: 14 | BK8: 19 | BL8: 20 | BM8: 19 | BN8: 14 | BO8: 12 | BP8: 15 | BQ8: 330 | BR8: 300 | BT8: https://youtu.be/ThY9TGuohzE | CJ8: =IF(I8="","",I8) -> 402 | CK8: =IF(AND(L8="",M8="",N8="",P8=""),"",SUM(L8,M8,N8,O8,P8)) -> 107 | CL8: =IFERROR(IF(CK8="","",ROUNDUP(CK8*20%,0)),"") -> 22 | CM8: =IF(AND(S8="",T8="",U8="",W8=""),"",SUM(S8,T8,U8,V8,W8)) -> 114 | CN8: =IFERROR(IF(CM8="","",ROUNDUP(CM8*20%,0)),"") -> 23 | CO8: =IF(AND(#REF!="",#REF!="",#REF!="",#REF!=""),"",SUM(#REF!,#REF!,#REF!,#REF!,#REF!)) ->  | CP8: =IFERROR(IF(CO8="","",ROUNDUP(CO8*20%,0)),"") ->  | CQ8: =IF(AND(Z8="",AA8="",AB8="",AD8=""),"",SUM(Z8,AA8,AB8,AC8,AD8)) -> 110 | CR8: =IFERROR(IF(CQ8="","",ROUNDUP(CQ8*20%,0)),"") -> 22 | CS8: =IF(AND(AG8="",AH8="",AI8="",AK8=""),"",SUM(AG8,AH8,AI8,AJ8,AK8)) -> 104 | CT8: =IFERROR(IF(CS8="","",ROUNDUP(CS8*20%,0)),"") -> 21 | CU8: =IF(AND(#REF!="",#REF!="",#REF!="",#REF!=""),"",SUM(#REF!,#REF!,#REF!,#REF!,#REF!)) ->  | CV8: =IFERROR(IF(CU8="","",ROUNDUP(CU8*20%,0)),"") -> 
A9: 3 | B9: 4 | C9: A | D9: 934 | E9: 2015-12-10 | F9: ARMAN HUSSAIN | G9: AARIF HUSSAIN | H9: SALMA BANO | I9: 403 | J9: M | K9: OBC | L9: 15 | M9: 18 | N9: 14 | O9: 25 | P9: 35 | Q9: 27 | R9: 37 | S9: 16 | T9: 19 | U9: 17 | V9: 26 | W9: 36 | X9: 24 | Y9: 38 | Z9: 12 | AA9: 18 | AB9: 20 | AC9: 29 | AD9: 31 | AE9: 21 | AF9: 37 | AG9: 13 | AH9: 14 | AI9: 15 | AJ9: 26 | AK9: 36 | AL9: 27 | AM9: 37 | AN9: 17 | AO9: 18 | AP9: 19 | AQ9: 20 | AR9: 45 | AS9: 19 | AT9: 48 | AU9: 18 | AV9: 19 | AW9: 20 | AX9: 68 | AY9: - | AZ9: 66 | BA9: - | BB9: 17 | BC9: 18 | BD9: 14 | BE9: 18 | BF9: 14 | BG9: 11 | BH9: 20 | BI9: 15 | BJ9: 14 | BK9: 18 | BL9: 20 | BM9: 19 | BN9: 14 | BO9: 10 | BP9: 14 | BQ9: 340 | BR9: 290 | CJ9: 403 | CK9: 107 | CL9: 22 | CM9: 114 | CN9: 23 | CO9: =IF(AND(#REF!="",#REF!="",#REF!="",#REF!=""),"",SUM(#REF!,#REF!,#REF!,#REF!,#REF!)) ->  | CQ9: 110 | CR9: 22 | CS9: 104 | CT9: 21 | CU9: =IF(AND(#REF!="",#REF!="",#REF!="",#REF!=""),"",SUM(#REF!,#REF!,#REF!,#REF!,#REF!)) -> 
A10: 4 | B10: 4 | C10: A | D10: 926 | E10: 2016-05-01 | F10: ARMAN SHAH | G10: JAKIR SHAH | H10: HEENA BANU | I10: 404 | J10: M | K10: OBC | L10: 15 | M10: 18 | N10: 14 | O10: 25 | P10: 35 | Q10: 27 | R10: 37 | S10: 16 | T10: 19 | U10: 17 | V10: 26 | W10: 36 | X10: 24 | Y10: 38 | Z10: 12 | AA10: 18 | AB10: 20 | AC10: 29 | AD10: 31 | AE10: 21 | AF10: 37 | AG10: 13 | AH10: 14 | AI10: 15 | AJ10: 26 | AK10: 36 | AL10: 27 | AM10: 37 | AN10: 17 | AO10: 18 | AP10: 19 | AQ10: 20 | AR10: 45 | AS10: 19 | AT10: 48 | AU10: 18 | AV10: 19 | AW10: 20 | AX10: 68 | AY10: - | AZ10: 66 | BA10: - | BB10: 18 | BC10: 17 | BD10: 15 | BE10: 19 | BF10: 16 | BG10: 11 | BH10: 20 | BI10: 15 | BJ10: 14 | BK10: 17 | BL10: 20 | BM10: 19 | BN10: 14 | BO10: 10 | BP10: 15 | BQ10: 350 | BR10: 280 | BT10: Presented By :- | CJ10: 404 | CK10: 107 | CL10: 22 | CM10: 114 | CN10: 23 | CO10: =IF(AND(#REF!="",#REF!="",#REF!="",#REF!=""),"",SUM(#REF!,#REF!,#REF!,#REF!,#REF!)) ->  | CQ10: 110 | CR10: 22 | CS10: 104 | CT10: 21 | CU10: =IF(AND(#REF!="",#REF!="",#REF!="",#REF!=""),"",SUM(#REF!,#REF!,#REF!,#REF!,#REF!)) -> 
A11: 5 | B11: 4 | C11: A | D11: 951 | E11: 25-08-2015 | F11: BHAVYANSH SINGH CHOUHAN | G11: AJIT SINGH | H11: MEENA | I11: 405 | J11: M | K11: OBC | L11: 15 | M11: 18 | N11: 14 | O11: 25 | P11: 35 | Q11: 27 | R11: 37 | S11: 16 | T11: 19 | U11: 17 | V11: 26 | W11: 36 | X11: 24 | Y11: 38 | Z11: 12 | AA11: 18 | AB11: 20 | AC11: 29 | AD11: 31 | AE11: 21 | AF11: 37 | AG11: 13 | AH11: 14 | AI11: 15 | AJ11: 26 | AK11: 36 | AL11: 27 | AM11: 37 | AN11: 17 | AO11: 18 | AP11: 19 | AQ11: 20 | AR11: 45 | AS11: 19 | AT11: 48 | AU11: 18 | AV11: 19 | AW11: 20 | AX11: 68 | AY11: - | AZ11: 66 | BA11: - | BB11: 19 | BC11: 14 | BD11: 16 | BE11: 14 | BF11: 17 | BG11: 11 | BH11: 20 | BI11: 15 | BJ11: 14 | BK11: 16 | BL11: 20 | BM11: 19 | BN11: 15 | BO11: 10 | BP11: 15 | BQ11: 340 | BR11: 270 | CJ11: 405 | CK11: 107 | CL11: 22 | CM11: 114 | CN11: 23 | CO11: =IF(AND(#REF!="",#REF!="",#REF!="",#REF!=""),"",SUM(#REF!,#REF!,#REF!,#REF!,#REF!)) ->  | CQ11: 110 | CR11: 22 | CS11: 104 | CT11: 21 | CU11: =IF(AND(#REF!="",#REF!="",#REF!="",#REF!=""),"",SUM(#REF!,#REF!,#REF!,#REF!,#REF!)) -> 
A12: 6 | B12: 4 | C12: A | D12: 939 | E12: 16-06-2014 | F12: BHUMIKA BAGRI | G12: MUKESH BAGRI | H12: SEEMA BAGRI | I12: 406 | J12: F | K12: OBC | L12: 15 | M12: 18 | N12: 14 | O12: 25 | P12: 35 | Q12: 27 | R12: 37 | S12: 16 | T12: 19 | U12: 17 | V12: 26 | W12: 36 | X12: 24 | Y12: 38 | Z12: 12 | AA12: 18 | AB12: 20 | AC12: 29 | AD12: 31 | AE12: 21 | AF12: 37 | AG12: 13 | AH12: 14 | AI12: 15 | AJ12: 26 | AK12: 36 | AL12: 27 | AM12: 37 | AN12: 17 | AO12: 18 | AP12: 19 | AQ12: 20 | AR12: 45 | AS12: 19 | AT12: 48 | AU12: 18 | AV12: 19 | AW12: 20 | AX12: 68 | AY12: - | AZ12: 66 | BA12: - | BB12: 17 | BC12: 15 | BD12: 14 | BE12: 14 | BF12: 18 | BG12: 12 | BH12: 20 | BI12: 15 | BJ12: 14 | BK12: 14 | BL12: 20 | BM12: 19 | BN12: 16 | BO12: 10 | BP12: 15 | BQ12: 340 | BR12: 330 | BT12: HEERA LAL JAT | CJ12: 406 | CK12: 107 | CL12: 22 | CM12: 114 | CN12: 23 | CO12: =IF(AND(#REF!="",#REF!="",#REF!="",#REF!=""),"",SUM(#REF!,#REF!,#REF!,#REF!,#REF!)) ->  | CQ12: 110 | CR12: 22 | CS12: 104 | CT12: 21 | CU12: =IF(AND(#REF!="",#REF!="",#REF!="",#REF!=""),"",SUM(#REF!,#REF!,#REF!,#REF!,#REF!)) -> 
A13: 7 | B13: 4 | C13: A | D13: 942 | E13: 28-09-2015 | F13: DAKSH PRAJAPAT | G13: PRAKASH PRAJAPAT | H13: REKHA PRAJAPATI | I13: 407 | J13: M | K13: OBC | L13: 15 | M13: 18 | N13: 14 | O13: 25 | P13: 35 | Q13: 27 | R13: 37 | S13: 16 | T13: 19 | U13: 17 | V13: 26 | W13: 36 | X13: 24 | Y13: 38 | Z13: 12 | AA13: 18 | AB13: 20 | AC13: 29 | AD13: 31 | AE13: 21 | AF13: 37 | AG13: 13 | AH13: 14 | AI13: 15 | AJ13: 26 | AK13: 36 | AL13: 27 | AM13: 37 | AN13: 17 | AO13: 18 | AP13: 19 | AQ13: 20 | AR13: 45 | AS13: 19 | AT13: 48 | AU13: 18 | AV13: 19 | AW13: 20 | AX13: 68 | AY13: - | AZ13: 66 | BA13: - | BB13: 18 | BC13: 16 | BD13: 16 | BE13: 14 | BF13: 19 | BG13: 13 | BH13: 20 | BI13: 15 | BJ13: 14 | BK13: 13 | BL13: 20 | BM13: 19 | BN13: 17 | BO13: 10 | BP13: 15 | BQ13: 350 | BR13: 320 | CJ13: 407 | CK13: 107 | CL13: 22 | CM13: 114 | CN13: 23 | CO13: =IF(AND(#REF!="",#REF!="",#REF!="",#REF!=""),"",SUM(#REF!,#REF!,#REF!,#REF!,#REF!)) ->  | CQ13: 110 | CR13: 22 | CS13: 104 | CT13: 21 | CU13: =IF(AND(#REF!="",#REF!="",#REF!="",#REF!=""),"",SUM(#REF!,#REF!,#REF!,#REF!,#REF!)) -> 
A14: 8 | B14: 4 | C14: A | D14: 925 | E14: 26-10-2015 | F14: DIVYA BAGRI | G14: MUKESH | H14: SEEMA | I14: 408 | J14: F | K14: OBC | L14: 15 | M14: 18 | N14: 14 | O14: 25 | P14: 35 | Q14: 27 | R14: 37 | S14: 16 | T14: 19 | U14: 17 | V14: 26 | W14: 36 | X14: 24 | Y14: 38 | Z14: 12 | AA14: 18 | AB14: 20 | AC14: 29 | AD14: 31 | AE14: 21 | AF14: 37 | AG14: 13 | AH14: 14 | AI14: 15 | AJ14: 26 | AK14: 36 | AL14: 27 | AM14: 37 | AN14: 17 | AO14: 18 | AP14: 19 | AQ14: 20 | AR14: 45 | AS14: 19 | AT14: 48 | AU14: 18 | AV14: 19 | AW14: 20 | AX14: 68 | AY14: - | AZ14: 66 | BA14: - | BB14: 19 | BC14: 14 | BD14: 16 | BE14: 14 | BF14: 17 | BG14: 13 | BH14: 20 | BI14: 15 | BJ14: 14 | BK14: 12 | BL14: 20 | BM14: 19 | BN14: 18 | BO14: 10 | BP14: 15 | BQ14: 320 | BR14: 310 | BT14: Sr. Teacher at MGGS BAR (BEAWAR) | CJ14: 408 | CK14: 107 | CL14: 22 | CM14: 114 | CN14: 23 | CO14: =IF(AND(#REF!="",#REF!="",#REF!="",#REF!=""),"",SUM(#REF!,#REF!,#REF!,#REF!,#REF!)) ->  | CQ14: 110 | CR14: 22 | CS14: 104 | CT14: 21 | CU14: =IF(AND(#REF!="",#REF!="",#REF!="",#REF!=""),"",SUM(#REF!,#REF!,#REF!,#REF!,#REF!)) -> 
A15: 9 | B15: 4 | C15: A | D15: 952 | E15: 2015-02-12 | F15: DUSHYANT DAYAMA | G15: BASANT KUMAR DAYAMA | H15: PUSHPA DAYAMA | I15: 409 | J15: M | K15: SC | L15: 15 | M15: 18 | N15: 14 | O15: 25 | P15: 35 | Q15: 27 | R15: 37 | S15: 16 | T15: 19 | U15: 17 | V15: 26 | W15: 36 | X15: 24 | Y15: 38 | Z15: 12 | AA15: 18 | AB15: 20 | AC15: 29 | AD15: 31 | AE15: 21 | AF15: 37 | AG15: 13 | AH15: 14 | AI15: 15 | AJ15: 26 | AK15: 36 | AL15: 27 | AM15: 37 | AN15: 17 | AO15: 18 | AP15: 19 | AQ15: 20 | AR15: 45 | AS15: 19 | AT15: 48 | AU15: 18 | AV15: 19 | AW15: 20 | AX15: 68 | AY15: - | AZ15: 66 | BA15: - | BB15: 17 | BC15: 15 | BD15: 16 | BE15: 14 | BF15: 17 | BG15: 14 | BH15: 20 | BI15: 15 | BJ15: 14 | BK15: 11 | BL15: 20 | BM15: 19 | BN15: 19 | BO15: 10 | BP15: 15 | BQ15: 330 | BR15: 300 | CJ15: 409 | CK15: 107 | CL15: 22 | CM15: 114 | CN15: 23 | CO15: =IF(AND(#REF!="",#REF!="",#REF!="",#REF!=""),"",SUM(#REF!,#REF!,#REF!,#REF!,#REF!)) ->  | CQ15: 110 | CR15: 22 | CS15: 104 | CT15: 21 | CU15: =IF(AND(#REF!="",#REF!="",#REF!="",#REF!=""),"",SUM(#REF!,#REF!,#REF!,#REF!,#REF!)) -> 
A16: 10 | B16: 4 | C16: A | D16: 931 | E16: 23-10-2015 | F16: GUNEET CHOUHAN | G16: KAILASH CHOUHAN | H16: PUSHPA DEVI | I16: 410 | J16: M | K16: OBC | L16: 15 | M16: 18 | N16: 14 | O16: 25 | P16: 35 | Q16: 27 | R16: 37 | S16: 16 | T16: 19 | U16: 17 | V16: 26 | W16: 36 | X16: 24 | Y16: 38 | Z16: 12 | AA16: 18 | AB16: 20 | AC16: 29 | AD16: 31 | AE16: 21 | AF16: 37 | AG16: 13 | AH16: 14 | AI16: 15 | AJ16: 26 | AK16: 36 | AL16: 27 | AM16: 37 | AN16: 17 | AO16: 18 | AP16: 19 | AQ16: 20 | AR16: 45 | AS16: 19 | AT16: 48 | AU16: 18 | AV16: 19 | AW16: 20 | AX16: 68 | AY16: - | AZ16: 66 | BA16: - | BB16: 18 | BC16: 16 | BD16: 16 | BE16: 14 | BF16: 17 | BG16: 15 | BH16: 20 | BI16: 15 | BJ16: 14 | BK16: 10 | BL16: 20 | BM16: 19 | BN16: 19 | BO16: 10 | BP16: 15 | BQ16: 340 | BR16: 302 | BT16: V./P. - CHANDAWAL NAGAR , SOJAT (PALI) | CJ16: 410 | CK16: 107 | CL16: 22 | CM16: 114 | CN16: 23 | CO16: =IF(AND(#REF!="",#REF!="",#REF!="",#REF!=""),"",SUM(#REF!,#REF!,#REF!,#REF!,#REF!)) ->  | CQ16: 110 | CR16: 22 | CS16: 104 | CT16: 21 | CU16: =IF(AND(#REF!="",#REF!="",#REF!="",#REF!=""),"",SUM(#REF!,#REF!,#REF!,#REF!,#REF!)) -> 
A17: 11 | B17: 4 | C17: A | D17: 923 | E17: 23-10-2015 | F17: GUNJAN TAK | G17: DINESH KUMAR TAK | H17: SHARDA TAK | I17: 411 | J17: F | K17: OBC | L17: 15 | M17: 18 | N17: 14 | O17: 25 | P17: 35 | Q17: 27 | R17: 37 | S17: 16 | T17: 19 | U17: 17 | V17: 26 | W17: 36 | X17: 24 | Y17: 38 | Z17: 12 | AA17: 18 | AB17: 20 | AC17: 29 | AD17: 31 | AE17: 21 | AF17: 37 | AG17: 13 | AH17: 14 | AI17: 15 | AJ17: 26 | AK17: 36 | AL17: 27 | AM17: 37 | AN17: 17 | AO17: 18 | AP17: 19 | AQ17: 20 | AR17: 45 | AS17: 19 | AT17: 48 | AU17: 18 | AV17: 19 | AW17: 20 | AX17: 68 | AY17: - | AZ17: 66 | BA17: - | BB17: 18 | BC17: 14 | BD17: 16 | BE17: 14 | BF17: 17 | BG17: 15 | BH17: 20 | BI17: 15 | BJ17: 14 | BK17: 11 | BL17: 20 | BM17: 19 | BN17: 18 | BO17: 10 | BP17: 15 | BQ17: 340 | BR17: 320 | CJ17: 411 | CK17: 107 | CL17: 22 | CM17: 114 | CN17: 23 | CO17: =IF(AND(#REF!="",#REF!="",#REF!="",#REF!=""),"",SUM(#REF!,#REF!,#REF!,#REF!,#REF!)) ->  | CQ17: 110 | CR17: 22 | CS17: 104 | CT17: 21 | CU17: =IF(AND(#REF!="",#REF!="",#REF!="",#REF!=""),"",SUM(#REF!,#REF!,#REF!,#REF!,#REF!)) -> 
A18: 12 | B18: 4 | C18: A | D18: 949 | E18: 30-10-2014 | F18: JAGRAT SOLANKI | G18: KRISHAN KAMAL SOLANKI | H18: GEETA DEVI | I18: 412 | J18: M | K18: OBC | L18: 15 | M18: 18 | N18: 14 | O18: 25 | P18: 35 | Q18: 27 | R18: 37 | S18: 16 | T18: 19 | U18: 17 | V18: 26 | W18: 36 | X18: 24 | Y18: 38 | Z18: 12 | AA18: 18 | AB18: 20 | AC18: 29 | AD18: 31 | AE18: 21 | AF18: 37 | AG18: 13 | AH18: 14 | AI18: 15 | AJ18: 26 | AK18: 36 | AL18: 27 | AM18: 37 | AN18: 17 | AO18: 18 | AP18: 19 | AQ18: 20 | AR18: 45 | AS18: 19 | AT18: 48 | AU18: 18 | AV18: 19 | AW18: 20 | AX18: 68 | AY18: - | AZ18: 66 | BA18: - | BB18: 17 | BC18: 15 | BD18: 16 | BE18: 14 | BF18: 17 | BG18: 15 | BH18: 20 | BI18: 15 | BJ18: 14 | BK18: 12 | BL18: 20 | BM18: 19 | BN18: 17 | BO18: 10 | BP18: 15 | BQ18: 340 | BR18: 310 | CJ18: 412 | CK18: 107 | CL18: 22 | CM18: 114 | CN18: 23 | CO18: =IF(AND(#REF!="",#REF!="",#REF!="",#REF!=""),"",SUM(#REF!,#REF!,#REF!,#REF!,#REF!)) ->  | CQ18: 110 | CR18: 22 | CS18: 104 | CT18: 21 | CU18: =IF(AND(#REF!="",#REF!="",#REF!="",#REF!=""),"",SUM(#REF!,#REF!,#REF!,#REF!,#REF!)) -> 
A19: 13 | B19: 4 | C19: A | D19: 933 | E19: 26-05-2014 | F19: JOYA KHAN | G19: BARGAT KHAN | H19: MADINA BANO | I19: 413 | J19: F | K19: OBC | L19: 15 | M19: 18 | N19: 14 | O19: 25 | P19: 35 | Q19: 27 | R19: 37 | S19: 16 | T19: 19 | U19: 17 | V19: 26 | W19: 36 | X19: 24 | Y19: 38 | Z19: 12 | AA19: 18 | AB19: 20 | AC19: 29 | AD19: 31 | AE19: 21 | AF19: 37 | AG19: 13 | AH19: 14 | AI19: 15 | AJ19: 26 | AK19: 36 | AL19: 27 | AM19: 37 | AN19: 17 | AO19: 18 | AP19: 19 | AQ19: 20 | AR19: 45 | AS19: 19 | AT19: 48 | AU19: 18 | AV19: 19 | AW19: 20 | AX19: 68 | AY19: - | AZ19: 66 | BA19: - | BB19: 18 | BC19: 16 | BD19: 16 | BE19: 14 | BF19: 17 | BG19: 15 | BH19: 20 | BI19: 15 | BJ19: 14 | BK19: 13 | BL19: 20 | BM19: 19 | BN19: 18 | BO19: 10 | BP19: 15 | BQ19: 340 | BR19: 310 | CJ19: 413 | CK19: 107 | CL19: 22 | CM19: 114 | CN19: 23 | CO19: =IF(AND(#REF!="",#REF!="",#REF!="",#REF!=""),"",SUM(#REF!,#REF!,#REF!,#REF!,#REF!)) ->  | CQ19: 110 | CR19: 22 | CS19: 104 | CT19: 21 | CU19: =IF(AND(#REF!="",#REF!="",#REF!="",#REF!=""),"",SUM(#REF!,#REF!,#REF!,#REF!,#REF!)) -> 
A20: 14 | B20: 4 | C20: A | D20: 946 | E20: 18-02-2015 | F20: JOYA KHAN | G20: SAHIMAN LOHAR | H20: SABINA BANO | I20: 414 | J20: F | K20: OBC | L20: 15 | M20: 18 | N20: 14 | O20: 25 | P20: 35 | Q20: 27 | R20: 37 | S20: 16 | T20: 19 | U20: 17 | V20: 26 | W20: 36 | X20: 24 | Y20: 38 | Z20: 12 | AA20: 18 | AB20: 20 | AC20: 29 | AD20: 31 | AE20: 21 | AF20: 37 | AG20: 13 | AH20: 14 | AI20: 15 | AJ20: 26 | AK20: 36 | AL20: 27 | AM20: 37 | AN20: 17 | AO20: 18 | AP20: 19 | AQ20: 20 | AR20: 45 | AS20: 19 | AT20: 48 | AU20: 18 | AV20: 19 | AW20: 20 | AX20: 68 | AY20: - | AZ20: 66 | BA20: - | BB20: 18 | BC20: 14 | BD20: 16 | BE20: 14 | BF20: 17 | BG20: 15 | BH20: 20 | BI20: 15 | BJ20: 14 | BK20: 14 | BL20: 20 | BM20: 19 | BN20: 19 | BO20: 10 | BP20: 15 | BQ20: 340 | BR20: 310 | CJ20: 414 | CK20: 107 | CL20: 22 | CM20: 114 | CN20: 23 | CO20: =IF(AND(#REF!="",#REF!="",#REF!="",#REF!=""),"",SUM(#REF!,#REF!,#REF!,#REF!,#REF!)) ->  | CQ20: 110 | CR20: 22 | CS20: 104 | CT20: 21 | CU20: =IF(AND(#REF!="",#REF!="",#REF!="",#REF!=""),"",SUM(#REF!,#REF!,#REF!,#REF!,#REF!)) -> 
A21: 15 | B21: 4 | C21: A | D21: 935 | E21: 24-09-2015 | F21: KHUSHVEER SINGH | G21: PUSA RAM | H21: POOJA | I21: 415 | J21: M | K21: SC | L21: 15 | M21: 18 | N21: 14 | O21: 25 | P21: 35 | Q21: 27 | R21: 37 | S21: 16 | T21: 19 | U21: 17 | V21: 26 | W21: 36 | X21: 24 | Y21: 38 | Z21: 12 | AA21: 18 | AB21: 20 | AC21: 29 | AD21: 31 | AE21: 21 | AF21: 37 | AG21: 13 | AH21: 14 | AI21: 15 | AJ21: 26 | AK21: 36 | AL21: 27 | AM21: 37 | AN21: 17 | AO21: 18 | AP21: 19 | AQ21: 20 | AR21: 45 | AS21: 19 | AT21: 48 | AU21: 18 | AV21: 19 | AW21: 20 | AX21: 68 | AY21: - | AZ21: 66 | BA21: - | BB21: 19 | BC21: 15 | BD21: 16 | BE21: 14 | BF21: 17 | BG21: 15 | BH21: 20 | BI21: 15 | BJ21: 14 | BK21: 15 | BL21: 20 | BM21: 19 | BN21: 14 | BO21: 10 | BP21: 15 | BQ21: 340 | BR21: 310 | CJ21: 415 | CK21: 107 | CL21: 22 | CM21: 114 | CN21: 23 | CO21: =IF(AND(#REF!="",#REF!="",#REF!="",#REF!=""),"",SUM(#REF!,#REF!,#REF!,#REF!,#REF!)) ->  | CQ21: 110 | CR21: 22 | CS21: 104 | CT21: 21 | CU21: =IF(AND(#REF!="",#REF!="",#REF!="",#REF!=""),"",SUM(#REF!,#REF!,#REF!,#REF!,#REF!)) -> 
A22: 16 | B22: 4 | C22: A | D22: 940 | E22: 21-01-2016 | F22: KINJAL SAINI | G22: DURGESH CHAND BAGRI | H22: PUSHPA DEVI | I22: 416 | J22: F | K22: OBC | L22: 15 | M22: 18 | N22: 14 | O22: 25 | P22: 35 | Q22: 27 | R22: 37 | S22: 16 | T22: 19 | U22: 17 | V22: 26 | W22: 36 | X22: 24 | Y22: 38 | Z22: 12 | AA22: 18 | AB22: 20 | AC22: 29 | AD22: 31 | AE22: 21 | AF22: 37 | AG22: 13 | AH22: 14 | AI22: 15 | AJ22: 26 | AK22: 36 | AL22: 27 | AM22: 37 | AN22: 17 | AO22: 18 | AP22: 19 | AQ22: 20 | AR22: 45 | AS22: 19 | AT22: 48 | AU22: 18 | AV22: 19 | AW22: 20 | AX22: 68 | AY22: - | AZ22: 66 | BA22: - | BB22: 17 | BC22: 16 | BD22: 16 | BE22: 14 | BF22: 17 | BG22: 15 | BH22: 20 | BI22: 15 | BJ22: 14 | BK22: 16 | BL22: 20 | BM22: 19 | BN22: 15 | BO22: 10 | BP22: 15 | BQ22: 340 | BR22: 310 | CJ22: 416 | CK22: 107 | CL22: 22 | CM22: 114 | CN22: 23 | CO22: =IF(AND(#REF!="",#REF!="",#REF!="",#REF!=""),"",SUM(#REF!,#REF!,#REF!,#REF!,#REF!)) ->  | CQ22: 110 | CR22: 22 | CS22: 104 | CT22: 21 | CU22: =IF(AND(#REF!="",#REF!="",#REF!="",#REF!=""),"",SUM(#REF!,#REF!,#REF!,#REF!,#REF!)) -> 
A23: 17 | B23: 4 | C23: A | D23: 924 | E23: 14-02-2016 | F23: LUCKY PRAJAPATI | G23: NAR SINGH | H23: BHAWNA | I23: 417 | J23: M | K23: OBC | L23: 15 | M23: 18 | N23: 14 | O23: 25 | P23: 35 | Q23: 27 | R23: 37 | S23: 16 | T23: 19 | U23: 17 | V23: 26 | W23: 36 | X23: 24 | Y23: 38 | Z23: 12 | AA23: 18 | AB23: 20 | AC23: 29 | AD23: 31 | AE23: 21 | AF23: 37 | AG23: 13 | AH23: 14 | AI23: 15 | AJ23: 26 | AK23: 36 | AL23: 27 | AM23: 37 | AN23: 17 | AO23: 18 | AP23: 19 | AQ23: 20 | AR23: 45 | AS23: 19 | AT23: 48 | AU23: 18 | AV23: 19 | AW23: 20 | AX23: 68 | AY23: - | AZ23: 66 | BA23: - | BB23: 18 | BC23: 14 | BD23: 16 | BE23: 14 | BF23: 17 | BG23: 15 | BH23: 20 | BI23: 15 | BJ23: 14 | BK23: 14 | BL23: 20 | BM23: 19 | BN23: 16 | BO23: 10 | BP23: 15 | BQ23: 340 | BR23: 310 | CJ23: 417 | CK23: 107 | CL23: 22 | CM23: 114 | CN23: 23 | CO23: =IF(AND(#REF!="",#REF!="",#REF!="",#REF!=""),"",SUM(#REF!,#REF!,#REF!,#REF!,#REF!)) ->  | CQ23: 110 | CR23: 22 | CS23: 104 | CT23: 21 | CU23: =IF(AND(#REF!="",#REF!="",#REF!="",#REF!=""),"",SUM(#REF!,#REF!,#REF!,#REF!,#REF!)) -> 
A24: 18 | B24: 4 | C24: A | D24: 921 | E24: 2015-01-04 | F24: MAHENDRA PARTAP SINGH CHUNDAWAT | G24: CHANDRA SINGH CHUNDAWAT | H24: RITU KANWAR | I24: 418 | J24: M | K24: GEN | L24: 15 | M24: 18 | N24: 14 | O24: 25 | P24: 35 | Q24: 27 | R24: 37 | S24: 16 | T24: 19 | U24: 17 | V24: 26 | W24: 36 | X24: 24 | Y24: 38 | Z24: 12 | AA24: 18 | AB24: 20 | AC24: 29 | AD24: 31 | AE24: 21 | AF24: 37 | AG24: 13 | AH24: 14 | AI24: 15 | AJ24: 26 | AK24: 36 | AL24: 27 | AM24: 37 | AN24: 17 | AO24: 18 | AP24: 19 | AQ24: 20 | AR24: 45 | AS24: 19 | AT24: 48 | AU24: 18 | AV24: 19 | AW24: 20 | AX24: 68 | AY24: - | AZ24: 66 | BA24: - | BB24: 19 | BC24: 15 | BD24: 16 | BE24: 14 | BF24: 17 | BG24: 15 | BH24: 20 | BI24: 15 | BJ24: 14 | BK24: 15 | BL24: 20 | BM24: 19 | BN24: 17 | BO24: 10 | BP24: 15 | BQ24: 340 | BR24: 310 | CJ24: 418 | CK24: 107 | CL24: 22 | CM24: 114 | CN24: 23 | CO24: =IF(AND(#REF!="",#REF!="",#REF!="",#REF!=""),"",SUM(#REF!,#REF!,#REF!,#REF!,#REF!)) ->  | CQ24: 110 | CR24: 22 | CS24: 104 | CT24: 21 | CU24: =IF(AND(#REF!="",#REF!="",#REF!="",#REF!=""),"",SUM(#REF!,#REF!,#REF!,#REF!,#REF!)) -> 
A25: 19 | B25: 4 | C25: A | D25: 948 | E25: 2015-09-10 | F25: MANVEER GURJAR | G25: VIKRAM SINGH | H25: BARKHA | I25: 419 | J25: M | K25: SBC | L25: 15 | M25: 18 | N25: 14 | O25: 25 | P25: 35 | Q25: 27 | R25: 37 | S25: 16 | T25: 19 | U25: 17 | V25: 26 | W25: 36 | X25: 24 | Y25: 38 | Z25: 12 | AA25: 18 | AB25: 20 | AC25: 29 | AD25: 31 | AE25: 21 | AF25: 37 | AG25: 13 | AH25: 14 | AI25: 15 | AJ25: 26 | AK25: 36 | AL25: 27 | AM25: 37 | AN25: 17 | AO25: 18 | AP25: 19 | AQ25: 20 | AR25: 45 | AS25: 19 | AT25: 48 | AU25: 18 | AV25: 19 | AW25: 20 | AX25: 68 | AY25: - | AZ25: 66 | BA25: - | BB25: 17 | BC25: 16 | BD25: 16 | BE25: 14 | BF25: 17 | BG25: 15 | BH25: 20 | BI25: 15 | BJ25: 14 | BK25: 16 | BL25: 20 | BM25: 19 | BN25: 18 | BO25: 15 | BP25: 15 | BQ25: 340 | BR25: 310 | CJ25: 419 | CK25: 107 | CL25: 22 | CM25: 114 | CN25: 23 | CO25: =IF(AND(#REF!="",#REF!="",#REF!="",#REF!=""),"",SUM(#REF!,#REF!,#REF!,#REF!,#REF!)) ->  | CQ25: 110 | CR25: 22 | CS25: 104 | CT25: 21 | CU25: =IF(AND(#REF!="",#REF!="",#REF!="",#REF!=""),"",SUM(#REF!,#REF!,#REF!,#REF!,#REF!)) -> 
A26: 20 | B26: 4 | C26: A | D26: 943 | E26: 13-01-2015 | F26: PALAK DAMER | G26: GOVIND LAL | H26: LEELA | I26: 420 | J26: F | K26: SC | L26: 15 | M26: 18 | N26: 14 | O26: 25 | P26: 35 | Q26: 27 | R26: 37 | S26: 16 | T26: 19 | U26: 17 | V26: 26 | W26: 36 | X26: 24 | Y26: 38 | Z26: 12 | AA26: 18 | AB26: 20 | AC26: 29 | AD26: 31 | AE26: 21 | AF26: 37 | AG26: 13 | AH26: 14 | AI26: 15 | AJ26: 26 | AK26: 36 | AL26: 27 | AM26: 37 | AN26: 17 | AO26: 18 | AP26: 19 | AQ26: 20 | AR26: 45 | AS26: 19 | AT26: 48 | AU26: 18 | AV26: 19 | AW26: 20 | AX26: 68 | AY26: - | AZ26: 66 | BA26: - | BQ26: 340 | BR26: 310 | CJ26: 420 | CK26: 107 | CL26: 22 | CM26: 114 | CN26: 23 | CO26: =IF(AND(#REF!="",#REF!="",#REF!="",#REF!=""),"",SUM(#REF!,#REF!,#REF!,#REF!,#REF!)) ->  | CQ26: 110 | CR26: 22 | CS26: 104 | CT26: 21 | CU26: =IF(AND(#REF!="",#REF!="",#REF!="",#REF!=""),"",SUM(#REF!,#REF!,#REF!,#REF!,#REF!)) -> 
A27: 21 | B27: 4 | C27: A | D27: 929 | E27: 21-10-2014 | F27: PAWAN CHOUHAN | G27: NARENDRA SINGH | H27: SHOBHA | I27: 421 | J27: M | K27: OBC | L27: 15 | M27: 18 | N27: 14 | O27: 25 | P27: 35 | Q27: 27 | R27: 37 | S27: 16 | T27: 19 | U27: 17 | V27: 26 | W27: 36 | X27: 24 | Y27: 38 | Z27: 12 | AA27: 18 | AB27: 20 | AC27: 29 | AD27: 31 | AE27: 21 | AF27: 37 | AG27: 13 | AH27: 14 | AI27: 15 | AJ27: 26 | AK27: 36 | AL27: 27 | AM27: 37 | AN27: 17 | AO27: 18 | AP27: 19 | AQ27: 20 | AR27: 45 | AS27: 19 | AT27: 48 | AU27: 18 | AV27: 19 | AW27: 20 | AX27: 68 | AY27: - | AZ27: 66 | BA27: - | BQ27: 340 | BR27: 310 | CJ27: 421 | CK27: 107 | CL27: 22 | CM27: 114 | CN27: 23 | CO27: =IF(AND(#REF!="",#REF!="",#REF!="",#REF!=""),"",SUM(#REF!,#REF!,#REF!,#REF!,#REF!)) ->  | CQ27: 110 | CR27: 22 | CS27: 104 | CT27: 21 | CU27: =IF(AND(#REF!="",#REF!="",#REF!="",#REF!=""),"",SUM(#REF!,#REF!,#REF!,#REF!,#REF!)) -> 
A28: 22 | B28: 4 | C28: A | D28: 932 | E28: 15-11-2014 | F28: PRAGYA | G28: SUGANDAS | H28: ANITA | I28: 422 | J28: F | K28: OBC | L28: 15 | M28: 18 | N28: 14 | O28: 25 | P28: 35 | Q28: 27 | R28: 37 | S28: 16 | T28: 19 | U28: 17 | V28: 26 | W28: 36 | X28: 24 | Y28: 38 | Z28: 12 | AA28: 18 | AB28: 20 | AC28: 29 | AD28: 31 | AE28: 21 | AF28: 37 | AG28: 13 | AH28: 14 | AI28: 15 | AJ28: 26 | AK28: 36 | AL28: 27 | AM28: 37 | AN28: 17 | AO28: 18 | AP28: 19 | AQ28: 20 | AR28: 45 | AS28: 19 | AT28: 48 | AU28: 18 | AV28: 19 | AW28: 20 | AX28: 68 | AY28: - | AZ28: 66 | BA28: - | BQ28: 340 | BR28: 310 | CJ28: 422 | CK28: 107 | CL28: 22 | CM28: 114 | CN28: 23 | CO28: =IF(AND(#REF!="",#REF!="",#REF!="",#REF!=""),"",SUM(#REF!,#REF!,#REF!,#REF!,#REF!)) ->  | CQ28: 110 | CR28: 22 | CS28: 104 | CT28: 21 | CU28: =IF(AND(#REF!="",#REF!="",#REF!="",#REF!=""),"",SUM(#REF!,#REF!,#REF!,#REF!,#REF!)) -> 
A29: 23 | B29: 4 | C29: A | D29: 927 | E29: 31-01-2016 | F29: PRAMOD BHATI | G29: PANKAJ | H29: PINKI | I29: 423 | J29: M | K29: OBC | L29: 15 | M29: 18 | N29: 14 | O29: 25 | P29: 35 | Q29: 27 | R29: 37 | S29: 16 | T29: 19 | U29: 17 | V29: 26 | W29: 36 | X29: 24 | Y29: 38 | Z29: 12 | AA29: 18 | AB29: 20 | AC29: 29 | AD29: 31 | AE29: 21 | AF29: 37 | AG29: 13 | AH29: 14 | AI29: 15 | AJ29: 26 | AK29: 36 | AL29: 27 | AM29: 37 | AN29: 17 | AO29: 18 | AP29: 19 | AQ29: 20 | AR29: 45 | AS29: 19 | AT29: 48 | AU29: 18 | AV29: 19 | AW29: 20 | AX29: 68 | AY29: - | AZ29: 66 | BA29: - | BQ29: 340 | BR29: 310 | CJ29: 423 | CK29: 107 | CL29: 22 | CM29: 114 | CN29: 23 | CO29: =IF(AND(#REF!="",#REF!="",#REF!="",#REF!=""),"",SUM(#REF!,#REF!,#REF!,#REF!,#REF!)) ->  | CQ29: 110 | CR29: 22 | CS29: 104 | CT29: 21 | CU29: =IF(AND(#REF!="",#REF!="",#REF!="",#REF!=""),"",SUM(#REF!,#REF!,#REF!,#REF!,#REF!)) -> 
A30: 24 | B30: 4 | C30: A | D30: 938 | E30: 24-06-2015 | F30: PRAVEEN GURJAR | G30: SUKHDEV | H30: MANJU DEVI | I30: 424 | J30: M | K30: SBC | L30: 15 | M30: 18 | N30: 14 | O30: 25 | P30: 35 | Q30: 27 | R30: 37 | S30: 16 | T30: 19 | U30: 17 | V30: 26 | W30: 36 | X30: 24 | Y30: 38 | Z30: 12 | AA30: 18 | AB30: 20 | AC30: 29 | AD30: 31 | AE30: 21 | AF30: 37 | AG30: 13 | AH30: 14 | AI30: 15 | AJ30: 26 | AK30: 36 | AL30: 27 | AM30: 37 | AN30: 17 | AO30: 18 | AP30: 19 | AQ30: 20 | AR30: 45 | AS30: 19 | AT30: 48 | AU30: 18 | AV30: 19 | AW30: 20 | AX30: 68 | AY30: - | AZ30: 66 | BA30: - | BQ30: 340 | BR30: 310 | CJ30: 424 | CK30: 107 | CL30: 22 | CM30: 114 | CN30: 23 | CO30: =IF(AND(#REF!="",#REF!="",#REF!="",#REF!=""),"",SUM(#REF!,#REF!,#REF!,#REF!,#REF!)) ->  | CQ30: 110 | CR30: 22 | CS30: 104 | CT30: 21 | CU30: =IF(AND(#REF!="",#REF!="",#REF!="",#REF!=""),"",SUM(#REF!,#REF!,#REF!,#REF!,#REF!)) -> 
A31: 25 | B31: 4 | C31: A | D31: 950 | E31: 27-02-2016 | F31: PRIYANSHU | G31: KULDEEP | H31: KHUSBOO MALI | I31: 425 | J31: M | K31: OBC | L31: 15 | M31: 18 | N31: 14 | O31: 25 | P31: 35 | Q31: 27 | R31: 37 | S31: 16 | T31: 19 | U31: 17 | V31: 26 | W31: 36 | X31: 24 | Y31: 38 | Z31: 12 | AA31: 18 | AB31: 20 | AC31: 29 | AD31: 31 | AE31: 21 | AF31: 37 | AG31: 13 | AH31: 14 | AI31: 15 | AJ31: 26 | AK31: 36 | AL31: 27 | AM31: 37 | AN31: 17 | AO31: 18 | AP31: 19 | AQ31: 20 | AR31: 45 | AS31: 19 | AT31: 48 | AU31: 18 | AV31: 19 | AW31: 20 | AX31: 68 | AY31: - | AZ31: 66 | BA31: - | BQ31: 340 | BR31: 310 | CJ31: 425 | CK31: 107 | CL31: 22 | CM31: 114 | CN31: 23 | CO31: =IF(AND(#REF!="",#REF!="",#REF!="",#REF!=""),"",SUM(#REF!,#REF!,#REF!,#REF!,#REF!)) ->  | CQ31: 110 | CR31: 22 | CS31: 104 | CT31: 21 | CU31: =IF(AND(#REF!="",#REF!="",#REF!="",#REF!=""),"",SUM(#REF!,#REF!,#REF!,#REF!,#REF!)) -> 
A32: 26 | B32: 4 | C32: A | D32: 945 | E32: 22-07-2015 | F32: PRIYANSHU RAWAT | G32: MANOHAR SINGH | H32: SAPNA | I32: 426 | J32: M | K32: OBC | L32: 15 | M32: 18 | N32: 14 | O32: 25 | P32: 35 | Q32: 27 | R32: 37 | S32: 16 | T32: 19 | U32: 17 | V32: 26 | W32: 36 | X32: 24 | Y32: 38 | Z32: 12 | AA32: 18 | AB32: 20 | AC32: 29 | AD32: 31 | AE32: 21 | AF32: 37 | AG32: 13 | AH32: 14 | AI32: 15 | AJ32: 26 | AK32: 36 | AL32: 27 | AM32: 37 | AN32: 17 | AO32: 18 | AP32: 19 | AQ32: 20 | AR32: 45 | AS32: 19 | AT32: 48 | AU32: 18 | AV32: 19 | AW32: 20 | AX32: 68 | AY32: - | AZ32: 66 | BA32: - | BQ32: 340 | BR32: 310 | CJ32: 426 | CK32: 107 | CL32: 22 | CM32: 114 | CN32: 23 | CO32: =IF(AND(#REF!="",#REF!="",#REF!="",#REF!=""),"",SUM(#REF!,#REF!,#REF!,#REF!,#REF!)) ->  | CQ32: 110 | CR32: 22 | CS32: 104 | CT32: 21 | CU32: =IF(AND(#REF!="",#REF!="",#REF!="",#REF!=""),"",SUM(#REF!,#REF!,#REF!,#REF!,#REF!)) -> 
A33: 27 | B33: 4 | C33: A | D33: 928 | E33: 2016-11-02 | F33: RANVEER | G33: TOTA RAM | H33: JAYA | I33: 427 | J33: M | K33: OBC | L33: 15 | M33: 18 | N33: 14 | O33: 25 | P33: 35 | Q33: 27 | R33: 37 | S33: 16 | T33: 19 | U33: 17 | V33: 26 | W33: 36 | X33: 24 | Y33: 38 | Z33: 12 | AA33: 18 | AB33: 20 | AC33: 29 | AD33: 31 | AE33: 21 | AF33: 37 | AG33: 13 | AH33: 14 | AI33: 15 | AJ33: 26 | AK33: 36 | AL33: 27 | AM33: 37 | AN33: 17 | AO33: 18 | AP33: 19 | AQ33: 20 | AR33: 45 | AS33: 19 | AT33: 48 | AU33: 18 | AV33: 19 | AW33: 20 | AX33: 68 | AY33: - | AZ33: 66 | BA33: - | BQ33: 340 | BR33: 310 | CJ33: 427 | CK33: 107 | CL33: 22 | CM33: 114 | CN33: 23 | CO33: =IF(AND(#REF!="",#REF!="",#REF!="",#REF!=""),"",SUM(#REF!,#REF!,#REF!,#REF!,#REF!)) ->  | CQ33: 110 | CR33: 22 | CS33: 104 | CT33: 21 | CU33: =IF(AND(#REF!="",#REF!="",#REF!="",#REF!=""),"",SUM(#REF!,#REF!,#REF!,#REF!,#REF!)) -> 
A34: 28 | B34: 4 | C34: A | D34: 947 | E34: 18-07-2015 | F34: SURAJ BHATI | G34: RAJURAM BHATI | H34: REKHA DEVI | I34: 428 | J34: M | K34: OBC | L34: 15 | M34: 18 | N34: 14 | O34: 25 | P34: 35 | Q34: 27 | R34: 37 | S34: 16 | T34: 19 | U34: 17 | V34: 26 | W34: 36 | X34: 24 | Y34: 38 | Z34: 12 | AA34: 18 | AB34: 20 | AC34: 29 | AD34: 31 | AE34: 21 | AF34: 37 | AG34: 13 | AH34: 14 | AI34: 15 | AJ34: 26 | AK34: 36 | AL34: 27 | AM34: 37 | AN34: 17 | AO34: 18 | AP34: 19 | AQ34: 20 | AR34: 45 | AS34: 19 | AT34: 48 | AU34: 18 | AV34: 19 | AW34: 20 | AX34: 68 | AY34: - | AZ34: 66 | BA34: - | BQ34: 340 | BR34: 310 | CJ34: 428 | CK34: 107 | CL34: 22 | CM34: 114 | CN34: 23 | CO34: =IF(AND(#REF!="",#REF!="",#REF!="",#REF!=""),"",SUM(#REF!,#REF!,#REF!,#REF!,#REF!)) ->  | CQ34: 110 | CR34: 22 | CS34: 104 | CT34: 21 | CU34: =IF(AND(#REF!="",#REF!="",#REF!="",#REF!=""),"",SUM(#REF!,#REF!,#REF!,#REF!,#REF!)) -> 
A35: 29 | B35: 4 | C35: A | D35: 930 | E35: 13-03-2015 | F35: YUVRAJ SHARMA | G35: ARVIND SHARMA | H35: ANKITA SHARMA | I35: 429 | J35: M | K35: OBC | L35: 15 | M35: 18 | N35: 14 | O35: 25 | P35: 35 | Q35: 27 | R35: 37 | S35: 16 | T35: 19 | U35: 17 | V35: 26 | W35: 36 | X35: 24 | Y35: 38 | Z35: 12 | AA35: 18 | AB35: 20 | AC35: 29 | AD35: 31 | AE35: 21 | AF35: 37 | AG35: 13 | AH35: 14 | AI35: 15 | AJ35: 26 | AK35: 36 | AL35: 27 | AM35: 37 | AN35: 17 | AO35: 18 | AP35: 19 | AQ35: 20 | AR35: 45 | AS35: 19 | AT35: 48 | AU35: 18 | AV35: 19 | AW35: 20 | AX35: 68 | AY35: - | AZ35: 66 | BA35: - | BQ35: 340 | BR35: 310 | CJ35: 429 | CK35: 107 | CL35: 22 | CM35: 114 | CN35: 23 | CO35: =IF(AND(#REF!="",#REF!="",#REF!="",#REF!=""),"",SUM(#REF!,#REF!,#REF!,#REF!,#REF!)) ->  | CQ35: 110 | CR35: 22 | CS35: 104 | CT35: 21 | CU35: =IF(AND(#REF!="",#REF!="",#REF!="",#REF!=""),"",SUM(#REF!,#REF!,#REF!,#REF!,#REF!)) -> 
A36: 30 | B36: 4 | C36: A | D36: 941 | E36: 2015-08-03 | F36: ZEENAT SHEIKH | G36: SAMEER SHEIKH | H36: SHABNAM KHNAM | I36: 430 | J36: F | K36: GEN | L36: 15 | M36: 18 | N36: 14 | O36: 25 | P36: 35 | Q36: 27 | R36: 37 | S36: 16 | T36: 19 | U36: 17 | V36: 26 | W36: 36 | X36: 24 | Y36: 38 | Z36: 12 | AA36: 18 | AB36: 20 | AC36: 29 | AD36: 31 | AE36: 21 | AF36: 37 | AG36: 13 | AH36: 14 | AI36: 15 | AJ36: 26 | AK36: 36 | AL36: 27 | AM36: 37 | AN36: 17 | AO36: 18 | AP36: 19 | AQ36: 20 | AR36: 45 | AS36: 19 | AT36: 48 | AU36: 18 | AV36: 19 | AW36: 20 | AX36: 68 | AY36: - | AZ36: 66 | BA36: - | BQ36: 340 | BR36: 310 | CJ36: 430 | CK36: 107 | CL36: 22 | CM36: 114 | CN36: 23 | CO36: =IF(AND(#REF!="",#REF!="",#REF!="",#REF!=""),"",SUM(#REF!,#REF!,#REF!,#REF!,#REF!)) ->  | CQ36: 110 | CR36: 22 | CS36: 104 | CT36: 21 | CU36: =IF(AND(#REF!="",#REF!="",#REF!="",#REF!=""),"",SUM(#REF!,#REF!,#REF!,#REF!,#REF!)) -> 
A37: 31 | CO37: =IF(AND(#REF!="",#REF!="",#REF!="",#REF!=""),"",SUM(#REF!,#REF!,#REF!,#REF!,#REF!)) ->  | CU37: =IF(AND(#REF!="",#REF!="",#REF!="",#REF!=""),"",SUM(#REF!,#REF!,#REF!,#REF!,#REF!)) -> 
A38: 32 | CO38: =IF(AND(#REF!="",#REF!="",#REF!="",#REF!=""),"",SUM(#REF!,#REF!,#REF!,#REF!,#REF!)) ->  | CU38: =IF(AND(#REF!="",#REF!="",#REF!="",#REF!=""),"",SUM(#REF!,#REF!,#REF!,#REF!,#REF!)) -> 
A39: 33 | CO39: =IF(AND(#REF!="",#REF!="",#REF!="",#REF!=""),"",SUM(#REF!,#REF!,#REF!,#REF!,#REF!)) ->  | CU39: =IF(AND(#REF!="",#REF!="",#REF!="",#REF!=""),"",SUM(#REF!,#REF!,#REF!,#REF!,#REF!)) -> 
A40: 34 | CO40: =IF(AND(#REF!="",#REF!="",#REF!="",#REF!=""),"",SUM(#REF!,#REF!,#REF!,#REF!,#REF!)) ->  | CU40: =IF(AND(#REF!="",#REF!="",#REF!="",#REF!=""),"",SUM(#REF!,#REF!,#REF!,#REF!,#REF!)) -> 
A41: 35 | CO41: =IF(AND(#REF!="",#REF!="",#REF!="",#REF!=""),"",SUM(#REF!,#REF!,#REF!,#REF!,#REF!)) ->  | CU41: =IF(AND(#REF!="",#REF!="",#REF!="",#REF!=""),"",SUM(#REF!,#REF!,#REF!,#REF!,#REF!)) -> 
A42: 36 | CO42: =IF(AND(#REF!="",#REF!="",#REF!="",#REF!=""),"",SUM(#REF!,#REF!,#REF!,#REF!,#REF!)) ->  | CU42: =IF(AND(#REF!="",#REF!="",#REF!="",#REF!=""),"",SUM(#REF!,#REF!,#REF!,#REF!,#REF!)) -> 
A43: 37 | CO43: =IF(AND(#REF!="",#REF!="",#REF!="",#REF!=""),"",SUM(#REF!,#REF!,#REF!,#REF!,#REF!)) ->  | CU43: =IF(AND(#REF!="",#REF!="",#REF!="",#REF!=""),"",SUM(#REF!,#REF!,#REF!,#REF!,#REF!)) -> 
A44: 38 | CO44: =IF(AND(#REF!="",#REF!="",#REF!="",#REF!=""),"",SUM(#REF!,#REF!,#REF!,#REF!,#REF!)) ->  | CU44: =IF(AND(#REF!="",#REF!="",#REF!="",#REF!=""),"",SUM(#REF!,#REF!,#REF!,#REF!,#REF!)) -> 
A45: 39 | CO45: =IF(AND(#REF!="",#REF!="",#REF!="",#REF!=""),"",SUM(#REF!,#REF!,#REF!,#REF!,#REF!)) ->  | CU45: =IF(AND(#REF!="",#REF!="",#REF!="",#REF!=""),"",SUM(#REF!,#REF!,#REF!,#REF!,#REF!)) -> 
A46: 40 | CO46: =IF(AND(#REF!="",#REF!="",#REF!="",#REF!=""),"",SUM(#REF!,#REF!,#REF!,#REF!,#REF!)) ->  | CU46: =IF(AND(#REF!="",#REF!="",#REF!="",#REF!=""),"",SUM(#REF!,#REF!,#REF!,#REF!,#REF!)) -> 
A47: 41 | CO47: =IF(AND(#REF!="",#REF!="",#REF!="",#REF!=""),"",SUM(#REF!,#REF!,#REF!,#REF!,#REF!)) ->  | CU47: =IF(AND(#REF!="",#REF!="",#REF!="",#REF!=""),"",SUM(#REF!,#REF!,#REF!,#REF!,#REF!)) -> 
A48: 42 | CO48: =IF(AND(#REF!="",#REF!="",#REF!="",#REF!=""),"",SUM(#REF!,#REF!,#REF!,#REF!,#REF!)) ->  | CU48: =IF(AND(#REF!="",#REF!="",#REF!="",#REF!=""),"",SUM(#REF!,#REF!,#REF!,#REF!,#REF!)) -> 
A49: 43 | CO49: =IF(AND(#REF!="",#REF!="",#REF!="",#REF!=""),"",SUM(#REF!,#REF!,#REF!,#REF!,#REF!)) ->  | CU49: =IF(AND(#REF!="",#REF!="",#REF!="",#REF!=""),"",SUM(#REF!,#REF!,#REF!,#REF!,#REF!)) -> 
A50: 44 | CO50: =IF(AND(#REF!="",#REF!="",#REF!="",#REF!=""),"",SUM(#REF!,#REF!,#REF!,#REF!,#REF!)) ->  | CU50: =IF(AND(#REF!="",#REF!="",#REF!="",#REF!=""),"",SUM(#REF!,#REF!,#REF!,#REF!,#REF!)) -> 
A51: 45 | CO51: =IF(AND(#REF!="",#REF!="",#REF!="",#REF!=""),"",SUM(#REF!,#REF!,#REF!,#REF!,#REF!)) ->  | CU51: =IF(AND(#REF!="",#REF!="",#REF!="",#REF!=""),"",SUM(#REF!,#REF!,#REF!,#REF!,#REF!)) -> 
A52: 46 | CO52: =IF(AND(#REF!="",#REF!="",#REF!="",#REF!=""),"",SUM(#REF!,#REF!,#REF!,#REF!,#REF!)) ->  | CU52: =IF(AND(#REF!="",#REF!="",#REF!="",#REF!=""),"",SUM(#REF!,#REF!,#REF!,#REF!,#REF!)) -> 
A53: 47 | CO53: =IF(AND(#REF!="",#REF!="",#REF!="",#REF!=""),"",SUM(#REF!,#REF!,#REF!,#REF!,#REF!)) ->  | CU53: =IF(AND(#REF!="",#REF!="",#REF!="",#REF!=""),"",SUM(#REF!,#REF!,#REF!,#REF!,#REF!)) -> 
A54: 48 | CO54: =IF(AND(#REF!="",#REF!="",#REF!="",#REF!=""),"",SUM(#REF!,#REF!,#REF!,#REF!,#REF!)) ->  | CU54: =IF(AND(#REF!="",#REF!="",#REF!="",#REF!=""),"",SUM(#REF!,#REF!,#REF!,#REF!,#REF!)) -> 
A55: 49 | CO55: =IF(AND(#REF!="",#REF!="",#REF!="",#REF!=""),"",SUM(#REF!,#REF!,#REF!,#REF!,#REF!)) ->  | CU55: =IF(AND(#REF!="",#REF!="",#REF!="",#REF!=""),"",SUM(#REF!,#REF!,#REF!,#REF!,#REF!)) -> 
A56: 50 | CO56: =IF(AND(#REF!="",#REF!="",#REF!="",#REF!=""),"",SUM(#REF!,#REF!,#REF!,#REF!,#REF!)) ->  | CU56: =IF(AND(#REF!="",#REF!="",#REF!="",#REF!=""),"",SUM(#REF!,#REF!,#REF!,#REF!,#REF!)) -> 
A57: 51 | CO57: =IF(AND(#REF!="",#REF!="",#REF!="",#REF!=""),"",SUM(#REF!,#REF!,#REF!,#REF!,#REF!)) ->  | CU57: =IF(AND(#REF!="",#REF!="",#REF!="",#REF!=""),"",SUM(#REF!,#REF!,#REF!,#REF!,#REF!)) -> 
A58: 52 | CO58: =IF(AND(#REF!="",#REF!="",#REF!="",#REF!=""),"",SUM(#REF!,#REF!,#REF!,#REF!,#REF!)) ->  | CU58: =IF(AND(#REF!="",#REF!="",#REF!="",#REF!=""),"",SUM(#REF!,#REF!,#REF!,#REF!,#REF!)) -> 
A59: 53 | CO59: =IF(AND(#REF!="",#REF!="",#REF!="",#REF!=""),"",SUM(#REF!,#REF!,#REF!,#REF!,#REF!)) ->  | CU59: =IF(AND(#REF!="",#REF!="",#REF!="",#REF!=""),"",SUM(#REF!,#REF!,#REF!,#REF!,#REF!)) -> 
A60: 54 | CO60: =IF(AND(#REF!="",#REF!="",#REF!="",#REF!=""),"",SUM(#REF!,#REF!,#REF!,#REF!,#REF!)) ->  | CU60: =IF(AND(#REF!="",#REF!="",#REF!="",#REF!=""),"",SUM(#REF!,#REF!,#REF!,#REF!,#REF!)) -> 
A61: 55 | CO61: =IF(AND(#REF!="",#REF!="",#REF!="",#REF!=""),"",SUM(#REF!,#REF!,#REF!,#REF!,#REF!)) ->  | CU61: =IF(AND(#REF!="",#REF!="",#REF!="",#REF!=""),"",SUM(#REF!,#REF!,#REF!,#REF!,#REF!)) -> 
A62: 56 | CO62: =IF(AND(#REF!="",#REF!="",#REF!="",#REF!=""),"",SUM(#REF!,#REF!,#REF!,#REF!,#REF!)) ->  | CU62: =IF(AND(#REF!="",#REF!="",#REF!="",#REF!=""),"",SUM(#REF!,#REF!,#REF!,#REF!,#REF!)) -> 
A63: 57 | CO63: =IF(AND(#REF!="",#REF!="",#REF!="",#REF!=""),"",SUM(#REF!,#REF!,#REF!,#REF!,#REF!)) ->  | CU63: =IF(AND(#REF!="",#REF!="",#REF!="",#REF!=""),"",SUM(#REF!,#REF!,#REF!,#REF!,#REF!)) -> 
A64: 58 | CO64: =IF(AND(#REF!="",#REF!="",#REF!="",#REF!=""),"",SUM(#REF!,#REF!,#REF!,#REF!,#REF!)) ->  | CU64: =IF(AND(#REF!="",#REF!="",#REF!="",#REF!=""),"",SUM(#REF!,#REF!,#REF!,#REF!,#REF!)) -> 
A65: 59 | CO65: =IF(AND(#REF!="",#REF!="",#REF!="",#REF!=""),"",SUM(#REF!,#REF!,#REF!,#REF!,#REF!)) ->  | CU65: =IF(AND(#REF!="",#REF!="",#REF!="",#REF!=""),"",SUM(#REF!,#REF!,#REF!,#REF!,#REF!)) -> 
A66: 60 | CO66: =IF(AND(#REF!="",#REF!="",#REF!="",#REF!=""),"",SUM(#REF!,#REF!,#REF!,#REF!,#REF!)) ->  | CU66: =IF(AND(#REF!="",#REF!="",#REF!="",#REF!=""),"",SUM(#REF!,#REF!,#REF!,#REF!,#REF!)) -> 
A67: 61 | CO67: =IF(AND(#REF!="",#REF!="",#REF!="",#REF!=""),"",SUM(#REF!,#REF!,#REF!,#REF!,#REF!)) ->  | CU67: =IF(AND(#REF!="",#REF!="",#REF!="",#REF!=""),"",SUM(#REF!,#REF!,#REF!,#REF!,#REF!)) -> 
A68: 62 | CO68: =IF(AND(#REF!="",#REF!="",#REF!="",#REF!=""),"",SUM(#REF!,#REF!,#REF!,#REF!,#REF!)) ->  | CU68: =IF(AND(#REF!="",#REF!="",#REF!="",#REF!=""),"",SUM(#REF!,#REF!,#REF!,#REF!,#REF!)) -> 
A69: 63 | CO69: =IF(AND(#REF!="",#REF!="",#REF!="",#REF!=""),"",SUM(#REF!,#REF!,#REF!,#REF!,#REF!)) ->  | CU69: =IF(AND(#REF!="",#REF!="",#REF!="",#REF!=""),"",SUM(#REF!,#REF!,#REF!,#REF!,#REF!)) -> 
A70: 64 | CO70: =IF(AND(#REF!="",#REF!="",#REF!="",#REF!=""),"",SUM(#REF!,#REF!,#REF!,#REF!,#REF!)) ->  | CU70: =IF(AND(#REF!="",#REF!="",#REF!="",#REF!=""),"",SUM(#REF!,#REF!,#REF!,#REF!,#REF!)) -> 
A71: 65 | CO71: =IF(AND(#REF!="",#REF!="",#REF!="",#REF!=""),"",SUM(#REF!,#REF!,#REF!,#REF!,#REF!)) ->  | CU71: =IF(AND(#REF!="",#REF!="",#REF!="",#REF!=""),"",SUM(#REF!,#REF!,#REF!,#REF!,#REF!)) -> 
A72: 66 | CJ72: =IF(I72="","",I72) ->  | CK72: =IF(AND(L72="",M72="",N72="",P72=""),"",SUM(L72,M72,N72,O72,P72)) ->  | CL72: =IFERROR(IF(CK72="","",ROUNDUP(CK72*20%,0)),"") ->  | CM72: =IF(AND(S72="",T72="",U72="",W72=""),"",SUM(S72,T72,U72,V72,W72)) ->  | CN72: =IFERROR(IF(CM72="","",ROUNDUP(CM72*20%,0)),"") ->  | CO72: =IF(AND(#REF!="",#REF!="",#REF!="",#REF!=""),"",SUM(#REF!,#REF!,#REF!,#REF!,#REF!)) ->  | CP72: =IFERROR(IF(CO72="","",ROUNDUP(CO72*20%,0)),"") ->  | CQ72: =IF(AND(Z72="",AA72="",AB72="",AD72=""),"",SUM(Z72,AA72,AB72,AC72,AD72)) ->  | CR72: =IFERROR(IF(CQ72="","",ROUNDUP(CQ72*20%,0)),"") ->  | CS72: =IF(AND(AG72="",AH72="",AI72="",AK72=""),"",SUM(AG72,AH72,AI72,AJ72,AK72)) ->  | CT72: =IFERROR(IF(CS72="","",ROUNDUP(CS72*20%,0)),"") ->  | CU72: =IF(AND(#REF!="",#REF!="",#REF!="",#REF!=""),"",SUM(#REF!,#REF!,#REF!,#REF!,#REF!)) ->  | CV72: =IFERROR(IF(CU72="","",ROUNDUP(CU72*20%,0)),"") -> 
A73: 67 | CO73: =IF(AND(#REF!="",#REF!="",#REF!="",#REF!=""),"",SUM(#REF!,#REF!,#REF!,#REF!,#REF!)) ->  | CU73: =IF(AND(#REF!="",#REF!="",#REF!="",#REF!=""),"",SUM(#REF!,#REF!,#REF!,#REF!,#REF!)) -> 
A74: 68 | CO74: =IF(AND(#REF!="",#REF!="",#REF!="",#REF!=""),"",SUM(#REF!,#REF!,#REF!,#REF!,#REF!)) ->  | CU74: =IF(AND(#REF!="",#REF!="",#REF!="",#REF!=""),"",SUM(#REF!,#REF!,#REF!,#REF!,#REF!)) -> 
A75: 69 | CO75: =IF(AND(#REF!="",#REF!="",#REF!="",#REF!=""),"",SUM(#REF!,#REF!,#REF!,#REF!,#REF!)) ->  | CU75: =IF(AND(#REF!="",#REF!="",#REF!="",#REF!=""),"",SUM(#REF!,#REF!,#REF!,#REF!,#REF!)) -> 
A76: 70 | CO76: =IF(AND(#REF!="",#REF!="",#REF!="",#REF!=""),"",SUM(#REF!,#REF!,#REF!,#REF!,#REF!)) ->  | CU76: =IF(AND(#REF!="",#REF!="",#REF!="",#REF!=""),"",SUM(#REF!,#REF!,#REF!,#REF!,#REF!)) -> 
A77: 71 | CO77: =IF(AND(#REF!="",#REF!="",#REF!="",#REF!=""),"",SUM(#REF!,#REF!,#REF!,#REF!,#REF!)) ->  | CU77: =IF(AND(#REF!="",#REF!="",#REF!="",#REF!=""),"",SUM(#REF!,#REF!,#REF!,#REF!,#REF!)) -> 
A78: 72 | CO78: =IF(AND(#REF!="",#REF!="",#REF!="",#REF!=""),"",SUM(#REF!,#REF!,#REF!,#REF!,#REF!)) ->  | CU78: =IF(AND(#REF!="",#REF!="",#REF!="",#REF!=""),"",SUM(#REF!,#REF!,#REF!,#REF!,#REF!)) -> 
A79: 73 | CO79: =IF(AND(#REF!="",#REF!="",#REF!="",#REF!=""),"",SUM(#REF!,#REF!,#REF!,#REF!,#REF!)) ->  | CU79: =IF(AND(#REF!="",#REF!="",#REF!="",#REF!=""),"",SUM(#REF!,#REF!,#REF!,#REF!,#REF!)) -> 
A80: 74 | CO80: =IF(AND(#REF!="",#REF!="",#REF!="",#REF!=""),"",SUM(#REF!,#REF!,#REF!,#REF!,#REF!)) ->  | CU80: =IF(AND(#REF!="",#REF!="",#REF!="",#REF!=""),"",SUM(#REF!,#REF!,#REF!,#REF!,#REF!)) -> 
A81: 75 | CO81: =IF(AND(#REF!="",#REF!="",#REF!="",#REF!=""),"",SUM(#REF!,#REF!,#REF!,#REF!,#REF!)) ->  | CU81: =IF(AND(#REF!="",#REF!="",#REF!="",#REF!=""),"",SUM(#REF!,#REF!,#REF!,#REF!,#REF!)) -> 
A82: 76 | CO82: =IF(AND(#REF!="",#REF!="",#REF!="",#REF!=""),"",SUM(#REF!,#REF!,#REF!,#REF!,#REF!)) ->  | CU82: =IF(AND(#REF!="",#REF!="",#REF!="",#REF!=""),"",SUM(#REF!,#REF!,#REF!,#REF!,#REF!)) -> 
A83: 77 | CO83: =IF(AND(#REF!="",#REF!="",#REF!="",#REF!=""),"",SUM(#REF!,#REF!,#REF!,#REF!,#REF!)) ->  | CU83: =IF(AND(#REF!="",#REF!="",#REF!="",#REF!=""),"",SUM(#REF!,#REF!,#REF!,#REF!,#REF!)) -> 
A84: 78 | CO84: =IF(AND(#REF!="",#REF!="",#REF!="",#REF!=""),"",SUM(#REF!,#REF!,#REF!,#REF!,#REF!)) ->  | CU84: =IF(AND(#REF!="",#REF!="",#REF!="",#REF!=""),"",SUM(#REF!,#REF!,#REF!,#REF!,#REF!)) -> 
A85: 79 | CO85: =IF(AND(#REF!="",#REF!="",#REF!="",#REF!=""),"",SUM(#REF!,#REF!,#REF!,#REF!,#REF!)) ->  | CU85: =IF(AND(#REF!="",#REF!="",#REF!="",#REF!=""),"",SUM(#REF!,#REF!,#REF!,#REF!,#REF!)) -> 
A86: 80 | CO86: =IF(AND(#REF!="",#REF!="",#REF!="",#REF!=""),"",SUM(#REF!,#REF!,#REF!,#REF!,#REF!)) ->  | CU86: =IF(AND(#REF!="",#REF!="",#REF!="",#REF!=""),"",SUM(#REF!,#REF!,#REF!,#REF!,#REF!)) -> 
A87: 81 | CO87: =IF(AND(#REF!="",#REF!="",#REF!="",#REF!=""),"",SUM(#REF!,#REF!,#REF!,#REF!,#REF!)) ->  | CU87: =IF(AND(#REF!="",#REF!="",#REF!="",#REF!=""),"",SUM(#REF!,#REF!,#REF!,#REF!,#REF!)) -> 
A88: 82 | CO88: =IF(AND(#REF!="",#REF!="",#REF!="",#REF!=""),"",SUM(#REF!,#REF!,#REF!,#REF!,#REF!)) ->  | CU88: =IF(AND(#REF!="",#REF!="",#REF!="",#REF!=""),"",SUM(#REF!,#REF!,#REF!,#REF!,#REF!)) -> 
A89: 83 | CO89: =IF(AND(#REF!="",#REF!="",#REF!="",#REF!=""),"",SUM(#REF!,#REF!,#REF!,#REF!,#REF!)) ->  | CU89: =IF(AND(#REF!="",#REF!="",#REF!="",#REF!=""),"",SUM(#REF!,#REF!,#REF!,#REF!,#REF!)) -> 
A90: 84 | CO90: =IF(AND(#REF!="",#REF!="",#REF!="",#REF!=""),"",SUM(#REF!,#REF!,#REF!,#REF!,#REF!)) ->  | CU90: =IF(AND(#REF!="",#REF!="",#REF!="",#REF!=""),"",SUM(#REF!,#REF!,#REF!,#REF!,#REF!)) -> 
A91: 85 | CO91: =IF(AND(#REF!="",#REF!="",#REF!="",#REF!=""),"",SUM(#REF!,#REF!,#REF!,#REF!,#REF!)) ->  | CU91: =IF(AND(#REF!="",#REF!="",#REF!="",#REF!=""),"",SUM(#REF!,#REF!,#REF!,#REF!,#REF!)) -> 
A92: 86 | CO92: =IF(AND(#REF!="",#REF!="",#REF!="",#REF!=""),"",SUM(#REF!,#REF!,#REF!,#REF!,#REF!)) ->  | CU92: =IF(AND(#REF!="",#REF!="",#REF!="",#REF!=""),"",SUM(#REF!,#REF!,#REF!,#REF!,#REF!)) -> 
A93: 87 | CO93: =IF(AND(#REF!="",#REF!="",#REF!="",#REF!=""),"",SUM(#REF!,#REF!,#REF!,#REF!,#REF!)) ->  | CU93: =IF(AND(#REF!="",#REF!="",#REF!="",#REF!=""),"",SUM(#REF!,#REF!,#REF!,#REF!,#REF!)) -> 
A94: 88 | CO94: =IF(AND(#REF!="",#REF!="",#REF!="",#REF!=""),"",SUM(#REF!,#REF!,#REF!,#REF!,#REF!)) ->  | CU94: =IF(AND(#REF!="",#REF!="",#REF!="",#REF!=""),"",SUM(#REF!,#REF!,#REF!,#REF!,#REF!)) -> 
A95: 89 | CO95: =IF(AND(#REF!="",#REF!="",#REF!="",#REF!=""),"",SUM(#REF!,#REF!,#REF!,#REF!,#REF!)) ->  | CU95: =IF(AND(#REF!="",#REF!="",#REF!="",#REF!=""),"",SUM(#REF!,#REF!,#REF!,#REF!,#REF!)) -> 
A96: 90 | CO96: =IF(AND(#REF!="",#REF!="",#REF!="",#REF!=""),"",SUM(#REF!,#REF!,#REF!,#REF!,#REF!)) ->  | CU96: =IF(AND(#REF!="",#REF!="",#REF!="",#REF!=""),"",SUM(#REF!,#REF!,#REF!,#REF!,#REF!)) -> 
A97: 91 | CO97: =IF(AND(#REF!="",#REF!="",#REF!="",#REF!=""),"",SUM(#REF!,#REF!,#REF!,#REF!,#REF!)) ->  | CU97: =IF(AND(#REF!="",#REF!="",#REF!="",#REF!=""),"",SUM(#REF!,#REF!,#REF!,#REF!,#REF!)) -> 
A98: 92 | CO98: =IF(AND(#REF!="",#REF!="",#REF!="",#REF!=""),"",SUM(#REF!,#REF!,#REF!,#REF!,#REF!)) ->  | CU98: =IF(AND(#REF!="",#REF!="",#REF!="",#REF!=""),"",SUM(#REF!,#REF!,#REF!,#REF!,#REF!)) -> 
A99: 93 | CO99: =IF(AND(#REF!="",#REF!="",#REF!="",#REF!=""),"",SUM(#REF!,#REF!,#REF!,#REF!,#REF!)) ->  | CU99: =IF(AND(#REF!="",#REF!="",#REF!="",#REF!=""),"",SUM(#REF!,#REF!,#REF!,#REF!,#REF!)) -> 
A100: 94 | CO100: =IF(AND(#REF!="",#REF!="",#REF!="",#REF!=""),"",SUM(#REF!,#REF!,#REF!,#REF!,#REF!)) ->  | CU100: =IF(AND(#REF!="",#REF!="",#REF!="",#REF!=""),"",SUM(#REF!,#REF!,#REF!,#REF!,#REF!)) -> 
A101: 95 | CO101: =IF(AND(#REF!="",#REF!="",#REF!="",#REF!=""),"",SUM(#REF!,#REF!,#REF!,#REF!,#REF!)) ->  | CU101: =IF(AND(#REF!="",#REF!="",#REF!="",#REF!=""),"",SUM(#REF!,#REF!,#REF!,#REF!,#REF!)) -> 
A102: 96 | CO102: =IF(AND(#REF!="",#REF!="",#REF!="",#REF!=""),"",SUM(#REF!,#REF!,#REF!,#REF!,#REF!)) ->  | CU102: =IF(AND(#REF!="",#REF!="",#REF!="",#REF!=""),"",SUM(#REF!,#REF!,#REF!,#REF!,#REF!)) -> 
A103: 97 | CO103: =IF(AND(#REF!="",#REF!="",#REF!="",#REF!=""),"",SUM(#REF!,#REF!,#REF!,#REF!,#REF!)) ->  | CU103: =IF(AND(#REF!="",#REF!="",#REF!="",#REF!=""),"",SUM(#REF!,#REF!,#REF!,#REF!,#REF!)) -> 
A104: 98 | CO104: =IF(AND(#REF!="",#REF!="",#REF!="",#REF!=""),"",SUM(#REF!,#REF!,#REF!,#REF!,#REF!)) ->  | CU104: =IF(AND(#REF!="",#REF!="",#REF!="",#REF!=""),"",SUM(#REF!,#REF!,#REF!,#REF!,#REF!)) -> 
A105: 99 | CO105: =IF(AND(#REF!="",#REF!="",#REF!="",#REF!=""),"",SUM(#REF!,#REF!,#REF!,#REF!,#REF!)) ->  | CU105: =IF(AND(#REF!="",#REF!="",#REF!="",#REF!=""),"",SUM(#REF!,#REF!,#REF!,#REF!,#REF!)) -> 
A106: 100 | CO106: =IF(AND(#REF!="",#REF!="",#REF!="",#REF!=""),"",SUM(#REF!,#REF!,#REF!,#REF!,#REF!)) ->  | CU106: =IF(AND(#REF!="",#REF!="",#REF!="",#REF!=""),"",SUM(#REF!,#REF!,#REF!,#REF!,#REF!)) -> 
A107: 101 | CO107: =IF(AND(#REF!="",#REF!="",#REF!="",#REF!=""),"",SUM(#REF!,#REF!,#REF!,#REF!,#REF!)) ->  | CU107: =IF(AND(#REF!="",#REF!="",#REF!="",#REF!=""),"",SUM(#REF!,#REF!,#REF!,#REF!,#REF!)) -> 
A108: 102 | CO108: =IF(AND(#REF!="",#REF!="",#REF!="",#REF!=""),"",SUM(#REF!,#REF!,#REF!,#REF!,#REF!)) ->  | CU108: =IF(AND(#REF!="",#REF!="",#REF!="",#REF!=""),"",SUM(#REF!,#REF!,#REF!,#REF!,#REF!)) -> 
A109: 103 | CO109: =IF(AND(#REF!="",#REF!="",#REF!="",#REF!=""),"",SUM(#REF!,#REF!,#REF!,#REF!,#REF!)) ->  | CU109: =IF(AND(#REF!="",#REF!="",#REF!="",#REF!=""),"",SUM(#REF!,#REF!,#REF!,#REF!,#REF!)) -> 
A110: 104 | CO110: =IF(AND(#REF!="",#REF!="",#REF!="",#REF!=""),"",SUM(#REF!,#REF!,#REF!,#REF!,#REF!)) ->  | CU110: =IF(AND(#REF!="",#REF!="",#REF!="",#REF!=""),"",SUM(#REF!,#REF!,#REF!,#REF!,#REF!)) -> 
A111: 105 | CO111: =IF(AND(#REF!="",#REF!="",#REF!="",#REF!=""),"",SUM(#REF!,#REF!,#REF!,#REF!,#REF!)) ->  | CU111: =IF(AND(#REF!="",#REF!="",#REF!="",#REF!=""),"",SUM(#REF!,#REF!,#REF!,#REF!,#REF!)) -> 
A112: 106 | CO112: =IF(AND(#REF!="",#REF!="",#REF!="",#REF!=""),"",SUM(#REF!,#REF!,#REF!,#REF!,#REF!)) ->  | CU112: =IF(AND(#REF!="",#REF!="",#REF!="",#REF!=""),"",SUM(#REF!,#REF!,#REF!,#REF!,#REF!)) -> 
A113: 107 | CO113: =IF(AND(#REF!="",#REF!="",#REF!="",#REF!=""),"",SUM(#REF!,#REF!,#REF!,#REF!,#REF!)) ->  | CU113: =IF(AND(#REF!="",#REF!="",#REF!="",#REF!=""),"",SUM(#REF!,#REF!,#REF!,#REF!,#REF!)) -> 
A114: 108 | CO114: =IF(AND(#REF!="",#REF!="",#REF!="",#REF!=""),"",SUM(#REF!,#REF!,#REF!,#REF!,#REF!)) ->  | CU114: =IF(AND(#REF!="",#REF!="",#REF!="",#REF!=""),"",SUM(#REF!,#REF!,#REF!,#REF!,#REF!)) -> 
A115: 109 | CO115: =IF(AND(#REF!="",#REF!="",#REF!="",#REF!=""),"",SUM(#REF!,#REF!,#REF!,#REF!,#REF!)) ->  | CU115: =IF(AND(#REF!="",#REF!="",#REF!="",#REF!=""),"",SUM(#REF!,#REF!,#REF!,#REF!,#REF!)) -> 
A116: 110 | CO116: =IF(AND(#REF!="",#REF!="",#REF!="",#REF!=""),"",SUM(#REF!,#REF!,#REF!,#REF!,#REF!)) ->  | CU116: =IF(AND(#REF!="",#REF!="",#REF!="",#REF!=""),"",SUM(#REF!,#REF!,#REF!,#REF!,#REF!)) -> 
A117: 111 | CO117: =IF(AND(#REF!="",#REF!="",#REF!="",#REF!=""),"",SUM(#REF!,#REF!,#REF!,#REF!,#REF!)) ->  | CU117: =IF(AND(#REF!="",#REF!="",#REF!="",#REF!=""),"",SUM(#REF!,#REF!,#REF!,#REF!,#REF!)) -> 
A118: 112 | CO118: =IF(AND(#REF!="",#REF!="",#REF!="",#REF!=""),"",SUM(#REF!,#REF!,#REF!,#REF!,#REF!)) ->  | CU118: =IF(AND(#REF!="",#REF!="",#REF!="",#REF!=""),"",SUM(#REF!,#REF!,#REF!,#REF!,#REF!)) -> 
A119: 113 | CO119: =IF(AND(#REF!="",#REF!="",#REF!="",#REF!=""),"",SUM(#REF!,#REF!,#REF!,#REF!,#REF!)) ->  | CU119: =IF(AND(#REF!="",#REF!="",#REF!="",#REF!=""),"",SUM(#REF!,#REF!,#REF!,#REF!,#REF!)) -> 
A120: 114 | CO120: =IF(AND(#REF!="",#REF!="",#REF!="",#REF!=""),"",SUM(#REF!,#REF!,#REF!,#REF!,#REF!)) ->  | CU120: =IF(AND(#REF!="",#REF!="",#REF!="",#REF!=""),"",SUM(#REF!,#REF!,#REF!,#REF!,#REF!)) -> 
A121: 115 | CO121: =IF(AND(#REF!="",#REF!="",#REF!="",#REF!=""),"",SUM(#REF!,#REF!,#REF!,#REF!,#REF!)) ->  | CU121: =IF(AND(#REF!="",#REF!="",#REF!="",#REF!=""),"",SUM(#REF!,#REF!,#REF!,#REF!,#REF!)) -> 
A122: 116 | CO122: =IF(AND(#REF!="",#REF!="",#REF!="",#REF!=""),"",SUM(#REF!,#REF!,#REF!,#REF!,#REF!)) ->  | CU122: =IF(AND(#REF!="",#REF!="",#REF!="",#REF!=""),"",SUM(#REF!,#REF!,#REF!,#REF!,#REF!)) -> 
A123: 117 | CO123: =IF(AND(#REF!="",#REF!="",#REF!="",#REF!=""),"",SUM(#REF!,#REF!,#REF!,#REF!,#REF!)) ->  | CU123: =IF(AND(#REF!="",#REF!="",#REF!="",#REF!=""),"",SUM(#REF!,#REF!,#REF!,#REF!,#REF!)) -> 
A124: 118 | CO124: =IF(AND(#REF!="",#REF!="",#REF!="",#REF!=""),"",SUM(#REF!,#REF!,#REF!,#REF!,#REF!)) ->  | CU124: =IF(AND(#REF!="",#REF!="",#REF!="",#REF!=""),"",SUM(#REF!,#REF!,#REF!,#REF!,#REF!)) -> 
A125: 119 | CO125: =IF(AND(#REF!="",#REF!="",#REF!="",#REF!=""),"",SUM(#REF!,#REF!,#REF!,#REF!,#REF!)) ->  | CU125: =IF(AND(#REF!="",#REF!="",#REF!="",#REF!=""),"",SUM(#REF!,#REF!,#REF!,#REF!,#REF!)) -> 
A126: 120 | CO126: =IF(AND(#REF!="",#REF!="",#REF!="",#REF!=""),"",SUM(#REF!,#REF!,#REF!,#REF!,#REF!)) ->  | CU126: =IF(AND(#REF!="",#REF!="",#REF!="",#REF!=""),"",SUM(#REF!,#REF!,#REF!,#REF!,#REF!)) -> 
A127: 121 | CO127: =IF(AND(#REF!="",#REF!="",#REF!="",#REF!=""),"",SUM(#REF!,#REF!,#REF!,#REF!,#REF!)) ->  | CU127: =IF(AND(#REF!="",#REF!="",#REF!="",#REF!=""),"",SUM(#REF!,#REF!,#REF!,#REF!,#REF!)) ->  | CW127: =IF(AND(#REF!="",#REF!="",#REF!="",#REF!=""),"",SUM(#REF!,#REF!,#REF!,#REF!)) ->  | CX127: =IFERROR(IF(CW127="","",IF($CW$5=100,ROUNDUP(CW127*20%,0),IF($CW$5=86,ROUNDUP((CW127/$CW$5)*$CX$5,0),IF($CW$5=66,ROUNDUP((CW127/$CW$5)*$CX$5,0),"")))),"") -> 
A128: 122 | CO128: =IF(AND(#REF!="",#REF!="",#REF!="",#REF!=""),"",SUM(#REF!,#REF!,#REF!,#REF!,#REF!)) ->  | CU128: =IF(AND(#REF!="",#REF!="",#REF!="",#REF!=""),"",SUM(#REF!,#REF!,#REF!,#REF!,#REF!)) ->  | CW128: =IF(AND(#REF!="",#REF!="",#REF!="",#REF!=""),"",SUM(#REF!,#REF!,#REF!,#REF!)) -> 
A129: 123 | CO129: =IF(AND(#REF!="",#REF!="",#REF!="",#REF!=""),"",SUM(#REF!,#REF!,#REF!,#REF!,#REF!)) ->  | CU129: =IF(AND(#REF!="",#REF!="",#REF!="",#REF!=""),"",SUM(#REF!,#REF!,#REF!,#REF!,#REF!)) ->  | CW129: =IF(AND(#REF!="",#REF!="",#REF!="",#REF!=""),"",SUM(#REF!,#REF!,#REF!,#REF!)) -> 
A130: 124 | CO130: =IF(AND(#REF!="",#REF!="",#REF!="",#REF!=""),"",SUM(#REF!,#REF!,#REF!,#REF!,#REF!)) ->  | CU130: =IF(AND(#REF!="",#REF!="",#REF!="",#REF!=""),"",SUM(#REF!,#REF!,#REF!,#REF!,#REF!)) ->  | CW130: =IF(AND(#REF!="",#REF!="",#REF!="",#REF!=""),"",SUM(#REF!,#REF!,#REF!,#REF!)) -> 
A131: 125 | CO131: =IF(AND(#REF!="",#REF!="",#REF!="",#REF!=""),"",SUM(#REF!,#REF!,#REF!,#REF!,#REF!)) ->  | CU131: =IF(AND(#REF!="",#REF!="",#REF!="",#REF!=""),"",SUM(#REF!,#REF!,#REF!,#REF!,#REF!)) ->  | CW131: =IF(AND(#REF!="",#REF!="",#REF!="",#REF!=""),"",SUM(#REF!,#REF!,#REF!,#REF!)) -> 
A132: 126 | CO132: =IF(AND(#REF!="",#REF!="",#REF!="",#REF!=""),"",SUM(#REF!,#REF!,#REF!,#REF!,#REF!)) ->  | CU132: =IF(AND(#REF!="",#REF!="",#REF!="",#REF!=""),"",SUM(#REF!,#REF!,#REF!,#REF!,#REF!)) ->  | CW132: =IF(AND(#REF!="",#REF!="",#REF!="",#REF!=""),"",SUM(#REF!,#REF!,#REF!,#REF!)) -> 
A133: 127 | CO133: =IF(AND(#REF!="",#REF!="",#REF!="",#REF!=""),"",SUM(#REF!,#REF!,#REF!,#REF!,#REF!)) ->  | CU133: =IF(AND(#REF!="",#REF!="",#REF!="",#REF!=""),"",SUM(#REF!,#REF!,#REF!,#REF!,#REF!)) ->  | CW133: =IF(AND(#REF!="",#REF!="",#REF!="",#REF!=""),"",SUM(#REF!,#REF!,#REF!,#REF!)) -> 
A134: 128 | CO134: =IF(AND(#REF!="",#REF!="",#REF!="",#REF!=""),"",SUM(#REF!,#REF!,#REF!,#REF!,#REF!)) ->  | CU134: =IF(AND(#REF!="",#REF!="",#REF!="",#REF!=""),"",SUM(#REF!,#REF!,#REF!,#REF!,#REF!)) ->  | CW134: =IF(AND(#REF!="",#REF!="",#REF!="",#REF!=""),"",SUM(#REF!,#REF!,#REF!,#REF!)) -> 
A135: 129 | CO135: =IF(AND(#REF!="",#REF!="",#REF!="",#REF!=""),"",SUM(#REF!,#REF!,#REF!,#REF!,#REF!)) ->  | CU135: =IF(AND(#REF!="",#REF!="",#REF!="",#REF!=""),"",SUM(#REF!,#REF!,#REF!,#REF!,#REF!)) ->  | CW135: =IF(AND(#REF!="",#REF!="",#REF!="",#REF!=""),"",SUM(#REF!,#REF!,#REF!,#REF!)) -> 
A136: 130 | CJ136: =IF(I136="","",I136) ->  | CK136: =IF(AND(L136="",M136="",N136="",P136=""),"",SUM(L136,M136,N136,O136,P136)) ->  | CL136: =IFERROR(IF(CK136="","",ROUNDUP(CK136*20%,0)),"") ->  | CM136: =IF(AND(S136="",T136="",U136="",W136=""),"",SUM(S136,T136,U136,V136,W136)) ->  | CN136: =IFERROR(IF(CM136="","",ROUNDUP(CM136*20%,0)),"") ->  | CO136: =IF(AND(#REF!="",#REF!="",#REF!="",#REF!=""),"",SUM(#REF!,#REF!,#REF!,#REF!,#REF!)) ->  | CP136: =IFERROR(IF(CO136="","",ROUNDUP(CO136*20%,0)),"") ->  | CQ136: =IF(AND(Z136="",AA136="",AB136="",AD136=""),"",SUM(Z136,AA136,AB136,AC136,AD136)) ->  | CR136: =IFERROR(IF(CQ136="","",ROUNDUP(CQ136*20%,0)),"") ->  | CS136: =IF(AND(AG136="",AH136="",AI136="",AK136=""),"",SUM(AG136,AH136,AI136,AJ136,AK136)) ->  | CT136: =IFERROR(IF(CS136="","",ROUNDUP(CS136*20%,0)),"") ->  | CU136: =IF(AND(#REF!="",#REF!="",#REF!="",#REF!=""),"",SUM(#REF!,#REF!,#REF!,#REF!,#REF!)) ->  | CV136: =IFERROR(IF(CU136="","",ROUNDUP(CU136*20%,0)),"") ->  | CW136: =IF(AND(#REF!="",#REF!="",#REF!="",#REF!=""),"",SUM(#REF!,#REF!,#REF!,#REF!)) -> 
A137: 131 | CO137: =IF(AND(#REF!="",#REF!="",#REF!="",#REF!=""),"",SUM(#REF!,#REF!,#REF!,#REF!,#REF!)) ->  | CU137: =IF(AND(#REF!="",#REF!="",#REF!="",#REF!=""),"",SUM(#REF!,#REF!,#REF!,#REF!,#REF!)) ->  | CW137: =IF(AND(#REF!="",#REF!="",#REF!="",#REF!=""),"",SUM(#REF!,#REF!,#REF!,#REF!)) -> 
A138: 132 | CO138: =IF(AND(#REF!="",#REF!="",#REF!="",#REF!=""),"",SUM(#REF!,#REF!,#REF!,#REF!,#REF!)) ->  | CU138: =IF(AND(#REF!="",#REF!="",#REF!="",#REF!=""),"",SUM(#REF!,#REF!,#REF!,#REF!,#REF!)) ->  | CW138: =IF(AND(#REF!="",#REF!="",#REF!="",#REF!=""),"",SUM(#REF!,#REF!,#REF!,#REF!)) -> 
A139: 133 | CO139: =IF(AND(#REF!="",#REF!="",#REF!="",#REF!=""),"",SUM(#REF!,#REF!,#REF!,#REF!,#REF!)) ->  | CU139: =IF(AND(#REF!="",#REF!="",#REF!="",#REF!=""),"",SUM(#REF!,#REF!,#REF!,#REF!,#REF!)) ->  | CW139: =IF(AND(#REF!="",#REF!="",#REF!="",#REF!=""),"",SUM(#REF!,#REF!,#REF!,#REF!)) -> 
A140: 134 | CO140: =IF(AND(#REF!="",#REF!="",#REF!="",#REF!=""),"",SUM(#REF!,#REF!,#REF!,#REF!,#REF!)) ->  | CU140: =IF(AND(#REF!="",#REF!="",#REF!="",#REF!=""),"",SUM(#REF!,#REF!,#REF!,#REF!,#REF!)) ->  | CW140: =IF(AND(#REF!="",#REF!="",#REF!="",#REF!=""),"",SUM(#REF!,#REF!,#REF!,#REF!)) -> 
A141: 135 | CO141: =IF(AND(#REF!="",#REF!="",#REF!="",#REF!=""),"",SUM(#REF!,#REF!,#REF!,#REF!,#REF!)) ->  | CU141: =IF(AND(#REF!="",#REF!="",#REF!="",#REF!=""),"",SUM(#REF!,#REF!,#REF!,#REF!,#REF!)) ->  | CW141: =IF(AND(#REF!="",#REF!="",#REF!="",#REF!=""),"",SUM(#REF!,#REF!,#REF!,#REF!)) -> 
A142: 136 | CO142: =IF(AND(#REF!="",#REF!="",#REF!="",#REF!=""),"",SUM(#REF!,#REF!,#REF!,#REF!,#REF!)) ->  | CU142: =IF(AND(#REF!="",#REF!="",#REF!="",#REF!=""),"",SUM(#REF!,#REF!,#REF!,#REF!,#REF!)) ->  | CW142: =IF(AND(#REF!="",#REF!="",#REF!="",#REF!=""),"",SUM(#REF!,#REF!,#REF!,#REF!)) -> 
A143: 137 | CO143: =IF(AND(#REF!="",#REF!="",#REF!="",#REF!=""),"",SUM(#REF!,#REF!,#REF!,#REF!,#REF!)) ->  | CU143: =IF(AND(#REF!="",#REF!="",#REF!="",#REF!=""),"",SUM(#REF!,#REF!,#REF!,#REF!,#REF!)) ->  | CW143: =IF(AND(#REF!="",#REF!="",#REF!="",#REF!=""),"",SUM(#REF!,#REF!,#REF!,#REF!)) -> 
A144: 138 | CO144: =IF(AND(#REF!="",#REF!="",#REF!="",#REF!=""),"",SUM(#REF!,#REF!,#REF!,#REF!,#REF!)) ->  | CU144: =IF(AND(#REF!="",#REF!="",#REF!="",#REF!=""),"",SUM(#REF!,#REF!,#REF!,#REF!,#REF!)) ->  | CW144: =IF(AND(#REF!="",#REF!="",#REF!="",#REF!=""),"",SUM(#REF!,#REF!,#REF!,#REF!)) -> 
A145: 139 | CO145: =IF(AND(#REF!="",#REF!="",#REF!="",#REF!=""),"",SUM(#REF!,#REF!,#REF!,#REF!,#REF!)) ->  | CU145: =IF(AND(#REF!="",#REF!="",#REF!="",#REF!=""),"",SUM(#REF!,#REF!,#REF!,#REF!,#REF!)) ->  | CW145: =IF(AND(#REF!="",#REF!="",#REF!="",#REF!=""),"",SUM(#REF!,#REF!,#REF!,#REF!)) -> 
A146: 140 | CO146: =IF(AND(#REF!="",#REF!="",#REF!="",#REF!=""),"",SUM(#REF!,#REF!,#REF!,#REF!,#REF!)) ->  | CU146: =IF(AND(#REF!="",#REF!="",#REF!="",#REF!=""),"",SUM(#REF!,#REF!,#REF!,#REF!,#REF!)) ->  | CW146: =IF(AND(#REF!="",#REF!="",#REF!="",#REF!=""),"",SUM(#REF!,#REF!,#REF!,#REF!)) -> 
A147: 141 | CO147: =IF(AND(#REF!="",#REF!="",#REF!="",#REF!=""),"",SUM(#REF!,#REF!,#REF!,#REF!,#REF!)) ->  | CU147: =IF(AND(#REF!="",#REF!="",#REF!="",#REF!=""),"",SUM(#REF!,#REF!,#REF!,#REF!,#REF!)) ->  | CW147: =IF(AND(#REF!="",#REF!="",#REF!="",#REF!=""),"",SUM(#REF!,#REF!,#REF!,#REF!)) -> 
A148: 142 | CO148: =IF(AND(#REF!="",#REF!="",#REF!="",#REF!=""),"",SUM(#REF!,#REF!,#REF!,#REF!,#REF!)) ->  | CU148: =IF(AND(#REF!="",#REF!="",#REF!="",#REF!=""),"",SUM(#REF!,#REF!,#REF!,#REF!,#REF!)) ->  | CW148: =IF(AND(#REF!="",#REF!="",#REF!="",#REF!=""),"",SUM(#REF!,#REF!,#REF!,#REF!)) -> 
A149: 143 | CO149: =IF(AND(#REF!="",#REF!="",#REF!="",#REF!=""),"",SUM(#REF!,#REF!,#REF!,#REF!,#REF!)) ->  | CU149: =IF(AND(#REF!="",#REF!="",#REF!="",#REF!=""),"",SUM(#REF!,#REF!,#REF!,#REF!,#REF!)) ->  | CW149: =IF(AND(#REF!="",#REF!="",#REF!="",#REF!=""),"",SUM(#REF!,#REF!,#REF!,#REF!)) -> 
A150: 144 | CO150: =IF(AND(#REF!="",#REF!="",#REF!="",#REF!=""),"",SUM(#REF!,#REF!,#REF!,#REF!,#REF!)) ->  | CU150: =IF(AND(#REF!="",#REF!="",#REF!="",#REF!=""),"",SUM(#REF!,#REF!,#REF!,#REF!,#REF!)) ->  | CW150: =IF(AND(#REF!="",#REF!="",#REF!="",#REF!=""),"",SUM(#REF!,#REF!,#REF!,#REF!)) -> 
A151: 145 | CO151: =IF(AND(#REF!="",#REF!="",#REF!="",#REF!=""),"",SUM(#REF!,#REF!,#REF!,#REF!,#REF!)) ->  | CU151: =IF(AND(#REF!="",#REF!="",#REF!="",#REF!=""),"",SUM(#REF!,#REF!,#REF!,#REF!,#REF!)) ->  | CW151: =IF(AND(#REF!="",#REF!="",#REF!="",#REF!=""),"",SUM(#REF!,#REF!,#REF!,#REF!)) -> 
A152: 146 | CO152: =IF(AND(#REF!="",#REF!="",#REF!="",#REF!=""),"",SUM(#REF!,#REF!,#REF!,#REF!,#REF!)) ->  | CU152: =IF(AND(#REF!="",#REF!="",#REF!="",#REF!=""),"",SUM(#REF!,#REF!,#REF!,#REF!,#REF!)) ->  | CW152: =IF(AND(#REF!="",#REF!="",#REF!="",#REF!=""),"",SUM(#REF!,#REF!,#REF!,#REF!)) -> 
A153: 147 | CO153: =IF(AND(#REF!="",#REF!="",#REF!="",#REF!=""),"",SUM(#REF!,#REF!,#REF!,#REF!,#REF!)) ->  | CU153: =IF(AND(#REF!="",#REF!="",#REF!="",#REF!=""),"",SUM(#REF!,#REF!,#REF!,#REF!,#REF!)) ->  | CW153: =IF(AND(#REF!="",#REF!="",#REF!="",#REF!=""),"",SUM(#REF!,#REF!,#REF!,#REF!)) -> 
A154: 148 | CO154: =IF(AND(#REF!="",#REF!="",#REF!="",#REF!=""),"",SUM(#REF!,#REF!,#REF!,#REF!,#REF!)) ->  | CU154: =IF(AND(#REF!="",#REF!="",#REF!="",#REF!=""),"",SUM(#REF!,#REF!,#REF!,#REF!,#REF!)) ->  | CW154: =IF(AND(#REF!="",#REF!="",#REF!="",#REF!=""),"",SUM(#REF!,#REF!,#REF!,#REF!)) -> 
A155: 149 | CO155: =IF(AND(#REF!="",#REF!="",#REF!="",#REF!=""),"",SUM(#REF!,#REF!,#REF!,#REF!,#REF!)) ->  | CU155: =IF(AND(#REF!="",#REF!="",#REF!="",#REF!=""),"",SUM(#REF!,#REF!,#REF!,#REF!,#REF!)) ->  | CW155: =IF(AND(#REF!="",#REF!="",#REF!="",#REF!=""),"",SUM(#REF!,#REF!,#REF!,#REF!)) -> 
A156: 150 | CO156: =IF(AND(#REF!="",#REF!="",#REF!="",#REF!=""),"",SUM(#REF!,#REF!,#REF!,#REF!,#REF!)) ->  | CU156: =IF(AND(#REF!="",#REF!="",#REF!="",#REF!=""),"",SUM(#REF!,#REF!,#REF!,#REF!,#REF!)) ->  | CW156: =IF(AND(#REF!="",#REF!="",#REF!="",#REF!=""),"",SUM(#REF!,#REF!,#REF!,#REF!)) -> 
A157: 151 | CO157: =IF(AND(#REF!="",#REF!="",#REF!="",#REF!=""),"",SUM(#REF!,#REF!,#REF!,#REF!,#REF!)) ->  | CU157: =IF(AND(#REF!="",#REF!="",#REF!="",#REF!=""),"",SUM(#REF!,#REF!,#REF!,#REF!,#REF!)) ->  | CW157: =IF(AND(#REF!="",#REF!="",#REF!="",#REF!=""),"",SUM(#REF!,#REF!,#REF!,#REF!)) -> 
A158: 152 | CO158: =IF(AND(#REF!="",#REF!="",#REF!="",#REF!=""),"",SUM(#REF!,#REF!,#REF!,#REF!,#REF!)) ->  | CU158: =IF(AND(#REF!="",#REF!="",#REF!="",#REF!=""),"",SUM(#REF!,#REF!,#REF!,#REF!,#REF!)) ->  | CW158: =IF(AND(#REF!="",#REF!="",#REF!="",#REF!=""),"",SUM(#REF!,#REF!,#REF!,#REF!)) -> 
A159: 153 | CO159: =IF(AND(#REF!="",#REF!="",#REF!="",#REF!=""),"",SUM(#REF!,#REF!,#REF!,#REF!,#REF!)) ->  | CU159: =IF(AND(#REF!="",#REF!="",#REF!="",#REF!=""),"",SUM(#REF!,#REF!,#REF!,#REF!,#REF!)) ->  | CW159: =IF(AND(#REF!="",#REF!="",#REF!="",#REF!=""),"",SUM(#REF!,#REF!,#REF!,#REF!)) -> 
A160: 154 | CO160: =IF(AND(#REF!="",#REF!="",#REF!="",#REF!=""),"",SUM(#REF!,#REF!,#REF!,#REF!,#REF!)) ->  | CU160: =IF(AND(#REF!="",#REF!="",#REF!="",#REF!=""),"",SUM(#REF!,#REF!,#REF!,#REF!,#REF!)) ->  | CW160: =IF(AND(#REF!="",#REF!="",#REF!="",#REF!=""),"",SUM(#REF!,#REF!,#REF!,#REF!)) -> 
A161: 155 | CO161: =IF(AND(#REF!="",#REF!="",#REF!="",#REF!=""),"",SUM(#REF!,#REF!,#REF!,#REF!,#REF!)) ->  | CU161: =IF(AND(#REF!="",#REF!="",#REF!="",#REF!=""),"",SUM(#REF!,#REF!,#REF!,#REF!,#REF!)) ->  | CW161: =IF(AND(#REF!="",#REF!="",#REF!="",#REF!=""),"",SUM(#REF!,#REF!,#REF!,#REF!)) -> 
A162: 156 | CO162: =IF(AND(#REF!="",#REF!="",#REF!="",#REF!=""),"",SUM(#REF!,#REF!,#REF!,#REF!,#REF!)) ->  | CU162: =IF(AND(#REF!="",#REF!="",#REF!="",#REF!=""),"",SUM(#REF!,#REF!,#REF!,#REF!,#REF!)) ->  | CW162: =IF(AND(#REF!="",#REF!="",#REF!="",#REF!=""),"",SUM(#REF!,#REF!,#REF!,#REF!)) -> 
A163: 157 | CO163: =IF(AND(#REF!="",#REF!="",#REF!="",#REF!=""),"",SUM(#REF!,#REF!,#REF!,#REF!,#REF!)) ->  | CU163: =IF(AND(#REF!="",#REF!="",#REF!="",#REF!=""),"",SUM(#REF!,#REF!,#REF!,#REF!,#REF!)) ->  | CW163: =IF(AND(#REF!="",#REF!="",#REF!="",#REF!=""),"",SUM(#REF!,#REF!,#REF!,#REF!)) -> 
A164: 158 | CO164: =IF(AND(#REF!="",#REF!="",#REF!="",#REF!=""),"",SUM(#REF!,#REF!,#REF!,#REF!,#REF!)) ->  | CU164: =IF(AND(#REF!="",#REF!="",#REF!="",#REF!=""),"",SUM(#REF!,#REF!,#REF!,#REF!,#REF!)) ->  | CW164: =IF(AND(#REF!="",#REF!="",#REF!="",#REF!=""),"",SUM(#REF!,#REF!,#REF!,#REF!)) -> 
A165: 159 | CO165: =IF(AND(#REF!="",#REF!="",#REF!="",#REF!=""),"",SUM(#REF!,#REF!,#REF!,#REF!,#REF!)) ->  | CU165: =IF(AND(#REF!="",#REF!="",#REF!="",#REF!=""),"",SUM(#REF!,#REF!,#REF!,#REF!,#REF!)) ->  | CW165: =IF(AND(#REF!="",#REF!="",#REF!="",#REF!=""),"",SUM(#REF!,#REF!,#REF!,#REF!)) -> 
A166: 160 | CO166: =IF(AND(#REF!="",#REF!="",#REF!="",#REF!=""),"",SUM(#REF!,#REF!,#REF!,#REF!,#REF!)) ->  | CU166: =IF(AND(#REF!="",#REF!="",#REF!="",#REF!=""),"",SUM(#REF!,#REF!,#REF!,#REF!,#REF!)) ->  | CW166: =IF(AND(#REF!="",#REF!="",#REF!="",#REF!=""),"",SUM(#REF!,#REF!,#REF!,#REF!)) -> 
A167: 161 | CO167: =IF(AND(#REF!="",#REF!="",#REF!="",#REF!=""),"",SUM(#REF!,#REF!,#REF!,#REF!,#REF!)) ->  | CU167: =IF(AND(#REF!="",#REF!="",#REF!="",#REF!=""),"",SUM(#REF!,#REF!,#REF!,#REF!,#REF!)) ->  | CW167: =IF(AND(#REF!="",#REF!="",#REF!="",#REF!=""),"",SUM(#REF!,#REF!,#REF!,#REF!)) -> 
A168: 162 | CO168: =IF(AND(#REF!="",#REF!="",#REF!="",#REF!=""),"",SUM(#REF!,#REF!,#REF!,#REF!,#REF!)) ->  | CU168: =IF(AND(#REF!="",#REF!="",#REF!="",#REF!=""),"",SUM(#REF!,#REF!,#REF!,#REF!,#REF!)) ->  | CW168: =IF(AND(#REF!="",#REF!="",#REF!="",#REF!=""),"",SUM(#REF!,#REF!,#REF!,#REF!)) -> 
A169: 163 | CO169: =IF(AND(#REF!="",#REF!="",#REF!="",#REF!=""),"",SUM(#REF!,#REF!,#REF!,#REF!,#REF!)) ->  | CU169: =IF(AND(#REF!="",#REF!="",#REF!="",#REF!=""),"",SUM(#REF!,#REF!,#REF!,#REF!,#REF!)) ->  | CW169: =IF(AND(#REF!="",#REF!="",#REF!="",#REF!=""),"",SUM(#REF!,#REF!,#REF!,#REF!)) -> 
A170: 164 | CO170: =IF(AND(#REF!="",#REF!="",#REF!="",#REF!=""),"",SUM(#REF!,#REF!,#REF!,#REF!,#REF!)) ->  | CU170: =IF(AND(#REF!="",#REF!="",#REF!="",#REF!=""),"",SUM(#REF!,#REF!,#REF!,#REF!,#REF!)) ->  | CW170: =IF(AND(#REF!="",#REF!="",#REF!="",#REF!=""),"",SUM(#REF!,#REF!,#REF!,#REF!)) -> 
A171: 165 | CO171: =IF(AND(#REF!="",#REF!="",#REF!="",#REF!=""),"",SUM(#REF!,#REF!,#REF!,#REF!,#REF!)) ->  | CU171: =IF(AND(#REF!="",#REF!="",#REF!="",#REF!=""),"",SUM(#REF!,#REF!,#REF!,#REF!,#REF!)) ->  | CW171: =IF(AND(#REF!="",#REF!="",#REF!="",#REF!=""),"",SUM(#REF!,#REF!,#REF!,#REF!)) -> 
A172: 166 | CO172: =IF(AND(#REF!="",#REF!="",#REF!="",#REF!=""),"",SUM(#REF!,#REF!,#REF!,#REF!,#REF!)) ->  | CU172: =IF(AND(#REF!="",#REF!="",#REF!="",#REF!=""),"",SUM(#REF!,#REF!,#REF!,#REF!,#REF!)) ->  | CW172: =IF(AND(#REF!="",#REF!="",#REF!="",#REF!=""),"",SUM(#REF!,#REF!,#REF!,#REF!)) -> 
A173: 167 | CO173: =IF(AND(#REF!="",#REF!="",#REF!="",#REF!=""),"",SUM(#REF!,#REF!,#REF!,#REF!,#REF!)) ->  | CU173: =IF(AND(#REF!="",#REF!="",#REF!="",#REF!=""),"",SUM(#REF!,#REF!,#REF!,#REF!,#REF!)) ->  | CW173: =IF(AND(#REF!="",#REF!="",#REF!="",#REF!=""),"",SUM(#REF!,#REF!,#REF!,#REF!)) -> 
A174: 168 | CO174: =IF(AND(#REF!="",#REF!="",#REF!="",#REF!=""),"",SUM(#REF!,#REF!,#REF!,#REF!,#REF!)) ->  | CU174: =IF(AND(#REF!="",#REF!="",#REF!="",#REF!=""),"",SUM(#REF!,#REF!,#REF!,#REF!,#REF!)) ->  | CW174: =IF(AND(#REF!="",#REF!="",#REF!="",#REF!=""),"",SUM(#REF!,#REF!,#REF!,#REF!)) -> 
A175: 169 | CO175: =IF(AND(#REF!="",#REF!="",#REF!="",#REF!=""),"",SUM(#REF!,#REF!,#REF!,#REF!,#REF!)) ->  | CU175: =IF(AND(#REF!="",#REF!="",#REF!="",#REF!=""),"",SUM(#REF!,#REF!,#REF!,#REF!,#REF!)) ->  | CW175: =IF(AND(#REF!="",#REF!="",#REF!="",#REF!=""),"",SUM(#REF!,#REF!,#REF!,#REF!)) -> 
A176: 170 | CO176: =IF(AND(#REF!="",#REF!="",#REF!="",#REF!=""),"",SUM(#REF!,#REF!,#REF!,#REF!,#REF!)) ->  | CU176: =IF(AND(#REF!="",#REF!="",#REF!="",#REF!=""),"",SUM(#REF!,#REF!,#REF!,#REF!,#REF!)) ->  | CW176: =IF(AND(#REF!="",#REF!="",#REF!="",#REF!=""),"",SUM(#REF!,#REF!,#REF!,#REF!)) -> 
A177: 171 | CO177: =IF(AND(#REF!="",#REF!="",#REF!="",#REF!=""),"",SUM(#REF!,#REF!,#REF!,#REF!,#REF!)) ->  | CU177: =IF(AND(#REF!="",#REF!="",#REF!="",#REF!=""),"",SUM(#REF!,#REF!,#REF!,#REF!,#REF!)) ->  | CW177: =IF(AND(#REF!="",#REF!="",#REF!="",#REF!=""),"",SUM(#REF!,#REF!,#REF!,#REF!)) -> 
A178: 172 | CO178: =IF(AND(#REF!="",#REF!="",#REF!="",#REF!=""),"",SUM(#REF!,#REF!,#REF!,#REF!,#REF!)) ->  | CU178: =IF(AND(#REF!="",#REF!="",#REF!="",#REF!=""),"",SUM(#REF!,#REF!,#REF!,#REF!,#REF!)) ->  | CW178: =IF(AND(#REF!="",#REF!="",#REF!="",#REF!=""),"",SUM(#REF!,#REF!,#REF!,#REF!)) -> 
A179: 173 | CO179: =IF(AND(#REF!="",#REF!="",#REF!="",#REF!=""),"",SUM(#REF!,#REF!,#REF!,#REF!,#REF!)) ->  | CU179: =IF(AND(#REF!="",#REF!="",#REF!="",#REF!=""),"",SUM(#REF!,#REF!,#REF!,#REF!,#REF!)) ->  | CW179: =IF(AND(#REF!="",#REF!="",#REF!="",#REF!=""),"",SUM(#REF!,#REF!,#REF!,#REF!)) -> 
A180: 174 | CO180: =IF(AND(#REF!="",#REF!="",#REF!="",#REF!=""),"",SUM(#REF!,#REF!,#REF!,#REF!,#REF!)) ->  | CU180: =IF(AND(#REF!="",#REF!="",#REF!="",#REF!=""),"",SUM(#REF!,#REF!,#REF!,#REF!,#REF!)) ->  | CW180: =IF(AND(#REF!="",#REF!="",#REF!="",#REF!=""),"",SUM(#REF!,#REF!,#REF!,#REF!)) -> 
A181: 175 | CO181: =IF(AND(#REF!="",#REF!="",#REF!="",#REF!=""),"",SUM(#REF!,#REF!,#REF!,#REF!,#REF!)) ->  | CU181: =IF(AND(#REF!="",#REF!="",#REF!="",#REF!=""),"",SUM(#REF!,#REF!,#REF!,#REF!,#REF!)) ->  | CW181: =IF(AND(#REF!="",#REF!="",#REF!="",#REF!=""),"",SUM(#REF!,#REF!,#REF!,#REF!)) -> 
A182: 176 | CO182: =IF(AND(#REF!="",#REF!="",#REF!="",#REF!=""),"",SUM(#REF!,#REF!,#REF!,#REF!,#REF!)) ->  | CU182: =IF(AND(#REF!="",#REF!="",#REF!="",#REF!=""),"",SUM(#REF!,#REF!,#REF!,#REF!,#REF!)) ->  | CW182: =IF(AND(#REF!="",#REF!="",#REF!="",#REF!=""),"",SUM(#REF!,#REF!,#REF!,#REF!)) -> 
A183: 177 | CO183: =IF(AND(#REF!="",#REF!="",#REF!="",#REF!=""),"",SUM(#REF!,#REF!,#REF!,#REF!,#REF!)) ->  | CU183: =IF(AND(#REF!="",#REF!="",#REF!="",#REF!=""),"",SUM(#REF!,#REF!,#REF!,#REF!,#REF!)) ->  | CW183: =IF(AND(#REF!="",#REF!="",#REF!="",#REF!=""),"",SUM(#REF!,#REF!,#REF!,#REF!)) -> 
A184: 178 | CO184: =IF(AND(#REF!="",#REF!="",#REF!="",#REF!=""),"",SUM(#REF!,#REF!,#REF!,#REF!,#REF!)) ->  | CU184: =IF(AND(#REF!="",#REF!="",#REF!="",#REF!=""),"",SUM(#REF!,#REF!,#REF!,#REF!,#REF!)) ->  | CW184: =IF(AND(#REF!="",#REF!="",#REF!="",#REF!=""),"",SUM(#REF!,#REF!,#REF!,#REF!)) -> 
A185: 179 | CO185: =IF(AND(#REF!="",#REF!="",#REF!="",#REF!=""),"",SUM(#REF!,#REF!,#REF!,#REF!,#REF!)) ->  | CU185: =IF(AND(#REF!="",#REF!="",#REF!="",#REF!=""),"",SUM(#REF!,#REF!,#REF!,#REF!,#REF!)) ->  | CW185: =IF(AND(#REF!="",#REF!="",#REF!="",#REF!=""),"",SUM(#REF!,#REF!,#REF!,#REF!)) -> 
A186: 180 | CO186: =IF(AND(#REF!="",#REF!="",#REF!="",#REF!=""),"",SUM(#REF!,#REF!,#REF!,#REF!,#REF!)) ->  | CU186: =IF(AND(#REF!="",#REF!="",#REF!="",#REF!=""),"",SUM(#REF!,#REF!,#REF!,#REF!,#REF!)) ->  | CW186: =IF(AND(#REF!="",#REF!="",#REF!="",#REF!=""),"",SUM(#REF!,#REF!,#REF!,#REF!)) -> 
A187: 181 | CO187: =IF(AND(#REF!="",#REF!="",#REF!="",#REF!=""),"",SUM(#REF!,#REF!,#REF!,#REF!,#REF!)) ->  | CU187: =IF(AND(#REF!="",#REF!="",#REF!="",#REF!=""),"",SUM(#REF!,#REF!,#REF!,#REF!,#REF!)) ->  | CW187: =IF(AND(#REF!="",#REF!="",#REF!="",#REF!=""),"",SUM(#REF!,#REF!,#REF!,#REF!)) -> 
A188: 182 | CO188: =IF(AND(#REF!="",#REF!="",#REF!="",#REF!=""),"",SUM(#REF!,#REF!,#REF!,#REF!,#REF!)) ->  | CU188: =IF(AND(#REF!="",#REF!="",#REF!="",#REF!=""),"",SUM(#REF!,#REF!,#REF!,#REF!,#REF!)) ->  | CW188: =IF(AND(#REF!="",#REF!="",#REF!="",#REF!=""),"",SUM(#REF!,#REF!,#REF!,#REF!)) -> 
A189: 183 | CO189: =IF(AND(#REF!="",#REF!="",#REF!="",#REF!=""),"",SUM(#REF!,#REF!,#REF!,#REF!,#REF!)) ->  | CU189: =IF(AND(#REF!="",#REF!="",#REF!="",#REF!=""),"",SUM(#REF!,#REF!,#REF!,#REF!,#REF!)) ->  | CW189: =IF(AND(#REF!="",#REF!="",#REF!="",#REF!=""),"",SUM(#REF!,#REF!,#REF!,#REF!)) -> 
A190: 184 | CO190: =IF(AND(#REF!="",#REF!="",#REF!="",#REF!=""),"",SUM(#REF!,#REF!,#REF!,#REF!,#REF!)) ->  | CU190: =IF(AND(#REF!="",#REF!="",#REF!="",#REF!=""),"",SUM(#REF!,#REF!,#REF!,#REF!,#REF!)) ->  | CW190: =IF(AND(#REF!="",#REF!="",#REF!="",#REF!=""),"",SUM(#REF!,#REF!,#REF!,#REF!)) -> 
A191: 185 | CO191: =IF(AND(#REF!="",#REF!="",#REF!="",#REF!=""),"",SUM(#REF!,#REF!,#REF!,#REF!,#REF!)) ->  | CU191: =IF(AND(#REF!="",#REF!="",#REF!="",#REF!=""),"",SUM(#REF!,#REF!,#REF!,#REF!,#REF!)) ->  | CW191: =IF(AND(#REF!="",#REF!="",#REF!="",#REF!=""),"",SUM(#REF!,#REF!,#REF!,#REF!)) ->  | CX191: =IFERROR(IF(CW191="","",IF($CW$5=100,ROUNDUP(CW191*20%,0),IF($CW$5=86,ROUNDUP((CW191/$CW$5)*$CX$5,0),IF($CW$5=66,ROUNDUP((CW191/$CW$5)*$CX$5,0),"")))),"") -> 
A192: 186 | CO192: =IF(AND(#REF!="",#REF!="",#REF!="",#REF!=""),"",SUM(#REF!,#REF!,#REF!,#REF!,#REF!)) ->  | CU192: =IF(AND(#REF!="",#REF!="",#REF!="",#REF!=""),"",SUM(#REF!,#REF!,#REF!,#REF!,#REF!)) ->  | CW192: =IF(AND(#REF!="",#REF!="",#REF!="",#REF!=""),"",SUM(#REF!,#REF!,#REF!,#REF!)) -> 
A193: 187 | CO193: =IF(AND(#REF!="",#REF!="",#REF!="",#REF!=""),"",SUM(#REF!,#REF!,#REF!,#REF!,#REF!)) ->  | CU193: =IF(AND(#REF!="",#REF!="",#REF!="",#REF!=""),"",SUM(#REF!,#REF!,#REF!,#REF!,#REF!)) ->  | CW193: =IF(AND(#REF!="",#REF!="",#REF!="",#REF!=""),"",SUM(#REF!,#REF!,#REF!,#REF!)) -> 
A194: 188 | CO194: =IF(AND(#REF!="",#REF!="",#REF!="",#REF!=""),"",SUM(#REF!,#REF!,#REF!,#REF!,#REF!)) ->  | CU194: =IF(AND(#REF!="",#REF!="",#REF!="",#REF!=""),"",SUM(#REF!,#REF!,#REF!,#REF!,#REF!)) ->  | CW194: =IF(AND(#REF!="",#REF!="",#REF!="",#REF!=""),"",SUM(#REF!,#REF!,#REF!,#REF!)) -> 
A195: 189 | CO195: =IF(AND(#REF!="",#REF!="",#REF!="",#REF!=""),"",SUM(#REF!,#REF!,#REF!,#REF!,#REF!)) ->  | CU195: =IF(AND(#REF!="",#REF!="",#REF!="",#REF!=""),"",SUM(#REF!,#REF!,#REF!,#REF!,#REF!)) ->  | CW195: =IF(AND(#REF!="",#REF!="",#REF!="",#REF!=""),"",SUM(#REF!,#REF!,#REF!,#REF!)) -> 
A196: 190 | CO196: =IF(AND(#REF!="",#REF!="",#REF!="",#REF!=""),"",SUM(#REF!,#REF!,#REF!,#REF!,#REF!)) ->  | CU196: =IF(AND(#REF!="",#REF!="",#REF!="",#REF!=""),"",SUM(#REF!,#REF!,#REF!,#REF!,#REF!)) ->  | CW196: =IF(AND(#REF!="",#REF!="",#REF!="",#REF!=""),"",SUM(#REF!,#REF!,#REF!,#REF!)) -> 
A197: 191 | CO197: =IF(AND(#REF!="",#REF!="",#REF!="",#REF!=""),"",SUM(#REF!,#REF!,#REF!,#REF!,#REF!)) ->  | CU197: =IF(AND(#REF!="",#REF!="",#REF!="",#REF!=""),"",SUM(#REF!,#REF!,#REF!,#REF!,#REF!)) ->  | CW197: =IF(AND(#REF!="",#REF!="",#REF!="",#REF!=""),"",SUM(#REF!,#REF!,#REF!,#REF!)) -> 
A198: 192 | CO198: =IF(AND(#REF!="",#REF!="",#REF!="",#REF!=""),"",SUM(#REF!,#REF!,#REF!,#REF!,#REF!)) ->  | CU198: =IF(AND(#REF!="",#REF!="",#REF!="",#REF!=""),"",SUM(#REF!,#REF!,#REF!,#REF!,#REF!)) ->  | CW198: =IF(AND(#REF!="",#REF!="",#REF!="",#REF!=""),"",SUM(#REF!,#REF!,#REF!,#REF!)) -> 
A199: 193 | CO199: =IF(AND(#REF!="",#REF!="",#REF!="",#REF!=""),"",SUM(#REF!,#REF!,#REF!,#REF!,#REF!)) ->  | CU199: =IF(AND(#REF!="",#REF!="",#REF!="",#REF!=""),"",SUM(#REF!,#REF!,#REF!,#REF!,#REF!)) ->  | CW199: =IF(AND(#REF!="",#REF!="",#REF!="",#REF!=""),"",SUM(#REF!,#REF!,#REF!,#REF!)) -> 
A200: 194 | CJ200: =IF(I200="","",I200) ->  | CK200: =IF(AND(L200="",M200="",N200="",P200=""),"",SUM(L200,M200,N200,O200,P200)) ->  | CL200: =IFERROR(IF(CK200="","",ROUNDUP(CK200*20%,0)),"") ->  | CM200: =IF(AND(S200="",T200="",U200="",W200=""),"",SUM(S200,T200,U200,V200,W200)) ->  | CN200: =IFERROR(IF(CM200="","",ROUNDUP(CM200*20%,0)),"") ->  | CO200: =IF(AND(#REF!="",#REF!="",#REF!="",#REF!=""),"",SUM(#REF!,#REF!,#REF!,#REF!,#REF!)) ->  | CP200: =IFERROR(IF(CO200="","",ROUNDUP(CO200*20%,0)),"") ->  | CQ200: =IF(AND(Z200="",AA200="",AB200="",AD200=""),"",SUM(Z200,AA200,AB200,AC200,AD200)) ->  | CR200: =IFERROR(IF(CQ200="","",ROUNDUP(CQ200*20%,0)),"") ->  | CS200: =IF(AND(AG200="",AH200="",AI200="",AK200=""),"",SUM(AG200,AH200,AI200,AJ200,AK200)) ->  | CT200: =IFERROR(IF(CS200="","",ROUNDUP(CS200*20%,0)),"") ->  | CU200: =IF(AND(#REF!="",#REF!="",#REF!="",#REF!=""),"",SUM(#REF!,#REF!,#REF!,#REF!,#REF!)) ->  | CV200: =IFERROR(IF(CU200="","",ROUNDUP(CU200*20%,0)),"") ->  | CW200: =IF(AND(#REF!="",#REF!="",#REF!="",#REF!=""),"",SUM(#REF!,#REF!,#REF!,#REF!)) -> 
... 6 more rows

Sheet Result Sheet
G1: जिस क्लास की रिजल्ट शीट चाहिए, पीले कलर की सेल में वो क्लास सलेक्ट करें I यहाँ पर जो क्लास शो होगी, रिपोर्ट कार्ड तथा अन्य रिपोर्ट उसी कक्षा के प्रिंट होंगे I
A2: =IF('Master sheet'!D14="Hindi","विद्यालय का नाम :-","School Name :- ") -> विद्यालय का नाम :- | F2: =IF('Master sheet'!D14="Hindi",'Master sheet'!D8,'Master sheet'!D7) -> महात्मा गाँधी राजकीय विद्यालय (अंग्रेजी माध्यम) बर, ब्यावर
A3: =IF('Master sheet'!D14="Hindi","कक्षा :-","CLASS :- ") -> कक्षा :- | D3: 0 | E3: 3rd | G3: =IF('Master sheet'!D14="Hindi","सत्र :- ","Session :- ") -> सत्र :- | H3: 0 | I3: 0 | J3: ='Class 3rd'!I2 -> 2024-2025 | CF3: =IF('Master sheet'!$D$14="Hindi","अतिरिक्त विषय ","Extra Subject") -> अतिरिक्त विषय
A4: =IF('Master sheet'!D14="Hindi","विद्यार्थी विवरण","Student Detail") -> विद्यार्थी विवरण | P4: =IF('Master sheet'!$D$14="Hindi","हिंदी","Hindi") -> हिंदी | S4: =IF(AND($E$3="Nursery"),UPPER('Class 3rd'!O3),IF(AND($E$3="LKG"),UPPER('Class 4th'!P3),IF(AND($E$3="UKG"),UPPER('Class 4th'!P3),""))) ->  | AH4: =IF('Master sheet'!$D$14="Hindi","अंग्रेजी","English") -> अंग्रेजी | AK4: =IF(AND($E$3="Nursery"),UPPER('Class 3rd'!V3),IF(AND($E$3="LKG"),UPPER('Class 4th'!W3),IF(AND($E$3="UKG"),UPPER('Class 4th'!W3),""))) ->  | AZ4: =IF('Master sheet'!$D$14="Hindi","गणित","Maths") -> गणित | BC4: =IF(AND($E$3="Nursery"),UPPER('Class 3rd'!AC3),IF(AND($E$3="LKG"),UPPER('Class 4th'!AD3),IF(AND($E$3="UKG"),UPPER('Class 4th'!AD3),""))) ->  | BR4: =IF('Master sheet'!$D$14="Hindi","पर्यावरण अध्ययन","EVS") -> पर्यावरण अध्ययन | CF4: =IF('Master sheet'!$D$14="Hindi","कंप्यूटर","Computer") -> कंप्यूटर | CV4: =IF('Master sheet'!$D$14="Hindi","सामान्य ज्ञान","G.K.") -> सामान्य ज्ञान | DL4: =IF('[1]Master sheet'!$D$11="Hindi","कार्यानुभव","WORK EXP.") -> कार्यानुभव | DV4: =IF('[1]Master sheet'!$D$11="Hindi","कला शिक्षा","ART EDU.") -> कला शिक्षा | EF4: =IF('[1]Master sheet'!$D$11="Hindi","स्वा. एवं शा. शिक्षा","HE.&PH. EDU.") -> स्वा. एवं शा. शिक्षा | EP4: =IF('Master sheet'!$D$14="Hindi","कुल विषय योग","Grand Total") -> कुल विषय योग | EQ4: =IF('Master sheet'!$D$14="Hindi","प्रतिशत","Percentage") -> प्रतिशत | ER4: =IF('Master sheet'!$D$14="Hindi","श्रेणी ","Division") -> श्रेणी | ES4: =IF('Master sheet'!$D$14="Hindi","कक्षा में स्थान","Position in the Class") -> कक्षा में स्थान | ET4: =IF('Master sheet'!$D$14="Hindi","परीक्षा परिणाम","Results") -> परीक्षा परिणाम | EU4: =IF('Master sheet'!$D$14="Hindi","उपस्थिति","Attendance") -> उपस्थिति | EW4: =IF('Master sheet'!$D$14="Hindi","ग्रेड","Grade") -> ग्रेड | EX4: =IF('Master sheet'!$D$14="Hindi","विशेष विवरण","Specifications") -> विशेष विवरण
A5: =IF('Master sheet'!D14="Hindi","क्र. स.","Sr. No. ") -> क्र. स. | B5: =IF('Master sheet'!D14="Hindi","नामांक","Roll No.") -> नामांक | C5: =IF('Master sheet'!D14="Hindi","कक्षा","CLASS ") -> कक्षा | D5: =IF('Master sheet'!D14="Hindi","सेक्शन","Section ") -> सेक्शन | E5: =IF('Master sheet'!D14="Hindi","जन्म दिनांक","Date of Birth") -> जन्म दिनांक | F5: =IF('Master sheet'!D14="Hindi","प्रवेशांक","SR. NO.") -> प्रवेशांक | G5: =IF('Master sheet'!D14="Hindi","विद्यार्थी का नाम","Student's Name") -> विद्यार्थी का नाम | H5: =IF('Master sheet'!D14="Hindi","पिता का नाम","Father's Name") -> पिता का नाम | I5: =IF('Master sheet'!D14="Hindi","माता का नाम ","Mother's Name") -> माता का नाम | L5: =IF('Master sheet'!$D$14="Hindi","सामयिक परख","Test") -> सामयिक परख | P5: =IF('Master sheet'!$D$14="Hindi","अर्द्धवार्षिक","Half Yearly") -> अर्द्धवार्षिक | S5: =IF('Master sheet'!$D$14="Hindi","अर्द्ध वा. तक योग","Total Till H.Y.") -> अर्द्ध वा. तक योग | T5: =IF('Master sheet'!$D$14="Hindi","वार्षिक","Yearly") -> वार्षिक | W5: =IF('Master sheet'!$D$14="Hindi","विषय कुल योग ","Subject Total") -> विषय कुल योग | X5: EXEMPTION | Y5: SUBJECT MM | Z5: 2T+E OR 2E+T | AA5: SUBJECT RESULT | AB5: SUBJECT DIVISION | AC5: =IF('Master sheet'!$D$14="Hindi","ग्रेड","Grade") -> ग्रेड | AD5: =IF('Master sheet'!$D$14="Hindi","सामयिक परख","Test") -> सामयिक परख | AH5: =IF('Master sheet'!$D$14="Hindi","अर्द्धवार्षिक","Half Yearly") -> अर्द्धवार्षिक | AK5: =IF('Master sheet'!$D$14="Hindi","अर्द्ध वा. तक योग","Total Till H.Y.") -> अर्द्ध वा. तक योग | AL5: =IF('Master sheet'!$D$14="Hindi","वार्षिक","Yearly") -> वार्षिक | AO5: =IF('Master sheet'!$D$14="Hindi","विषय कुल योग ","Subject Total") -> विषय कुल योग | AP5: EXEMPTION | AQ5: SUBJECT MM | AR5: 2T+E OR 2E+T | AS5: SUBJECT RESULT | AT5: SUBJECT DIVISION | AU5: =IF('Master sheet'!$D$14="Hindi","ग्रेड","Grade") -> ग्रेड | AV5: =IF('Master sheet'!$D$14="Hindi","सामयिक परख","Test") -> सामयिक परख | AZ5: =IF('Master sheet'!$D$14="Hindi","अर्द्धवार्षिक","Half Yearly") -> अर्द्धवार्षिक | BC5: =IF('Master sheet'!$D$14="Hindi","अर्द्ध वा. तक योग","Total Till H.Y.") -> अर्द्ध वा. तक योग | BD5: =IF('Master sheet'!$D$14="Hindi","वार्षिक","Yearly") -> वार्षिक | BG5: =IF('Master sheet'!$D$14="Hindi","विषय कुल योग ","Subject Total") -> विषय कुल योग | BH5: EXEMPTION | BI5: SUBJECT MM | BJ5: 2T+E OR 2E+T | BK5: SUBJECT RESULT | BL5: SUBJECT DIVISION | BM5: =IF('Master sheet'!$D$14="Hindi","ग्रेड","Grade") -> ग्रेड | BN5: =IF('Master sheet'!$D$14="Hindi","सामयिक परख","Test") -> सामयिक परख | BR5: =IF('Master sheet'!$D$14="Hindi","अर्द्धवार्षिक","Half Yearly") -> अर्द्धवार्षिक | BU5: =IF('Master sheet'!$D$14="Hindi","अर्द्ध वा. तक योग","Total Till H.Y.") -> अर्द्ध वा. तक योग | BV5: =IF('Master sheet'!$D$14="Hindi","वार्षिक","Yearly") -> वार्षिक | BY5: =IF('Master sheet'!$D$14="Hindi","विषय कुल योग ","Subject Total") -> विषय कुल योग | BZ5: EXEMPTION | CA5: SUBJECT MM | CB5: 2T+E OR 2E+T | CC5: SUBJECT RESULT | CD5: SUBJECT DIVISION | CE5: =IF('Master sheet'!$D$14="Hindi","ग्रेड","Grade") -> ग्रेड | CF5: =IF('Master sheet'!$D$14="Hindi","सामयिक परख","Test") -> सामयिक परख | CJ5: =IF('Master sheet'!$D$14="Hindi","अर्द्धवार्षिक","Half Yearly") -> अर्द्धवार्षिक | CM5: =IF('Master sheet'!$D$14="Hindi","अर्द्ध वा. तक योग","Total Till H.Y.") -> अर्द्ध वा. तक योग | CN5: =IF('Master sheet'!$D$14="Hindi","वार्षिक","Yearly") -> वार्षिक | CQ5: =IF('Master sheet'!$D$14="Hindi","विषय कुल योग ","Subject Total") -> विषय कुल योग | CR5: EXEMPTION | CS5: SUBJECT MM | CT5: SUBJECT RESULT | CU5: =IF('Master sheet'!$D$14="Hindi","ग्रेड","Grade") -> ग्रेड | CV5: =IF('Master sheet'!$D$14="Hindi","सामयिक परख","Test") -> सामयिक परख | CZ5: =IF('Master sheet'!$D$14="Hindi","अर्द्धवार्षिक","Half Yearly") -> अर्द्धवार्षिक | DC5: =IF('Master sheet'!$D$14="Hindi","अर्द्ध वा. तक योग","Total Till H.Y.") -> अर्द्ध वा. तक योग | DD5: =IF('Master sheet'!$D$14="Hindi","वार्षिक","Yearly") -> वार्षिक | DG5: =IF('Master sheet'!$D$14="Hindi","विषय कुल योग ","Subject Total") -> विषय कुल योग | DH5: EXEMPTION | DI5: SUBJECT MM | DJ5: SUBJECT RESULT | DK5: =IF('Master sheet'!$D$14="Hindi","ग्रेड","Grade") -> ग्रेड | DL5: =IF('Master sheet'!$D$14="Hindi","प्रथम मूल्यांकन","1st Assessment") -> प्रथम मूल्यांकन | DM5: =IF('Master sheet'!$D$14="Hindi","द्वितीय मूल्यांकन","2nd Assessment") -> द्वितीय मूल्यांकन | DN5: =IF('Master sheet'!$D$14="Hindi","तृतीय मूल्यांकन","3rd Assessment") -> तृतीय मूल्यांकन | DO5: =IF('Master sheet'!$D$14="Hindi","चतुर्थ मूल्यांकन","4th Assessment") -> चतुर्थ मूल्यांकन | DP5: =IF('Master sheet'!$D$14="Hindi","पंचम मूल्यांकन","5th Assessment") -> पंचम मूल्यांकन | DQ5: =IF('Master sheet'!$D$14="Hindi","योग","Total") -> योग | DR5: EXEMPTION | DS5: SUBJECT MM | DT5: SUBJECT RESULT | DU5: =IF('Master sheet'!$D$14="Hindi","ग्रेड","Grade") -> ग्रेड | DV5: =IF('Master sheet'!$D$14="Hindi","प्रथम मूल्यांकन","1st Assessment") -> प्रथम मूल्यांकन | DW5: =IF('Master sheet'!$D$14="Hindi","द्वितीय मूल्यांकन","2nd Assessment") -> द्वितीय मूल्यांकन | DX5: =IF('Master sheet'!$D$14="Hindi","तृतीय मूल्यांकन","3rd Assessment") -> तृतीय मूल्यांकन | DY5: =IF('Master sheet'!$D$14="Hindi","चतुर्थ मूल्यांकन","4th Assessment") -> चतुर्थ मूल्यांकन | DZ5: =IF('Master sheet'!$D$14="Hindi","पंचम मूल्यांकन","5th Assessment") -> पंचम मूल्यांकन | EA5: =IF('Master sheet'!$D$14="Hindi","योग","Total") -> योग | EB5: EXEMPTION | EC5: SUBJECT MM | ED5: SUBJECT RESULT | EE5: =IF('Master sheet'!$D$14="Hindi","ग्रेड","Grade") -> ग्रेड | EF5: =IF('Master sheet'!$D$14="Hindi","प्रथम मूल्यांकन","1st Assessment") -> प्रथम मूल्यांकन | EG5: =IF('Master sheet'!$D$14="Hindi","द्वितीय मूल्यांकन","2nd Assessment") -> द्वितीय मूल्यांकन | EH5: =IF('Master sheet'!$D$14="Hindi","तृतीय मूल्यांकन","3rd Assessment") -> तृतीय मूल्यांकन | EI5: =IF('Master sheet'!$D$14="Hindi","चतुर्थ मूल्यांकन","4th Assessment") -> चतुर्थ मूल्यांकन | EJ5: =IF('Master sheet'!$D$14="Hindi","पंचम मूल्यांकन","5th Assessment") -> पंचम मूल्यांकन | EK5: =IF('Master sheet'!$D$14="Hindi","योग","Total") -> योग | EL5: EXEMPTION | EM5: SUBJECT MM | EN5: SUBJECT RESULT | EO5: =IF('Master sheet'!$D$14="Hindi","ग्रेड","Grade") -> ग्रेड | EP5: 0 | ET5: 0
E6: 0 | F6: 0 | G6: 0 | H6: 0 | I6: 0 | J6: =IF('Master sheet'!D14="Hindi","लिंग ","Gender") -> लिंग | K6: =IF('Master sheet'!D14="Hindi","वर्ग ","Category") -> वर्ग | L6: =IF('Master sheet'!$D$14="Hindi","प्रथम परख ","First Test") -> प्रथम परख | M6: =IF('Master sheet'!$D$14="Hindi","द्वितीय परख","Second Test") -> द्वितीय परख | N6: =IF('Master sheet'!$D$14="Hindi","तृतीय परख","Third Test") -> तृतीय परख | O6: =IF('Master sheet'!$D$14="Hindi","कुल योग ","Total") -> कुल योग | P6: =IF('Master sheet'!$D$14="Hindi","लिखित","Written") -> लिखित | Q6: =IF('Master sheet'!$D$14="Hindi","मौखिक","Oral") -> मौखिक | R6: =IF('Master sheet'!$D$14="Hindi","अर्द्ध वा. योग","H.Y. Total") -> अर्द्ध वा. योग | T6: =IF('Master sheet'!$D$14="Hindi","लिखित","Written") -> लिखित | U6: =IF('Master sheet'!$D$14="Hindi","मौखिक","Oral") -> मौखिक | V6: =IF('Master sheet'!$D$14="Hindi","वार्षिक योग","Yearly Total") -> वार्षिक योग | AC6: 0 | AD6: =IF('Master sheet'!$D$14="Hindi","प्रथम परख ","First Test") -> प्रथम परख | AE6: =IF('Master sheet'!$D$14="Hindi","द्वितीय परख","Second Test") -> द्वितीय परख | AF6: =IF('Master sheet'!$D$14="Hindi","तृतीय परख","Third Test") -> तृतीय परख | AG6: =IF('Master sheet'!$D$14="Hindi","कुल योग ","Total") -> कुल योग | AH6: =IF('Master sheet'!$D$14="Hindi","लिखित","Written") -> लिखित | AI6: =IF('Master sheet'!$D$14="Hindi","मौखिक","Oral") -> मौखिक | AJ6: =IF('Master sheet'!$D$14="Hindi","अर्द्ध वा. योग","H.Y. Total") -> अर्द्ध वा. योग | AL6: =IF('Master sheet'!$D$14="Hindi","लिखित","Written") -> लिखित | AM6: =IF('Master sheet'!$D$14="Hindi","मौखिक","Oral") -> मौखिक | AN6: =IF('Master sheet'!$D$14="Hindi","वार्षिक योग","Yearly Total") -> वार्षिक योग | AU6: 0 | AV6: =IF('Master sheet'!$D$14="Hindi","प्रथम परख ","First Test") -> प्रथम परख | AW6: =IF('Master sheet'!$D$14="Hindi","द्वितीय परख","Second Test") -> द्वितीय परख | AX6: =IF('Master sheet'!$D$14="Hindi","तृतीय परख","Third Test") -> तृतीय परख | AY6: =IF('Master sheet'!$D$14="Hindi","कुल योग ","Total") -> कुल योग | AZ6: =IF('Master sheet'!$D$14="Hindi","लिखित","Written") -> लिखित | BA6: =IF('Master sheet'!$D$14="Hindi","मौखिक","Oral") -> मौखिक | BB6: =IF('Master sheet'!$D$14="Hindi","अर्द्ध वा. योग","H.Y. Total") -> अर्द्ध वा. योग | BD6: =IF('Master sheet'!$D$14="Hindi","लिखित","Written") -> लिखित | BE6: =IF('Master sheet'!$D$14="Hindi","मौखिक","Oral") -> मौखिक | BF6: =IF('Master sheet'!$D$14="Hindi","वार्षिक योग","Yearly Total") -> वार्षिक योग | BM6: 0 | BN6: =IF('Master sheet'!$D$14="Hindi","प्रथम परख ","First Test") -> प्रथम परख | BO6: =IF('Master sheet'!$D$14="Hindi","द्वितीय परख","Second Test") -> द्वितीय परख | BP6: =IF('Master sheet'!$D$14="Hindi","तृतीय परख","Third Test") -> तृतीय परख | BQ6: =IF('Master sheet'!$D$14="Hindi","कुल योग ","Total") -> कुल योग | BR6: =IF('Master sheet'!$D$14="Hindi","लिखित","Written") -> लिखित | BS6: =IF('Master sheet'!$D$14="Hindi","मौखिक","Oral") -> मौखिक | BT6: =IF('Master sheet'!$D$14="Hindi","अर्द्ध वा. योग","H.Y. Total") -> अर्द्ध वा. योग | BV6: =IF('Master sheet'!$D$14="Hindi","लिखित","Written") -> लिखित | BW6: =IF('Master sheet'!$D$14="Hindi","मौखिक","Oral") -> मौखिक | BX6: =IF('Master sheet'!$D$14="Hindi","वार्षिक योग","Yearly Total") -> वार्षिक योग | CE6: 0 | CF6: =IF('Master sheet'!$D$14="Hindi","प्रथम परख ","First Test") -> प्रथम परख | CG6: =IF('Master sheet'!$D$14="Hindi","द्वितीय परख","Second Test") -> द्वितीय परख | CH6: =IF('Master sheet'!$D$14="Hindi","तृतीय परख","Third Test") -> तृतीय परख | CI6: =IF('Master sheet'!$D$14="Hindi","कुल योग ","Total") -> कुल योग | CJ6: =IF('Master sheet'!$D$14="Hindi","लिखित","Written") -> लिखित | CK6: =IF('Master sheet'!$D$14="Hindi","मौखिक","Oral") -> मौखिक | CL6: =IF('Master sheet'!$D$14="Hindi","अर्द्ध वा. योग","H.Y. Total") -> अर्द्ध वा. योग | CN6: =IF('Master sheet'!$D$14="Hindi","लिखित","Written") -> लिखित | CO6: =IF('Master sheet'!$D$14="Hindi","मौखिक","Oral") -> मौखिक | CP6: =IF('Master sheet'!$D$14="Hindi","वार्षिक योग","Yearly Total") -> वार्षिक योग | CU6: 0 | CV6: =IF('Master sheet'!$D$14="Hindi","प्रथम परख ","First Test") -> प्रथम परख | CW6: =IF('Master sheet'!$D$14="Hindi","द्वितीय परख","Second Test") -> द्वितीय परख | CX6: =IF('Master sheet'!$D$14="Hindi","तृतीय परख","Third Test") -> तृतीय परख | CY6: =IF('Master sheet'!$D$14="Hindi","कुल योग ","Total") -> कुल योग | CZ6: =IF('Master sheet'!$D$14="Hindi","लिखित","Written") -> लिखित | DA6: =IF('Master sheet'!$D$14="Hindi","मौखिक","Oral") -> मौखिक | DB6: =IF('Master sheet'!$D$14="Hindi","अर्द्ध वा. योग","H.Y. Total") -> अर्द्ध वा. योग | DD6: =IF('Master sheet'!$D$14="Hindi","लिखित","Written") -> लिखित | DE6: =IF('Master sheet'!$D$14="Hindi","मौखिक","Oral") -> मौखिक | DF6: =IF('Master sheet'!$D$14="Hindi","वार्षिक योग","Yearly Total") -> वार्षिक योग | DK6: 0 | DL6: =IF('[1]Master sheet'!$D$11="Hindi","प्रथम मूल्यांकन","1st Assessment") -> प्रथम मूल्यांकन | DM6: =IF('[1]Master sheet'!$D$11="Hindi","द्वितीय मूल्यांकन","2nd Assessment") -> द्वितीय मूल्यांकन | DN6: =IF('[1]Master sheet'!$D$11="Hindi","तृतीय मूल्यांकन","3rd Assessment") -> तृतीय मूल्यांकन | DO6: =IF('[1]Master sheet'!$D$11="Hindi","चतुर्थ मूल्यांकन","4th Assessment") -> चतुर्थ मूल्यांकन | DP6: =IF('[1]Master sheet'!$D$11="Hindi","पंचम मूल्यांकन","5th Assessment") -> पंचम मूल्यांकन | DQ6: 0 | DU6: 0 | DV6: =IF('[1]Master sheet'!$D$11="Hindi","प्रथम मूल्यांकन","1st Assessment") -> प्रथम मूल्यांकन | DW6: =IF('[1]Master sheet'!$D$11="Hindi","द्वितीय मूल्यांकन","2nd Assessment") -> द्वितीय मूल्यांकन | DX6: =IF('[1]Master sheet'!$D$11="Hindi","तृतीय मूल्यांकन","3rd Assessment") -> तृतीय मूल्यांकन | DY6: =IF('[1]Master sheet'!$D$11="Hindi","चतुर्थ मूल्यांकन","4th Assessment") -> चतुर्थ मूल्यांकन | DZ6: =IF('[1]Master sheet'!$D$11="Hindi","पंचम मूल्यांकन","5th Assessment") -> पंचम मूल्यांकन | EA6: 0 | EE6: 0 | EF6: =IF('[1]Master sheet'!$D$11="Hindi","प्रथम मूल्यांकन","1st Assessment") -> प्रथम मूल्यांकन | EG6: =IF('[1]Master sheet'!$D$11="Hindi","द्वितीय मूल्यांकन","2nd Assessment") -> द्वितीय मूल्यांकन | EH6: =IF('[1]Master sheet'!$D$11="Hindi","तृतीय मूल्यांकन","3rd Assessment") -> तृतीय मूल्यांकन | EI6: =IF('[1]Master sheet'!$D$11="Hindi","चतुर्थ मूल्यांकन","4th Assessment") -> चतुर्थ मूल्यांकन | EJ6: =IF('[1]Master sheet'!$D$11="Hindi","पंचम मूल्यांकन","5th Assessment") -> पंचम मूल्यांकन | EK6: 0 | EO6: 0 | EP6: 0 | ET6: 0 | EU6: =IF('Master sheet'!$D$14="Hindi","कुल कार्य दिवस","Total Meeting") -> कुल कार्य दिवस | EV6: =IF('Master sheet'!$D$14="Hindi","कुल उपस्थिति","Total Attendance") -> कुल उपस्थिति
L7: =IF(AND($E$3="3rd"),'Class 3rd'!L6,IF(AND($E$3="4th"),'Class 4th'!L6,"")) -> 10 | M7: =IF(AND($E$3="3rd"),'Class 3rd'!M6,IF(AND($E$3="4th"),'Class 4th'!M6,"")) -> 10 | N7: =IF(AND($E$3="3rd"),'Class 3rd'!N6,IF(AND($E$3="4th"),'Class 4th'!N6,"")) -> 10 | O7: =IF(AND(L7="",M7="",N7=""),"",IF(AND(L7="NA",M7="NA",N7="NA"),"NA",SUM(L7:N7))) -> 30 | P7: =IF(AND($E$3="3rd"),'Class 3rd'!O6,IF(AND($E$3="4th"),'Class 4th'!O6,"")) -> 50 | Q7: =IF(AND($E$3="3rd"),'Class 3rd'!P6,IF(AND($E$3="4th"),'Class 4th'!P6,"")) -> 20 | R7: =IF(AND(P7="",Q7=""),"",IF(AND(Q7="NA",P7="NA"),"NA",SUM(P7:Q7))) -> 70 | S7: =IF(AND(O7="NA",R7="NA"),"NA",SUM(O7,R7)) -> 100 | T7: =IF(AND($E$3="3rd"),'Class 3rd'!Q6,IF(AND($E$3="4th"),'Class 4th'!Q6,"")) -> 60 | U7: =IF(AND($E$3="3rd"),'Class 3rd'!R6,IF(AND($E$3="4th"),'Class 4th'!R6,"")) -> 40 | V7: =IF(AND(T7="",U7=""),"",SUM(T7:U7)) -> 100 | W7: =IF(V7="","",SUM(S7,V7)) -> 200 | AD7: =IF(AND($E$3="3rd"),'Class 3rd'!S6,IF(AND($E$3="4th"),'Class 4th'!S6,"")) -> 5 | AE7: =IF(AND($E$3="3rd"),'Class 3rd'!T6,IF(AND($E$3="4th"),'Class 4th'!T6,"")) -> 5 | AF7: =IF(AND($E$3="3rd"),'Class 3rd'!U6,IF(AND($E$3="4th"),'Class 4th'!U6,"")) -> 5 | AG7: =IF(AND(AD7="",AE7="",AF7=""),"",IF(AND(AD7="NA",AE7="NA",AF7="NA"),"NA",SUM(AD7:AF7))) -> 15 | AH7: =IF(AND($E$3="3rd"),'Class 3rd'!V6,IF(AND($E$3="4th"),'Class 4th'!V6,"")) -> 25 | AI7: =IF(AND($E$3="3rd"),'Class 3rd'!W6,IF(AND($E$3="4th"),'Class 4th'!W6,"")) -> 10 | AJ7: =IF(AND(AH7="",AI7=""),"",IF(AND(AI7="NA",AH7="NA"),"NA",SUM(AH7:AI7))) -> 35 | AK7: =IF(AND(AG7="NA",AJ7="NA"),"NA",SUM(AG7,AJ7)) -> 50 | AL7: =IF(AND($E$3="3rd"),'Class 3rd'!X6,IF(AND($E$3="4th"),'Class 4th'!X6,"")) -> 30 | AM7: =IF(AND($E$3="3rd"),'Class 3rd'!Y6,IF(AND($E$3="4th"),'Class 4th'!Y6,"")) -> 20 | AN7: =IF(AND(AL7="",AM7=""),"",SUM(AL7:AM7)) -> 50 | AO7: =IF(AN7="","",SUM(AK7,AN7)) -> 100 | AV7: =IF(AND($E$3="3rd"),'Class 3rd'!Z6,IF(AND($E$3="4th"),'Class 4th'!Z6,"")) -> 10 | AW7: =IF(AND($E$3="3rd"),'Class 3rd'!AA6,IF(AND($E$3="4th"),'Class 4th'!AA6,"")) -> 10 | AX7: =IF(AND($E$3="3rd"),'Class 3rd'!AB6,IF(AND($E$3="4th"),'Class 4th'!AB6,"")) -> 10 | AY7: =IF(AND(AV7="",AW7="",AX7=""),"",IF(AND(AV7="NA",AW7="NA",AX7="NA"),"NA",SUM(AV7:AX7))) -> 30 | AZ7: =IF(AND($E$3="3rd"),'Class 3rd'!AC6,IF(AND($E$3="4th"),'Class 4th'!AC6,"")) -> 50 | BA7: =IF(AND($E$3="3rd"),'Class 3rd'!AD6,IF(AND($E$3="4th"),'Class 4th'!AD6,"")) -> 20 | BB7: =IF(AND(AZ7="",BA7=""),"",IF(AND(BA7="NA",AZ7="NA"),"NA",SUM(AZ7:BA7))) -> 70 | BC7: =IF(AND(AY7="NA",BB7="NA"),"NA",SUM(AY7,BB7)) -> 100 | BD7: =IF(AND($E$3="3rd"),'Class 3rd'!AE6,IF(AND($E$3="4th"),'Class 4th'!AE6,"")) -> 60 | BE7: =IF(AND($E$3="3rd"),'Class 3rd'!AF6,IF(AND($E$3="4th"),'Class 4th'!AF6,"")) -> 40 | BF7: =IF(AND(BD7="",BE7=""),"",SUM(BD7:BE7)) -> 100 | BG7: =IF(BF7="","",SUM(BC7,BF7)) -> 200 | BN7: =IF(AND($E$3="3rd"),'Class 3rd'!AG6,IF(AND($E$3="4th"),'Class 4th'!AG6,"")) -> 10 | BO7: =IF(AND($E$3="3rd"),'Class 3rd'!AH6,IF(AND($E$3="4th"),'Class 4th'!AH6,"")) -> 10 | BP7: =IF(AND($E$3="3rd"),'Class 3rd'!AI6,IF(AND($E$3="4th"),'Class 4th'!AI6,"")) -> 10 | BQ7: =IF(AND(BN7="",BO7="",BP7=""),"",IF(AND(BN7="NA",BO7="NA",BP7="NA"),"NA",SUM(BN7:BP7))) -> 30 | BR7: =IF(AND($E$3="3rd"),'Class 3rd'!AJ6,IF(AND($E$3="4th"),'Class 4th'!AJ6,"")) -> 50 | BS7: =IF(AND($E$3="3rd"),'Class 3rd'!AK6,IF(AND($E$3="4th"),'Class 4th'!AK6,"")) -> 20 | BT7: =IF(AND(BR7="",BS7=""),"",IF(AND(BS7="NA",BR7="NA"),"NA",SUM(BR7:BS7))) -> 70 | BU7: =IF(AND(BQ7="NA",BT7="NA"),"NA",SUM(BQ7,BT7)) -> 100 | BV7: =IF(AND($E$3="3rd"),'Class 3rd'!AL6,IF(AND($E$3="4th"),'Class 4th'!AL6,"")) -> 60 | BW7: =IF(AND($E$3="3rd"),'Class 3rd'!AM6,IF(AND($E$3="4th"),'Class 4th'!AM6,"")) -> 40 | BX7: =IF(AND(BV7="",BW7=""),"",SUM(BV7:BW7)) -> 100 | BY7: =IF(BX7="","",SUM(BU7,BX7)) -> 200 | CF7: =IF(AND($E$3="3rd"),'Class 3rd'!AN6,IF(AND($E$3="4th"),'Class 4th'!AN6,"")) -> 10 | CG7: =IF(AND($E$3="3rd"),'Class 3rd'!AO6,IF(AND($E$3="4th"),'Class 4th'!AO6,"")) -> 10 | CH7: =IF(AND($E$3="3rd"),'Class 3rd'!AP6,IF(AND($E$3="4th"),'Class 4th'!AP6,"")) -> 10 | CI7: =IF(AND(CF7="",CG7="",CH7=""),"",IF(AND(CF7="NA",CG7="NA",CH7="NA"),"NA",SUM(CF7:CH7))) -> 30 | CJ7: =IF(AND($E$3="3rd"),'Class 3rd'!AQ6,IF(AND($E$3="4th"),'Class 4th'!AQ6,"")) -> 20 | CK7: =IF(AND($E$3="3rd"),'Class 3rd'!AR6,IF(AND($E$3="4th"),'Class 4th'!AR6,"")) -> 50 | CL7: =IF(AND(CJ7="",CK7=""),"",IF(AND(CK7="NA",CJ7="NA"),"NA",SUM(CJ7:CK7))) -> 70 | CM7: =IF(AND(CI7="NA",CL7="NA"),"NA",SUM(CI7,CL7)) -> 100 | CN7: =IF(AND($E$3="3rd"),'Class 3rd'!AS6,IF(AND($E$3="4th"),'Class 4th'!AS6,"")) -> 40 | CO7: =IF(AND($E$3="3rd"),'Class 3rd'!AT6,IF(AND($E$3="4th"),'Class 4th'!AT6,"")) -> 60 | CP7: =IF(AND(CN7="",CO7=""),"",SUM(CN7:CO7)) -> 100 | CQ7: =IF(CP7="","",SUM(CM7,CP7)) -> 200 | CV7: =IF(AND($E$3="3rd"),'Class 3rd'!AU6,IF(AND($E$3="4th"),'Class 4th'!AU6,"")) -> 10 | CW7: =IF(AND($E$3="3rd"),'Class 3rd'!AV6,IF(AND($E$3="4th"),'Class 4th'!AV6,"")) -> 10 | CX7: =IF(AND($E$3="3rd"),'Class 3rd'!AW6,IF(AND($E$3="4th"),'Class 4th'!AW6,"")) -> 10 | CY7: =IF(AND(CV7="",CW7="",CX7=""),"",IF(AND(CV7="NA",CW7="NA",CX7="NA"),"NA",SUM(CV7:CX7))) -> 30 | CZ7: =IF(AND($E$3="3rd"),'Class 3rd'!AX6,IF(AND($E$3="4th"),'Class 4th'!AX6,"")) -> 50 | DA7: =IF(AND($E$3="3rd"),'Class 3rd'!AY6,IF(AND($E$3="4th"),'Class 4th'!AY6,"")) -> 20 | DB7: =IF(AND(CZ7="",DA7=""),"",IF(AND(DA7="NA",CZ7="NA"),"NA",SUM(CZ7:DA7))) -> 70 | DC7: =IF(AND(CY7="NA",DB7="NA"),"NA",SUM(CY7,DB7)) -> 100 | DD7: =IF(AND($E$3="3rd"),'Class 3rd'!AZ6,IF(AND($E$3="4th"),'Class 4th'!AZ6,"")) -> 60 | DE7: =IF(AND($E$3="3rd"),'Class 3rd'!BA6,IF(AND($E$3="4th"),'Class 4th'!BA6,"")) -> 40 | DF7: =IF(AND(DD7="",DE7=""),"",SUM(DD7:DE7)) -> 100 | DG7: =IF(DF7="","",SUM(DC7,DF7)) -> 200 | DL7: =IF(AND($E$3="3rd"),'Class 3rd'!BB6,IF(AND($E$3="4th"),'Class 4th'!BB6,"")) -> 20 | DM7: =IF(AND($E$3="3rd"),'Class 3rd'!BC6,IF(AND($E$3="4th"),'Class 4th'!BC6,"")) -> 20 | DN7: =IF(AND($E$3="3rd"),'Class 3rd'!BD6,IF(AND($E$3="4th"),'Class 4th'!BD6,"")) -> 20 | DO7: =IF(AND($E$3="3rd"),'Class 3rd'!BE6,IF(AND($E$3="4th"),'Class 4th'!BE6,"")) -> 20 | DP7: =IF(AND($E$3="3rd"),'Class 3rd'!BF6,IF(AND($E$3="4th"),'Class 4th'!BF6,"")) -> 20 | DQ7: =IF(AND(DL7="",DM7="",DN7="",DO7="",DP7=""),"",SUM(DL7:DP7)) -> 100 | DV7: =IF(AND($E$3="3rd"),'Class 3rd'!BG6,IF(AND($E$3="4th"),'Class 4th'!BG6,"")) -> 20 | DW7: =IF(AND($E$3="3rd"),'Class 3rd'!BH6,IF(AND($E$3="4th"),'Class 4th'!BH6,"")) -> 20 | DX7: =IF(AND($E$3="3rd"),'Class 3rd'!BI6,IF(AND($E$3="4th"),'Class 4th'!BI6,"")) -> 20 | DY7: =IF(AND($E$3="3rd"),'Class 3rd'!BJ6,IF(AND($E$3="4th"),'Class 4th'!BJ6,"")) -> 20 | DZ7: =IF(AND($E$3="3rd"),'Class 3rd'!BK6,IF(AND($E$3="4th"),'Class 4th'!BK6,"")) -> 20 | EA7: =IF(AND(DV7="",DW7="",DX7="",DY7="",DZ7=""),"",SUM(DV7:DZ7)) -> 100 | EF7: =IF(AND($E$3="3rd"),'Class 3rd'!BL6,IF(AND($E$3="4th"),'Class 4th'!BL6,"")) -> 20 | EG7: =IF(AND($E$3="3rd"),'Class 3rd'!BM6,IF(AND($E$3="4th"),'Class 4th'!BM6,"")) -> 20 | EH7: =IF(AND($E$3="3rd"),'Class 3rd'!BN6,IF(AND($E$3="4th"),'Class 4th'!BN6,"")) -> 20 | EI7: =IF(AND($E$3="3rd"),'Class 3rd'!BO6,IF(AND($E$3="4th"),'Class 4th'!BO6,"")) -> 20 | EJ7: =IF(AND($E$3="3rd"),'Class 3rd'!BP6,IF(AND($E$3="4th"),'Class 4th'!BP6,"")) -> 20 | EK7: =IF(AND(EF7="",EG7="",EH7="",EI7="",EJ7=""),"",SUM(EF7:EJ7)) -> 100 | EP7: =IF(E3="","",SUM(W7,AO7,BG7,BY7)) -> 700 | ET7: 0 | EU7: =IF(AND($E$3="3rd"),'Class 3rd'!BQ6,IF(AND($E$3="4th"),'Class 4th'!AX6,"")) -> 350
A8: 1 | B8: =IF(OR(FE8=0,FE8=""),"",IF(AND($E$3="3rd"),'Class 3rd'!I7,IF(AND($E$3="4th"),'Class 4th'!I7,""))) -> 301 | C8: =IF(OR($B8=0,$B8=""),"",IF(AND($E$3="3rd"),'Class 3rd'!B7,IF(AND($E$3="4th"),'Class 4th'!B7,""))) -> 3 | D8: =IF(OR($B8=0,$B8=""),"",IF(AND($E$3="3rd"),'Class 3rd'!C7,IF(AND($E$3="4th"),'Class 4th'!C7,""))) -> A | E8: =IF(OR($B8=0,$B8=""),"",IF(AND($E$3="3rd"),'Class 3rd'!E7,IF(AND($E$3="4th"),'Class 4th'!E7,""))) -> 28-10-2014 | F8: =IF(OR($B8=0,$B8=""),"",IF(AND($E$3="3rd"),'Class 3rd'!D7,IF(AND($E$3="4th"),'Class 4th'!D7,""))) -> 936 | G8: =IF(OR($B8=0,$B8=""),"",IF(AND($E$3="3rd"),'Class 3rd'!F7,IF(AND($E$3="4th"),'Class 4th'!F7,""))) -> AAKIFA BANO | H8: =IF(OR($B8=0,$B8=""),"",IF(AND($E$3="3rd"),'Class 3rd'!G7,IF(AND($E$3="4th"),'Class 4th'!G7,""))) -> SHABBIR MOHAMMAD | I8: =IF(OR($B8=0,$B8=""),"",IF(AND($E$3="3rd"),'Class 3rd'!H7,IF(AND($E$3="4th"),'Class 4th'!H7,""))) -> HEENA KOUSER | J8: =IF(OR($B8=0,$B8=""),"",IF(AND($E$3="3rd"),'Class 3rd'!J7,IF(AND($E$3="4th"),'Class 4th'!J7,""))) -> F | K8: =IF(OR($B8=0,$B8=""),"",IF(AND($E$3="3rd"),'Class 3rd'!K7,IF(AND($E$3="4th"),'Class 4th'!K7,""))) -> OBC | L8: =IF(OR($B8=0,$B8=""),"",IF(AND($E$3="3rd"),'Class 3rd'!L7,IF(AND($E$3="4th"),'Class 4th'!L7,""))) -> 10 | M8: =IF(OR($B8=0,$B8=""),"",IF(AND($E$3="3rd"),'Class 3rd'!M7,IF(AND($E$3="4th"),'Class 4th'!M7,""))) -> 8 | N8: =IF(OR($B8=0,$B8=""),"",IF(AND($E$3="3rd"),'Class 3rd'!N7,IF(AND($E$3="4th"),'Class 4th'!N7,""))) -> 10 | O8: =IF(AND(L8="",M8="",N8=""),"",IF(AND(L8="NA",M8="NA",N8="NA"),"NA",IF(AND(L8="AB",M8="AB",N8="AB"),"AB",SUM(L8:N8)))) -> 28 | P8: =IF(OR($B8=0,$B8=""),"",IF(AND($E$3="3rd"),'Class 3rd'!O7,IF(AND($E$3="4th"),'Class 4th'!O7,""))) -> 45 | Q8: =IF(OR($B8=0,$B8=""),"",IF(AND($E$3="3rd"),'Class 3rd'!P7,IF(AND($E$3="4th"),'Class 4th'!P7,""))) -> 19 | R8: =IF(AND(P8="",Q8=""),"",IF(AND(P8="NA",Q8="NA"),"NA",IF(AND(P8="AB",Q8="AB"),"AB",SUM(P8:Q8)))) -> 64 | S8: =IF(AND(O8="NA",R8="NA"),"NA",IF(AND(O8="AB",R8="AB"),"AB",SUM(O8,R8))) -> 92 | T8: =IF(OR($B8=0,$B8=""),"",IF(AND($E$3="3rd"),'Class 3rd'!Q7,IF(AND($E$3="4th"),'Class 4th'!Q7,""))) -> 55 | U8: =IF(OR($B8=0,$B8=""),"",IF(AND($E$3="3rd"),'Class 3rd'!R7,IF(AND($E$3="4th"),'Class 4th'!R7,""))) -> 37 | V8: =IF(AND(T8="",U8=""),"",IF(AND(T8="AB",U8="AB"),"AB",SUM(T8:U8))) -> 92 | W8: =IF(V8="","",IF(AND(S8="AB",V8="AB"),"AB",SUM(S8,V8))) -> 184 | X8: =COUNTIF(L8:N8,"NA")*10+(COUNTIF(L8:N8,"ML")*10)+(COUNTIF(P8,"ML")*$P$7)+(COUNTIF(Q8,"ML")*$Q$7)+(COUNTIF(T8,"ML")*$T$7)+(COUNTIF(U8,"ML")*$U$7) -> 0 | Y8: =IF(OR($B8="NSO",$B8=0,$B8=""),"",IF(AND(L8="",M8="",N8="",P8="",T8=""),"",IF(AND(M8="",N8="",L8=""),$O$7-X8,IF(AND(P8="",Q8=""),$R$7-X8,IF(AND(T8="",U8=""),$V$7-X8,$W$7-X8))))) -> 200 | Z8: =IF(AND(OR(L8="ab",L8="ml"),OR(M8="ab",M8="ml"),OR(P8="ab",P8="ml")),"AB",IF(AND(OR(L8="ab",L8="ml"),OR(P8="ab",P8="ml"),OR(T8="ab",T8="ml")),"AB",IF(AND(OR(M8="ab",M8="ml"),OR(N8="ab",N8="ml"),OR(P8="ab",P8="ml")),"AB",IF(AND(OR(M8="ab",M8="ml"),OR(N8="ab",N8="ml"),OR(T8="ab",T8="ml")),"AB","")))) ->  | AA8: =IF(OR(B8="NSO",B8="",T8=""),"",IF(OR(Z8="AB",T8="ab"),"AB",IF(T8="ML","RE",IF(AND(W8>=36%*Y8,T8>=20%*$T$7),"P",IF(AND(W8>=34%*Y8,T8>=20%*$T$7),"G2",IF(AND(W8>=31%*Y8,T8>=20%*$T$7),"G1",IF(AND(W8>=25%*Y8,T8>=20%*$T$7),"S","F"))))))) -> P | AB8: =IF(OR(AA8="",AA8=0,AA8="S",AA8="RE",AA8="F",AA8="AB"),"",IF(W8>=60%*Y8,"I",IF(W8>=48%*Y8,"II",IF(W8>=36%*Y8,"III","")))) -> I | AC8: =IF(W8="","",IF(OR(AA8="",AA8=0,AA8="RE",AA8="AB"),"",IF(W8>85%*Y8,"A",IF(W8>70%*Y8,"B",IF(W8>50%*Y8,"C",IF(W8>30%*Y8,"D","E")))))) -> A | AD8: =IF(OR($B8=0,$B8=""),"",IF(AND($E$3="3rd"),'Class 3rd'!S7,IF(AND($E$3="4th"),'Class 4th'!S7,""))) -> 5 | AE8: =IF(OR($B8=0,$B8=""),"",IF(AND($E$3="3rd"),'Class 3rd'!T7,IF(AND($E$3="4th"),'Class 4th'!T7,""))) -> 4 | AF8: =IF(OR($B8=0,$B8=""),"",IF(AND($E$3="3rd"),'Class 3rd'!U7,IF(AND($E$3="4th"),'Class 4th'!U7,""))) -> 5 | AG8: =IF(AND(AD8="",AE8="",AF8=""),"",IF(AND(AD8="NA",AE8="NA",AF8="NA"),"NA",IF(AND(AD8="AB",AE8="AB",AF8="AB"),"AB",SUM(AD8:AF8)))) -> 14 | AH8: =IF(OR($B8=0,$B8=""),"",IF(AND($E$3="3rd"),'Class 3rd'!V7,IF(AND($E$3="4th"),'Class 4th'!V7,""))) -> 14 | AI8: =IF(OR($B8=0,$B8=""),"",IF(AND($E$3="3rd"),'Class 3rd'!W7,IF(AND($E$3="4th"),'Class 4th'!W7,""))) -> 9 | AJ8: =IF(AND(AH8="",AI8=""),"",IF(AND(AH8="NA",AI8="NA"),"NA",IF(AND(AH8="AB",AI8="AB"),"AB",SUM(AH8:AI8)))) -> 23 | AK8: =IF(AND(AG8="NA",AJ8="NA"),"NA",IF(AND(AG8="AB",AJ8="AB"),"AB",SUM(AG8,AJ8))) -> 37 | AL8: =IF(OR($B8=0,$B8=""),"",IF(AND($E$3="3rd"),'Class 3rd'!X7,IF(AND($E$3="4th"),'Class 4th'!X7,""))) -> 24 | AM8: =IF(OR($B8=0,$B8=""),"",IF(AND($E$3="3rd"),'Class 3rd'!Y7,IF(AND($E$3="4th"),'Class 4th'!Y7,""))) -> 18 | AN8: =IF(AND(AL8="",AM8=""),"",IF(AND(AL8="AB",AM8="AB"),"AB",SUM(AL8:AM8))) -> 42 | AO8: =IF(AN8="","",IF(AND(AK8="AB",AN8="AB"),"AB",SUM(AK8,AN8))) -> 79 | AP8: =COUNTIF(AD8:AF8,"NA")*5+(COUNTIF(AD8:AF8,"ML")*5)+(COUNTIF(AH8,"ML")*$AH$7)+(COUNTIF(AI8,"ML")*$AI$7)+(COUNTIF(AL8,"ML")*$AL$7)+(COUNTIF(AM8,"ML")*$AM$7) -> 0 | AQ8: =IF(OR($B8="NSO",$B8=0,$B8=""),"",IF(AND(AD8="",AE8="",AF8="",AH8="",AL8=""),"",IF(AND(AE8="",AF8="",AD8=""),$AG$7-AP8,IF(AND(AH8="",AI8=""),$AJ$7-AP8,IF(AND(AL8="",AM8=""),$AN$7-AP8,$AO$7-AP8))))) -> 100 | AR8: =IF(AND(OR(AD8="ab",AD8="ml"),OR(AE8="ab",AE8="ml"),OR(AH8="ab",AH8="ml")),"AB",IF(AND(OR(AD8="ab",AD8="ml"),OR(AH8="ab",AH8="ml"),OR(AL8="ab",AL8="ml")),"AB",IF(AND(OR(AE8="ab",AE8="ml"),OR(AF8="ab",AF8="ml"),OR(AH8="ab",AH8="ml")),"AB",IF(AND(OR(AE8="ab",AE8="ml"),OR(AF8="ab",AF8="ml"),OR(AL8="ab",AL8="ml")),"AB","")))) ->  | AS8: =IF(OR(B8="NSO",B8="",AL8=""),"",IF(OR(AR8="AB",AL8="ab"),"AB",IF(AL8="ML","RE",IF(AND(AO8>=36%*AQ8,AL8>=$AL$7*20%),"P",IF(AND(AO8>=34%*AQ8,AL8>=$AL$7*20%),"G2",IF(AND(AO8>=31%*AQ8,AL8>=$AL$7*20%),"G1",IF(AND(AO8>=25%*AQ8,AL8>=$AL$7*20%),"S","F"))))))) -> P | AT8: =IF(OR(AS8="",AS8=0,AS8="S",AS8="RE",AS8="F",AS8="AB"),"",IF(AO8>=60%*AQ8,"I",IF(AO8>=48%*AQ8,"II",IF(AO8>=36%*AQ8,"III","")))) -> I | AU8: =IF(AO8="","",IF(OR(AS8="",AS8=0,AS8="RE",AS8="AB"),"",IF(AO8>85%*AQ8,"A",IF(AO8>70%*AQ8,"B",IF(AO8>50%*AQ8,"C",IF(AO8>30%*AQ8,"D","E")))))) -> B | AV8: =IF(OR($B8=0,$B8=""),"",IF(AND($E$3="3rd"),'Class 3rd'!Z7,IF(AND($E$3="4th"),'Class 4th'!Z7,""))) -> 10 | AW8: =IF(OR($B8=0,$B8=""),"",IF(AND($E$3="3rd"),'Class 3rd'!AA7,IF(AND($E$3="4th"),'Class 4th'!AA7,""))) -> 9 | AX8: =IF(OR($B8=0,$B8=""),"",IF(AND($E$3="3rd"),'Class 3rd'!AB7,IF(AND($E$3="4th"),'Class 4th'!AB7,""))) -> 8 | AY8: =IF(AND(AV8="",AW8="",AX8=""),"",IF(AND(AV8="NA",AW8="NA",AX8="NA"),"NA",IF(AND(AV8="AB",AW8="AB",AX8="AB"),"AB",SUM(AV8:AX8)))) -> 27 | AZ8: =IF(OR($B8=0,$B8=""),"",IF(AND($E$3="3rd"),'Class 3rd'!AC7,IF(AND($E$3="4th"),'Class 4th'!AC7,""))) -> 29 | BA8: =IF(OR($B8=0,$B8=""),"",IF(AND($E$3="3rd"),'Class 3rd'!AD7,IF(AND($E$3="4th"),'Class 4th'!AD7,""))) -> 15 | BB8: =IF(AND(AZ8="",BA8=""),"",IF(AND(AZ8="NA",BA8="NA"),"NA",IF(AND(AZ8="AB",BA8="AB"),"AB",SUM(AZ8:BA8)))) -> 44 | BC8: =IF(AND(AY8="NA",BB8="NA"),"NA",IF(AND(AY8="AB",BB8="AB"),"AB",SUM(AY8,BB8))) -> 71 | BD8: =IF(OR($B8=0,$B8=""),"",IF(AND($E$3="3rd"),'Class 3rd'!AE7,IF(AND($E$3="4th"),'Class 4th'!AE7,""))) -> 45 | BE8: =IF(OR($B8=0,$B8=""),"",IF(AND($E$3="3rd"),'Class 3rd'!AF7,IF(AND($E$3="4th"),'Class 4th'!AF7,""))) -> 37 | BF8: =IF(AND(BD8="",BE8=""),"",IF(AND(BD8="AB",BE8="AB"),"AB",SUM(BD8:BE8))) -> 82 | BG8: =IF(BF8="","",IF(AND(BC8="AB",BF8="AB"),"AB",SUM(BC8,BF8))) -> 153 | BH8: =COUNTIF(AV8:AX8,"NA")*10+(COUNTIF(AV8:AX8,"ML")*10)+(COUNTIF(AZ8,"ML")*$AZ$7)+(COUNTIF(BA8,"ML")*$BA$7)+(COUNTIF(BD8,"ML")*$BD$7)+(COUNTIF(BE8,"ML")*$BE$7) -> 0 | BI8: =IF(OR($B8="NSO",$B8=0,$B8=""),"",IF(AND(AV8="",AW8="",AX8="",AZ8="",BD8=""),"",IF(AND(AW8="",AX8="",AV8=""),$AY$7-BH8,IF(AND(AZ8="",BA8=""),$BB$7-BH8,IF(AND(BD8="",BE8=""),$BF$7-BH8,$BG$7-BH8))))) -> 200 | BJ8: =IF(AND(OR(AV8="ab",AV8="ml"),OR(AW8="ab",AW8="ml"),OR(AZ8="ab",AZ8="ml")),"AB",IF(AND(OR(AV8="ab",AV8="ml"),OR(AZ8="ab",AZ8="ml"),OR(BD8="ab",BD8="ml")),"AB",IF(AND(OR(AW8="ab",AW8="ml"),OR(AX8="ab",AX8="ml"),OR(AZ8="ab",AZ8="ml")),"AB",IF(AND(OR(AW8="ab",AW8="ml"),OR(AX8="ab",AX8="ml"),OR(BD8="ab",BD8="ml")),"AB","")))) ->  | BK8: =IF(OR(B8="NSO",B8="",BD8=""),"",IF(OR(BJ8="AB",BD8="ab"),"AB",IF(BD8="ML","RE",IF(AND(BG8>=36%*BI8,BD8>=$BD$7*20%),"P",IF(AND(BG8>=34%*BI8,BD8>=$BD$7*20%),"G2",IF(AND(BG8>=31%*BI8,BD8>=$BD$7*20%),"G1",IF(AND(BG8>=25%*BI8,BD8>=$BD$7*20%),"S","F"))))))) -> P | BL8: =IF(OR(BK8="",BK8=0,BK8="S",BK8="RE",BK8="F",BK8="AB"),"",IF(BG8>=60%*BI8,"I",IF(BG8>=48%*BI8,"II",IF(BG8>=36%*BI8,"III","")))) -> I | BM8: =IF(BG8="","",IF(OR(BK8="",BK8=0,BK8="RE",BK8="AB"),"",IF(BG8>85%*BI8,"A",IF(BG8>70%*BI8,"B",IF(BG8>50%*BI8,"C",IF(BG8>30%*BI8,"D","E")))))) -> B | BN8: =IF(OR($B8=0,$B8=""),"",IF(AND($E$3="3rd"),'Class 3rd'!AG7,IF(AND($E$3="4th"),'Class 4th'!AG7,""))) -> 10 | BO8: =IF(OR($B8=0,$B8=""),"",IF(AND($E$3="3rd"),'Class 3rd'!AH7,IF(AND($E$3="4th"),'Class 4th'!AH7,""))) -> 10 | BP8: =IF(OR($B8=0,$B8=""),"",IF(AND($E$3="3rd"),'Class 3rd'!AI7,IF(AND($E$3="4th"),'Class 4th'!AI7,""))) -> 9 | BQ8: =IF(AND(BN8="",BO8="",BP8=""),"",IF(AND(BN8="NA",BO8="NA",BP8="NA"),"NA",IF(AND(BN8="AB",BO8="AB",BP8="AB"),"AB",SUM(BN8:BP8)))) -> 29 | BR8: =IF(OR($B8=0,$B8=""),"",IF(AND($E$3="3rd"),'Class 3rd'!AJ7,IF(AND($E$3="4th"),'Class 4th'!AJ7,""))) -> 36 | BS8: =IF(OR($B8=0,$B8=""),"",IF(AND($E$3="3rd"),'Class 3rd'!AK7,IF(AND($E$3="4th"),'Class 4th'!AK7,""))) -> 18 | BT8: =IF(AND(BR8="",BS8=""),"",IF(AND(BR8="NA",BS8="NA"),"NA",IF(AND(BR8="AB",BS8="AB"),"AB",SUM(BR8:BS8)))) -> 54 | BU8: =IF(AND(BQ8="NA",BT8="NA"),"NA",IF(AND(BQ8="AB",BT8="AB"),"AB",SUM(BQ8,BT8))) -> 83 | BV8: =IF(OR($B8=0,$B8=""),"",IF(AND($E$3="3rd"),'Class 3rd'!AL7,IF(AND($E$3="4th"),'Class 4th'!AL7,""))) -> 47 | BW8: =IF(OR($B8=0,$B8=""),"",IF(AND($E$3="3rd"),'Class 3rd'!AM7,IF(AND($E$3="4th"),'Class 4th'!AM7,""))) -> 37 | BX8: =IF(AND(BV8="",BW8=""),"",IF(AND(BV8="AB",BW8="AB"),"AB",SUM(BV8:BW8))) -> 84 | BY8: =IF(BX8="","",IF(AND(BU8="AB",BX8="AB"),"AB",SUM(BU8,BX8))) -> 167 | BZ8: =COUNTIF(BN8:BP8,"NA")*10+(COUNTIF(BN8:BP8,"ML")*10)+(COUNTIF(BR8,"ML")*$BR$7)+(COUNTIF(BS8,"ML")*$BS$7)+(COUNTIF(BV8,"ML")*$BV$7)+(COUNTIF(BW8,"ML")*$BW$7) -> 0 | CA8: =IF(OR($B8="NSO",$B8=0,$B8=""),"",IF(AND(BN8="",BO8="",BP8="",BR8="",BV8=""),"",IF(AND(BO8="",BP8="",BN8=""),$BQ$7-BZ8,IF(AND(BR8="",BS8=""),$BT$7-BZ8,IF(AND(BV8="",BW8=""),$BX$7-BZ8,$BY$7-BZ8))))) -> 200 | CB8: =IF(AND(OR(BN8="ab",BN8="ml"),OR(BO8="ab",BO8="ml"),OR(BR8="ab",BR8="ml")),"AB",IF(AND(OR(BN8="ab",BN8="ml"),OR(BR8="ab",BR8="ml"),OR(BV8="ab",BV8="ml")),"AB",IF(AND(OR(BO8="ab",BO8="ml"),OR(BP8="ab",BP8="ml"),OR(BR8="ab",BR8="ml")),"AB",IF(AND(OR(BO8="ab",BO8="ml"),OR(BP8="ab",BP8="ml"),OR(BV8="ab",BV8="ml")),"AB","")))) ->  | CC8: =IF(OR(B8="NSO",B8="",BV8=""),"",IF(OR(CB8="AB",BV8="ab"),"AB",IF(BV8="ML","RE",IF(AND(BY8>=36%*CA8,BV8>=$BV$7*20%),"P",IF(AND(BY8>=34%*CA8,BV8>=$BV$7*20%),"G2",IF(AND(BY8>=31%*CA8,BV8>=$BV$7*20%),"G1",IF(AND(BY8>=25%*CA8,BV8>=$BV$7*20%),"S","F"))))))) -> P | CD8: =IF(OR(CC8="",CC8=0,CC8="S",CC8="RE",CC8="F",CC8="AB"),"",IF(BY8>=60%*CA8,"I",IF(BY8>=48%*CA8,"II",IF(BY8>=36%*CA8,"III","")))) -> I | CE8: =IF(BY8="","",IF(OR(CC8="",CC8=0,CC8="RE",CC8="AB"),"",IF(BY8>85%*CA8,"A",IF(BY8>70%*CA8,"B",IF(BY8>50%*CA8,"C",IF(BY8>30%*CA8,"D","E")))))) -> B | CF8: =IF(OR($B8=0,$B8=""),"",IF(AND($E$3="3rd"),'Class 3rd'!AN7,IF(AND($E$3="4th"),'Class 4th'!AN7,""))) -> 9 | CG8: =IF(OR($B8=0,$B8=""),"",IF(AND($E$3="3rd"),'Class 3rd'!AO7,IF(AND($E$3="4th"),'Class 4th'!AO7,""))) -> 8 | CH8: =IF(OR($B8=0,$B8=""),"",IF(AND($E$3="3rd"),'Class 3rd'!AP7,IF(AND($E$3="4th"),'Class 4th'!AP7,""))) -> 10 | CI8: =IF(AND(CF8="",CG8="",CH8=""),"",IF(AND(CF8="NA",CG8="NA",CH8="NA"),"NA",IF(AND(CF8="AB",CG8="AB",CH8="AB"),"AB",SUM(CF8:CH8)))) -> 27 | CJ8: =IF(OR($B8=0,$B8=""),"",IF(AND($E$3="3rd"),'Class 3rd'!AQ7,IF(AND($E$3="4th"),'Class 4th'!AQ7,""))) -> 20 | CK8: =IF(OR($B8=0,$B8=""),"",IF(AND($E$3="3rd"),'Class 3rd'!AR7,IF(AND($E$3="4th"),'Class 4th'!AR7,""))) -> 45 | CL8: =IF(AND(CJ8="",CK8=""),"",IF(AND(CJ8="NA",CK8="NA"),"NA",IF(AND(CJ8="AB",CK8="AB"),"AB",SUM(CJ8:CK8)))) -> 65 | CM8: =IF(AND(CI8="NA",CL8="NA"),"NA",IF(AND(CI8="AB",CL8="AB"),"AB",SUM(CI8,CL8))) -> 92 | CN8: =IF(OR($B8=0,$B8=""),"",IF(AND($E$3="3rd"),'Class 3rd'!AS7,IF(AND($E$3="4th"),'Class 4th'!AS7,""))) -> 36 | CO8: =IF(OR($B8=0,$B8=""),"",IF(AND($E$3="3rd"),'Class 3rd'!AT7,IF(AND($E$3="4th"),'Class 4th'!AT7,""))) -> 48 | CP8: =IF(AND(CN8="",CO8=""),"",IF(AND(CN8="AB",CO8="AB"),"AB",SUM(CN8:CO8))) -> 84 | CQ8: =IF(CP8="","",IF(AND(CM8="AB",CP8="AB"),"AB",SUM(CM8,CP8))) -> 176 | CR8: =COUNTIF(CF8:CH8,"NA")*10+(COUNTIF(CF8:CH8,"ML")*10)+(COUNTIF(CJ8,"ML")*$CJ$7)+(COUNTIF(CK8,"ML")*$CK$7)+(COUNTIF(CN8,"ML")*$CN$7)+(COUNTIF(CO8,"ML")*$CO$7) -> 0 | CS8: =IF(OR($B8="NSO",$B8=0,$B8=""),"",IF(AND(CF8="",CG8="",CH8="",CJ8="",CN8=""),"",IF(AND(CG8="",CH8="",CF8=""),$CI$7-CR8,IF(AND(CJ8="",CK8=""),$CL$7-CR8,IF(AND(CN8="",CO8=""),$CP$7-CR8,$CQ$7-CR8))))) -> 200 | CT8: =IF(OR(B8="NSO",B8="",CN8=""),"",IF(OR(CS8="AB",CN8="ab"),"AB",IF(CN8="ML","RE",IF(AND(CQ8>=36%*CS8,CN8>=$CN$7*20%),"P",IF(AND(CQ8>=34%*CS8,CN8>=$CN$7*20%),"G2",IF(AND(CQ8>=31%*CS8,CN8>=$CN$7*20%),"G1",IF(AND(CQ8>=25%*CS8,CN8>=$CN$7*20%),"S","F"))))))) -> P | CU8: =IF(CQ8="","",IF(OR(CT8="",CT8=0,CT8="S",CT8="RE",CT8="F",CT8="AB"),"",IF(CQ8>85%*CS8,"A",IF(CQ8>70%*CS8,"B",IF(CQ8>50%*CS8,"C",IF(CQ8>30%*CS8,"D","E")))))) -> A | CV8: =IF(OR($B8=0,$B8=""),"",IF(AND($E$3="3rd"),'Class 3rd'!AU7,IF(AND($E$3="4th"),'Class 4th'!AU7,""))) -> 8 | CW8: =IF(OR($B8=0,$B8=""),"",IF(AND($E$3="3rd"),'Class 3rd'!AV7,IF(AND($E$3="4th"),'Class 4th'!AV7,""))) -> 7 | CX8: =IF(OR($B8=0,$B8=""),"",IF(AND($E$3="3rd"),'Class 3rd'!AW7,IF(AND($E$3="4th"),'Class 4th'!AW7,""))) -> 9 | CY8: =IF(AND(CV8="",CW8="",CX8=""),"",IF(AND(CV8="NA",CW8="NA",CX8="NA"),"NA",IF(AND(CV8="AB",CW8="AB",CX8="AB"),"AB",SUM(CV8:CX8)))) -> 24 | CZ8: =IF(OR($B8=0,$B8=""),"",IF(AND($E$3="3rd"),'Class 3rd'!AX7,IF(AND($E$3="4th"),'Class 4th'!AX7,""))) -> 48 | DA8: =IF(OR($B8=0,$B8=""),"",IF(AND($E$3="3rd"),'Class 3rd'!AY7,IF(AND($E$3="4th"),'Class 4th'!AY7,""))) -> 18 | DB8: =IF(AND(CZ8="",DA8=""),"",IF(AND(CZ8="NA",DA8="NA"),"NA",IF(AND(CZ8="AB",DA8="AB"),"AB",SUM(CZ8:DA8)))) -> 66 | DC8: =IF(AND(CY8="NA",DB8="NA"),"NA",IF(AND(CY8="AB",DB8="AB"),"AB",SUM(CY8,DB8))) -> 90 | DD8: =IF(OR($B8=0,$B8=""),"",IF(AND($E$3="3rd"),'Class 3rd'!AZ7,IF(AND($E$3="4th"),'Class 4th'!AZ7,""))) -> 55 | DE8: =IF(OR($B8=0,$B8=""),"",IF(AND($E$3="3rd"),'Class 3rd'!BA7,IF(AND($E$3="4th"),'Class 4th'!BA7,""))) -> 36 | DF8: =IF(AND(DD8="",DE8=""),"",IF(AND(DD8="AB",DE8="AB"),"AB",SUM(DD8:DE8))) -> 91 | DG8: =IF(DF8="","",IF(AND(DC8="AB",DF8="AB"),"AB",SUM(DC8,DF8))) -> 181 | DH8: =COUNTIF(CV8:CX8,"NA")*10+(COUNTIF(CV8:CX8,"ML")*10)+(COUNTIF(CZ8,"ML")*$CZ$7)+(COUNTIF(DA8,"ML")*$DA$7)+(COUNTIF(DD8,"ML")*$DD$7)+(COUNTIF(DE8,"ML")*$DE$7) -> 0 | DI8: =IF(OR($B8="NSO",$B8=0,$B8=""),"",IF(AND(CV8="",CW8="",CX8="",CZ8="",DD8=""),"",IF(AND(CW8="",CX8="",CV8=""),$CY$7-DH8,IF(AND(CZ8="",DA8=""),$DB$7-DH8,IF(AND(DD8="",DE8=""),$DF$7-DH8,$DG$7-DH8))))) -> 200 | DJ8: =IF(OR(B8="NSO",B8="",DD8=""),"",IF(OR(DI8="AB",DD8="ab"),"AB",IF(DD8="ML","RE",IF(AND(DG8>=36%*DI8,DD8>=$DD$7*20%),"P",IF(AND(DG8>=34%*DI8,DD8>=$DD$7*20%),"G2",IF(AND(DG8>=31%*DI8,DD8>=$DD$7*20%),"G1",IF(AND(DG8>=25%*DI8,DD8>=$DD$7*20%),"S","F"))))))) -> P | DK8: =IF(DG8="","",IF(OR(DJ8="",DJ8=0,DJ8="S",DJ8="RE",DJ8="F",DJ8="AB"),"",IF(DG8>85%*DI8,"A",IF(DG8>70%*DI8,"B",IF(DG8>50%*DI8,"C",IF(DG8>30%*DI8,"D","E")))))) -> A | DL8: =IF(OR($B8=0,$B8=""),"",IF(AND($E$3="3rd"),'Class 3rd'!BB7,IF(AND($E$3="4th"),'Class 4th'!BB7,""))) -> 18 | DM8: =IF(OR($B8=0,$B8=""),"",IF(AND($E$3="3rd"),'Class 3rd'!BC7,IF(AND($E$3="4th"),'Class 4th'!BC7,""))) -> 16 | DN8: =IF(OR($B8=0,$B8=""),"",IF(AND($E$3="3rd"),'Class 3rd'!BD7,IF(AND($E$3="4th"),'Class 4th'!BD7,""))) -> 14 | DO8: =IF(OR($B8=0,$B8=""),"",IF(AND($E$3="3rd"),'Class 3rd'!BE7,IF(AND($E$3="4th"),'Class 4th'!BE7,""))) -> 18 | DP8: =IF(OR($B8=0,$B8=""),"",IF(AND($E$3="3rd"),'Class 3rd'!BF7,IF(AND($E$3="4th"),'Class 4th'!BF7,""))) -> 13 | DQ8: =IF(AND(DL8="",DM8="",DN8="",DO8="",DP8=""),"",SUM(DL8:DP8)) -> 79 | DR8: =COUNTIF(DL8,"ML")*$DL$7+COUNTIF(DM8,"ML")*$DM$7+COUNTIF(DN8,"ML")*$DN$7+COUNTIF(DO8,"ML")*$DO$7 -> 0 | DS8: =IF(OR(AH8="NSO",AH8="",DQ8="",DQ8=0),"",IF(AND(DL8="",DM8=""),"",IF(AND(DL8=""),$DL$7-DR8,IF(DM8="",($DL$7+$DM$7)-DR8,$DQ$7-DR8)))) -> 100 | DT8: =IF(OR(B8="NSO",B8="",DQ8="",DQ8=0),"",IF(OR(DP8="AB",DO8="AB"),"AB",IF(DQ8>=36%*DS8,"P","S"))) -> P | DU8: =IF(DQ8="","",IF(OR(DT8="",DT8=0,DT8="S",DT8="RE",DT8="F",DT8="AB"),"",IF(DQ8>90%*DS8,"A+",IF(DQ8>75%*DS8,"A",IF(DQ8>60%*DS8,"B",IF(DQ8>40%*DS8,"C","D")))))) -> A | DV8: =IF(OR($B8=0,$B8=""),"",IF(AND($E$3="3rd"),'Class 3rd'!BG7,IF(AND($E$3="4th"),'Class 4th'!BG7,""))) -> 11 | DW8: =IF(OR($B8=0,$B8=""),"",IF(AND($E$3="3rd"),'Class 3rd'!BH7,IF(AND($E$3="4th"),'Class 4th'!BH7,""))) -> 20 | DX8: =IF(OR($B8=0,$B8=""),"",IF(AND($E$3="3rd"),'Class 3rd'!BI7,IF(AND($E$3="4th"),'Class 4th'!BI7,""))) -> 15 | DY8: =IF(OR($B8=0,$B8=""),"",IF(AND($E$3="3rd"),'Class 3rd'!BJ7,IF(AND($E$3="4th"),'Class 4th'!BJ7,""))) -> 14 | DZ8: =IF(OR($B8=0,$B8=""),"",IF(AND($E$3="3rd"),'Class 3rd'!BK7,IF(AND($E$3="4th"),'Class 4th'!BK7,""))) -> 20 | EA8: =IF(AND(DV8="",DW8="",DX8="",DY8="",DZ8=""),"",SUM(DV8:DZ8)) -> 80 | EB8: =COUNTIF(DV8,"ML")*$DV$7+COUNTIF(DW8,"ML")*$DW$7+COUNTIF(DX8,"ML")*$DX$7+COUNTIF(DY8,"ML")*$DY$7 -> 0 | EC8: =IF(OR(B8="NSO",B8="",EA8="",EA8=0),"",IF(AND(DV8="",DW8=""),"",IF(AND(DV8=""),$DV$7-EB8,IF(DW8="",($DW$7+$DV$7)-EB8,$EA$7-EB8)))) -> 100 | ED8: =IF(OR(B8="NSO",B8="",EA8="",EA8=0),"",IF(OR(DY8="AB",DZ8="AB"),"AB",IF(EA8>=36%*EC8,"P","S"))) -> P | EE8: =IF(EA8="","",IF(OR(ED8="",ED8=0,ED8="S",ED8="RE",ED8="F",ED8="AB"),"",IF(EA8>90%*EC8,"A+",IF(EA8>75%*EC8,"A",IF(EA8>60%*EC8,"B",IF(EA8>40%*EC8,"C","D")))))) -> A | EF8: =IF(OR($B8=0,$B8=""),"",IF(AND($E$3="3rd"),'Class 3rd'!BL7,IF(AND($E$3="4th"),'Class 4th'!BL7,""))) -> 20 | EG8: =IF(OR($B8=0,$B8=""),"",IF(AND($E$3="3rd"),'Class 3rd'!BM7,IF(AND($E$3="4th"),'Class 4th'!BM7,""))) -> 19 | EH8: =IF(OR($B8=0,$B8=""),"",IF(AND($E$3="3rd"),'Class 3rd'!BN7,IF(AND($E$3="4th"),'Class 4th'!BN7,""))) -> 14 | EI8: =IF(OR($B8=0,$B8=""),"",IF(AND($E$3="3rd"),'Class 3rd'!BO7,IF(AND($E$3="4th"),'Class 4th'!BO7,""))) -> 12 | EJ8: =IF(OR($B8=0,$B8=""),"",IF(AND($E$3="3rd"),'Class 3rd'!BP7,IF(AND($E$3="4th"),'Class 4th'!BP7,""))) -> 15 | EK8: =IF(AND(EF8="",EG8="",EH8="",EI8="",EJ8=""),"",SUM(EF8:EJ8)) -> 80 | EL8: =COUNTIF(EF8,"ML")*$EF$7+COUNTIF(EG8,"ML")*$EG$7+COUNTIF(EH8,"ML")*$EH$7+COUNTIF(EI8,"ML")*$EI$7 -> 0 | EM8: =IF(OR(L8="NSO",L8="",EK8="",EK8=0),"",IF(AND(EF8="",EG8=""),"",IF(AND(EF8=""),$EF$7-EL8,IF(EG8="",($EF$7+$EG$7)-EL8,$EK$7-EL8)))) -> 100 | EN8: =IF(OR(B8="NSO",B8="",EK8="",EK8=0),"",IF(OR(EI8="AB",EJ8="AB"),"AB",IF(EK8>=36%*EM8,"P","S"))) -> P | EO8: =IF(EK8="","",IF(OR(EN8="",EN8=0,EN8="S",EN8="RE",EN8="F",EN8="AB"),"",IF(EK8>90%*EM8,"A+",IF(EK8>75%*EM8,"A",IF(EK8>60%*EM8,"B",IF(EK8>40%*EM8,"C","D")))))) -> A | EP8: =IF($E$3="","",IF(OR(B8="",G8="",C8=""),"",SUM(W8,AO8,BG8,BY8))) -> 583 | EQ8: =IFERROR(IF(OR(EP8="",B8="NSO"),"",IF(OR(EP8="",EP8=0),"",EP8*100/(Y8+AQ8+BI8+CA8))),"") -> 83.29 % | ER8: =IF(OR(EQ8="",B8="NSO"),"",IF(AND(EQ8>=60),"I",IF(AND(EQ8>=48),"II",IF(AND(EQ8>=36),"III","")))) -> I | ES8: =IFERROR(IF(OR(EQ8="",B8="NSO",EP8=0),"",SUMPRODUCT((EQ8<$EQ$8:$EQ$207)/COUNTIF($EQ$8:$EQ$207,$EQ$8:$EQ$207))),"") -> 21 | ET8: =IFERROR(IF(B8="NSO","NSO",IF(OR(D8="",G8="",F8="",B8="",EP8=0),"",IF('Master sheet'!$D$14="Hindi","कक्षोंन्नति","Promoted"))),"") -> कक्षोंन्नति | EU8: =IF(OR($B8=0,$B8=""),"",IF(AND($E$3="3rd"),'Class 3rd'!BQ7,IF(AND($E$3="4th"),'Class 4th'!BQ7,""))) -> 320 | EV8: =IF(OR($B8=0,$B8=""),"",IF(AND($E$3="3rd"),'Class 3rd'!BR7,IF(AND($E$3="4th"),'Class 4th'!BR7,""))) -> 310 | EW8: =IF(OR(B8="",G8="",EP8="",B8="NSO"),"",IF(EP8>85%*(Y8+AQ8+BI8+CA8),"A",IF(EP8>70%*(Y8+AQ8+BI8+CA8),"B",IF(EP8>50%*(Y8+AQ8+BI8+CA8),"C",IF(EP8>30%*(Y8+AQ8+BI8+CA8),"D","E"))))) -> B | FE8: =IF(AND($E$3="3rd"),'Class 3rd'!I7,IF(AND($E$3="4th"),'Class 4th'!I7,"")) -> 301
A9: 2 | B9: =IF(OR(FE9=0,FE9=""),"",IF(AND($E$3="3rd"),'Class 3rd'!I8,IF(AND($E$3="4th"),'Class 4th'!I8,""))) -> 302 | C9: =IF(OR($B9=0,$B9=""),"",IF(AND($E$3="3rd"),'Class 3rd'!B8,IF(AND($E$3="4th"),'Class 4th'!B8,""))) -> 3 | D9: =IF(OR($B9=0,$B9=""),"",IF(AND($E$3="3rd"),'Class 3rd'!C8,IF(AND($E$3="4th"),'Class 4th'!C8,""))) -> A | E9: =IF(OR($B9=0,$B9=""),"",IF(AND($E$3="3rd"),'Class 3rd'!E8,IF(AND($E$3="4th"),'Class 4th'!E8,""))) -> 2015-01-01 | F9: =IF(OR($B9=0,$B9=""),"",IF(AND($E$3="3rd"),'Class 3rd'!D8,IF(AND($E$3="4th"),'Class 4th'!D8,""))) -> 944 | G9: =IF(OR($B9=0,$B9=""),"",IF(AND($E$3="3rd"),'Class 3rd'!F8,IF(AND($E$3="4th"),'Class 4th'!F8,""))) -> ANUJ GIRI | H9: =IF(OR($B9=0,$B9=""),"",IF(AND($E$3="3rd"),'Class 3rd'!G8,IF(AND($E$3="4th"),'Class 4th'!G8,""))) -> BHAGWAT GIRI | I9: =IF(OR($B9=0,$B9=""),"",IF(AND($E$3="3rd"),'Class 3rd'!H8,IF(AND($E$3="4th"),'Class 4th'!H8,""))) -> KANTA DEVI | J9: =IF(OR($B9=0,$B9=""),"",IF(AND($E$3="3rd"),'Class 3rd'!J8,IF(AND($E$3="4th"),'Class 4th'!J8,""))) -> M | K9: =IF(OR($B9=0,$B9=""),"",IF(AND($E$3="3rd"),'Class 3rd'!K8,IF(AND($E$3="4th"),'Class 4th'!K8,""))) -> OBC | L9: =IF(OR($B9=0,$B9=""),"",IF(AND($E$3="3rd"),'Class 3rd'!L8,IF(AND($E$3="4th"),'Class 4th'!L8,""))) -> 9 | M9: =IF(OR($B9=0,$B9=""),"",IF(AND($E$3="3rd"),'Class 3rd'!M8,IF(AND($E$3="4th"),'Class 4th'!M8,""))) -> 9 | N9: =IF(OR($B9=0,$B9=""),"",IF(AND($E$3="3rd"),'Class 3rd'!N8,IF(AND($E$3="4th"),'Class 4th'!N8,""))) -> 10 | O9: =IF(AND(L9="",M9="",N9=""),"",IF(AND(L9="NA",M9="NA",N9="NA"),"NA",IF(AND(L9="AB",M9="AB",N9="AB"),"AB",SUM(L9:N9)))) -> 28 | P9: =IF(OR($B9=0,$B9=""),"",IF(AND($E$3="3rd"),'Class 3rd'!O8,IF(AND($E$3="4th"),'Class 4th'!O8,""))) -> 46 | Q9: =IF(OR($B9=0,$B9=""),"",IF(AND($E$3="3rd"),'Class 3rd'!P8,IF(AND($E$3="4th"),'Class 4th'!P8,""))) -> 19 | R9: =IF(AND(P9="",Q9=""),"",IF(AND(P9="NA",Q9="NA"),"NA",IF(AND(P9="AB",Q9="AB"),"AB",SUM(P9:Q9)))) -> 65 | S9: =IF(AND(O9="NA",R9="NA"),"NA",IF(AND(O9="AB",R9="AB"),"AB",SUM(O9,R9))) -> 93 | T9: =IF(OR($B9=0,$B9=""),"",IF(AND($E$3="3rd"),'Class 3rd'!Q8,IF(AND($E$3="4th"),'Class 4th'!Q8,""))) -> 56 | U9: =IF(OR($B9=0,$B9=""),"",IF(AND($E$3="3rd"),'Class 3rd'!R8,IF(AND($E$3="4th"),'Class 4th'!R8,""))) -> 37 | V9: =IF(AND(T9="",U9=""),"",IF(AND(T9="AB",U9="AB"),"AB",SUM(T9:U9))) -> 93 | W9: =IF(V9="","",IF(AND(S9="AB",V9="AB"),"AB",SUM(S9,V9))) -> 186 | X9: =COUNTIF(L9:N9,"NA")*10+(COUNTIF(L9:N9,"ML")*10)+(COUNTIF(P9,"ML")*$P$7)+(COUNTIF(Q9,"ML")*$Q$7)+(COUNTIF(T9,"ML")*$T$7)+(COUNTIF(U9,"ML")*$U$7) -> 0 | Y9: =IF(OR($B9="NSO",$B9=0,$B9=""),"",IF(AND(L9="",M9="",N9="",P9="",T9=""),"",IF(AND(M9="",N9="",L9=""),$O$7-X9,IF(AND(P9="",Q9=""),$R$7-X9,IF(AND(T9="",U9=""),$V$7-X9,$W$7-X9))))) -> 200 | Z9: =IF(AND(OR(L9="ab",L9="ml"),OR(M9="ab",M9="ml"),OR(P9="ab",P9="ml")),"AB",IF(AND(OR(L9="ab",L9="ml"),OR(P9="ab",P9="ml"),OR(T9="ab",T9="ml")),"AB",IF(AND(OR(M9="ab",M9="ml"),OR(N9="ab",N9="ml"),OR(P9="ab",P9="ml")),"AB",IF(AND(OR(M9="ab",M9="ml"),OR(N9="ab",N9="ml"),OR(T9="ab",T9="ml")),"AB","")))) ->  | AA9: =IF(OR(B9="NSO",B9="",T9=""),"",IF(OR(Z9="AB",T9="ab"),"AB",IF(T9="ML","RE",IF(AND(W9>=36%*Y9,T9>=20%*$T$7),"P",IF(AND(W9>=34%*Y9,T9>=20%*$T$7),"G2",IF(AND(W9>=31%*Y9,T9>=20%*$T$7),"G1",IF(AND(W9>=25%*Y9,T9>=20%*$T$7),"S","F"))))))) -> P | AB9: =IF(OR(AA9="",AA9=0,AA9="S",AA9="RE",AA9="F",AA9="AB"),"",IF(W9>=60%*Y9,"I",IF(W9>=48%*Y9,"II",IF(W9>=36%*Y9,"III","")))) -> I | AC9: =IF(W9="","",IF(OR(AA9="",AA9=0,AA9="RE",AA9="AB"),"",IF(W9>85%*Y9,"A",IF(W9>70%*Y9,"B",IF(W9>50%*Y9,"C",IF(W9>30%*Y9,"D","E")))))) -> A | AD9: =IF(OR($B9=0,$B9=""),"",IF(AND($E$3="3rd"),'Class 3rd'!S8,IF(AND($E$3="4th"),'Class 4th'!S8,""))) -> 5 | AE9: =IF(OR($B9=0,$B9=""),"",IF(AND($E$3="3rd"),'Class 3rd'!T8,IF(AND($E$3="4th"),'Class 4th'!T8,""))) -> 4 | AF9: =IF(OR($B9=0,$B9=""),"",IF(AND($E$3="3rd"),'Class 3rd'!U8,IF(AND($E$3="4th"),'Class 4th'!U8,""))) -> 4 | AG9: =IF(AND(AD9="",AE9="",AF9=""),"",IF(AND(AD9="NA",AE9="NA",AF9="NA"),"NA",IF(AND(AD9="AB",AE9="AB",AF9="AB"),"AB",SUM(AD9:AF9)))) -> 13 | AH9: =IF(OR($B9=0,$B9=""),"",IF(AND($E$3="3rd"),'Class 3rd'!V8,IF(AND($E$3="4th"),'Class 4th'!V8,""))) -> 16 | AI9: =IF(OR($B9=0,$B9=""),"",IF(AND($E$3="3rd"),'Class 3rd'!W8,IF(AND($E$3="4th"),'Class 4th'!W8,""))) -> 9 | AJ9: =IF(AND(AH9="",AI9=""),"",IF(AND(AH9="NA",AI9="NA"),"NA",IF(AND(AH9="AB",AI9="AB"),"AB",SUM(AH9:AI9)))) -> 25 | AK9: =IF(AND(AG9="NA",AJ9="NA"),"NA",IF(AND(AG9="AB",AJ9="AB"),"AB",SUM(AG9,AJ9))) -> 38 | AL9: =IF(OR($B9=0,$B9=""),"",IF(AND($E$3="3rd"),'Class 3rd'!X8,IF(AND($E$3="4th"),'Class 4th'!X8,""))) -> 24 | AM9: =IF(OR($B9=0,$B9=""),"",IF(AND($E$3="3rd"),'Class 3rd'!Y8,IF(AND($E$3="4th"),'Class 4th'!Y8,""))) -> 17 | AN9: =IF(AND(AL9="",AM9=""),"",IF(AND(AL9="AB",AM9="AB"),"AB",SUM(AL9:AM9))) -> 41 | AO9: =IF(AN9="","",IF(AND(AK9="AB",AN9="AB"),"AB",SUM(AK9,AN9))) -> 79 | AP9: =COUNTIF(AD9:AF9,"NA")*5+(COUNTIF(AD9:AF9,"ML")*5)+(COUNTIF(AH9,"ML")*$AH$7)+(COUNTIF(AI9,"ML")*$AI$7)+(COUNTIF(AL9,"ML")*$AL$7)+(COUNTIF(AM9,"ML")*$AM$7) -> 0 | AQ9: =IF(OR($B9="NSO",$B9=0,$B9=""),"",IF(AND(AD9="",AE9="",AF9="",AH9="",AL9=""),"",IF(AND(AE9="",AF9="",AD9=""),$AG$7-AP9,IF(AND(AH9="",AI9=""),$AJ$7-AP9,IF(AND(AL9="",AM9=""),$AN$7-AP9,$AO$7-AP9))))) -> 100 | AR9: =IF(AND(OR(AD9="ab",AD9="ml"),OR(AE9="ab",AE9="ml"),OR(AH9="ab",AH9="ml")),"AB",IF(AND(OR(AD9="ab",AD9="ml"),OR(AH9="ab",AH9="ml"),OR(AL9="ab",AL9="ml")),"AB",IF(AND(OR(AE9="ab",AE9="ml"),OR(AF9="ab",AF9="ml"),OR(AH9="ab",AH9="ml")),"AB",IF(AND(OR(AE9="ab",AE9="ml"),OR(AF9="ab",AF9="ml"),OR(AL9="ab",AL9="ml")),"AB","")))) ->  | AS9: =IF(OR(B9="NSO",B9="",AL9=""),"",IF(OR(AR9="AB",AL9="ab"),"AB",IF(AL9="ML","RE",IF(AND(AO9>=36%*AQ9,AL9>=$AL$7*20%),"P",IF(AND(AO9>=34%*AQ9,AL9>=$AL$7*20%),"G2",IF(AND(AO9>=31%*AQ9,AL9>=$AL$7*20%),"G1",IF(AND(AO9>=25%*AQ9,AL9>=$AL$7*20%),"S","F"))))))) -> P | AT9: =IF(OR(AS9="",AS9=0,AS9="S",AS9="RE",AS9="F",AS9="AB"),"",IF(AO9>=60%*AQ9,"I",IF(AO9>=48%*AQ9,"II",IF(AO9>=36%*AQ9,"III","")))) -> I | AU9: =IF(AO9="","",IF(OR(AS9="",AS9=0,AS9="RE",AS9="AB"),"",IF(AO9>85%*AQ9,"A",IF(AO9>70%*AQ9,"B",IF(AO9>50%*AQ9,"C",IF(AO9>30%*AQ9,"D","E")))))) -> B | AV9: =IF(OR($B9=0,$B9=""),"",IF(AND($E$3="3rd"),'Class 3rd'!Z8,IF(AND($E$3="4th"),'Class 4th'!Z8,""))) -> 10 | AW9: =IF(OR($B9=0,$B9=""),"",IF(AND($E$3="3rd"),'Class 3rd'!AA8,IF(AND($E$3="4th"),'Class 4th'!AA8,""))) -> 9 | AX9: =IF(OR($B9=0,$B9=""),"",IF(AND($E$3="3rd"),'Class 3rd'!AB8,IF(AND($E$3="4th"),'Class 4th'!AB8,""))) -> 8 | AY9: =IF(AND(AV9="",AW9="",AX9=""),"",IF(AND(AV9="NA",AW9="NA",AX9="NA"),"NA",IF(AND(AV9="AB",AW9="AB",AX9="AB"),"AB",SUM(AV9:AX9)))) -> 27 | AZ9: =IF(OR($B9=0,$B9=""),"",IF(AND($E$3="3rd"),'Class 3rd'!AC8,IF(AND($E$3="4th"),'Class 4th'!AC8,""))) -> 39 | BA9: =IF(OR($B9=0,$B9=""),"",IF(AND($E$3="3rd"),'Class 3rd'!AD8,IF(AND($E$3="4th"),'Class 4th'!AD8,""))) -> 17 | BB9: =IF(AND(AZ9="",BA9=""),"",IF(AND(AZ9="NA",BA9="NA"),"NA",IF(AND(AZ9="AB",BA9="AB"),"AB",SUM(AZ9:BA9)))) -> 56 | BC9: =IF(AND(AY9="NA",BB9="NA"),"NA",IF(AND(AY9="AB",BB9="AB"),"AB",SUM(AY9,BB9))) -> 83 | BD9: =IF(OR($B9=0,$B9=""),"",IF(AND($E$3="3rd"),'Class 3rd'!AE8,IF(AND($E$3="4th"),'Class 4th'!AE8,""))) -> 48 | BE9: =IF(OR($B9=0,$B9=""),"",IF(AND($E$3="3rd"),'Class 3rd'!AF8,IF(AND($E$3="4th"),'Class 4th'!AF8,""))) -> 37 | BF9: =IF(AND(BD9="",BE9=""),"",IF(AND(BD9="AB",BE9="AB"),"AB",SUM(BD9:BE9))) -> 85 | BG9: =IF(BF9="","",IF(AND(BC9="AB",BF9="AB"),"AB",SUM(BC9,BF9))) -> 168 | BH9: =COUNTIF(AV9:AX9,"NA")*10+(COUNTIF(AV9:AX9,"ML")*10)+(COUNTIF(AZ9,"ML")*$AZ$7)+(COUNTIF(BA9,"ML")*$BA$7)+(COUNTIF(BD9,"ML")*$BD$7)+(COUNTIF(BE9,"ML")*$BE$7) -> 0 | BI9: =IF(OR($B9="NSO",$B9=0,$B9=""),"",IF(AND(AV9="",AW9="",AX9="",AZ9="",BD9=""),"",IF(AND(AW9="",AX9="",AV9=""),$AY$7-BH9,IF(AND(AZ9="",BA9=""),$BB$7-BH9,IF(AND(BD9="",BE9=""),$BF$7-BH9,$BG$7-BH9))))) -> 200 | BJ9: =IF(AND(OR(AV9="ab",AV9="ml"),OR(AW9="ab",AW9="ml"),OR(AZ9="ab",AZ9="ml")),"AB",IF(AND(OR(AV9="ab",AV9="ml"),OR(AZ9="ab",AZ9="ml"),OR(BD9="ab",BD9="ml")),"AB",IF(AND(OR(AW9="ab",AW9="ml"),OR(AX9="ab",AX9="ml"),OR(AZ9="ab",AZ9="ml")),"AB",IF(AND(OR(AW9="ab",AW9="ml"),OR(AX9="ab",AX9="ml"),OR(BD9="ab",BD9="ml")),"AB","")))) ->  | BK9: =IF(OR(B9="NSO",B9="",BD9=""),"",IF(OR(BJ9="AB",BD9="ab"),"AB",IF(BD9="ML","RE",IF(AND(BG9>=36%*BI9,BD9>=$BD$7*20%),"P",IF(AND(BG9>=34%*BI9,BD9>=$BD$7*20%),"G2",IF(AND(BG9>=31%*BI9,BD9>=$BD$7*20%),"G1",IF(AND(BG9>=25%*BI9,BD9>=$BD$7*20%),"S","F"))))))) -> P | BL9: =IF(OR(BK9="",BK9=0,BK9="S",BK9="RE",BK9="F",BK9="AB"),"",IF(BG9>=60%*BI9,"I",IF(BG9>=48%*BI9,"II",IF(BG9>=36%*BI9,"III","")))) -> I | BM9: =IF(BG9="","",IF(OR(BK9="",BK9=0,BK9="RE",BK9="AB"),"",IF(BG9>85%*BI9,"A",IF(BG9>70%*BI9,"B",IF(BG9>50%*BI9,"C",IF(BG9>30%*BI9,"D","E")))))) -> B | BN9: =IF(OR($B9=0,$B9=""),"",IF(AND($E$3="3rd"),'Class 3rd'!AG8,IF(AND($E$3="4th"),'Class 4th'!AG8,""))) -> 10 | BO9: =IF(OR($B9=0,$B9=""),"",IF(AND($E$3="3rd"),'Class 3rd'!AH8,IF(AND($E$3="4th"),'Class 4th'!AH8,""))) -> 10 | BP9: =IF(OR($B9=0,$B9=""),"",IF(AND($E$3="3rd"),'Class 3rd'!AI8,IF(AND($E$3="4th"),'Class 4th'!AI8,""))) -> 9 | BQ9: =IF(AND(BN9="",BO9="",BP9=""),"",IF(AND(BN9="NA",BO9="NA",BP9="NA"),"NA",IF(AND(BN9="AB",BO9="AB",BP9="AB"),"AB",SUM(BN9:BP9)))) -> 29 | BR9: =IF(OR($B9=0,$B9=""),"",IF(AND($E$3="3rd"),'Class 3rd'!AJ8,IF(AND($E$3="4th"),'Class 4th'!AJ8,""))) -> 47 | BS9: =IF(OR($B9=0,$B9=""),"",IF(AND($E$3="3rd"),'Class 3rd'!AK8,IF(AND($E$3="4th"),'Class 4th'!AK8,""))) -> 18 | BT9: =IF(AND(BR9="",BS9=""),"",IF(AND(BR9="NA",BS9="NA"),"NA",IF(AND(BR9="AB",BS9="AB"),"AB",SUM(BR9:BS9)))) -> 65 | BU9: =IF(AND(BQ9="NA",BT9="NA"),"NA",IF(AND(BQ9="AB",BT9="AB"),"AB",SUM(BQ9,BT9))) -> 94 | BV9: =IF(OR($B9=0,$B9=""),"",IF(AND($E$3="3rd"),'Class 3rd'!AL8,IF(AND($E$3="4th"),'Class 4th'!AL8,""))) -> 58 | BW9: =IF(OR($B9=0,$B9=""),"",IF(AND($E$3="3rd"),'Class 3rd'!AM8,IF(AND($E$3="4th"),'Class 4th'!AM8,""))) -> 37 | BX9: =IF(AND(BV9="",BW9=""),"",IF(AND(BV9="AB",BW9="AB"),"AB",SUM(BV9:BW9))) -> 95 | BY9: =IF(BX9="","",IF(AND(BU9="AB",BX9="AB"),"AB",SUM(BU9,BX9))) -> 189 | BZ9: =COUNTIF(BN9:BP9,"NA")*10+(COUNTIF(BN9:BP9,"ML")*10)+(COUNTIF(BR9,"ML")*$BR$7)+(COUNTIF(BS9,"ML")*$BS$7)+(COUNTIF(BV9,"ML")*$BV$7)+(COUNTIF(BW9,"ML")*$BW$7) -> 0 | CA9: =IF(OR($B9="NSO",$B9=0,$B9=""),"",IF(AND(BN9="",BO9="",BP9="",BR9="",BV9=""),"",IF(AND(BO9="",BP9="",BN9=""),$BQ$7-BZ9,IF(AND(BR9="",BS9=""),$BT$7-BZ9,IF(AND(BV9="",BW9=""),$BX$7-BZ9,$BY$7-BZ9))))) -> 200 | CB9: =IF(AND(OR(BN9="ab",BN9="ml"),OR(BO9="ab",BO9="ml"),OR(BR9="ab",BR9="ml")),"AB",IF(AND(OR(BN9="ab",BN9="ml"),OR(BR9="ab",BR9="ml"),OR(BV9="ab",BV9="ml")),"AB",IF(AND(OR(BO9="ab",BO9="ml"),OR(BP9="ab",BP9="ml"),OR(BR9="ab",BR9="ml")),"AB",IF(AND(OR(BO9="ab",BO9="ml"),OR(BP9="ab",BP9="ml"),OR(BV9="ab",BV9="ml")),"AB","")))) ->  | CC9: =IF(OR(B9="NSO",B9="",BV9=""),"",IF(OR(CB9="AB",BV9="ab"),"AB",IF(BV9="ML","RE",IF(AND(BY9>=36%*CA9,BV9>=$BV$7*20%),"P",IF(AND(BY9>=34%*CA9,BV9>=$BV$7*20%),"G2",IF(AND(BY9>=31%*CA9,BV9>=$BV$7*20%),"G1",IF(AND(BY9>=25%*CA9,BV9>=$BV$7*20%),"S","F"))))))) -> P | CD9: =IF(OR(CC9="",CC9=0,CC9="S",CC9="RE",CC9="F",CC9="AB"),"",IF(BY9>=60%*CA9,"I",IF(BY9>=48%*CA9,"II",IF(BY9>=36%*CA9,"III","")))) -> I | CE9: =IF(BY9="","",IF(OR(CC9="",CC9=0,CC9="RE",CC9="AB"),"",IF(BY9>85%*CA9,"A",IF(BY9>70%*CA9,"B",IF(BY9>50%*CA9,"C",IF(BY9>30%*CA9,"D","E")))))) -> A | CF9: =IF(OR($B9=0,$B9=""),"",IF(AND($E$3="3rd"),'Class 3rd'!AN8,IF(AND($E$3="4th"),'Class 4th'!AN8,""))) -> 9 | CG9: =IF(OR($B9=0,$B9=""),"",IF(AND($E$3="3rd"),'Class 3rd'!AO8,IF(AND($E$3="4th"),'Class 4th'!AO8,""))) -> 8 | CH9: =IF(OR($B9=0,$B9=""),"",IF(AND($E$3="3rd"),'Class 3rd'!AP8,IF(AND($E$3="4th"),'Class 4th'!AP8,""))) -> 10 | CI9: =IF(AND(CF9="",CG9="",CH9=""),"",IF(AND(CF9="NA",CG9="NA",CH9="NA"),"NA",IF(AND(CF9="AB",CG9="AB",CH9="AB"),"AB",SUM(CF9:CH9)))) -> 27 | CJ9: =IF(OR($B9=0,$B9=""),"",IF(AND($E$3="3rd"),'Class 3rd'!AQ8,IF(AND($E$3="4th"),'Class 4th'!AQ8,""))) -> 20 | CK9: =IF(OR($B9=0,$B9=""),"",IF(AND($E$3="3rd"),'Class 3rd'!AR8,IF(AND($E$3="4th"),'Class 4th'!AR8,""))) -> 45 | CL9: =IF(AND(CJ9="",CK9=""),"",IF(AND(CJ9="NA",CK9="NA"),"NA",IF(AND(CJ9="AB",CK9="AB"),"AB",SUM(CJ9:CK9)))) -> 65 | CM9: =IF(AND(CI9="NA",CL9="NA"),"NA",IF(AND(CI9="AB",CL9="AB"),"AB",SUM(CI9,CL9))) -> 92 | CN9: =IF(OR($B9=0,$B9=""),"",IF(AND($E$3="3rd"),'Class 3rd'!AS8,IF(AND($E$3="4th"),'Class 4th'!AS8,""))) -> 37 | CO9: =IF(OR($B9=0,$B9=""),"",IF(AND($E$3="3rd"),'Class 3rd'!AT8,IF(AND($E$3="4th"),'Class 4th'!AT8,""))) -> 48 | CP9: =IF(AND(CN9="",CO9=""),"",IF(AND(CN9="AB",CO9="AB"),"AB",SUM(CN9:CO9))) -> 85 | CQ9: =IF(CP9="","",IF(AND(CM9="AB",CP9="AB"),"AB",SUM(CM9,CP9))) -> 177 | CR9: =COUNTIF(CF9:CH9,"NA")*10+(COUNTIF(CF9:CH9,"ML")*10)+(COUNTIF(CJ9,"ML")*$CJ$7)+(COUNTIF(CK9,"ML")*$CK$7)+(COUNTIF(CN9,"ML")*$CN$7)+(COUNTIF(CO9,"ML")*$CO$7) -> 0 | CS9: =IF(OR($B9="NSO",$B9=0,$B9=""),"",IF(AND(CF9="",CG9="",CH9="",CJ9="",CN9=""),"",IF(AND(CG9="",CH9="",CF9=""),$CI$7-CR9,IF(AND(CJ9="",CK9=""),$CL$7-CR9,IF(AND(CN9="",CO9=""),$CP$7-CR9,$CQ$7-CR9))))) -> 200 | CT9: =IF(OR(B9="NSO",B9="",CN9=""),"",IF(OR(CS9="AB",CN9="ab"),"AB",IF(CN9="ML","RE",IF(AND(CQ9>=36%*CS9,CN9>=$CN$7*20%),"P",IF(AND(CQ9>=34%*CS9,CN9>=$CN$7*20%),"G2",IF(AND(CQ9>=31%*CS9,CN9>=$CN$7*20%),"G1",IF(AND(CQ9>=25%*CS9,CN9>=$CN$7*20%),"S","F"))))))) -> P | CU9: =IF(CQ9="","",IF(OR(CT9="",CT9=0,CT9="S",CT9="RE",CT9="F",CT9="AB"),"",IF(CQ9>85%*CS9,"A",IF(CQ9>70%*CS9,"B",IF(CQ9>50%*CS9,"C",IF(CQ9>30%*CS9,"D","E")))))) -> A | CV9: =IF(OR($B9=0,$B9=""),"",IF(AND($E$3="3rd"),'Class 3rd'!AU8,IF(AND($E$3="4th"),'Class 4th'!AU8,""))) -> 8 | CW9: =IF(OR($B9=0,$B9=""),"",IF(AND($E$3="3rd"),'Class 3rd'!AV8,IF(AND($E$3="4th"),'Class 4th'!AV8,""))) -> 7 | CX9: =IF(OR($B9=0,$B9=""),"",IF(AND($E$3="3rd"),'Class 3rd'!AW8,IF(AND($E$3="4th"),'Class 4th'!AW8,""))) -> 9 | CY9: =IF(AND(CV9="",CW9="",CX9=""),"",IF(AND(CV9="NA",CW9="NA",CX9="NA"),"NA",IF(AND(CV9="AB",CW9="AB",CX9="AB"),"AB",SUM(CV9:CX9)))) -> 24 | CZ9: =IF(OR($B9=0,$B9=""),"",IF(AND($E$3="3rd"),'Class 3rd'!AX8,IF(AND($E$3="4th"),'Class 4th'!AX8,""))) -> 47 | DA9: =IF(OR($B9=0,$B9=""),"",IF(AND($E$3="3rd"),'Class 3rd'!AY8,IF(AND($E$3="4th"),'Class 4th'!AY8,""))) -> 17 | DB9: =IF(AND(CZ9="",DA9=""),"",IF(AND(CZ9="NA",DA9="NA"),"NA",IF(AND(CZ9="AB",DA9="AB"),"AB",SUM(CZ9:DA9)))) -> 64 | DC9: =IF(AND(CY9="NA",DB9="NA"),"NA",IF(AND(CY9="AB",DB9="AB"),"AB",SUM(CY9,DB9))) -> 88 | DD9: =IF(OR($B9=0,$B9=""),"",IF(AND($E$3="3rd"),'Class 3rd'!AZ8,IF(AND($E$3="4th"),'Class 4th'!AZ8,""))) -> 56 | DE9: =IF(OR($B9=0,$B9=""),"",IF(AND($E$3="3rd"),'Class 3rd'!BA8,IF(AND($E$3="4th"),'Class 4th'!BA8,""))) -> 38 | DF9: =IF(AND(DD9="",DE9=""),"",IF(AND(DD9="AB",DE9="AB"),"AB",SUM(DD9:DE9))) -> 94 | DG9: =IF(DF9="","",IF(AND(DC9="AB",DF9="AB"),"AB",SUM(DC9,DF9))) -> 182 | DH9: =COUNTIF(CV9:CX9,"NA")*10+(COUNTIF(CV9:CX9,"ML")*10)+(COUNTIF(CZ9,"ML")*$CZ$7)+(COUNTIF(DA9,"ML")*$DA$7)+(COUNTIF(DD9,"ML")*$DD$7)+(COUNTIF(DE9,"ML")*$DE$7) -> 0 | DI9: =IF(OR($B9="NSO",$B9=0,$B9=""),"",IF(AND(CV9="",CW9="",CX9="",CZ9="",DD9=""),"",IF(AND(CW9="",CX9="",CV9=""),$CY$7-DH9,IF(AND(CZ9="",DA9=""),$DB$7-DH9,IF(AND(DD9="",DE9=""),$DF$7-DH9,$DG$7-DH9))))) -> 200 | DJ9: =IF(OR(B9="NSO",B9="",DD9=""),"",IF(OR(DI9="AB",DD9="ab"),"AB",IF(DD9="ML","RE",IF(AND(DG9>=36%*DI9,DD9>=$DD$7*20%),"P",IF(AND(DG9>=34%*DI9,DD9>=$DD$7*20%),"G2",IF(AND(DG9>=31%*DI9,DD9>=$DD$7*20%),"G1",IF(AND(DG9>=25%*DI9,DD9>=$DD$7*20%),"S","F"))))))) -> P | DK9: =IF(DG9="","",IF(OR(DJ9="",DJ9=0,DJ9="S",DJ9="RE",DJ9="F",DJ9="AB"),"",IF(DG9>85%*DI9,"A",IF(DG9>70%*DI9,"B",IF(DG9>50%*DI9,"C",IF(DG9>30%*DI9,"D","E")))))) -> A | DL9: =IF(OR($B9=0,$B9=""),"",IF(AND($E$3="3rd"),'Class 3rd'!BB8,IF(AND($E$3="4th"),'Class 4th'!BB8,""))) -> 18 | DM9: =IF(OR($B9=0,$B9=""),"",IF(AND($E$3="3rd"),'Class 3rd'!BC8,IF(AND($E$3="4th"),'Class 4th'!BC8,""))) -> 15 | DN9: =IF(OR($B9=0,$B9=""),"",IF(AND($E$3="3rd"),'Class 3rd'!BD8,IF(AND($E$3="4th"),'Class 4th'!BD8,""))) -> 14 | DO9: =IF(OR($B9=0,$B9=""),"",IF(AND($E$3="3rd"),'Class 3rd'!BE8,IF(AND($E$3="4th"),'Class 4th'!BE8,""))) -> 14 | DP9: =IF(OR($B9=0,$B9=""),"",IF(AND($E$3="3rd"),'Class 3rd'!BF8,IF(AND($E$3="4th"),'Class 4th'!BF8,""))) -> 15 | DQ9: =IF(AND(DL9="",DM9="",DN9="",DO9="",DP9=""),"",SUM(DL9:DP9)) -> 76 | DR9: =COUNTIF(DL9,"ML")*$DL$7+COUNTIF(DM9,"ML")*$DM$7+COUNTIF(DN9,"ML")*$DN$7+COUNTIF(DO9,"ML")*$DO$7 -> 0 | DS9: =IF(OR(AH9="NSO",AH9="",DQ9="",DQ9=0),"",IF(AND(DL9="",DM9=""),"",IF(AND(DL9=""),$DL$7-DR9,IF(DM9="",($DL$7+$DM$7)-DR9,$DQ$7-DR9)))) -> 100 | DT9: =IF(OR(B9="NSO",B9="",DQ9="",DQ9=0),"",IF(OR(DP9="AB",DO9="AB"),"AB",IF(DQ9>=36%*DS9,"P","S"))) -> P | DU9: =IF(DQ9="","",IF(OR(DT9="",DT9=0,DT9="S",DT9="RE",DT9="F",DT9="AB"),"",IF(DQ9>90%*DS9,"A+",IF(DQ9>75%*DS9,"A",IF(DQ9>60%*DS9,"B",IF(DQ9>40%*DS9,"C","D")))))) -> A | DV9: =IF(OR($B9=0,$B9=""),"",IF(AND($E$3="3rd"),'Class 3rd'!BG8,IF(AND($E$3="4th"),'Class 4th'!BG8,""))) -> 11 | DW9: =IF(OR($B9=0,$B9=""),"",IF(AND($E$3="3rd"),'Class 3rd'!BH8,IF(AND($E$3="4th"),'Class 4th'!BH8,""))) -> 20 | DX9: =IF(OR($B9=0,$B9=""),"",IF(AND($E$3="3rd"),'Class 3rd'!BI8,IF(AND($E$3="4th"),'Class 4th'!BI8,""))) -> 15 | DY9: =IF(OR($B9=0,$B9=""),"",IF(AND($E$3="3rd"),'Class 3rd'!BJ8,IF(AND($E$3="4th"),'Class 4th'!BJ8,""))) -> 14 | DZ9: =IF(OR($B9=0,$B9=""),"",IF(AND($E$3="3rd"),'Class 3rd'!BK8,IF(AND($E$3="4th"),'Class 4th'!BK8,""))) -> 19 | EA9: =IF(AND(DV9="",DW9="",DX9="",DY9="",DZ9=""),"",SUM(DV9:DZ9)) -> 79 | EB9: =COUNTIF(DV9,"ML")*$DV$7+COUNTIF(DW9,"ML")*$DW$7+COUNTIF(DX9,"ML")*$DX$7+COUNTIF(DY9,"ML")*$DY$7 -> 0 | EC9: =IF(OR(B9="NSO",B9="",EA9="",EA9=0),"",IF(AND(DV9="",DW9=""),"",IF(AND(DV9=""),$DV$7-EB9,IF(DW9="",($DW$7+$DV$7)-EB9,$EA$7-EB9)))) -> 100 | ED9: =IF(OR(B9="NSO",B9="",EA9="",EA9=0),"",IF(OR(DY9="AB",DZ9="AB"),"AB",IF(EA9>=36%*EC9,"P","S"))) -> P | EE9: =IF(EA9="","",IF(OR(ED9="",ED9=0,ED9="S",ED9="RE",ED9="F",ED9="AB"),"",IF(EA9>90%*EC9,"A+",IF(EA9>75%*EC9,"A",IF(EA9>60%*EC9,"B",IF(EA9>40%*EC9,"C","D")))))) -> A | EF9: =IF(OR($B9=0,$B9=""),"",IF(AND($E$3="3rd"),'Class 3rd'!BL8,IF(AND($E$3="4th"),'Class 4th'!BL8,""))) -> 20 | EG9: =IF(OR($B9=0,$B9=""),"",IF(AND($E$3="3rd"),'Class 3rd'!BM8,IF(AND($E$3="4th"),'Class 4th'!BM8,""))) -> 19 | EH9: =IF(OR($B9=0,$B9=""),"",IF(AND($E$3="3rd"),'Class 3rd'!BN8,IF(AND($E$3="4th"),'Class 4th'!BN8,""))) -> 14 | EI9: =IF(OR($B9=0,$B9=""),"",IF(AND($E$3="3rd"),'Class 3rd'!BO8,IF(AND($E$3="4th"),'Class 4th'!BO8,""))) -> 12 | EJ9: =IF(OR($B9=0,$B9=""),"",IF(AND($E$3="3rd"),'Class 3rd'!BP8,IF(AND($E$3="4th"),'Class 4th'!BP8,""))) -> 15 | EK9: =IF(AND(EF9="",EG9="",EH9="",EI9="",EJ9=""),"",SUM(EF9:EJ9)) -> 80 | EL9: =COUNTIF(EF9,"ML")*$EF$7+COUNTIF(EG9,"ML")*$EG$7+COUNTIF(EH9,"ML")*$EH$7+COUNTIF(EI9,"ML")*$EI$7 -> 0 | EM9: =IF(OR(L9="NSO",L9="",EK9="",EK9=0),"",IF(AND(EF9="",EG9=""),"",IF(AND(EF9=""),$EF$7-EL9,IF(EG9="",($EF$7+$EG$7)-EL9,$EK$7-EL9)))) -> 100 | EN9: =IF(OR(B9="NSO",B9="",EK9="",EK9=0),"",IF(OR(EI9="AB",EJ9="AB"),"AB",IF(EK9>=36%*EM9,"P","S"))) -> P | EO9: =IF(EK9="","",IF(OR(EN9="",EN9=0,EN9="S",EN9="RE",EN9="F",EN9="AB"),"",IF(EK9>90%*EM9,"A+",IF(EK9>75%*EM9,"A",IF(EK9>60%*EM9,"B",IF(EK9>40%*EM9,"C","D")))))) -> A | EP9: =IF($E$3="","",IF(OR(B9="",G9="",C9=""),"",SUM(W9,AO9,BG9,BY9))) -> 622 | EQ9: =IFERROR(IF(OR(EP9="",B9="NSO"),"",IF(OR(EP9="",EP9=0),"",EP9*100/(Y9+AQ9+BI9+CA9))),"") -> 88.86 % | ER9: =IF(OR(EQ9="",B9="NSO"),"",IF(AND(EQ9>=60),"I",IF(AND(EQ9>=48),"II",IF(AND(EQ9>=36),"III","")))) -> I | ES9: 8 | ET9: =IFERROR(IF(B9="NSO","NSO",IF(OR(D9="",G9="",F9="",B9="",EP9=0),"",IF('Master sheet'!$D$14="Hindi","कक्षोंन्नति","Promoted"))),"") -> कक्षोंन्नति | EU9: =IF(OR($B9=0,$B9=""),"",IF(AND($E$3="3rd"),'Class 3rd'!BQ8,IF(AND($E$3="4th"),'Class 4th'!BQ8,""))) -> 330 | EV9: =IF(OR($B9=0,$B9=""),"",IF(AND($E$3="3rd"),'Class 3rd'!BR8,IF(AND($E$3="4th"),'Class 4th'!BR8,""))) -> 300 | EW9: =IF(OR(B9="",G9="",EP9="",B9="NSO"),"",IF(EP9>85%*(Y9+AQ9+BI9+CA9),"A",IF(EP9>70%*(Y9+AQ9+BI9+CA9),"B",IF(EP9>50%*(Y9+AQ9+BI9+CA9),"C",IF(EP9>30%*(Y9+AQ9+BI9+CA9),"D","E"))))) -> A | FE9: =IF(AND($E$3="3rd"),'Class 3rd'!I8,IF(AND($E$3="4th"),'Class 4th'!I8,"")) -> 302
A10: 3 | B10: =IF(OR(FE10=0,FE10=""),"",IF(AND($E$3="3rd"),'Class 3rd'!I9,IF(AND($E$3="4th"),'Class 4th'!I9,""))) -> 303 | C10: =IF(OR($B10=0,$B10=""),"",IF(AND($E$3="3rd"),'Class 3rd'!B9,IF(AND($E$3="4th"),'Class 4th'!B9,""))) -> 3 | D10: =IF(OR($B10=0,$B10=""),"",IF(AND($E$3="3rd"),'Class 3rd'!C9,IF(AND($E$3="4th"),'Class 4th'!C9,""))) -> A | E10: =IF(OR($B10=0,$B10=""),"",IF(AND($E$3="3rd"),'Class 3rd'!E9,IF(AND($E$3="4th"),'Class 4th'!E9,""))) -> 2015-12-10 | F10: =IF(OR($B10=0,$B10=""),"",IF(AND($E$3="3rd"),'Class 3rd'!D9,IF(AND($E$3="4th"),'Class 4th'!D9,""))) -> 934 | G10: =IF(OR($B10=0,$B10=""),"",IF(AND($E$3="3rd"),'Class 3rd'!F9,IF(AND($E$3="4th"),'Class 4th'!F9,""))) -> ARMAN HUSSAIN | H10: =IF(OR($B10=0,$B10=""),"",IF(AND($E$3="3rd"),'Class 3rd'!G9,IF(AND($E$3="4th"),'Class 4th'!G9,""))) -> AARIF HUSSAIN | I10: =IF(OR($B10=0,$B10=""),"",IF(AND($E$3="3rd"),'Class 3rd'!H9,IF(AND($E$3="4th"),'Class 4th'!H9,""))) -> SALMA BANO | J10: =IF(OR($B10=0,$B10=""),"",IF(AND($E$3="3rd"),'Class 3rd'!J9,IF(AND($E$3="4th"),'Class 4th'!J9,""))) -> M | K10: =IF(OR($B10=0,$B10=""),"",IF(AND($E$3="3rd"),'Class 3rd'!K9,IF(AND($E$3="4th"),'Class 4th'!K9,""))) -> OBC | L10: =IF(OR($B10=0,$B10=""),"",IF(AND($E$3="3rd"),'Class 3rd'!L9,IF(AND($E$3="4th"),'Class 4th'!L9,""))) -> 9 | M10: =IF(OR($B10=0,$B10=""),"",IF(AND($E$3="3rd"),'Class 3rd'!M9,IF(AND($E$3="4th"),'Class 4th'!M9,""))) -> 8 | N10: =IF(OR($B10=0,$B10=""),"",IF(AND($E$3="3rd"),'Class 3rd'!N9,IF(AND($E$3="4th"),'Class 4th'!N9,""))) -> 10 | O10: 27 | P10: =IF(OR($B10=0,$B10=""),"",IF(AND($E$3="3rd"),'Class 3rd'!O9,IF(AND($E$3="4th"),'Class 4th'!O9,""))) -> 47 | Q10: =IF(OR($B10=0,$B10=""),"",IF(AND($E$3="3rd"),'Class 3rd'!P9,IF(AND($E$3="4th"),'Class 4th'!P9,""))) -> 19 | R10: 66 | S10: 93 | T10: =IF(OR($B10=0,$B10=""),"",IF(AND($E$3="3rd"),'Class 3rd'!Q9,IF(AND($E$3="4th"),'Class 4th'!Q9,""))) -> 57 | U10: =IF(OR($B10=0,$B10=""),"",IF(AND($E$3="3rd"),'Class 3rd'!R9,IF(AND($E$3="4th"),'Class 4th'!R9,""))) -> 37 | V10: 94 | W10: 187 | X10: 0 | Y10: 200 | AA10: P | AB10: I | AC10: A | AD10: =IF(OR($B10=0,$B10=""),"",IF(AND($E$3="3rd"),'Class 3rd'!S9,IF(AND($E$3="4th"),'Class 4th'!S9,""))) -> 5 | AE10: =IF(OR($B10=0,$B10=""),"",IF(AND($E$3="3rd"),'Class 3rd'!T9,IF(AND($E$3="4th"),'Class 4th'!T9,""))) -> 4 | AF10: =IF(OR($B10=0,$B10=""),"",IF(AND($E$3="3rd"),'Class 3rd'!U9,IF(AND($E$3="4th"),'Class 4th'!U9,""))) -> 5 | AG10: 14 | AH10: =IF(OR($B10=0,$B10=""),"",IF(AND($E$3="3rd"),'Class 3rd'!V9,IF(AND($E$3="4th"),'Class 4th'!V9,""))) -> 18 | AI10: =IF(OR($B10=0,$B10=""),"",IF(AND($E$3="3rd"),'Class 3rd'!W9,IF(AND($E$3="4th"),'Class 4th'!W9,""))) -> 9 | AJ10: 27 | AK10: 41 | AL10: =IF(OR($B10=0,$B10=""),"",IF(AND($E$3="3rd"),'Class 3rd'!X9,IF(AND($E$3="4th"),'Class 4th'!X9,""))) -> 24 | AM10: =IF(OR($B10=0,$B10=""),"",IF(AND($E$3="3rd"),'Class 3rd'!Y9,IF(AND($E$3="4th"),'Class 4th'!Y9,""))) -> 16 | AN10: 40 | AO10: 81 | AP10: 0 | AQ10: 100 | AS10: P | AT10: I | AU10: B | AV10: =IF(OR($B10=0,$B10=""),"",IF(AND($E$3="3rd"),'Class 3rd'!Z9,IF(AND($E$3="4th"),'Class 4th'!Z9,""))) -> 10 | AW10: =IF(OR($B10=0,$B10=""),"",IF(AND($E$3="3rd"),'Class 3rd'!AA9,IF(AND($E$3="4th"),'Class 4th'!AA9,""))) -> 9 | AX10: =IF(OR($B10=0,$B10=""),"",IF(AND($E$3="3rd"),'Class 3rd'!AB9,IF(AND($E$3="4th"),'Class 4th'!AB9,""))) -> 8 | AY10: 27 | AZ10: =IF(OR($B10=0,$B10=""),"",IF(AND($E$3="3rd"),'Class 3rd'!AC9,IF(AND($E$3="4th"),'Class 4th'!AC9,""))) -> 35 | BA10: =IF(OR($B10=0,$B10=""),"",IF(AND($E$3="3rd"),'Class 3rd'!AD9,IF(AND($E$3="4th"),'Class 4th'!AD9,""))) -> 18 | BB10: 53 | BC10: 80 | BD10: =IF(OR($B10=0,$B10=""),"",IF(AND($E$3="3rd"),'Class 3rd'!AE9,IF(AND($E$3="4th"),'Class 4th'!AE9,""))) -> 47 | BE10: =IF(OR($B10=0,$B10=""),"",IF(AND($E$3="3rd"),'Class 3rd'!AF9,IF(AND($E$3="4th"),'Class 4th'!AF9,""))) -> 37 | BF10: 84 | BG10: 164 | BH10: 0 | BI10: =IF(OR($B10="NSO",$B10=0,$B10=""),"",IF(AND(AV10="",AW10="",AX10="",AZ10="",BD10=""),"",IF(AND(AW10="",AX10="",AV10=""),$AY$7-BH10,IF(AND(AZ10="",BA10=""),$BB$7-BH10,IF(AND(BD10="",BE10=""),$BF$7-BH10,$BG$7-BH10))))) -> 200 | BK10: P | BL10: I | BM10: B | BN10: =IF(OR($B10=0,$B10=""),"",IF(AND($E$3="3rd"),'Class 3rd'!AG9,IF(AND($E$3="4th"),'Class 4th'!AG9,""))) -> 10 | BO10: =IF(OR($B10=0,$B10=""),"",IF(AND($E$3="3rd"),'Class 3rd'!AH9,IF(AND($E$3="4th"),'Class 4th'!AH9,""))) -> 10 | BP10: =IF(OR($B10=0,$B10=""),"",IF(AND($E$3="3rd"),'Class 3rd'!AI9,IF(AND($E$3="4th"),'Class 4th'!AI9,""))) -> 9 | BQ10: 29 | BR10: =IF(OR($B10=0,$B10=""),"",IF(AND($E$3="3rd"),'Class 3rd'!AJ9,IF(AND($E$3="4th"),'Class 4th'!AJ9,""))) -> 48 | BS10: =IF(OR($B10=0,$B10=""),"",IF(AND($E$3="3rd"),'Class 3rd'!AK9,IF(AND($E$3="4th"),'Class 4th'!AK9,""))) -> 18 | BT10: 66 | BU10: 95 | BV10: =IF(OR($B10=0,$B10=""),"",IF(AND($E$3="3rd"),'Class 3rd'!AL9,IF(AND($E$3="4th"),'Class 4th'!AL9,""))) -> 59 | BW10: =IF(OR($B10=0,$B10=""),"",IF(AND($E$3="3rd"),'Class 3rd'!AM9,IF(AND($E$3="4th"),'Class 4th'!AM9,""))) -> 37 | BX10: 96 | BY10: 191 | BZ10: 0 | CA10: 200 | CC10: P | CD10: I | CE10: A | CF10: =IF(OR($B10=0,$B10=""),"",IF(AND($E$3="3rd"),'Class 3rd'!AN9,IF(AND($E$3="4th"),'Class 4th'!AN9,""))) -> 9 | CG10: =IF(OR($B10=0,$B10=""),"",IF(AND($E$3="3rd"),'Class 3rd'!AO9,IF(AND($E$3="4th"),'Class 4th'!AO9,""))) -> 8 | CH10: =IF(OR($B10=0,$B10=""),"",IF(AND($E$3="3rd"),'Class 3rd'!AP9,IF(AND($E$3="4th"),'Class 4th'!AP9,""))) -> 10 | CI10: 27 | CJ10: =IF(OR($B10=0,$B10=""),"",IF(AND($E$3="3rd"),'Class 3rd'!AQ9,IF(AND($E$3="4th"),'Class 4th'!AQ9,""))) -> 20 | CK10: =IF(OR($B10=0,$B10=""),"",IF(AND($E$3="3rd"),'Class 3rd'!AR9,IF(AND($E$3="4th"),'Class 4th'!AR9,""))) -> 45 | CL10: 65 | CM10: 92 | CN10: =IF(OR($B10=0,$B10=""),"",IF(AND($E$3="3rd"),'Class 3rd'!AS9,IF(AND($E$3="4th"),'Class 4th'!AS9,""))) -> 38 | CO10: =IF(OR($B10=0,$B10=""),"",IF(AND($E$3="3rd"),'Class 3rd'!AT9,IF(AND($E$3="4th"),'Class 4th'!AT9,""))) -> 48 | CP10: 86 | CQ10: 178 | CR10: 0 | CS10: 200 | CT10: P | CU10: A | CV10: =IF(OR($B10=0,$B10=""),"",IF(AND($E$3="3rd"),'Class 3rd'!AU9,IF(AND($E$3="4th"),'Class 4th'!AU9,""))) -> 8 | CW10: =IF(OR($B10=0,$B10=""),"",IF(AND($E$3="3rd"),'Class 3rd'!AV9,IF(AND($E$3="4th"),'Class 4th'!AV9,""))) -> 7 | CX10: =IF(OR($B10=0,$B10=""),"",IF(AND($E$3="3rd"),'Class 3rd'!AW9,IF(AND($E$3="4th"),'Class 4th'!AW9,""))) -> 9 | CY10: 24 | CZ10: =IF(OR($B10=0,$B10=""),"",IF(AND($E$3="3rd"),'Class 3rd'!AX9,IF(AND($E$3="4th"),'Class 4th'!AX9,""))) -> 48 | DA10: =IF(OR($B10=0,$B10=""),"",IF(AND($E$3="3rd"),'Class 3rd'!AY9,IF(AND($E$3="4th"),'Class 4th'!AY9,""))) -> 15 | DB10: 63 | DC10: 87 | DD10: =IF(OR($B10=0,$B10=""),"",IF(AND($E$3="3rd"),'Class 3rd'!AZ9,IF(AND($E$3="4th"),'Class 4th'!AZ9,""))) -> 58 | DE10: =IF(OR($B10=0,$B10=""),"",IF(AND($E$3="3rd"),'Class 3rd'!BA9,IF(AND($E$3="4th"),'Class 4th'!BA9,""))) -> 39 | DF10: 97 | DG10: 184 | DH10: 0 | DI10: 200 | DJ10: P | DK10: A | DL10: =IF(OR($B10=0,$B10=""),"",IF(AND($E$3="3rd"),'Class 3rd'!BB9,IF(AND($E$3="4th"),'Class 4th'!BB9,""))) -> 17 | DM10: =IF(OR($B10=0,$B10=""),"",IF(AND($E$3="3rd"),'Class 3rd'!BC9,IF(AND($E$3="4th"),'Class 4th'!BC9,""))) -> 18 | DN10: =IF(OR($B10=0,$B10=""),"",IF(AND($E$3="3rd"),'Class 3rd'!BD9,IF(AND($E$3="4th"),'Class 4th'!BD9,""))) -> 14 | DO10: =IF(OR($B10=0,$B10=""),"",IF(AND($E$3="3rd"),'Class 3rd'!BE9,IF(AND($E$3="4th"),'Class 4th'!BE9,""))) -> 18 | DP10: =IF(OR($B10=0,$B10=""),"",IF(AND($E$3="3rd"),'Class 3rd'!BF9,IF(AND($E$3="4th"),'Class 4th'!BF9,""))) -> 14 | DQ10: 81 | DR10: 0 | DS10: 100 | DT10: P | DU10: A | DV10: =IF(OR($B10=0,$B10=""),"",IF(AND($E$3="3rd"),'Class 3rd'!BG9,IF(AND($E$3="4th"),'Class 4th'!BG9,""))) -> 11 | DW10: =IF(OR($B10=0,$B10=""),"",IF(AND($E$3="3rd"),'Class 3rd'!BH9,IF(AND($E$3="4th"),'Class 4th'!BH9,""))) -> 20 | DX10: =IF(OR($B10=0,$B10=""),"",IF(AND($E$3="3rd"),'Class 3rd'!BI9,IF(AND($E$3="4th"),'Class 4th'!BI9,""))) -> 15 | DY10: =IF(OR($B10=0,$B10=""),"",IF(AND($E$3="3rd"),'Class 3rd'!BJ9,IF(AND($E$3="4th"),'Class 4th'!BJ9,""))) -> 14 | DZ10: =IF(OR($B10=0,$B10=""),"",IF(AND($E$3="3rd"),'Class 3rd'!BK9,IF(AND($E$3="4th"),'Class 4th'!BK9,""))) -> 18 | EA10: 78 | EB10: 0 | EC10: 100 | ED10: P | EE10: A | EF10: =IF(OR($B10=0,$B10=""),"",IF(AND($E$3="3rd"),'Class 3rd'!BL9,IF(AND($E$3="4th"),'Class 4th'!BL9,""))) -> 20 | EG10: =IF(OR($B10=0,$B10=""),"",IF(AND($E$3="3rd"),'Class 3rd'!BM9,IF(AND($E$3="4th"),'Class 4th'!BM9,""))) -> 19 | EH10: =IF(OR($B10=0,$B10=""),"",IF(AND($E$3="3rd"),'Class 3rd'!BN9,IF(AND($E$3="4th"),'Class 4th'!BN9,""))) -> 14 | EI10: =IF(OR($B10=0,$B10=""),"",IF(AND($E$3="3rd"),'Class 3rd'!BO9,IF(AND($E$3="4th"),'Class 4th'!BO9,""))) -> 10 | EJ10: =IF(OR($B10=0,$B10=""),"",IF(AND($E$3="3rd"),'Class 3rd'!BP9,IF(AND($E$3="4th"),'Class 4th'!BP9,""))) -> 14 | EK10: 77 | EL10: 0 | EM10: 100 | EN10: P | EO10: A | EP10: 623 | EQ10: 89.00 % | ER10: I | ES10: 7 | ET10: =IFERROR(IF(B10="NSO","NSO",IF(OR(D10="",G10="",F10="",B10="",EP10=0),"",IF('Master sheet'!$D$14="Hindi","कक्षोंन्नति","Promoted"))),"") -> कक्षोंन्नति | EU10: =IF(OR($B10=0,$B10=""),"",IF(AND($E$3="3rd"),'Class 3rd'!BQ9,IF(AND($E$3="4th"),'Class 4th'!BQ9,""))) -> 340 | EV10: =IF(OR($B10=0,$B10=""),"",IF(AND($E$3="3rd"),'Class 3rd'!BR9,IF(AND($E$3="4th"),'Class 4th'!BR9,""))) -> 290 | EW10: A | FE10: =IF(AND($E$3="3rd"),'Class 3rd'!I9,IF(AND($E$3="4th"),'Class 4th'!I9,"")) -> 303
A11: 4 | B11: =IF(OR(FE11=0,FE11=""),"",IF(AND($E$3="3rd"),'Class 3rd'!I10,IF(AND($E$3="4th"),'Class 4th'!I10,""))) -> 304 | C11: =IF(OR($B11=0,$B11=""),"",IF(AND($E$3="3rd"),'Class 3rd'!B10,IF(AND($E$3="4th"),'Class 4th'!B10,""))) -> 3 | D11: =IF(OR($B11=0,$B11=""),"",IF(AND($E$3="3rd"),'Class 3rd'!C10,IF(AND($E$3="4th"),'Class 4th'!C10,""))) -> A | E11: =IF(OR($B11=0,$B11=""),"",IF(AND($E$3="3rd"),'Class 3rd'!E10,IF(AND($E$3="4th"),'Class 4th'!E10,""))) -> 2016-05-01 | F11: =IF(OR($B11=0,$B11=""),"",IF(AND($E$3="3rd"),'Class 3rd'!D10,IF(AND($E$3="4th"),'Class 4th'!D10,""))) -> 926 | G11: =IF(OR($B11=0,$B11=""),"",IF(AND($E$3="3rd"),'Class 3rd'!F10,IF(AND($E$3="4th"),'Class 4th'!F10,""))) -> ARMAN SHAH | H11: =IF(OR($B11=0,$B11=""),"",IF(AND($E$3="3rd"),'Class 3rd'!G10,IF(AND($E$3="4th"),'Class 4th'!G10,""))) -> JAKIR SHAH | I11: =IF(OR($B11=0,$B11=""),"",IF(AND($E$3="3rd"),'Class 3rd'!H10,IF(AND($E$3="4th"),'Class 4th'!H10,""))) -> HEENA BANU | J11: =IF(OR($B11=0,$B11=""),"",IF(AND($E$3="3rd"),'Class 3rd'!J10,IF(AND($E$3="4th"),'Class 4th'!J10,""))) -> M | K11: =IF(OR($B11=0,$B11=""),"",IF(AND($E$3="3rd"),'Class 3rd'!K10,IF(AND($E$3="4th"),'Class 4th'!K10,""))) -> OBC | L11: =IF(OR($B11=0,$B11=""),"",IF(AND($E$3="3rd"),'Class 3rd'!L10,IF(AND($E$3="4th"),'Class 4th'!L10,""))) -> 9 | M11: =IF(OR($B11=0,$B11=""),"",IF(AND($E$3="3rd"),'Class 3rd'!M10,IF(AND($E$3="4th"),'Class 4th'!M10,""))) -> 8 | N11: =IF(OR($B11=0,$B11=""),"",IF(AND($E$3="3rd"),'Class 3rd'!N10,IF(AND($E$3="4th"),'Class 4th'!N10,""))) -> 10 | O11: 27 | P11: =IF(OR($B11=0,$B11=""),"",IF(AND($E$3="3rd"),'Class 3rd'!O10,IF(AND($E$3="4th"),'Class 4th'!O10,""))) -> 48 | Q11: =IF(OR($B11=0,$B11=""),"",IF(AND($E$3="3rd"),'Class 3rd'!P10,IF(AND($E$3="4th"),'Class 4th'!P10,""))) -> 19 | R11: 67 | S11: 94 | T11: =IF(OR($B11=0,$B11=""),"",IF(AND($E$3="3rd"),'Class 3rd'!Q10,IF(AND($E$3="4th"),'Class 4th'!Q10,""))) -> 58 | U11: =IF(OR($B11=0,$B11=""),"",IF(AND($E$3="3rd"),'Class 3rd'!R10,IF(AND($E$3="4th"),'Class 4th'!R10,""))) -> 37 | V11: 95 | W11: 189 | X11: 0 | Y11: 200 | AA11: P | AB11: I | AC11: A | AD11: =IF(OR($B11=0,$B11=""),"",IF(AND($E$3="3rd"),'Class 3rd'!S10,IF(AND($E$3="4th"),'Class 4th'!S10,""))) -> 5 | AE11: =IF(OR($B11=0,$B11=""),"",IF(AND($E$3="3rd"),'Class 3rd'!T10,IF(AND($E$3="4th"),'Class 4th'!T10,""))) -> 4 | AF11: =IF(OR($B11=0,$B11=""),"",IF(AND($E$3="3rd"),'Class 3rd'!U10,IF(AND($E$3="4th"),'Class 4th'!U10,""))) -> 5 | AG11: 14 | AH11: =IF(OR($B11=0,$B11=""),"",IF(AND($E$3="3rd"),'Class 3rd'!V10,IF(AND($E$3="4th"),'Class 4th'!V10,""))) -> 19 | AI11: =IF(OR($B11=0,$B11=""),"",IF(AND($E$3="3rd"),'Class 3rd'!W10,IF(AND($E$3="4th"),'Class 4th'!W10,""))) -> 9 | AJ11: 28 | AK11: 42 | AL11: =IF(OR($B11=0,$B11=""),"",IF(AND($E$3="3rd"),'Class 3rd'!X10,IF(AND($E$3="4th"),'Class 4th'!X10,""))) -> 24 | AM11: =IF(OR($B11=0,$B11=""),"",IF(AND($E$3="3rd"),'Class 3rd'!Y10,IF(AND($E$3="4th"),'Class 4th'!Y10,""))) -> 14 | AN11: 38 | AO11: 80 | AP11: 0 | AQ11: 100 | AS11: P | AT11: I | AU11: B | AV11: =IF(OR($B11=0,$B11=""),"",IF(AND($E$3="3rd"),'Class 3rd'!Z10,IF(AND($E$3="4th"),'Class 4th'!Z10,""))) -> 10 | AW11: =IF(OR($B11=0,$B11=""),"",IF(AND($E$3="3rd"),'Class 3rd'!AA10,IF(AND($E$3="4th"),'Class 4th'!AA10,""))) -> 9 | AX11: =IF(OR($B11=0,$B11=""),"",IF(AND($E$3="3rd"),'Class 3rd'!AB10,IF(AND($E$3="4th"),'Class 4th'!AB10,""))) -> 8 | AY11: 27 | AZ11: =IF(OR($B11=0,$B11=""),"",IF(AND($E$3="3rd"),'Class 3rd'!AC10,IF(AND($E$3="4th"),'Class 4th'!AC10,""))) -> 38 | BA11: =IF(OR($B11=0,$B11=""),"",IF(AND($E$3="3rd"),'Class 3rd'!AD10,IF(AND($E$3="4th"),'Class 4th'!AD10,""))) -> 19 | BB11: 57 | BC11: 84 | BD11: =IF(OR($B11=0,$B11=""),"",IF(AND($E$3="3rd"),'Class 3rd'!AE10,IF(AND($E$3="4th"),'Class 4th'!AE10,""))) -> 48 | BE11: =IF(OR($B11=0,$B11=""),"",IF(AND($E$3="3rd"),'Class 3rd'!AF10,IF(AND($E$3="4th"),'Class 4th'!AF10,""))) -> 37 | BF11: 85 | BG11: 169 | BH11: 0 | BI11: 200 | BK11: P | BL11: I | BM11: B | BN11: =IF(OR($B11=0,$B11=""),"",IF(AND($E$3="3rd"),'Class 3rd'!AG10,IF(AND($E$3="4th"),'Class 4th'!AG10,""))) -> 10 | BO11: =IF(OR($B11=0,$B11=""),"",IF(AND($E$3="3rd"),'Class 3rd'!AH10,IF(AND($E$3="4th"),'Class 4th'!AH10,""))) -> 10 | BP11: =IF(OR($B11=0,$B11=""),"",IF(AND($E$3="3rd"),'Class 3rd'!AI10,IF(AND($E$3="4th"),'Class 4th'!AI10,""))) -> 9 | BQ11: 29 | BR11: =IF(OR($B11=0,$B11=""),"",IF(AND($E$3="3rd"),'Class 3rd'!AJ10,IF(AND($E$3="4th"),'Class 4th'!AJ10,""))) -> 49 | BS11: =IF(OR($B11=0,$B11=""),"",IF(AND($E$3="3rd"),'Class 3rd'!AK10,IF(AND($E$3="4th"),'Class 4th'!AK10,""))) -> 18 | BT11: 67 | BU11: 96 | BV11: =IF(OR($B11=0,$B11=""),"",IF(AND($E$3="3rd"),'Class 3rd'!AL10,IF(AND($E$3="4th"),'Class 4th'!AL10,""))) -> 57 | BW11: =IF(OR($B11=0,$B11=""),"",IF(AND($E$3="3rd"),'Class 3rd'!AM10,IF(AND($E$3="4th"),'Class 4th'!AM10,""))) -> 37 | BX11: 94 | BY11: 190 | BZ11: 0 | CA11: 200 | CC11: P | CD11: I | CE11: A | CF11: =IF(OR($B11=0,$B11=""),"",IF(AND($E$3="3rd"),'Class 3rd'!AN10,IF(AND($E$3="4th"),'Class 4th'!AN10,""))) -> 9 | CG11: =IF(OR($B11=0,$B11=""),"",IF(AND($E$3="3rd"),'Class 3rd'!AO10,IF(AND($E$3="4th"),'Class 4th'!AO10,""))) -> 8 | CH11: =IF(OR($B11=0,$B11=""),"",IF(AND($E$3="3rd"),'Class 3rd'!AP10,IF(AND($E$3="4th"),'Class 4th'!AP10,""))) -> 10 | CI11: 27 | CJ11: =IF(OR($B11=0,$B11=""),"",IF(AND($E$3="3rd"),'Class 3rd'!AQ10,IF(AND($E$3="4th"),'Class 4th'!AQ10,""))) -> 20 | CK11: =IF(OR($B11=0,$B11=""),"",IF(AND($E$3="3rd"),'Class 3rd'!AR10,IF(AND($E$3="4th"),'Class 4th'!AR10,""))) -> 45 | CL11: 65 | CM11: 92 | CN11: =IF(OR($B11=0,$B11=""),"",IF(AND($E$3="3rd"),'Class 3rd'!AS10,IF(AND($E$3="4th"),'Class 4th'!AS10,""))) -> 38 | CO11: =IF(OR($B11=0,$B11=""),"",IF(AND($E$3="3rd"),'Class 3rd'!AT10,IF(AND($E$3="4th"),'Class 4th'!AT10,""))) -> 48 | CP11: 86 | CQ11: 178 | CR11: 0 | CS11: 200 | CT11: P | CU11: A | CV11: =IF(OR($B11=0,$B11=""),"",IF(AND($E$3="3rd"),'Class 3rd'!AU10,IF(AND($E$3="4th"),'Class 4th'!AU10,""))) -> 8 | CW11: =IF(OR($B11=0,$B11=""),"",IF(AND($E$3="3rd"),'Class 3rd'!AV10,IF(AND($E$3="4th"),'Class 4th'!AV10,""))) -> 7 | CX11: =IF(OR($B11=0,$B11=""),"",IF(AND($E$3="3rd"),'Class 3rd'!AW10,IF(AND($E$3="4th"),'Class 4th'!AW10,""))) -> 9 | CY11: 24 | CZ11: =IF(OR($B11=0,$B11=""),"",IF(AND($E$3="3rd"),'Class 3rd'!AX10,IF(AND($E$3="4th"),'Class 4th'!AX10,""))) -> 49 | DA11: =IF(OR($B11=0,$B11=""),"",IF(AND($E$3="3rd"),'Class 3rd'!AY10,IF(AND($E$3="4th"),'Class 4th'!AY10,""))) -> 18 | DB11: 67 | DC11: 91 | DD11: =IF(OR($B11=0,$B11=""),"",IF(AND($E$3="3rd"),'Class 3rd'!AZ10,IF(AND($E$3="4th"),'Class 4th'!AZ10,""))) -> 54 | DE11: =IF(OR($B11=0,$B11=""),"",IF(AND($E$3="3rd"),'Class 3rd'!BA10,IF(AND($E$3="4th"),'Class 4th'!BA10,""))) -> 37 | DF11: 91 | DG11: 182 | DH11: 0 | DI11: 200 | DJ11: P | DK11: A | DL11: =IF(OR($B11=0,$B11=""),"",IF(AND($E$3="3rd"),'Class 3rd'!BB10,IF(AND($E$3="4th"),'Class 4th'!BB10,""))) -> 18 | DM11: =IF(OR($B11=0,$B11=""),"",IF(AND($E$3="3rd"),'Class 3rd'!BC10,IF(AND($E$3="4th"),'Class 4th'!BC10,""))) -> 17 | DN11: =IF(OR($B11=0,$B11=""),"",IF(AND($E$3="3rd"),'Class 3rd'!BD10,IF(AND($E$3="4th"),'Class 4th'!BD10,""))) -> 15 | DO11: =IF(OR($B11=0,$B11=""),"",IF(AND($E$3="3rd"),'Class 3rd'!BE10,IF(AND($E$3="4th"),'Class 4th'!BE10,""))) -> 19 | DP11: =IF(OR($B11=0,$B11=""),"",IF(AND($E$3="3rd"),'Class 3rd'!BF10,IF(AND($E$3="4th"),'Class 4th'!BF10,""))) -> 16 | DQ11: 85 | DR11: 0 | DS11: 100 | DT11: P | DU11: A | DV11: =IF(OR($B11=0,$B11=""),"",IF(AND($E$3="3rd"),'Class 3rd'!BG10,IF(AND($E$3="4th"),'Class 4th'!BG10,""))) -> 11 | DW11: =IF(OR($B11=0,$B11=""),"",IF(AND($E$3="3rd"),'Class 3rd'!BH10,IF(AND($E$3="4th"),'Class 4th'!BH10,""))) -> 20 | DX11: =IF(OR($B11=0,$B11=""),"",IF(AND($E$3="3rd"),'Class 3rd'!BI10,IF(AND($E$3="4th"),'Class 4th'!BI10,""))) -> 15 | DY11: =IF(OR($B11=0,$B11=""),"",IF(AND($E$3="3rd"),'Class 3rd'!BJ10,IF(AND($E$3="4th"),'Class 4th'!BJ10,""))) -> 14 | DZ11: =IF(OR($B11=0,$B11=""),"",IF(AND($E$3="3rd"),'Class 3rd'!BK10,IF(AND($E$3="4th"),'Class 4th'!BK10,""))) -> 17 | EA11: 77 | EB11: 0 | EC11: 100 | ED11: P | EE11: A | EF11: =IF(OR($B11=0,$B11=""),"",IF(AND($E$3="3rd"),'Class 3rd'!BL10,IF(AND($E$3="4th"),'Class 4th'!BL10,""))) -> 20 | EG11: =IF(OR($B11=0,$B11=""),"",IF(AND($E$3="3rd"),'Class 3rd'!BM10,IF(AND($E$3="4th"),'Class 4th'!BM10,""))) -> 19 | EH11: =IF(OR($B11=0,$B11=""),"",IF(AND($E$3="3rd"),'Class 3rd'!BN10,IF(AND($E$3="4th"),'Class 4th'!BN10,""))) -> 14 | EI11: =IF(OR($B11=0,$B11=""),"",IF(AND($E$3="3rd"),'Class 3rd'!BO10,IF(AND($E$3="4th"),'Class 4th'!BO10,""))) -> 10 | EJ11: =IF(OR($B11=0,$B11=""),"",IF(AND($E$3="3rd"),'Class 3rd'!BP10,IF(AND($E$3="4th"),'Class 4th'!BP10,""))) -> 15 | EK11: 78 | EL11: 0 | EM11: 100 | EN11: P | EO11: A | EP11: 628 | EQ11: 89.71 % | ER11: I | ES11: 4 | ET11: =IFERROR(IF(B11="NSO","NSO",IF(OR(D11="",G11="",F11="",B11="",EP11=0),"",IF('Master sheet'!$D$14="Hindi","कक्षोंन्नति","Promoted"))),"") -> कक्षोंन्नति | EU11: =IF(OR($B11=0,$B11=""),"",IF(AND($E$3="3rd"),'Class 3rd'!BQ10,IF(AND($E$3="4th"),'Class 4th'!BQ10,""))) -> 350 | EV11: =IF(OR($B11=0,$B11=""),"",IF(AND($E$3="3rd"),'Class 3rd'!BR10,IF(AND($E$3="4th"),'Class 4th'!BR10,""))) -> 280 | EW11: A | FE11: =IF(AND($E$3="3rd"),'Class 3rd'!I10,IF(AND($E$3="4th"),'Class 4th'!I10,"")) -> 304
A12: 5 | B12: =IF(OR(FE12=0,FE12=""),"",IF(AND($E$3="3rd"),'Class 3rd'!I11,IF(AND($E$3="4th"),'Class 4th'!I11,""))) -> 305 | C12: =IF(OR($B12=0,$B12=""),"",IF(AND($E$3="3rd"),'Class 3rd'!B11,IF(AND($E$3="4th"),'Class 4th'!B11,""))) -> 3 | D12: =IF(OR($B12=0,$B12=""),"",IF(AND($E$3="3rd"),'Class 3rd'!C11,IF(AND($E$3="4th"),'Class 4th'!C11,""))) -> A | E12: =IF(OR($B12=0,$B12=""),"",IF(AND($E$3="3rd"),'Class 3rd'!E11,IF(AND($E$3="4th"),'Class 4th'!E11,""))) -> 25-08-2015 | F12: =IF(OR($B12=0,$B12=""),"",IF(AND($E$3="3rd"),'Class 3rd'!D11,IF(AND($E$3="4th"),'Class 4th'!D11,""))) -> 951 | G12: =IF(OR($B12=0,$B12=""),"",IF(AND($E$3="3rd"),'Class 3rd'!F11,IF(AND($E$3="4th"),'Class 4th'!F11,""))) -> BHAVYANSH SINGH CHOUHAN | H12: =IF(OR($B12=0,$B12=""),"",IF(AND($E$3="3rd"),'Class 3rd'!G11,IF(AND($E$3="4th"),'Class 4th'!G11,""))) -> AJIT SINGH | I12: =IF(OR($B12=0,$B12=""),"",IF(AND($E$3="3rd"),'Class 3rd'!H11,IF(AND($E$3="4th"),'Class 4th'!H11,""))) -> MEENA | J12: =IF(OR($B12=0,$B12=""),"",IF(AND($E$3="3rd"),'Class 3rd'!J11,IF(AND($E$3="4th"),'Class 4th'!J11,""))) -> M | K12: =IF(OR($B12=0,$B12=""),"",IF(AND($E$3="3rd"),'Class 3rd'!K11,IF(AND($E$3="4th"),'Class 4th'!K11,""))) -> OBC | L12: =IF(OR($B12=0,$B12=""),"",IF(AND($E$3="3rd"),'Class 3rd'!L11,IF(AND($E$3="4th"),'Class 4th'!L11,""))) -> 9 | M12: =IF(OR($B12=0,$B12=""),"",IF(AND($E$3="3rd"),'Class 3rd'!M11,IF(AND($E$3="4th"),'Class 4th'!M11,""))) -> 8 | N12: =IF(OR($B12=0,$B12=""),"",IF(AND($E$3="3rd"),'Class 3rd'!N11,IF(AND($E$3="4th"),'Class 4th'!N11,""))) -> 10 | O12: 27 | P12: =IF(OR($B12=0,$B12=""),"",IF(AND($E$3="3rd"),'Class 3rd'!O11,IF(AND($E$3="4th"),'Class 4th'!O11,""))) -> 49 | Q12: =IF(OR($B12=0,$B12=""),"",IF(AND($E$3="3rd"),'Class 3rd'!P11,IF(AND($E$3="4th"),'Class 4th'!P11,""))) -> 19 | R12: 68 | S12: 95 | T12: =IF(OR($B12=0,$B12=""),"",IF(AND($E$3="3rd"),'Class 3rd'!Q11,IF(AND($E$3="4th"),'Class 4th'!Q11,""))) -> 59 | U12: =IF(OR($B12=0,$B12=""),"",IF(AND($E$3="3rd"),'Class 3rd'!R11,IF(AND($E$3="4th"),'Class 4th'!R11,""))) -> 37 | V12: 96 | W12: 191 | X12: 0 | Y12: 200 | AA12: P | AB12: I | AC12: A | AD12: =IF(OR($B12=0,$B12=""),"",IF(AND($E$3="3rd"),'Class 3rd'!S11,IF(AND($E$3="4th"),'Class 4th'!S11,""))) -> 5 | AE12: =IF(OR($B12=0,$B12=""),"",IF(AND($E$3="3rd"),'Class 3rd'!T11,IF(AND($E$3="4th"),'Class 4th'!T11,""))) -> 4 | AF12: =IF(OR($B12=0,$B12=""),"",IF(AND($E$3="3rd"),'Class 3rd'!U11,IF(AND($E$3="4th"),'Class 4th'!U11,""))) -> 5 | AG12: 14 | AH12: =IF(OR($B12=0,$B12=""),"",IF(AND($E$3="3rd"),'Class 3rd'!V11,IF(AND($E$3="4th"),'Class 4th'!V11,""))) -> 25 | AI12: =IF(OR($B12=0,$B12=""),"",IF(AND($E$3="3rd"),'Class 3rd'!W11,IF(AND($E$3="4th"),'Class 4th'!W11,""))) -> 9 | AJ12: 34 | AK12: 48 | AL12: =IF(OR($B12=0,$B12=""),"",IF(AND($E$3="3rd"),'Class 3rd'!X11,IF(AND($E$3="4th"),'Class 4th'!X11,""))) -> 24 | AM12: =IF(OR($B12=0,$B12=""),"",IF(AND($E$3="3rd"),'Class 3rd'!Y11,IF(AND($E$3="4th"),'Class 4th'!Y11,""))) -> 15 | AN12: 39 | AO12: 87 | AP12: 0 | AQ12: 100 | AS12: P | AT12: I | AU12: A | AV12: =IF(OR($B12=0,$B12=""),"",IF(AND($E$3="3rd"),'Class 3rd'!Z11,IF(AND($E$3="4th"),'Class 4th'!Z11,""))) -> 10 | AW12: =IF(OR($B12=0,$B12=""),"",IF(AND($E$3="3rd"),'Class 3rd'!AA11,IF(AND($E$3="4th"),'Class 4th'!AA11,""))) -> 9 | AX12: =IF(OR($B12=0,$B12=""),"",IF(AND($E$3="3rd"),'Class 3rd'!AB11,IF(AND($E$3="4th"),'Class 4th'!AB11,""))) -> 8 | AY12: 27 | AZ12: =IF(OR($B12=0,$B12=""),"",IF(AND($E$3="3rd"),'Class 3rd'!AC11,IF(AND($E$3="4th"),'Class 4th'!AC11,""))) -> 39 | BA12: =IF(OR($B12=0,$B12=""),"",IF(AND($E$3="3rd"),'Class 3rd'!AD11,IF(AND($E$3="4th"),'Class 4th'!AD11,""))) -> 14 | BB12: 53 | BC12: 80 | BD12: =IF(OR($B12=0,$B12=""),"",IF(AND($E$3="3rd"),'Class 3rd'!AE11,IF(AND($E$3="4th"),'Class 4th'!AE11,""))) -> 49 | BE12: =IF(OR($B12=0,$B12=""),"",IF(AND($E$3="3rd"),'Class 3rd'!AF11,IF(AND($E$3="4th"),'Class 4th'!AF11,""))) -> 37 | BF12: 86 | BG12: 166 | BH12: 0 | BI12: 200 | BK12: P | BL12: I | BM12: B | BN12: =IF(OR($B12=0,$B12=""),"",IF(AND($E$3="3rd"),'Class 3rd'!AG11,IF(AND($E$3="4th"),'Class 4th'!AG11,""))) -> 10 | BO12: =IF(OR($B12=0,$B12=""),"",IF(AND($E$3="3rd"),'Class 3rd'!AH11,IF(AND($E$3="4th"),'Class 4th'!AH11,""))) -> 10 | BP12: =IF(OR($B12=0,$B12=""),"",IF(AND($E$3="3rd"),'Class 3rd'!AI11,IF(AND($E$3="4th"),'Class 4th'!AI11,""))) -> 9 | BQ12: 29 | BR12: =IF(OR($B12=0,$B12=""),"",IF(AND($E$3="3rd"),'Class 3rd'!AJ11,IF(AND($E$3="4th"),'Class 4th'!AJ11,""))) -> 45 | BS12: =IF(OR($B12=0,$B12=""),"",IF(AND($E$3="3rd"),'Class 3rd'!AK11,IF(AND($E$3="4th"),'Class 4th'!AK11,""))) -> 18 | BT12: 63 | BU12: 92 | BV12: =IF(OR($B12=0,$B12=""),"",IF(AND($E$3="3rd"),'Class 3rd'!AL11,IF(AND($E$3="4th"),'Class 4th'!AL11,""))) -> 54 | BW12: =IF(OR($B12=0,$B12=""),"",IF(AND($E$3="3rd"),'Class 3rd'!AM11,IF(AND($E$3="4th"),'Class 4th'!AM11,""))) -> 37 | BX12: 91 | BY12: 183 | BZ12: 0 | CA12: 200 | CC12: P | CD12: I | CE12: A | CF12: =IF(OR($B12=0,$B12=""),"",IF(AND($E$3="3rd"),'Class 3rd'!AN11,IF(AND($E$3="4th"),'Class 4th'!AN11,""))) -> 9 | CG12: =IF(OR($B12=0,$B12=""),"",IF(AND($E$3="3rd"),'Class 3rd'!AO11,IF(AND($E$3="4th"),'Class 4th'!AO11,""))) -> 8 | CH12: =IF(OR($B12=0,$B12=""),"",IF(AND($E$3="3rd"),'Class 3rd'!AP11,IF(AND($E$3="4th"),'Class 4th'!AP11,""))) -> 10 | CI12: 27 | CJ12: =IF(OR($B12=0,$B12=""),"",IF(AND($E$3="3rd"),'Class 3rd'!AQ11,IF(AND($E$3="4th"),'Class 4th'!AQ11,""))) -> 20 | CK12: =IF(OR($B12=0,$B12=""),"",IF(AND($E$3="3rd"),'Class 3rd'!AR11,IF(AND($E$3="4th"),'Class 4th'!AR11,""))) -> 45 | CL12: 65 | CM12: 92 | CN12: =IF(OR($B12=0,$B12=""),"",IF(AND($E$3="3rd"),'Class 3rd'!AS11,IF(AND($E$3="4th"),'Class 4th'!AS11,""))) -> 38 | CO12: =IF(OR($B12=0,$B12=""),"",IF(AND($E$3="3rd"),'Class 3rd'!AT11,IF(AND($E$3="4th"),'Class 4th'!AT11,""))) -> 48 | CP12: 86 | CQ12: 178 | CR12: 0 | CS12: 200 | CT12: P | CU12: A | CV12: =IF(OR($B12=0,$B12=""),"",IF(AND($E$3="3rd"),'Class 3rd'!AU11,IF(AND($E$3="4th"),'Class 4th'!AU11,""))) -> 8 | CW12: =IF(OR($B12=0,$B12=""),"",IF(AND($E$3="3rd"),'Class 3rd'!AV11,IF(AND($E$3="4th"),'Class 4th'!AV11,""))) -> 7 | CX12: =IF(OR($B12=0,$B12=""),"",IF(AND($E$3="3rd"),'Class 3rd'!AW11,IF(AND($E$3="4th"),'Class 4th'!AW11,""))) -> 9 | CY12: 24 | CZ12: =IF(OR($B12=0,$B12=""),"",IF(AND($E$3="3rd"),'Class 3rd'!AX11,IF(AND($E$3="4th"),'Class 4th'!AX11,""))) -> 45 | DA12: =IF(OR($B12=0,$B12=""),"",IF(AND($E$3="3rd"),'Class 3rd'!AY11,IF(AND($E$3="4th"),'Class 4th'!AY11,""))) -> 19 | DB12: 64 | DC12: 88 | DD12: =IF(OR($B12=0,$B12=""),"",IF(AND($E$3="3rd"),'Class 3rd'!AZ11,IF(AND($E$3="4th"),'Class 4th'!AZ11,""))) -> 58 | DE12: =IF(OR($B12=0,$B12=""),"",IF(AND($E$3="3rd"),'Class 3rd'!BA11,IF(AND($E$3="4th"),'Class 4th'!BA11,""))) -> 34 | DF12: 92 | DG12: 180 | DH12: 0 | DI12: 200 | DJ12: P | DK12: A | DL12: =IF(OR($B12=0,$B12=""),"",IF(AND($E$3="3rd"),'Class 3rd'!BB11,IF(AND($E$3="4th"),'Class 4th'!BB11,""))) -> 19 | DM12: =IF(OR($B12=0,$B12=""),"",IF(AND($E$3="3rd"),'Class 3rd'!BC11,IF(AND($E$3="4th"),'Class 4th'!BC11,""))) -> 14 | DN12: =IF(OR($B12=0,$B12=""),"",IF(AND($E$3="3rd"),'Class 3rd'!BD11,IF(AND($E$3="4th"),'Class 4th'!BD11,""))) -> 16 | DO12: =IF(OR($B12=0,$B12=""),"",IF(AND($E$3="3rd"),'Class 3rd'!BE11,IF(AND($E$3="4th"),'Class 4th'!BE11,""))) -> 14 | DP12: =IF(OR($B12=0,$B12=""),"",IF(AND($E$3="3rd"),'Class 3rd'!BF11,IF(AND($E$3="4th"),'Class 4th'!BF11,""))) -> 17 | DQ12: 80 | DR12: 0 | DS12: 100 | DT12: P | DU12: A | DV12: =IF(OR($B12=0,$B12=""),"",IF(AND($E$3="3rd"),'Class 3rd'!BG11,IF(AND($E$3="4th"),'Class 4th'!BG11,""))) -> 11 | DW12: =IF(OR($B12=0,$B12=""),"",IF(AND($E$3="3rd"),'Class 3rd'!BH11,IF(AND($E$3="4th"),'Class 4th'!BH11,""))) -> 20 | DX12: =IF(OR($B12=0,$B12=""),"",IF(AND($E$3="3rd"),'Class 3rd'!BI11,IF(AND($E$3="4th"),'Class 4th'!BI11,""))) -> 15 | DY12: =IF(OR($B12=0,$B12=""),"",IF(AND($E$3="3rd"),'Class 3rd'!BJ11,IF(AND($E$3="4th"),'Class 4th'!BJ11,""))) -> 14 | DZ12: =IF(OR($B12=0,$B12=""),"",IF(AND($E$3="3rd"),'Class 3rd'!BK11,IF(AND($E$3="4th"),'Class 4th'!BK11,""))) -> 16 | EA12: 76 | EB12: 0 | EC12: 100 | ED12: P | EE12: A | EF12: =IF(OR($B12=0,$B12=""),"",IF(AND($E$3="3rd"),'Class 3rd'!BL11,IF(AND($E$3="4th"),'Class 4th'!BL11,""))) -> 20 | EG12: =IF(OR($B12=0,$B12=""),"",IF(AND($E$3="3rd"),'Class 3rd'!BM11,IF(AND($E$3="4th"),'Class 4th'!BM11,""))) -> 19 | EH12: =IF(OR($B12=0,$B12=""),"",IF(AND($E$3="3rd"),'Class 3rd'!BN11,IF(AND($E$3="4th"),'Class 4th'!BN11,""))) -> 15 | EI12: =IF(OR($B12=0,$B12=""),"",IF(AND($E$3="3rd"),'Class 3rd'!BO11,IF(AND($E$3="4th"),'Class 4th'!BO11,""))) -> 10 | EJ12: =IF(OR($B12=0,$B12=""),"",IF(AND($E$3="3rd"),'Class 3rd'!BP11,IF(AND($E$3="4th"),'Class 4th'!BP11,""))) -> 15 | EK12: 79 | EL12: 0 | EM12: 100 | EN12: P | EO12: A | EP12: 627 | EQ12: 89.57 % | ER12: I | ES12: 5 | ET12: =IFERROR(IF(B12="NSO","NSO",IF(OR(D12="",G12="",F12="",B12="",EP12=0),"",IF('Master sheet'!$D$14="Hindi","कक्षोंन्नति","Promoted"))),"") -> कक्षोंन्नति | EU12: =IF(OR($B12=0,$B12=""),"",IF(AND($E$3="3rd"),'Class 3rd'!BQ11,IF(AND($E$3="4th"),'Class 4th'!BQ11,""))) -> 340 | EV12: =IF(OR($B12=0,$B12=""),"",IF(AND($E$3="3rd"),'Class 3rd'!BR11,IF(AND($E$3="4th"),'Class 4th'!BR11,""))) -> 270 | EW12: A | FE12: =IF(AND($E$3="3rd"),'Class 3rd'!I11,IF(AND($E$3="4th"),'Class 4th'!I11,"")) -> 305
A13: 6 | B13: =IF(OR(FE13=0,FE13=""),"",IF(AND($E$3="3rd"),'Class 3rd'!I12,IF(AND($E$3="4th"),'Class 4th'!I12,""))) -> 306 | C13: =IF(OR($B13=0,$B13=""),"",IF(AND($E$3="3rd"),'Class 3rd'!B12,IF(AND($E$3="4th"),'Class 4th'!B12,""))) -> 3 | D13: =IF(OR($B13=0,$B13=""),"",IF(AND($E$3="3rd"),'Class 3rd'!C12,IF(AND($E$3="4th"),'Class 4th'!C12,""))) -> A | E13: =IF(OR($B13=0,$B13=""),"",IF(AND($E$3="3rd"),'Class 3rd'!E12,IF(AND($E$3="4th"),'Class 4th'!E12,""))) -> 16-06-2014 | F13: =IF(OR($B13=0,$B13=""),"",IF(AND($E$3="3rd"),'Class 3rd'!D12,IF(AND($E$3="4th"),'Class 4th'!D12,""))) -> 939 | G13: =IF(OR($B13=0,$B13=""),"",IF(AND($E$3="3rd"),'Class 3rd'!F12,IF(AND($E$3="4th"),'Class 4th'!F12,""))) -> BHUMIKA BAGRI | H13: =IF(OR($B13=0,$B13=""),"",IF(AND($E$3="3rd"),'Class 3rd'!G12,IF(AND($E$3="4th"),'Class 4th'!G12,""))) -> MUKESH BAGRI | I13: =IF(OR($B13=0,$B13=""),"",IF(AND($E$3="3rd"),'Class 3rd'!H12,IF(AND($E$3="4th"),'Class 4th'!H12,""))) -> SEEMA BAGRI | J13: =IF(OR($B13=0,$B13=""),"",IF(AND($E$3="3rd"),'Class 3rd'!J12,IF(AND($E$3="4th"),'Class 4th'!J12,""))) -> F | K13: =IF(OR($B13=0,$B13=""),"",IF(AND($E$3="3rd"),'Class 3rd'!K12,IF(AND($E$3="4th"),'Class 4th'!K12,""))) -> OBC | L13: =IF(OR($B13=0,$B13=""),"",IF(AND($E$3="3rd"),'Class 3rd'!L12,IF(AND($E$3="4th"),'Class 4th'!L12,""))) -> 9 | M13: =IF(OR($B13=0,$B13=""),"",IF(AND($E$3="3rd"),'Class 3rd'!M12,IF(AND($E$3="4th"),'Class 4th'!M12,""))) -> 8 | N13: =IF(OR($B13=0,$B13=""),"",IF(AND($E$3="3rd"),'Class 3rd'!N12,IF(AND($E$3="4th"),'Class 4th'!N12,""))) -> 10 | O13: 27 | P13: =IF(OR($B13=0,$B13=""),"",IF(AND($E$3="3rd"),'Class 3rd'!O12,IF(AND($E$3="4th"),'Class 4th'!O12,""))) -> 50 | Q13: =IF(OR($B13=0,$B13=""),"",IF(AND($E$3="3rd"),'Class 3rd'!P12,IF(AND($E$3="4th"),'Class 4th'!P12,""))) -> 19 | R13: 69 | S13: 96 | T13: =IF(OR($B13=0,$B13=""),"",IF(AND($E$3="3rd"),'Class 3rd'!Q12,IF(AND($E$3="4th"),'Class 4th'!Q12,""))) -> 60 | U13: =IF(OR($B13=0,$B13=""),"",IF(AND($E$3="3rd"),'Class 3rd'!R12,IF(AND($E$3="4th"),'Class 4th'!R12,""))) -> 37 | V13: 97 | W13: 193 | X13: 0 | Y13: 200 | AA13: P | AB13: I | AC13: A | AD13: =IF(OR($B13=0,$B13=""),"",IF(AND($E$3="3rd"),'Class 3rd'!S12,IF(AND($E$3="4th"),'Class 4th'!S12,""))) -> 5 | AE13: =IF(OR($B13=0,$B13=""),"",IF(AND($E$3="3rd"),'Class 3rd'!T12,IF(AND($E$3="4th"),'Class 4th'!T12,""))) -> 4 | AF13: =IF(OR($B13=0,$B13=""),"",IF(AND($E$3="3rd"),'Class 3rd'!U12,IF(AND($E$3="4th"),'Class 4th'!U12,""))) -> 5 | AG13: 14 | AH13: =IF(OR($B13=0,$B13=""),"",IF(AND($E$3="3rd"),'Class 3rd'!V12,IF(AND($E$3="4th"),'Class 4th'!V12,""))) -> 24 | AI13: =IF(OR($B13=0,$B13=""),"",IF(AND($E$3="3rd"),'Class 3rd'!W12,IF(AND($E$3="4th"),'Class 4th'!W12,""))) -> 9 | AJ13: 33 | AK13: 47 | AL13: =IF(OR($B13=0,$B13=""),"",IF(AND($E$3="3rd"),'Class 3rd'!X12,IF(AND($E$3="4th"),'Class 4th'!X12,""))) -> 24 | AM13: =IF(OR($B13=0,$B13=""),"",IF(AND($E$3="3rd"),'Class 3rd'!Y12,IF(AND($E$3="4th"),'Class 4th'!Y12,""))) -> 16 | AN13: 40 | AO13: 87 | AP13: 0 | AQ13: 100 | AS13: P | AT13: I | AU13: A | AV13: =IF(OR($B13=0,$B13=""),"",IF(AND($E$3="3rd"),'Class 3rd'!Z12,IF(AND($E$3="4th"),'Class 4th'!Z12,""))) -> 10 | AW13: =IF(OR($B13=0,$B13=""),"",IF(AND($E$3="3rd"),'Class 3rd'!AA12,IF(AND($E$3="4th"),'Class 4th'!AA12,""))) -> 9 | AX13: =IF(OR($B13=0,$B13=""),"",IF(AND($E$3="3rd"),'Class 3rd'!AB12,IF(AND($E$3="4th"),'Class 4th'!AB12,""))) -> 8 | AY13: 27 | AZ13: =IF(OR($B13=0,$B13=""),"",IF(AND($E$3="3rd"),'Class 3rd'!AC12,IF(AND($E$3="4th"),'Class 4th'!AC12,""))) -> 45 | BA13: =IF(OR($B13=0,$B13=""),"",IF(AND($E$3="3rd"),'Class 3rd'!AD12,IF(AND($E$3="4th"),'Class 4th'!AD12,""))) -> 15 | BB13: 60 | BC13: 87 | BD13: =IF(OR($B13=0,$B13=""),"",IF(AND($E$3="3rd"),'Class 3rd'!AE12,IF(AND($E$3="4th"),'Class 4th'!AE12,""))) -> 58 | BE13: =IF(OR($B13=0,$B13=""),"",IF(AND($E$3="3rd"),'Class 3rd'!AF12,IF(AND($E$3="4th"),'Class 4th'!AF12,""))) -> 37 | BF13: 95 | BG13: 182 | BH13: 0 | BI13: 200 | BK13: P | BL13: I | BM13: A | BN13: =IF(OR($B13=0,$B13=""),"",IF(AND($E$3="3rd"),'Class 3rd'!AG12,IF(AND($E$3="4th"),'Class 4th'!AG12,""))) -> 10 | BO13: =IF(OR($B13=0,$B13=""),"",IF(AND($E$3="3rd"),'Class 3rd'!AH12,IF(AND($E$3="4th"),'Class 4th'!AH12,""))) -> 10 | BP13: =IF(OR($B13=0,$B13=""),"",IF(AND($E$3="3rd"),'Class 3rd'!AI12,IF(AND($E$3="4th"),'Class 4th'!AI12,""))) -> 9 | BQ13: 29 | BR13: =IF(OR($B13=0,$B13=""),"",IF(AND($E$3="3rd"),'Class 3rd'!AJ12,IF(AND($E$3="4th"),'Class 4th'!AJ12,""))) -> 41 | BS13: =IF(OR($B13=0,$B13=""),"",IF(AND($E$3="3rd"),'Class 3rd'!AK12,IF(AND($E$3="4th"),'Class 4th'!AK12,""))) -> 18 | BT13: 59 | BU13: 88 | BV13: =IF(OR($B13=0,$B13=""),"",IF(AND($E$3="3rd"),'Class 3rd'!AL12,IF(AND($E$3="4th"),'Class 4th'!AL12,""))) -> 51 | BW13: =IF(OR($B13=0,$B13=""),"",IF(AND($E$3="3rd"),'Class 3rd'!AM12,IF(AND($E$3="4th"),'Class 4th'!AM12,""))) -> 37 | BX13: 88 | BY13: 176 | BZ13: 0 | CA13: 200 | CC13: P | CD13: I | CE13: A | CF13: =IF(OR($B13=0,$B13=""),"",IF(AND($E$3="3rd"),'Class 3rd'!AN12,IF(AND($E$3="4th"),'Class 4th'!AN12,""))) -> 9 | CG13: =IF(OR($B13=0,$B13=""),"",IF(AND($E$3="3rd"),'Class 3rd'!AO12,IF(AND($E$3="4th"),'Class 4th'!AO12,""))) -> 8 | CH13: =IF(OR($B13=0,$B13=""),"",IF(AND($E$3="3rd"),'Class 3rd'!AP12,IF(AND($E$3="4th"),'Class 4th'!AP12,""))) -> 10 | CI13: 27 | CJ13: =IF(OR($B13=0,$B13=""),"",IF(AND($E$3="3rd"),'Class 3rd'!AQ12,IF(AND($E$3="4th"),'Class 4th'!AQ12,""))) -> 20 | CK13: =IF(OR($B13=0,$B13=""),"",IF(AND($E$3="3rd"),'Class 3rd'!AR12,IF(AND($E$3="4th"),'Class 4th'!AR12,""))) -> 45 | CL13: 65 | CM13: 92 | CN13: =IF(OR($B13=0,$B13=""),"",IF(AND($E$3="3rd"),'Class 3rd'!AS12,IF(AND($E$3="4th"),'Class 4th'!AS12,""))) -> 38 | CO13: =IF(OR($B13=0,$B13=""),"",IF(AND($E$3="3rd"),'Class 3rd'!AT12,IF(AND($E$3="4th"),'Class 4th'!AT12,""))) -> 48 | CP13: 86 | CQ13: 178 | CR13: 0 | CS13: 200 | CT13: P | CU13: A | CV13: =IF(OR($B13=0,$B13=""),"",IF(AND($E$3="3rd"),'Class 3rd'!AU12,IF(AND($E$3="4th"),'Class 4th'!AU12,""))) -> 8 | CW13: =IF(OR($B13=0,$B13=""),"",IF(AND($E$3="3rd"),'Class 3rd'!AV12,IF(AND($E$3="4th"),'Class 4th'!AV12,""))) -> 7 | CX13: =IF(OR($B13=0,$B13=""),"",IF(AND($E$3="3rd"),'Class 3rd'!AW12,IF(AND($E$3="4th"),'Class 4th'!AW12,""))) -> 9 | CY13: 24 | CZ13: =IF(OR($B13=0,$B13=""),"",IF(AND($E$3="3rd"),'Class 3rd'!AX12,IF(AND($E$3="4th"),'Class 4th'!AX12,""))) -> 46 | DA13: =IF(OR($B13=0,$B13=""),"",IF(AND($E$3="3rd"),'Class 3rd'!AY12,IF(AND($E$3="4th"),'Class 4th'!AY12,""))) -> 18 | DB13: 64 | DC13: 88 | DD13: =IF(OR($B13=0,$B13=""),"",IF(AND($E$3="3rd"),'Class 3rd'!AZ12,IF(AND($E$3="4th"),'Class 4th'!AZ12,""))) -> 59 | DE13: =IF(OR($B13=0,$B13=""),"",IF(AND($E$3="3rd"),'Class 3rd'!BA12,IF(AND($E$3="4th"),'Class 4th'!BA12,""))) -> 31 | DF13: 90 | DG13: 178 | DH13: 0 | DI13: 200 | DJ13: P | DK13: A | DL13: =IF(OR($B13=0,$B13=""),"",IF(AND($E$3="3rd"),'Class 3rd'!BB12,IF(AND($E$3="4th"),'Class 4th'!BB12,""))) -> 17 | DM13: =IF(OR($B13=0,$B13=""),"",IF(AND($E$3="3rd"),'Class 3rd'!BC12,IF(AND($E$3="4th"),'Class 4th'!BC12,""))) -> 15 | DN13: =IF(OR($B13=0,$B13=""),"",IF(AND($E$3="3rd"),'Class 3rd'!BD12,IF(AND($E$3="4th"),'Class 4th'!BD12,""))) -> 14 | DO13: =IF(OR($B13=0,$B13=""),"",IF(AND($E$3="3rd"),'Class 3rd'!BE12,IF(AND($E$3="4th"),'Class 4th'!BE12,""))) -> 14 | DP13: =IF(OR($B13=0,$B13=""),"",IF(AND($E$3="3rd"),'Class 3rd'!BF12,IF(AND($E$3="4th"),'Class 4th'!BF12,""))) -> 18 | DQ13: 78 | DR13: 0 | DS13: 100 | DT13: P | DU13: A | DV13: =IF(OR($B13=0,$B13=""),"",IF(AND($E$3="3rd"),'Class 3rd'!BG12,IF(AND($E$3="4th"),'Class 4th'!BG12,""))) -> 12 | DW13: =IF(OR($B13=0,$B13=""),"",IF(AND($E$3="3rd"),'Class 3rd'!BH12,IF(AND($E$3="4th"),'Class 4th'!BH12,""))) -> 20 | DX13: =IF(OR($B13=0,$B13=""),"",IF(AND($E$3="3rd"),'Class 3rd'!BI12,IF(AND($E$3="4th"),'Class 4th'!BI12,""))) -> 15 | DY13: =IF(OR($B13=0,$B13=""),"",IF(AND($E$3="3rd"),'Class 3rd'!BJ12,IF(AND($E$3="4th"),'Class 4th'!BJ12,""))) -> 14 | DZ13: =IF(OR($B13=0,$B13=""),"",IF(AND($E$3="3rd"),'Class 3rd'!BK12,IF(AND($E$3="4th"),'Class 4th'!BK12,""))) -> 14 | EA13: 75 | EB13: 0 | EC13: 100 | ED13: P | EE13: B | EF13: =IF(OR($B13=0,$B13=""),"",IF(AND($E$3="3rd"),'Class 3rd'!BL12,IF(AND($E$3="4th"),'Class 4th'!BL12,""))) -> 20 | EG13: =IF(OR($B13=0,$B13=""),"",IF(AND($E$3="3rd"),'Class 3rd'!BM12,IF(AND($E$3="4th"),'Class 4th'!BM12,""))) -> 19 | EH13: =IF(OR($B13=0,$B13=""),"",IF(AND($E$3="3rd"),'Class 3rd'!BN12,IF(AND($E$3="4th"),'Class 4th'!BN12,""))) -> 16 | EI13: =IF(OR($B13=0,$B13=""),"",IF(AND($E$3="3rd"),'Class 3rd'!BO12,IF(AND($E$3="4th"),'Class 4th'!BO12,""))) -> 10 | EJ13: =IF(OR($B13=0,$B13=""),"",IF(AND($E$3="3rd"),'Class 3rd'!BP12,IF(AND($E$3="4th"),'Class 4th'!BP12,""))) -> 15 | EK13: 80 | EL13: 0 | EM13: 100 | EN13: P | EO13: A | EP13: 638 | EQ13: 91.14 % | ER13: I | ES13: 1 | ET13: =IFERROR(IF(B13="NSO","NSO",IF(OR(D13="",G13="",F13="",B13="",EP13=0),"",IF('Master sheet'!$D$14="Hindi","कक्षोंन्नति","Promoted"))),"") -> कक्षोंन्नति | EU13: =IF(OR($B13=0,$B13=""),"",IF(AND($E$3="3rd"),'Class 3rd'!BQ12,IF(AND($E$3="4th"),'Class 4th'!BQ12,""))) -> 340 | EV13: =IF(OR($B13=0,$B13=""),"",IF(AND($E$3="3rd"),'Class 3rd'!BR12,IF(AND($E$3="4th"),'Class 4th'!BR12,""))) -> 330 | EW13: A | FE13: =IF(AND($E$3="3rd"),'Class 3rd'!I12,IF(AND($E$3="4th"),'Class 4th'!I12,"")) -> 306
A14: 7 | B14: =IF(OR(FE14=0,FE14=""),"",IF(AND($E$3="3rd"),'Class 3rd'!I13,IF(AND($E$3="4th"),'Class 4th'!I13,""))) -> 307 | C14: =IF(OR($B14=0,$B14=""),"",IF(AND($E$3="3rd"),'Class 3rd'!B13,IF(AND($E$3="4th"),'Class 4th'!B13,""))) -> 3 | D14: =IF(OR($B14=0,$B14=""),"",IF(AND($E$3="3rd"),'Class 3rd'!C13,IF(AND($E$3="4th"),'Class 4th'!C13,""))) -> A | E14: =IF(OR($B14=0,$B14=""),"",IF(AND($E$3="3rd"),'Class 3rd'!E13,IF(AND($E$3="4th"),'Class 4th'!E13,""))) -> 28-09-2015 | F14: =IF(OR($B14=0,$B14=""),"",IF(AND($E$3="3rd"),'Class 3rd'!D13,IF(AND($E$3="4th"),'Class 4th'!D13,""))) -> 942 | G14: =IF(OR($B14=0,$B14=""),"",IF(AND($E$3="3rd"),'Class 3rd'!F13,IF(AND($E$3="4th"),'Class 4th'!F13,""))) -> DAKSH PRAJAPAT | H14: =IF(OR($B14=0,$B14=""),"",IF(AND($E$3="3rd"),'Class 3rd'!G13,IF(AND($E$3="4th"),'Class 4th'!G13,""))) -> PRAKASH PRAJAPAT | I14: =IF(OR($B14=0,$B14=""),"",IF(AND($E$3="3rd"),'Class 3rd'!H13,IF(AND($E$3="4th"),'Class 4th'!H13,""))) -> REKHA PRAJAPATI | J14: =IF(OR($B14=0,$B14=""),"",IF(AND($E$3="3rd"),'Class 3rd'!J13,IF(AND($E$3="4th"),'Class 4th'!J13,""))) -> M | K14: =IF(OR($B14=0,$B14=""),"",IF(AND($E$3="3rd"),'Class 3rd'!K13,IF(AND($E$3="4th"),'Class 4th'!K13,""))) -> OBC | L14: =IF(OR($B14=0,$B14=""),"",IF(AND($E$3="3rd"),'Class 3rd'!L13,IF(AND($E$3="4th"),'Class 4th'!L13,""))) -> 9 | M14: =IF(OR($B14=0,$B14=""),"",IF(AND($E$3="3rd"),'Class 3rd'!M13,IF(AND($E$3="4th"),'Class 4th'!M13,""))) -> 8 | N14: =IF(OR($B14=0,$B14=""),"",IF(AND($E$3="3rd"),'Class 3rd'!N13,IF(AND($E$3="4th"),'Class 4th'!N13,""))) -> 10 | O14: 27 | P14: =IF(OR($B14=0,$B14=""),"",IF(AND($E$3="3rd"),'Class 3rd'!O13,IF(AND($E$3="4th"),'Class 4th'!O13,""))) -> 47 | Q14: =IF(OR($B14=0,$B14=""),"",IF(AND($E$3="3rd"),'Class 3rd'!P13,IF(AND($E$3="4th"),'Class 4th'!P13,""))) -> 19 | R14: 66 | S14: 93 | T14: =IF(OR($B14=0,$B14=""),"",IF(AND($E$3="3rd"),'Class 3rd'!Q13,IF(AND($E$3="4th"),'Class 4th'!Q13,""))) -> 58 | U14: =IF(OR($B14=0,$B14=""),"",IF(AND($E$3="3rd"),'Class 3rd'!R13,IF(AND($E$3="4th"),'Class 4th'!R13,""))) -> 37 | V14: 95 | W14: 188 | X14: 0 | Y14: 200 | AA14: P | AB14: I | AC14: A | AD14: =IF(OR($B14=0,$B14=""),"",IF(AND($E$3="3rd"),'Class 3rd'!S13,IF(AND($E$3="4th"),'Class 4th'!S13,""))) -> 5 | AE14: =IF(OR($B14=0,$B14=""),"",IF(AND($E$3="3rd"),'Class 3rd'!T13,IF(AND($E$3="4th"),'Class 4th'!T13,""))) -> 4 | AF14: =IF(OR($B14=0,$B14=""),"",IF(AND($E$3="3rd"),'Class 3rd'!U13,IF(AND($E$3="4th"),'Class 4th'!U13,""))) -> 5 | AG14: 14 | AH14: =IF(OR($B14=0,$B14=""),"",IF(AND($E$3="3rd"),'Class 3rd'!V13,IF(AND($E$3="4th"),'Class 4th'!V13,""))) -> 23 | AI14: =IF(OR($B14=0,$B14=""),"",IF(AND($E$3="3rd"),'Class 3rd'!W13,IF(AND($E$3="4th"),'Class 4th'!W13,""))) -> 9 | AJ14: 32 | AK14: 46 | AL14: =IF(OR($B14=0,$B14=""),"",IF(AND($E$3="3rd"),'Class 3rd'!X13,IF(AND($E$3="4th"),'Class 4th'!X13,""))) -> 24 | AM14: =IF(OR($B14=0,$B14=""),"",IF(AND($E$3="3rd"),'Class 3rd'!Y13,IF(AND($E$3="4th"),'Class 4th'!Y13,""))) -> 14 | AN14: 38 | AO14: 84 | AP14: 0 | AQ14: 100 | AS14: P | AT14: I | AU14: B | AV14: =IF(OR($B14=0,$B14=""),"",IF(AND($E$3="3rd"),'Class 3rd'!Z13,IF(AND($E$3="4th"),'Class 4th'!Z13,""))) -> 10 | AW14: =IF(OR($B14=0,$B14=""),"",IF(AND($E$3="3rd"),'Class 3rd'!AA13,IF(AND($E$3="4th"),'Class 4th'!AA13,""))) -> 9 | AX14: =IF(OR($B14=0,$B14=""),"",IF(AND($E$3="3rd"),'Class 3rd'!AB13,IF(AND($E$3="4th"),'Class 4th'!AB13,""))) -> 8 | AY14: 27 | AZ14: =IF(OR($B14=0,$B14=""),"",IF(AND($E$3="3rd"),'Class 3rd'!AC13,IF(AND($E$3="4th"),'Class 4th'!AC13,""))) -> 47 | BA14: =IF(OR($B14=0,$B14=""),"",IF(AND($E$3="3rd"),'Class 3rd'!AD13,IF(AND($E$3="4th"),'Class 4th'!AD13,""))) -> 14 | BB14: 61 | BC14: 88 | BD14: =IF(OR($B14=0,$B14=""),"",IF(AND($E$3="3rd"),'Class 3rd'!AE13,IF(AND($E$3="4th"),'Class 4th'!AE13,""))) -> 59 | BE14: =IF(OR($B14=0,$B14=""),"",IF(AND($E$3="3rd"),'Class 3rd'!AF13,IF(AND($E$3="4th"),'Class 4th'!AF13,""))) -> 37 | BF14: 96 | BG14: 184 | BH14: 0 | BI14: 200 | BK14: P | BL14: I | BM14: A | BN14: =IF(OR($B14=0,$B14=""),"",IF(AND($E$3="3rd"),'Class 3rd'!AG13,IF(AND($E$3="4th"),'Class 4th'!AG13,""))) -> 10 | BO14: =IF(OR($B14=0,$B14=""),"",IF(AND($E$3="3rd"),'Class 3rd'!AH13,IF(AND($E$3="4th"),'Class 4th'!AH13,""))) -> 10 | BP14: =IF(OR($B14=0,$B14=""),"",IF(AND($E$3="3rd"),'Class 3rd'!AI13,IF(AND($E$3="4th"),'Class 4th'!AI13,""))) -> 9 | BQ14: 29 | BR14: =IF(OR($B14=0,$B14=""),"",IF(AND($E$3="3rd"),'Class 3rd'!AJ13,IF(AND($E$3="4th"),'Class 4th'!AJ13,""))) -> 40 | BS14: =IF(OR($B14=0,$B14=""),"",IF(AND($E$3="3rd"),'Class 3rd'!AK13,IF(AND($E$3="4th"),'Class 4th'!AK13,""))) -> 18 | BT14: 58 | BU14: 87 | BV14: =IF(OR($B14=0,$B14=""),"",IF(AND($E$3="3rd"),'Class 3rd'!AL13,IF(AND($E$3="4th"),'Class 4th'!AL13,""))) -> 45 | BW14: =IF(OR($B14=0,$B14=""),"",IF(AND($E$3="3rd"),'Class 3rd'!AM13,IF(AND($E$3="4th"),'Class 4th'!AM13,""))) -> 37 | BX14: 82 | BY14: 169 | BZ14: 0 | CA14: 200 | CC14: P | CD14: I | CE14: B | CF14: =IF(OR($B14=0,$B14=""),"",IF(AND($E$3="3rd"),'Class 3rd'!AN13,IF(AND($E$3="4th"),'Class 4th'!AN13,""))) -> 9 | CG14: =IF(OR($B14=0,$B14=""),"",IF(AND($E$3="3rd"),'Class 3rd'!AO13,IF(AND($E$3="4th"),'Class 4th'!AO13,""))) -> 8 | CH14: =IF(OR($B14=0,$B14=""),"",IF(AND($E$3="3rd"),'Class 3rd'!AP13,IF(AND($E$3="4th"),'Class 4th'!AP13,""))) -> 10 | CI14: 27 | CJ14: =IF(OR($B14=0,$B14=""),"",IF(AND($E$3="3rd"),'Class 3rd'!AQ13,IF(AND($E$3="4th"),'Class 4th'!AQ13,""))) -> 20 | CK14: =IF(OR($B14=0,$B14=""),"",IF(AND($E$3="3rd"),'Class 3rd'!AR13,IF(AND($E$3="4th"),'Class 4th'!AR13,""))) -> 45 | CL14: 65 | CM14: 92 | CN14: =IF(OR($B14=0,$B14=""),"",IF(AND($E$3="3rd"),'Class 3rd'!AS13,IF(AND($E$3="4th"),'Class 4th'!AS13,""))) -> 38 | CO14: =IF(OR($B14=0,$B14=""),"",IF(AND($E$3="3rd"),'Class 3rd'!AT13,IF(AND($E$3="4th"),'Class 4th'!AT13,""))) -> 48 | CP14: 86 | CQ14: 178 | CR14: 0 | CS14: 200 | CT14: P | CU14: A | CV14: =IF(OR($B14=0,$B14=""),"",IF(AND($E$3="3rd"),'Class 3rd'!AU13,IF(AND($E$3="4th"),'Class 4th'!AU13,""))) -> 8 | CW14: =IF(OR($B14=0,$B14=""),"",IF(AND($E$3="3rd"),'Class 3rd'!AV13,IF(AND($E$3="4th"),'Class 4th'!AV13,""))) -> 7 | CX14: =IF(OR($B14=0,$B14=""),"",IF(AND($E$3="3rd"),'Class 3rd'!AW13,IF(AND($E$3="4th"),'Class 4th'!AW13,""))) -> 9 | CY14: 24 | CZ14: =IF(OR($B14=0,$B14=""),"",IF(AND($E$3="3rd"),'Class 3rd'!AX13,IF(AND($E$3="4th"),'Class 4th'!AX13,""))) -> 47 | DA14: =IF(OR($B14=0,$B14=""),"",IF(AND($E$3="3rd"),'Class 3rd'!AY13,IF(AND($E$3="4th"),'Class 4th'!AY13,""))) -> 18 | DB14: 65 | DC14: 89 | DD14: =IF(OR($B14=0,$B14=""),"",IF(AND($E$3="3rd"),'Class 3rd'!AZ13,IF(AND($E$3="4th"),'Class 4th'!AZ13,""))) -> 52 | DE14: =IF(OR($B14=0,$B14=""),"",IF(AND($E$3="3rd"),'Class 3rd'!BA13,IF(AND($E$3="4th"),'Class 4th'!BA13,""))) -> 32 | DF14: 84 | DG14: 173 | DH14: 0 | DI14: 200 | DJ14: P | DK14: A | DL14: =IF(OR($B14=0,$B14=""),"",IF(AND($E$3="3rd"),'Class 3rd'!BB13,IF(AND($E$3="4th"),'Class 4th'!BB13,""))) -> 18 | DM14: =IF(OR($B14=0,$B14=""),"",IF(AND($E$3="3rd"),'Class 3rd'!BC13,IF(AND($E$3="4th"),'Class 4th'!BC13,""))) -> 16 | DN14: =IF(OR($B14=0,$B14=""),"",IF(AND($E$3="3rd"),'Class 3rd'!BD13,IF(AND($E$3="4th"),'Class 4th'!BD13,""))) -> 16 | DO14: =IF(OR($B14=0,$B14=""),"",IF(AND($E$3="3rd"),'Class 3rd'!BE13,IF(AND($E$3="4th"),'Class 4th'!BE13,""))) -> 14 | DP14: =IF(OR($B14=0,$B14=""),"",IF(AND($E$3="3rd"),'Class 3rd'!BF13,IF(AND($E$3="4th"),'Class 4th'!BF13,""))) -> 19 | DQ14: 83 | DR14: 0 | DS14: 100 | DT14: P | DU14: A | DV14: =IF(OR($B14=0,$B14=""),"",IF(AND($E$3="3rd"),'Class 3rd'!BG13,IF(AND($E$3="4th"),'Class 4th'!BG13,""))) -> 13 | DW14: =IF(OR($B14=0,$B14=""),"",IF(AND($E$3="3rd"),'Class 3rd'!BH13,IF(AND($E$3="4th"),'Class 4th'!BH13,""))) -> 20 | DX14: =IF(OR($B14=0,$B14=""),"",IF(AND($E$3="3rd"),'Class 3rd'!BI13,IF(AND($E$3="4th"),'Class 4th'!BI13,""))) -> 15 | DY14: =IF(OR($B14=0,$B14=""),"",IF(AND($E$3="3rd"),'Class 3rd'!BJ13,IF(AND($E$3="4th"),'Class 4th'!BJ13,""))) -> 14 | DZ14: =IF(OR($B14=0,$B14=""),"",IF(AND($E$3="3rd"),'Class 3rd'!BK13,IF(AND($E$3="4th"),'Class 4th'!BK13,""))) -> 13 | EA14: 75 | EB14: 0 | EC14: 100 | ED14: P | EE14: B | EF14: =IF(OR($B14=0,$B14=""),"",IF(AND($E$3="3rd"),'Class 3rd'!BL13,IF(AND($E$3="4th"),'Class 4th'!BL13,""))) -> 20 | EG14: =IF(OR($B14=0,$B14=""),"",IF(AND($E$3="3rd"),'Class 3rd'!BM13,IF(AND($E$3="4th"),'Class 4th'!BM13,""))) -> 19 | EH14: =IF(OR($B14=0,$B14=""),"",IF(AND($E$3="3rd"),'Class 3rd'!BN13,IF(AND($E$3="4th"),'Class 4th'!BN13,""))) -> 17 | EI14: =IF(OR($B14=0,$B14=""),"",IF(AND($E$3="3rd"),'Class 3rd'!BO13,IF(AND($E$3="4th"),'Class 4th'!BO13,""))) -> 10 | EJ14: =IF(OR($B14=0,$B14=""),"",IF(AND($E$3="3rd"),'Class 3rd'!BP13,IF(AND($E$3="4th"),'Class 4th'!BP13,""))) -> 15 | EK14: 81 | EL14: 0 | EM14: 100 | EN14: P | EO14: A | EP14: 625 | EQ14: 89.29 % | ER14: I | ES14: 6 | ET14: =IFERROR(IF(B14="NSO","NSO",IF(OR(D14="",G14="",F14="",B14="",EP14=0),"",IF('Master sheet'!$D$14="Hindi","कक्षोंन्नति","Promoted"))),"") -> कक्षोंन्नति | EU14: =IF(OR($B14=0,$B14=""),"",IF(AND($E$3="3rd"),'Class 3rd'!BQ13,IF(AND($E$3="4th"),'Class 4th'!BQ13,""))) -> 350 | EV14: =IF(OR($B14=0,$B14=""),"",IF(AND($E$3="3rd"),'Class 3rd'!BR13,IF(AND($E$3="4th"),'Class 4th'!BR13,""))) -> 320 | EW14: A | FE14: =IF(AND($E$3="3rd"),'Class 3rd'!I13,IF(AND($E$3="4th"),'Class 4th'!I13,"")) -> 307
A15: 8 | B15: =IF(OR(FE15=0,FE15=""),"",IF(AND($E$3="3rd"),'Class 3rd'!I14,IF(AND($E$3="4th"),'Class 4th'!I14,""))) -> 308 | C15: =IF(OR($B15=0,$B15=""),"",IF(AND($E$3="3rd"),'Class 3rd'!B14,IF(AND($E$3="4th"),'Class 4th'!B14,""))) -> 3 | D15: =IF(OR($B15=0,$B15=""),"",IF(AND($E$3="3rd"),'Class 3rd'!C14,IF(AND($E$3="4th"),'Class 4th'!C14,""))) -> A | E15: =IF(OR($B15=0,$B15=""),"",IF(AND($E$3="3rd"),'Class 3rd'!E14,IF(AND($E$3="4th"),'Class 4th'!E14,""))) -> 26-10-2015 | F15: =IF(OR($B15=0,$B15=""),"",IF(AND($E$3="3rd"),'Class 3rd'!D14,IF(AND($E$3="4th"),'Class 4th'!D14,""))) -> 925 | G15: =IF(OR($B15=0,$B15=""),"",IF(AND($E$3="3rd"),'Class 3rd'!F14,IF(AND($E$3="4th"),'Class 4th'!F14,""))) -> DIVYA BAGRI | H15: =IF(OR($B15=0,$B15=""),"",IF(AND($E$3="3rd"),'Class 3rd'!G14,IF(AND($E$3="4th"),'Class 4th'!G14,""))) -> MUKESH | I15: =IF(OR($B15=0,$B15=""),"",IF(AND($E$3="3rd"),'Class 3rd'!H14,IF(AND($E$3="4th"),'Class 4th'!H14,""))) -> SEEMA | J15: =IF(OR($B15=0,$B15=""),"",IF(AND($E$3="3rd"),'Class 3rd'!J14,IF(AND($E$3="4th"),'Class 4th'!J14,""))) -> F | K15: =IF(OR($B15=0,$B15=""),"",IF(AND($E$3="3rd"),'Class 3rd'!K14,IF(AND($E$3="4th"),'Class 4th'!K14,""))) -> OBC | L15: =IF(OR($B15=0,$B15=""),"",IF(AND($E$3="3rd"),'Class 3rd'!L14,IF(AND($E$3="4th"),'Class 4th'!L14,""))) -> 9 | M15: =IF(OR($B15=0,$B15=""),"",IF(AND($E$3="3rd"),'Class 3rd'!M14,IF(AND($E$3="4th"),'Class 4th'!M14,""))) -> 8 | N15: =IF(OR($B15=0,$B15=""),"",IF(AND($E$3="3rd"),'Class 3rd'!N14,IF(AND($E$3="4th"),'Class 4th'!N14,""))) -> 10 | O15: 27 | P15: =IF(OR($B15=0,$B15=""),"",IF(AND($E$3="3rd"),'Class 3rd'!O14,IF(AND($E$3="4th"),'Class 4th'!O14,""))) -> 48 | Q15: =IF(OR($B15=0,$B15=""),"",IF(AND($E$3="3rd"),'Class 3rd'!P14,IF(AND($E$3="4th"),'Class 4th'!P14,""))) -> 19 | R15: 67 | S15: 94 | T15: =IF(OR($B15=0,$B15=""),"",IF(AND($E$3="3rd"),'Class 3rd'!Q14,IF(AND($E$3="4th"),'Class 4th'!Q14,""))) -> 57 | U15: =IF(OR($B15=0,$B15=""),"",IF(AND($E$3="3rd"),'Class 3rd'!R14,IF(AND($E$3="4th"),'Class 4th'!R14,""))) -> 37 | V15: 94 | W15: 188 | X15: 0 | Y15: 200 | AA15: P | AB15: I | AC15: A | AD15: =IF(OR($B15=0,$B15=""),"",IF(AND($E$3="3rd"),'Class 3rd'!S14,IF(AND($E$3="4th"),'Class 4th'!S14,""))) -> 5 | AE15: =IF(OR($B15=0,$B15=""),"",IF(AND($E$3="3rd"),'Class 3rd'!T14,IF(AND($E$3="4th"),'Class 4th'!T14,""))) -> 4 | AF15: =IF(OR($B15=0,$B15=""),"",IF(AND($E$3="3rd"),'Class 3rd'!U14,IF(AND($E$3="4th"),'Class 4th'!U14,""))) -> 5 | AG15: 14 | AH15: =IF(OR($B15=0,$B15=""),"",IF(AND($E$3="3rd"),'Class 3rd'!V14,IF(AND($E$3="4th"),'Class 4th'!V14,""))) -> 21 | AI15: =IF(OR($B15=0,$B15=""),"",IF(AND($E$3="3rd"),'Class 3rd'!W14,IF(AND($E$3="4th"),'Class 4th'!W14,""))) -> 9 | AJ15: 30 | AK15: 44 | AL15: =IF(OR($B15=0,$B15=""),"",IF(AND($E$3="3rd"),'Class 3rd'!X14,IF(AND($E$3="4th"),'Class 4th'!X14,""))) -> 24 | AM15: =IF(OR($B15=0,$B15=""),"",IF(AND($E$3="3rd"),'Class 3rd'!Y14,IF(AND($E$3="4th"),'Class 4th'!Y14,""))) -> 18 | AN15: 42 | AO15: 86 | AP15: 0 | AQ15: 100 | AS15: P | AT15: I | AU15: A | AV15: =IF(OR($B15=0,$B15=""),"",IF(AND($E$3="3rd"),'Class 3rd'!Z14,IF(AND($E$3="4th"),'Class 4th'!Z14,""))) -> 10 | AW15: =IF(OR($B15=0,$B15=""),"",IF(AND($E$3="3rd"),'Class 3rd'!AA14,IF(AND($E$3="4th"),'Class 4th'!AA14,""))) -> 9 | AX15: =IF(OR($B15=0,$B15=""),"",IF(AND($E$3="3rd"),'Class 3rd'!AB14,IF(AND($E$3="4th"),'Class 4th'!AB14,""))) -> 8 | AY15: 27 | AZ15: =IF(OR($B15=0,$B15=""),"",IF(AND($E$3="3rd"),'Class 3rd'!AC14,IF(AND($E$3="4th"),'Class 4th'!AC14,""))) -> 48 | BA15: =IF(OR($B15=0,$B15=""),"",IF(AND($E$3="3rd"),'Class 3rd'!AD14,IF(AND($E$3="4th"),'Class 4th'!AD14,""))) -> 14 | BB15: 62 | BC15: 89 | BD15: =IF(OR($B15=0,$B15=""),"",IF(AND($E$3="3rd"),'Class 3rd'!AE14,IF(AND($E$3="4th"),'Class 4th'!AE14,""))) -> 57 | BE15: =IF(OR($B15=0,$B15=""),"",IF(AND($E$3="3rd"),'Class 3rd'!AF14,IF(AND($E$3="4th"),'Class 4th'!AF14,""))) -> 37 | BF15: 94 | BG15: 183 | BH15: 0 | BI15: 200 | BK15: P | BL15: I | BM15: A | BN15: =IF(OR($B15=0,$B15=""),"",IF(AND($E$3="3rd"),'Class 3rd'!AG14,IF(AND($E$3="4th"),'Class 4th'!AG14,""))) -> 10 | BO15: =IF(OR($B15=0,$B15=""),"",IF(AND($E$3="3rd"),'Class 3rd'!AH14,IF(AND($E$3="4th"),'Class 4th'!AH14,""))) -> 10 | BP15: =IF(OR($B15=0,$B15=""),"",IF(AND($E$3="3rd"),'Class 3rd'!AI14,IF(AND($E$3="4th"),'Class 4th'!AI14,""))) -> 9 | BQ15: 29 | BR15: =IF(OR($B15=0,$B15=""),"",IF(AND($E$3="3rd"),'Class 3rd'!AJ14,IF(AND($E$3="4th"),'Class 4th'!AJ14,""))) -> 42 | BS15: =IF(OR($B15=0,$B15=""),"",IF(AND($E$3="3rd"),'Class 3rd'!AK14,IF(AND($E$3="4th"),'Class 4th'!AK14,""))) -> 18 | BT15: 60 | BU15: 89 | BV15: =IF(OR($B15=0,$B15=""),"",IF(AND($E$3="3rd"),'Class 3rd'!AL14,IF(AND($E$3="4th"),'Class 4th'!AL14,""))) -> 46 | BW15: =IF(OR($B15=0,$B15=""),"",IF(AND($E$3="3rd"),'Class 3rd'!AM14,IF(AND($E$3="4th"),'Class 4th'!AM14,""))) -> 37 | BX15: 83 | BY15: 172 | BZ15: 0 | CA15: 200 | CC15: P | CD15: I | CE15: A | CF15: =IF(OR($B15=0,$B15=""),"",IF(AND($E$3="3rd"),'Class 3rd'!AN14,IF(AND($E$3="4th"),'Class 4th'!AN14,""))) -> 9 | CG15: =IF(OR($B15=0,$B15=""),"",IF(AND($E$3="3rd"),'Class 3rd'!AO14,IF(AND($E$3="4th"),'Class 4th'!AO14,""))) -> 8 | CH15: =IF(OR($B15=0,$B15=""),"",IF(AND($E$3="3rd"),'Class 3rd'!AP14,IF(AND($E$3="4th"),'Class 4th'!AP14,""))) -> 10 | CI15: 27 | CJ15: =IF(OR($B15=0,$B15=""),"",IF(AND($E$3="3rd"),'Class 3rd'!AQ14,IF(AND($E$3="4th"),'Class 4th'!AQ14,""))) -> 20 | CK15: =IF(OR($B15=0,$B15=""),"",IF(AND($E$3="3rd"),'Class 3rd'!AR14,IF(AND($E$3="4th"),'Class 4th'!AR14,""))) -> 45 | CL15: 65 | CM15: 92 | CN15: =IF(OR($B15=0,$B15=""),"",IF(AND($E$3="3rd"),'Class 3rd'!AS14,IF(AND($E$3="4th"),'Class 4th'!AS14,""))) -> 38 | CO15: =IF(OR($B15=0,$B15=""),"",IF(AND($E$3="3rd"),'Class 3rd'!AT14,IF(AND($E$3="4th"),'Class 4th'!AT14,""))) -> 48 | CP15: 86 | CQ15: 178 | CR15: 0 | CS15: 200 | CT15: P | CU15: A | CV15: =IF(OR($B15=0,$B15=""),"",IF(AND($E$3="3rd"),'Class 3rd'!AU14,IF(AND($E$3="4th"),'Class 4th'!AU14,""))) -> 8 | CW15: =IF(OR($B15=0,$B15=""),"",IF(AND($E$3="3rd"),'Class 3rd'!AV14,IF(AND($E$3="4th"),'Class 4th'!AV14,""))) -> 7 | CX15: =IF(OR($B15=0,$B15=""),"",IF(AND($E$3="3rd"),'Class 3rd'!AW14,IF(AND($E$3="4th"),'Class 4th'!AW14,""))) -> 9 | CY15: 24 | CZ15: =IF(OR($B15=0,$B15=""),"",IF(AND($E$3="3rd"),'Class 3rd'!AX14,IF(AND($E$3="4th"),'Class 4th'!AX14,""))) -> 36 | DA15: =IF(OR($B15=0,$B15=""),"",IF(AND($E$3="3rd"),'Class 3rd'!AY14,IF(AND($E$3="4th"),'Class 4th'!AY14,""))) -> 18 | DB15: 54 | DC15: 78 | DD15: =IF(OR($B15=0,$B15=""),"",IF(AND($E$3="3rd"),'Class 3rd'!AZ14,IF(AND($E$3="4th"),'Class 4th'!AZ14,""))) -> 51 | DE15: =IF(OR($B15=0,$B15=""),"",IF(AND($E$3="3rd"),'Class 3rd'!BA14,IF(AND($E$3="4th"),'Class 4th'!BA14,""))) -> 36 | DF15: 87 | DG15: 165 | DH15: 0 | DI15: 200 | DJ15: P | DK15: B | DL15: =IF(OR($B15=0,$B15=""),"",IF(AND($E$3="3rd"),'Class 3rd'!BB14,IF(AND($E$3="4th"),'Class 4th'!BB14,""))) -> 19 | DM15: =IF(OR($B15=0,$B15=""),"",IF(AND($E$3="3rd"),'Class 3rd'!BC14,IF(AND($E$3="4th"),'Class 4th'!BC14,""))) -> 14 | DN15: =IF(OR($B15=0,$B15=""),"",IF(AND($E$3="3rd"),'Class 3rd'!BD14,IF(AND($E$3="4th"),'Class 4th'!BD14,""))) -> 16 | DO15: =IF(OR($B15=0,$B15=""),"",IF(AND($E$3="3rd"),'Class 3rd'!BE14,IF(AND($E$3="4th"),'Class 4th'!BE14,""))) -> 14 | DP15: =IF(OR($B15=0,$B15=""),"",IF(AND($E$3="3rd"),'Class 3rd'!BF14,IF(AND($E$3="4th"),'Class 4th'!BF14,""))) -> 17 | DQ15: 80 | DR15: 0 | DS15: 100 | DT15: P | DU15: A | DV15: =IF(OR($B15=0,$B15=""),"",IF(AND($E$3="3rd"),'Class 3rd'!BG14,IF(AND($E$3="4th"),'Class 4th'!BG14,""))) -> 13 | DW15: =IF(OR($B15=0,$B15=""),"",IF(AND($E$3="3rd"),'Class 3rd'!BH14,IF(AND($E$3="4th"),'Class 4th'!BH14,""))) -> 20 | DX15: =IF(OR($B15=0,$B15=""),"",IF(AND($E$3="3rd"),'Class 3rd'!BI14,IF(AND($E$3="4th"),'Class 4th'!BI14,""))) -> 15 | DY15: =IF(OR($B15=0,$B15=""),"",IF(AND($E$3="3rd"),'Class 3rd'!BJ14,IF(AND($E$3="4th"),'Class 4th'!BJ14,""))) -> 14 | DZ15: =IF(OR($B15=0,$B15=""),"",IF(AND($E$3="3rd"),'Class 3rd'!BK14,IF(AND($E$3="4th"),'Class 4th'!BK14,""))) -> 12 | EA15: 74 | EB15: 0 | EC15: 100 | ED15: P | EE15: B | EF15: =IF(OR($B15=0,$B15=""),"",IF(AND($E$3="3rd"),'Class 3rd'!BL14,IF(AND($E$3="4th"),'Class 4th'!BL14,""))) -> 20 | EG15: =IF(OR($B15=0,$B15=""),"",IF(AND($E$3="3rd"),'Class 3rd'!BM14,IF(AND($E$3="4th"),'Class 4th'!BM14,""))) -> 19 | EH15: =IF(OR($B15=0,$B15=""),"",IF(AND($E$3="3rd"),'Class 3rd'!BN14,IF(AND($E$3="4th"),'Class 4th'!BN14,""))) -> 18 | EI15: =IF(OR($B15=0,$B15=""),"",IF(AND($E$3="3rd"),'Class 3rd'!BO14,IF(AND($E$3="4th"),'Class 4th'!BO14,""))) -> 10 | EJ15: =IF(OR($B15=0,$B15=""),"",IF(AND($E$3="3rd"),'Class 3rd'!BP14,IF(AND($E$3="4th"),'Class 4th'!BP14,""))) -> 15 | EK15: 82 | EL15: 0 | EM15: 100 | EN15: P | EO15: A | EP15: 629 | EQ15: 89.86 % | ER15: I | ES15: 3 | ET15: =IFERROR(IF(B15="NSO","NSO",IF(OR(D15="",G15="",F15="",B15="",EP15=0),"",IF('Master sheet'!$D$14="Hindi","कक्षोंन्नति","Promoted"))),"") -> कक्षोंन्नति | EU15: =IF(OR($B15=0,$B15=""),"",IF(AND($E$3="3rd"),'Class 3rd'!BQ14,IF(AND($E$3="4th"),'Class 4th'!BQ14,""))) -> 320 | EV15: =IF(OR($B15=0,$B15=""),"",IF(AND($E$3="3rd"),'Class 3rd'!BR14,IF(AND($E$3="4th"),'Class 4th'!BR14,""))) -> 310 | EW15: A | FE15: =IF(AND($E$3="3rd"),'Class 3rd'!I14,IF(AND($E$3="4th"),'Class 4th'!I14,"")) -> 308
